Workbook

Sheet Summary of Funding (hidden)
A1: Date Issued: 21st April 2026 | H1: Last Amended: 9th April 2026
A2: COVENTRY CITY COUNCIL
A3: 2025-26 Funding Allocations for Special Schools & Alternative Provision | P3: 1
A4: Final Summary of Funding
A6: =_xlfn.XLOOKUP($P$3,Data!A4:A12,Data!B4:B12) -> Castle Wood Special School
A9: =IF(P44=0,"","***ERROR - CALCULATED ADJUSTMENT DOES NOT EQUAL ACTUAL ***") -> 
A10: Coventry Budget Share Elements
A12: Place Led Funding - see 'Place Led Funding' tab | F12: ='Place Led Funding'!M27 -> 1791666.667 | P12: =_xlfn.XLOOKUP(P3,Data!A113:A122,Data!C113:C122)-F12 -> 0
A14: Coventry Top-up Funding - see 'Top-up Funding' tabs | F14: ='Summer 2025 Top-up'!K29+'Autumn 2025 Top-up'!K29+'Spring 2026 Top-up'!K29 -> 2369278.8 | P14: =_xlfn.XLOOKUP(P3,Data!A113:A122,Data!D113:D122)-F14 -> 0
A16: Historic Teachers Pay & Pension Grants | F16: =_xlfn.XLOOKUP('Summary of Funding'!$P$3,Data!$A$4:$A$12,Data!AT$4:AT$12) -> 118250 | P16: =_xlfn.XLOOKUP(P3,Data!A4:A12,Data!AT4:AT12)-'Summary of Funding'!F16 -> 0
A18: High Needs Additional Grant | F18: =_xlfn.XLOOKUP('Summary of Funding'!$P$3,Data!$A$4:$A$12,Data!AU$4:AU$12) -> 133574.7831
A20: Split Site Funding | F20: =_xlfn.XLOOKUP('Summary of Funding'!$P$3,Data!$A$4:$A$12,Data!AW$4:AW$12) -> 0
A22: RPA Adjustment | F22: =_xlfn.XLOOKUP('Summary of Funding'!$P$3,Data!$A$4:$A$12,Data!AX$4:AX$12) -> -4320
H25: =F12+F14+F16+F20+F22+F18 -> 4408450.249 | P25: =P14+P12 -> 0
A27: Other LA Budget Share Elements
A29: Other LA Top-up Funding - see 'Top-up Funding' tabs | F29: ='Summer 2025 Top-up'!K51+'Autumn 2025 Top-up'!K51+'Spring 2026 Top-up'!K51 -> 41761.51592 | P29: =_xlfn.XLOOKUP(P3,Data!A99:A107,Data!AS99:AS107)-F29 -> 0
H31: =F29 -> 41761.51592 | P31: =P29 -> 0
A33: Total Budget Share 2025/26 | H33: =H25+H31 -> 4450211.765 | P33: =P31+P25 -> 0
A35: Other Funding Elements
A37: Pupil Premium Grant 2025/26 | F37: =_xlfn.XLOOKUP('Summary of Funding'!$P$3,Data!$A$4:$A$12,Data!AS$4:AS$12) -> 104535 | P37: =_xlfn.XLOOKUP(P3,Data!A4:A12,Data!AS4:AS12)-F37 -> 0
A39: Core School Budget Grant | F39: =_xlfn.XLOOKUP('Summary of Funding'!$P$3,Data!$A$4:$A$12,Data!AV$4:AV$12) -> 503177.62
H41: =F39+F37 -> 607712.62
A43: Total Revenue Resources | H43: =H33+H41 -> 5057924.385 | P43: =P41+P33 -> 0
A46: Notes
A48: This funding summary is intended to give you an overview of the indicative resources allocated to the school for the 2025/26 financial year.
A49: The actual budget that you will receive is based on the real-time movement of pupils and is now finalised.
A51: Your Summer 2025, Autumn 2025 and Spring 2026 top-ups have been updated to reflect the actual level of provision during the term - this
A52: allocation is now final.
A54: High Needs Additional Grant was mainstreamed and included in top up rates in 2024/25. DfE guidance has stated this should be
A55: paid separately to top up rates in 2025/26.
A57: Risk Protection Arrangement is based on the latest information from DfE.
A59: Pupil Premium Funding has been updated to reflect 25/26 eligibility data from DfE.
A61: Core Schools Budget Grant is funding which covers the September 2024 pay award, the April 2025 National Insurance Contribution increase
A62: & the September 2025 pay award. This is allocated to schools based on actual commissioned places.

Sheet Place Led Funding (hidden)
A1: ='Summary of Funding'!A1 -> Date Issued: 21st April 2026 | M1: ='Summary of Funding'!H1 -> Last Amended: 9th April 2026
A2: ='Summary of Funding'!A2 -> COVENTRY CITY COUNCIL
A3: ='Summary of Funding'!A3 -> 2025-26 Funding Allocations for Special Schools & Alternative Provision | P3: ='Summary of Funding'!P3 -> 1
A4: Place Led Funding
A6: =_xlfn.XLOOKUP(P3,Data!A4:A12,Data!B4:B12) -> Castle Wood Special School | P6: Checks
A10: Factors | C10: Factor Measurement | G10: Number of Units | I10: Funding Per Unit | K10: Pro Rata | M10: Funding Allocated
I11: £ | M11: £
A13: Pre-16 Funding | C13: No. Places comissioned (Apr 2025 - Jul 2025) | G13: =_xlfn.XLOOKUP($P$3,Data!A4:A12,Data!F4:F12) -> 164 | I13: 10000 | K13: =4/12 -> 0.3333333333 | M13: =G13*I13*K13 -> 546666.6667
C14: No. Places comissioned (Aug 2025) | G14: =_xlfn.XLOOKUP($P$3,Data!A4:A12,Data!G4:G12) -> 164 | I14: 10000 | K14: 0.08333333333 | M14: =G14*I14*K14 -> 136666.6667
C15: No. Places comissioned (Sep 2025 - Dec 2025) | G15: =_xlfn.XLOOKUP($P$3,Data!A4:A12,Data!H4:H12) -> 190 | I15: 10000 | K15: 0.3333333333 | M15: =G15*I15*K15 -> 633333.3333
C16: No. Places comissioned (Jan 2026 - Mar 2026) | G16: =_xlfn.XLOOKUP($P$3,Data!A4:A12,Data!I4:I12) -> 190 | I16: 10000 | K16: 0.25 | M16: =G16*I16*K16 -> 475000
M18: =SUM(M13:M16) -> 1791666.667 | P18: =_xlfn.XLOOKUP(P3,Data!A4:A12,Data!Q4:Q12)+_xlfn.XLOOKUP(P3,Data!A4:A12,Data!R4:R12)+_xlfn.XLOOKUP(P3,Data!A4:A12,Data!S4:S12)+_xlfn.XLOOKUP(P3,Data!A4:A12,Data!T4:T12)-M18 -> 0
A20: Post-16 Funding | C20: No. Places comissioned (Apr 2025 - Jul 2025) | G20: =_xlfn.XLOOKUP($P$3,Data!A4:A12,Data!J4:J12) -> 0 | I20: 10000 | K20: =4/12 -> 0.3333333333 | M20: =G20*I20*K20 -> 0
C21: No. Places comissioned (Aug 2025) | G21: =_xlfn.XLOOKUP($P$3,Data!A4:A12,Data!J4:J12) -> 0 | I21: 10000 | K21: 0.08333333333 | M21: =G21*I21*K21 -> 0
C22: No. Places comissioned (Sep 2025 - Mar 2026) | G22: =_xlfn.XLOOKUP($P$3,Data!A4:A12,Data!K4:K12) -> 0 | I22: 10000 | K22: 0.5833333333 | M22: =G22*I22*K22 -> 0
M24: =SUM(M20:M22) -> 0 | P24: =_xlfn.XLOOKUP(P3,Data!A4:A12,Data!U4:U12)+_xlfn.XLOOKUP(P3,Data!A4:A12,Data!V4:V12)+_xlfn.XLOOKUP(P3,Data!A4:A12,Data!W4:W12)-'Place Led Funding'!M24 -> 0
A27: Total ACTUAL Place Led Funding | M27: =M18+M24 -> 1791666.667 | P27: =P24+P18 -> 0

Sheet HN Framework Values (hidden)
A1: ='Summary of Funding'!A1 -> Date Issued: 21st April 2026 | K1: ='Summary of Funding'!H1 -> Last Amended: 9th April 2026
A2: ='Summary of Funding'!A2 -> COVENTRY CITY COUNCIL
A3: ='Summary of Funding'!A3 -> 2025-26 Funding Allocations for Special Schools & Alternative Provision | P3: ='Summary of Funding'!P3 -> 1
A4: High Needs Banded Framework Top-up Rates
A6: =_xlfn.XLOOKUP(P3,Data!A4:A12,Data!B4:B12) -> Castle Wood Special School | P6: Checks
A11: High Needs Banded Framework
A12: Table 1 | D12: Cat 1 | E12: Cat 2 | F12: Cat 3 | G12: Cat 4 | H12: Cat 5 | I12: Cat 6
D13: Communication and Interaction | E13: Cognition and Learning | F13: SEMH | G13: Sensory &/or Physical | H13: Exceptional | I13: Personalised
C14: Level A | D14: Universal | I14: Early Support - only as agreed with Head of SS
C15: Level B | D15: Targeted
C16: Level C | D16: S&L Disorder | E16: Specific LD
C17: Level D | D17: Social Comm - Moderate | E17: MLD | F17: SEMH - Moderate | G17: HI/VI
C18: Level E | D18: Social Comm - High | E18: SLD | F18: SEMH - High | G18: PD - High | H18: OOC - only as agreed with Head of SS | I18: CC - only as agreed with Head of SS
C19: Level F | D19: Social Comm - Severe | E19: PMLD | F19: SEMH - Severe | G19: MSI
C21: Cov ELC | D21: ELC Band
A23: HN Framework Top-up Rates
A24: Table 2 | D24: Cat 1 | E24: Cat 2 | F24: Cat 3 | G24: Cat 4 | H24: Cat 5 | I24: Cat 6
D25: Communication and Interaction | E25: Cognition and Learning | F25: SEMH | G25: Sensory &/or Physical | H25: Exceptional | I25: Personalised
C26: Level A | D26: 0 | E26: 0 | F26: 0 | G26: 0 | I26: As agreed with Head of SS
C27: Level B | D27: 0 | E27: 0 | F27: 0 | G27: 0
C28: Level C | D28: =D40 -> 2620.221587 | E28: =E40 -> 3144.270392
C29: Level D | D29: =D41 -> 3144.270392 | E29: 5240.443175 | F29: =F41 -> 7860.675979 | G29: 7860.675979
C30: Level E | D30: 10480.89757 | E30: 9694.835577 | F30: =F42 -> 13101.11915 | G30: 13101.11915 | H30: As agreed with Head of SS | I30: As agreed with Head of SS
C31: Level F | D31: =D43 -> 17031.46275 | E31: =E43 -> 15721.34074 | F31: =F43 -> 17031.46275 | G31: 15721.34074
C33: Cov ELC | D33: =Data!Y12 -> 12897.34992
A35: MFG PROTECTED Top-up Rates
A36: Table 3 | D36: Cat 1 | E36: Cat 2 | F36: Cat 3 | G36: Cat 4 | H36: Cat 5 | I36: Cat 6
A37: Protection | D37: Communication and Interaction | E37: Cognition and Learning | F37: SEMH | G37: Sensory &/or Physical | H37: Exceptional | I37: Personalised
A38: Level: | B38: =((D43/D31)-1) -> 0 | C38: Level A | D38: 0 | E38: 0 | F38: 0 | G38: 0 | H38: 0 | I38: 0
C39: Level B | D39: 0 | E39: 0 | F39: 0 | G39: 0 | H39: 0 | I39: 0
C40: Level C | D40: =_xlfn.XLOOKUP($P$3,Data!$A$4:$A$12,Data!Z4:Z12) -> 2620.221587 | E40: =_xlfn.XLOOKUP($P$3,Data!$A$4:$A$12,Data!AA4:AA12) -> 3144.270392 | F40: 0 | G40: 0 | H40: 0 | I40: 0
C41: Level D | D41: =_xlfn.XLOOKUP($P$3,Data!$A$4:$A$12,Data!AB4:AB12) -> 3144.270392 | E41: =_xlfn.XLOOKUP($P$3,Data!$A$4:$A$12,Data!AC4:AC12) -> 5240.443175 | F41: =_xlfn.XLOOKUP($P$3,Data!$A$4:$A$12,Data!AD4:AD12) -> 7860.675979 | G41: =_xlfn.XLOOKUP($P$3,Data!$A$4:$A$12,Data!AE4:AE12) -> 7860.675979 | H41: 0 | I41: 0
C42: Level E | D42: =_xlfn.XLOOKUP($P$3,Data!$A$4:$A$12,Data!AF4:AF12) -> 10480.89757 | E42: =_xlfn.XLOOKUP($P$3,Data!$A$4:$A$12,Data!AG4:AG12) -> 9694.835577 | F42: =_xlfn.XLOOKUP($P$3,Data!$A$4:$A$12,Data!AH4:AH12) -> 13101.11915 | G42: =_xlfn.XLOOKUP($P$3,Data!$A$4:$A$12,Data!AI4:AI12) -> 13101.11915 | H42: =_xlfn.XLOOKUP($P$3,Data!$A$4:$A$12,Data!AJ4:AJ12) -> 26685.25108 | I42: =_xlfn.XLOOKUP($P$3,Data!$A$4:$A$12,Data!AK4:AK12) -> 0
C43: Level F | D43: =_xlfn.XLOOKUP($P$3,Data!$A$4:$A$12,Data!AL4:AL12) -> 17031.46275 | E43: =_xlfn.XLOOKUP($P$3,Data!$A$4:$A$12,Data!AM4:AM12) -> 15721.34074 | F43: =_xlfn.XLOOKUP($P$3,Data!$A$4:$A$12,Data!AN4:AN12) -> 17031.46275 | G43: =_xlfn.XLOOKUP($P$3,Data!$A$4:$A$12,Data!AO4:AO12) -> 15721.34074 | H43: =_xlfn.XLOOKUP($P$3,Data!$A$4:$A$12,Data!AP4:AP12) -> 53370.50216 | I43: =_xlfn.XLOOKUP($P$3,Data!$A$4:$A$12,Data!AQ4:AQ12) -> 0
A46: Notes
A48: Table 2 shows the High Needs Top-up Rates that apply to special schools for each element of the High Needs Funding Matrix. All top up
A49: rates in Table 2 have seen an inflationary increase of 0.5% after removing the impact of the 2024/25 high needs additional grant.
A53: =IF(N4="MFG","standard High Needs Top-up rates. Your protected top-up rates are shown in table 3 and apply to your school for the 2021/22 financial year.","") -> 

Sheet Summer 2025 Top-up (hidden)
A1: ='Summary of Funding'!A1 -> Date Issued: 21st April 2026 | M1: ='Summary of Funding'!H1 -> Last Amended: 9th April 2026
A2: ='Summary of Funding'!A2 -> COVENTRY CITY COUNCIL
A3: ='Summary of Funding'!A3 -> 2025-26 Funding Allocations for Special Schools & Alternative Provision | P3: ='Summary of Funding'!P3 -> 1
A4: Summer 2025 Top-up Funding
A6: =_xlfn.XLOOKUP(P3,Data!A4:A12,Data!B4:B12) -> Castle Wood Special School | P6: Checks
A10: Total days in term: | B10: =Data!A20 -> 64
A11: Summer 2025 Funded days - Coventry
A12: Actual | D12: Cat 1 | E12: Cat 2 | F12: Cat 3 | G12: Cat 4 | H12: Cat 5 | I12: Cat 6
C13: Level A | D13: 0 | E13: 0 | F13: 0 | G13: 0 | H13: 0 | I13: 0
C14: Level B | D14: 0 | E14: 0 | F14: 0 | G14: 0 | H14: 0 | I14: 0
C15: Level C | D15: =_xlfn.XLOOKUP($P$3,Data!$A$33:$A$41,Data!E$33:E$41) -> 0 | E15: =_xlfn.XLOOKUP($P$3,Data!$A$33:$A$41,Data!F$33:F$41) -> 0 | F15: 0 | G15: 0 | H15: 0 | I15: 0
C16: Level D | D16: =_xlfn.XLOOKUP($P$3,Data!$A$33:$A$41,Data!G$33:G$41) -> 0 | E16: =_xlfn.XLOOKUP($P$3,Data!$A$33:$A$41,Data!H$33:H$41) -> 0 | F16: =_xlfn.XLOOKUP($P$3,Data!$A$33:$A$41,Data!I$33:I$41) -> 0 | G16: =_xlfn.XLOOKUP($P$3,Data!$A$33:$A$41,Data!J$33:J$41) -> 64 | H16: 0 | I16: 0
C17: Level E | D17: =_xlfn.XLOOKUP($P$3,Data!$A$33:$A$41,Data!K$33:K$41) -> 5637 | E17: =_xlfn.XLOOKUP($P$3,Data!$A$33:$A$41,Data!L$33:L$41) -> 576 | F17: =_xlfn.XLOOKUP($P$3,Data!$A$33:$A$41,Data!M$33:M$41) -> 0 | G17: =_xlfn.XLOOKUP($P$3,Data!$A$33:$A$41,Data!N$33:N$41) -> 448 | H17: =_xlfn.XLOOKUP($P$3,Data!$A$33:$A$41,Data!O$33:O$41) -> 640 | I17: =_xlfn.XLOOKUP($P$3,Data!$A$33:$A$41,Data!P$33:P$41) -> 0 | K17: Total FTE
C18: Level F | D18: =_xlfn.XLOOKUP($P$3,Data!$A$33:$A$41,Data!Q$33:Q$41) -> 2048 | E18: =_xlfn.XLOOKUP($P$3,Data!$A$33:$A$41,Data!R$33:R$41) -> 448 | F18: =_xlfn.XLOOKUP($P$3,Data!$A$33:$A$41,Data!S$33:S$41) -> 0 | G18: =_xlfn.XLOOKUP($P$3,Data!$A$33:$A$41,Data!T$33:T$41) -> 384 | H18: =_xlfn.XLOOKUP($P$3,Data!$A$33:$A$41,Data!U$33:U$41) -> 161 | I18: =_xlfn.XLOOKUP($P$3,Data!$A$33:$A$41,Data!V$33:V$41) -> 0 | K18: =SUM(D13:I20)/B10 -> 162.59375
C20: PRU | D20: =_xlfn.XLOOKUP($P$3,Data!$A$21:$A$29,Data!D$21:D$29) -> 0
A22: Summer 2025 Top-up Funding - Coventry
A23: Actual | D23: Cat 1 | E23: Cat 2 | F23: Cat 3 | G23: Cat 4 | H23: Cat 5 | I23: Cat 6
C24: Level A | D24: =D13*('HN Framework Values'!D38/Data!$A$16) -> 0 | E24: =E13*('HN Framework Values'!E38/Data!$A$16) -> 0 | F24: =F13*('HN Framework Values'!F38/Data!$A$16) -> 0 | G24: =G13*('HN Framework Values'!G38/Data!$A$16) -> 0 | H24: 0 | I24: 0
C25: Level B | D25: =D14*('HN Framework Values'!D39/Data!$A$16) -> 0 | E25: =E14*('HN Framework Values'!E39/Data!$A$16) -> 0 | F25: =F14*('HN Framework Values'!F39/Data!$A$16) -> 0 | G25: =G14*('HN Framework Values'!G39/Data!$A$16) -> 0 | H25: 0 | I25: 0
C26: Level C | D26: =D15*('HN Framework Values'!D40/Data!$A$16) -> 0 | E26: =E15*('HN Framework Values'!E40/Data!$A$16) -> 0 | F26: =F15*('HN Framework Values'!F40/Data!$A$16) -> 0 | G26: =G15*('HN Framework Values'!G40/Data!$A$16) -> 0 | H26: 0 | I26: 0 | K26: Total Coventry Top-up
C27: Level D | D27: =D16*('HN Framework Values'!D41/Data!$A$16) -> 0 | E27: =E16*('HN Framework Values'!E41/Data!$A$16) -> 0 | F27: =F16*('HN Framework Values'!F41/Data!$A$16) -> 0 | G27: =G16*('HN Framework Values'!G41/Data!$A$16) -> 2593.212694 | H27: 0 | I27: 0
C28: Level E | D28: =D17*('HN Framework Values'!D42/Data!$A$16) -> 304540.3071 | E28: =E17*('HN Framework Values'!E42/Data!$A$16) -> 28784.66646 | F28: =F17*('HN Framework Values'!F42/Data!$A$16) -> 0 | G28: =G17*('HN Framework Values'!G42/Data!$A$16) -> 30254.13083 | H28: =H17*('HN Framework Values'!H42/Data!$A$16) -> 88033.818 | I28: =I17*('HN Framework Values'!I42/Data!$A$16) -> 0
C29: Level F | D29: =D18*('HN Framework Values'!D43/Data!$A$16) -> 179796.0604 | E29: =E18*('HN Framework Values'!E43/Data!$A$16) -> 36304.95181 | F29: =F18*('HN Framework Values'!F43/Data!$A$16) -> 0 | G29: =G18*('HN Framework Values'!G43/Data!$A$16) -> 31118.53013 | H29: =H18*('HN Framework Values'!H43/Data!$A$16) -> 44292.01468 | I29: =I18*('HN Framework Values'!I43/Data!$A$16) -> 0 | K29: =SUM(D24:I31) -> 745717.6921
C31: PRU | D31: =D20*'HN Framework Values'!D33/Data!A16 -> 0
A33: Summer 2025 Funded days - Other LAs
A34: Actual | D34: Cat 1 | E34: Cat 2 | F34: Cat 3 | G34: Cat 4 | H34: Cat 5 | I34: Cat 6
C35: Level A | D35: 0 | E35: 0 | F35: 0 | G35: 0 | H35: 0 | I35: 0
C36: Level B | D36: 0 | E36: 0 | F36: 0 | G36: 0 | H36: 0 | I36: 0
C37: Level C | D37: =_xlfn.XLOOKUP($P$3,Data!$A$33:$A$41,Data!Z$33:Z$41) -> 0 | E37: =_xlfn.XLOOKUP($P$3,Data!$A$33:$A$41,Data!AA$33:AA$41) -> 0 | F37: 0 | G37: 0 | H37: 0 | I37: 0
C38: Level D | D38: =_xlfn.XLOOKUP($P$3,Data!$A$21:$A$29,Data!AB$33:AB$41) -> 0 | E38: =_xlfn.XLOOKUP($P$3,Data!$A$21:$A$29,Data!AC$33:AC$41) -> 0 | F38: =_xlfn.XLOOKUP($P$3,Data!$A$21:$A$29,Data!AD$33:AD$41) -> 0 | G38: =_xlfn.XLOOKUP($P$3,Data!$A$21:$A$29,Data!AE$33:AE$41) -> 0 | H38: 0 | I38: 0
C39: Level E | D39: =_xlfn.XLOOKUP($P$3,Data!$A$33:$A$41,Data!AF$33:AF$41) -> 128 | E39: =_xlfn.XLOOKUP($P$3,Data!$A$33:$A$41,Data!AG$33:AG$41) -> 0 | F39: =_xlfn.XLOOKUP($P$3,Data!$A$33:$A$41,Data!AH$33:AH$41) -> 0 | G39: =_xlfn.XLOOKUP($P$3,Data!$A$33:$A$41,Data!AI$33:AI$41) -> 0 | H39: =_xlfn.XLOOKUP($P$3,Data!$A$33:$A$41,Data!AJ$33:AJ$41) -> 0 | I39: =_xlfn.XLOOKUP($P$3,Data!$A$33:$A$41,Data!AK$33:AK$41) -> 0 | K39: Total FTE
C40: Level F | D40: =_xlfn.XLOOKUP($P$3,Data!$A$33:$A$41,Data!AL$33:AL$41) -> 64 | E40: =_xlfn.XLOOKUP($P$3,Data!$A$33:$A$41,Data!AM$33:AM$41) -> 0 | F40: =_xlfn.XLOOKUP($P$3,Data!$A$33:$A$41,Data!AN$33:AN$41) -> 0 | G40: =_xlfn.XLOOKUP($P$3,Data!$A$33:$A$41,Data!AO$33:AO$41) -> 0 | H40: =_xlfn.XLOOKUP($P$3,Data!$A$33:$A$41,Data!AP$33:AP$41) -> 0 | I40: =_xlfn.XLOOKUP($P$3,Data!$A$33:$A$41,Data!AQ$33:AQ$41) -> 0 | K40: =SUM(D35:I42)/B10 -> 3
C42: PRU | D42: =_xlfn.XLOOKUP($P$3,Data!$A$33:$A$41,Data!Y$33:Y$41) -> 0
A44: Summer 2025 Top-up Funding - Other LAs
A45: Actual | D45: Cat 1 | E45: Cat 2 | F45: Cat 3 | G45: Cat 4 | H45: Cat 5 | I45: Cat 6
C46: Level A | D46: =D35*('HN Framework Values'!D38/Data!$A$16) -> 0 | E46: =E35*('HN Framework Values'!E38/Data!$A$16) -> 0 | F46: =F35*('HN Framework Values'!F38/Data!$A$16) -> 0 | G46: =G35*('HN Framework Values'!G38/Data!$A$16) -> 0 | H46: =H35*('HN Framework Values'!H38/Data!$A$16) -> 0 | I46: =I35*('HN Framework Values'!I38/Data!$A$16) -> 0
C47: Level B | D47: =D36*('HN Framework Values'!D39/Data!$A$16) -> 0 | E47: =E36*('HN Framework Values'!E39/Data!$A$16) -> 0 | F47: =F36*('HN Framework Values'!F39/Data!$A$16) -> 0 | G47: =G36*('HN Framework Values'!G39/Data!$A$16) -> 0 | H47: =H36*('HN Framework Values'!H39/Data!$A$16) -> 0 | I47: =I36*('HN Framework Values'!I39/Data!$A$16) -> 0
C48: Level C | D48: =D37*('HN Framework Values'!D40/Data!$A$16) -> 0 | E48: =E37*('HN Framework Values'!E40/Data!$A$16) -> 0 | F48: =F37*('HN Framework Values'!F40/Data!$A$16) -> 0 | G48: =G37*('HN Framework Values'!G40/Data!$A$16) -> 0 | H48: =H37*('HN Framework Values'!H40/Data!$A$16) -> 0 | I48: =I37*('HN Framework Values'!I40/Data!$A$16) -> 0 | K48: Total Other LA Top-up
C49: Level D | D49: =D38*('HN Framework Values'!D41/Data!$A$16) -> 0 | E49: =E38*('HN Framework Values'!E41/Data!$A$16) -> 0 | F49: =F38*('HN Framework Values'!F41/Data!$A$16) -> 0 | G49: =G38*('HN Framework Values'!G41/Data!$A$16) -> 0 | H49: =H38*('HN Framework Values'!H41/Data!$A$16) -> 0 | I49: =I38*('HN Framework Values'!I41/Data!$A$16) -> 0
C50: Level E | D50: =D39*('HN Framework Values'!D42/Data!$A$16) -> 6915.231384 | E50: =E39*('HN Framework Values'!E42/Data!$A$16) -> 0 | F50: =F39*('HN Framework Values'!F42/Data!$A$16) -> 0 | G50: =G39*('HN Framework Values'!G42/Data!$A$16) -> 0 | H50: =H39*('HN Framework Values'!H42/Data!$A$16) -> 0 | I50: =I39*('HN Framework Values'!I42/Data!$A$16) -> 0
C51: Level F | D51: =D40*('HN Framework Values'!D43/Data!$A$16) -> 5618.626887 | E51: =E40*('HN Framework Values'!E43/Data!$A$16) -> 0 | F51: =F40*('HN Framework Values'!F43/Data!$A$16) -> 0 | G51: =G40*('HN Framework Values'!G43/Data!$A$16) -> 0 | H51: =H40*('HN Framework Values'!H43/Data!$A$16) -> 0 | I51: =I40*('HN Framework Values'!I43/Data!$A$16) -> 0 | K51: =SUM(D46:I53) -> 12533.85827
C53: PRU | D53: =D42*'HN Framework Values'!D33/Data!A16 -> 0
A55: Total ACTUAL Summer 2025 Top-up Funding | K55: =K51+K29 -> 758251.5504 | Q55: =_xlfn.XLOOKUP($P$3,Data!$A$33:$A$41,Data!AT$33:AT$41)-K55 -> 0
A59: Notes
A61: Top up funding is allocated to pupils based on their High Needs Banding and how many days they are on roll at your school.
A63: This data is based on the level of provision your school delivered in the summer term 2025.
A65: Other LA Top-up funding is not paid to you by Coventry City Council and you will need to invoice the relevant Local Authorities for this
A66: funding. If you need contact information for any other Local Authority please contact SEN Management Services on 024 7683 1614.

Sheet Autumn 2025 Top-up (hidden)
A1: ='Summary of Funding'!A1 -> Date Issued: 21st April 2026 | M1: ='Summary of Funding'!H1 -> Last Amended: 9th April 2026
A2: ='Summary of Funding'!A2 -> COVENTRY CITY COUNCIL
A3: ='Summary of Funding'!A3 -> 2025-26 Funding Allocations for Special Schools & Alternative Provision | P3: ='Summary of Funding'!P3 -> 1
A4: Autumn 2025 Top-up Funding
A6: =_xlfn.XLOOKUP(P3,Data!A4:A12,Data!B4:B12) -> Castle Wood Special School | P6: Checks
A10: Total days in term: | B10: =Data!$A$58 -> 75
A11: Autumn 2025 Funded days - Coventry
A12: Actual | D12: Cat 1 | E12: Cat 2 | F12: Cat 3 | G12: Cat 4 | H12: Cat 5 | I12: Cat 6
C13: Level A | D13: 0 | E13: 0 | F13: 0 | G13: 0 | H13: 0 | I13: 0
C14: Level B | D14: 0 | E14: 0 | F14: 0 | G14: 0 | H14: 0 | I14: 0
C15: Level C | D15: =_xlfn.XLOOKUP($P$3,Data!$A$59:$A$67,Data!E59:E67) -> 0 | E15: =_xlfn.XLOOKUP($P$3,Data!$A$59:$A$67,Data!F59:F67) -> 0 | F15: 0 | G15: 0 | H15: 0 | I15: 0
C16: Level D | D16: =_xlfn.XLOOKUP($P$3,Data!$A$59:$A$67,Data!G59:G67) -> 73 | E16: =_xlfn.XLOOKUP($P$3,Data!$A$59:$A$67,Data!H59:H67) -> 0 | F16: =_xlfn.XLOOKUP($P$3,Data!$A$59:$A$67,Data!I59:I67) -> 0 | G16: =_xlfn.XLOOKUP($P$3,Data!$A$59:$A$67,Data!J59:J67) -> 75 | H16: 0 | I16: 0
C17: Level E | D17: =_xlfn.XLOOKUP($P$3,Data!$A$59:$A$67,Data!K59:K67) -> 8436 | E17: =_xlfn.XLOOKUP($P$3,Data!$A$59:$A$67,Data!L59:L67) -> 600 | F17: =_xlfn.XLOOKUP($P$3,Data!$A$59:$A$67,Data!M59:M67) -> 0 | G17: =_xlfn.XLOOKUP($P$3,Data!$A$59:$A$67,Data!N59:N67) -> 521 | H17: =_xlfn.XLOOKUP($P$3,Data!$A$59:$A$67,Data!O59:O67) -> 762 | I17: =_xlfn.XLOOKUP($P$3,Data!$A$59:$A$67,Data!P59:P67) -> 0 | K17: Total FTE
C18: Level F | D18: =_xlfn.XLOOKUP($P$3,Data!$A$59:$A$67,Data!Q59:Q67) -> 2275 | E18: =_xlfn.XLOOKUP($P$3,Data!$A$59:$A$67,Data!R59:R67) -> 450 | F18: =_xlfn.XLOOKUP($P$3,Data!$A$59:$A$67,Data!S59:S67) -> 0 | G18: =_xlfn.XLOOKUP($P$3,Data!$A$59:$A$67,Data!T59:T67) -> 300 | H18: =_xlfn.XLOOKUP($P$3,Data!$A$59:$A$67,Data!U59:U67) -> 94 | I18: =_xlfn.XLOOKUP($P$3,Data!$A$59:$A$67,Data!V59:V67) -> 0 | K18: =SUM(D13:I20)/B10 -> 181.1466667
C20: PRU | D20: =_xlfn.XLOOKUP($P$3,Data!$A$59:$A$67,Data!D59:D67) -> 0
A22: Autumn 2025 Top-up Funding - Coventry
A23: Actual | D23: Cat 1 | E23: Cat 2 | F23: Cat 3 | G23: Cat 4 | H23: Cat 5 | I23: Cat 6
C24: Level A | D24: =D13*('HN Framework Values'!D38/Data!$A$16) -> 0 | E24: =E13*('HN Framework Values'!E38/Data!$A$16) -> 0 | F24: =F13*('HN Framework Values'!F38/Data!$A$16) -> 0 | G24: =G13*('HN Framework Values'!G38/Data!$A$16) -> 0 | H24: 0 | I24: 0
C25: Level B | D25: =D14*('HN Framework Values'!D39/Data!$A$16) -> 0 | E25: =E14*('HN Framework Values'!E39/Data!$A$16) -> 0 | F25: =F14*('HN Framework Values'!F39/Data!$A$16) -> 0 | G25: =G14*('HN Framework Values'!G39/Data!$A$16) -> 0 | H25: 0 | I25: 0
C26: Level C | D26: =D15*('HN Framework Values'!D40/Data!$A$16) -> 0 | E26: =E15*('HN Framework Values'!E40/Data!$A$16) -> 0 | F26: =F15*('HN Framework Values'!F40/Data!$A$16) -> 0 | G26: =G15*('HN Framework Values'!G40/Data!$A$16) -> 0 | H26: 0 | I26: 0 | K26: Total Coventry Top-up
C27: Level D | D27: =D16*('HN Framework Values'!D41/Data!$A$16) -> 1183.153292 | E27: =E16*('HN Framework Values'!E41/Data!$A$16) -> 0 | F27: =F16*('HN Framework Values'!F41/Data!$A$16) -> 0 | G27: =G16*('HN Framework Values'!G41/Data!$A$16) -> 3038.921126 | H27: 0 | I27: 0
C28: Level E | D28: =D17*('HN Framework Values'!D42/Data!$A$16) -> 455756.9684 | E28: =E17*('HN Framework Values'!E42/Data!$A$16) -> 29984.02756 | F28: =F17*('HN Framework Values'!F42/Data!$A$16) -> 0 | G28: =G17*('HN Framework Values'!G42/Data!$A$16) -> 35183.9334 | H28: =H17*('HN Framework Values'!H42/Data!$A$16) -> 104815.2646 | I28: =I17*('HN Framework Values'!I42/Data!$A$16) -> 0
C29: Level F | D29: =D18*('HN Framework Values'!D43/Data!$A$16) -> 199724.6276 | E29: =E18*('HN Framework Values'!E43/Data!$A$16) -> 36467.02749 | F29: =F18*('HN Framework Values'!F43/Data!$A$16) -> 0 | G29: =G18*('HN Framework Values'!G43/Data!$A$16) -> 24311.35166 | H29: =H18*('HN Framework Values'!H43/Data!$A$16) -> 25859.93404 | I29: =I18*('HN Framework Values'!I43/Data!$A$16) -> 0 | K29: =SUM(D24:I31) -> 916325.2092
C31: PRU | D31: =D20*'HN Framework Values'!D33/Data!A16 -> 0
A33: Autumn 2025 Funded days - Other LAs
A34: Actual | D34: Cat 1 | E34: Cat 2 | F34: Cat 3 | G34: Cat 4 | H34: Cat 5 | I34: Cat 6
C35: Level A | D35: 0 | E35: 0 | F35: 0 | G35: 0 | H35: 0 | I35: 0
C36: Level B | D36: 0 | E36: 0 | F36: 0 | G36: 0 | H36: 0 | I36: 0
C37: Level C | D37: =_xlfn.XLOOKUP($P$3,Data!$A$59:$A$67,Data!Z59:Z67) -> 0 | E37: =_xlfn.XLOOKUP($P$3,Data!$A$59:$A$67,Data!AA59:AA67) -> 0 | F37: 0 | G37: 0 | H37: 0 | I37: 0
C38: Level D | D38: =_xlfn.XLOOKUP($P$3,Data!$A$59:$A$67,Data!AB59:AB67) -> 0 | E38: =_xlfn.XLOOKUP($P$3,Data!$A$59:$A$67,Data!AC59:AC67) -> 0 | F38: =_xlfn.XLOOKUP($P$3,Data!$A$59:$A$67,Data!AD59:AD67) -> 0 | G38: =_xlfn.XLOOKUP($P$3,Data!$A$59:$A$67,Data!AE59:AE67) -> 0 | H38: 0 | I38: 0
C39: Level E | D39: =_xlfn.XLOOKUP($P$3,Data!$A$59:$A$67,Data!AF59:AF67) -> 296 | E39: =_xlfn.XLOOKUP($P$3,Data!$A$59:$A$67,Data!AG59:AG67) -> 0 | F39: =_xlfn.XLOOKUP($P$3,Data!$A$59:$A$67,Data!AH59:AH67) -> 0 | G39: =_xlfn.XLOOKUP($P$3,Data!$A$59:$A$67,Data!AI59:AI67) -> 0 | H39: =_xlfn.XLOOKUP($P$3,Data!$A$59:$A$67,Data!AJ59:AJ67) -> 0 | I39: =_xlfn.XLOOKUP($P$3,Data!$A$59:$A$67,Data!AK59:AK67) -> 0 | K39: Total FTE
C40: Level F | D40: =_xlfn.XLOOKUP($P$3,Data!$A$59:$A$67,Data!AL59:AL67) -> 0 | E40: =_xlfn.XLOOKUP($P$3,Data!$A$59:$A$67,Data!AM59:AM67) -> 0 | F40: =_xlfn.XLOOKUP($P$3,Data!$A$59:$A$67,Data!AN59:AN67) -> 0 | G40: =_xlfn.XLOOKUP($P$3,Data!$A$59:$A$67,Data!AO59:AO67) -> 0 | H40: =_xlfn.XLOOKUP($P$3,Data!$A$59:$A$67,Data!AP59:AP67) -> 0 | I40: =_xlfn.XLOOKUP($P$3,Data!$A$59:$A$67,Data!AQ59:AQ67) -> 0 | K40: =SUM(D35:I42)/B10 -> 3.946666667
C42: PRU | D42: =_xlfn.XLOOKUP($P$3,Data!$A$59:$A$67,Data!Y59:Y67) -> 0
A44: Autumn 2025 Top-up Funding - Other LAs
A45: Actual | D45: Cat 1 | E45: Cat 2 | F45: Cat 3 | G45: Cat 4 | H45: Cat 5 | I45: Cat 6
C46: Level A | D46: =D35*('HN Framework Values'!D38/Data!$A$16) -> 0 | E46: =E35*('HN Framework Values'!E38/Data!$A$16) -> 0 | F46: =F35*('HN Framework Values'!F38/Data!$A$16) -> 0 | G46: =G35*('HN Framework Values'!G38/Data!$A$16) -> 0 | H46: =H35*('HN Framework Values'!H38/Data!$A$16) -> 0 | I46: =I35*('HN Framework Values'!I38/Data!$A$16) -> 0
C47: Level B | D47: =D36*('HN Framework Values'!D39/Data!$A$16) -> 0 | E47: =E36*('HN Framework Values'!E39/Data!$A$16) -> 0 | F47: =F36*('HN Framework Values'!F39/Data!$A$16) -> 0 | G47: =G36*('HN Framework Values'!G39/Data!$A$16) -> 0 | H47: =H36*('HN Framework Values'!H39/Data!$A$16) -> 0 | I47: =I36*('HN Framework Values'!I39/Data!$A$16) -> 0
C48: Level C | D48: =D37*('HN Framework Values'!D40/Data!$A$16) -> 0 | E48: =E37*('HN Framework Values'!E40/Data!$A$16) -> 0 | F48: =F37*('HN Framework Values'!F40/Data!$A$16) -> 0 | G48: =G37*('HN Framework Values'!G40/Data!$A$16) -> 0 | H48: =H37*('HN Framework Values'!H40/Data!$A$16) -> 0 | I48: =I37*('HN Framework Values'!I40/Data!$A$16) -> 0 | K48: Total Other LA Top-up
C49: Level D | D49: =D38*('HN Framework Values'!D41/Data!$A$16) -> 0 | E49: =E38*('HN Framework Values'!E41/Data!$A$16) -> 0 | F49: =F38*('HN Framework Values'!F41/Data!$A$16) -> 0 | G49: =G38*('HN Framework Values'!G41/Data!$A$16) -> 0 | H49: =H38*('HN Framework Values'!H41/Data!$A$16) -> 0 | I49: =I38*('HN Framework Values'!I41/Data!$A$16) -> 0
C50: Level E | D50: =D39*('HN Framework Values'!D42/Data!$A$16) -> 15991.47258 | E50: =E39*('HN Framework Values'!E42/Data!$A$16) -> 0 | F50: =F39*('HN Framework Values'!F42/Data!$A$16) -> 0 | G50: =G39*('HN Framework Values'!G42/Data!$A$16) -> 0 | H50: =H39*('HN Framework Values'!H42/Data!$A$16) -> 0 | I50: =I39*('HN Framework Values'!I42/Data!$A$16) -> 0
C51: Level F | D51: =D40*('HN Framework Values'!D43/Data!$A$16) -> 0 | E51: =E40*('HN Framework Values'!E43/Data!$A$16) -> 0 | F51: =F40*('HN Framework Values'!F43/Data!$A$16) -> 0 | G51: =G40*('HN Framework Values'!G43/Data!$A$16) -> 0 | H51: =H40*('HN Framework Values'!H43/Data!$A$16) -> 0 | I51: =I40*('HN Framework Values'!I43/Data!$A$16) -> 0 | K51: =SUM(D46:I53) -> 15991.47258
C53: PRU | D53: =D42*'HN Framework Values'!D33/Data!A16 -> 0
A55: Total ACTUAL Autumn 2025 Top-up Funding | K55: =K51+K29 -> 932316.6817 | Q55: =_xlfn.XLOOKUP(P3,Data!A59:A67,Data!AT59:AT67)-K55 -> 0
A59: Notes
A61: Top up funding is allocated to pupils based on their High Needs Banding and how many days they are on roll at your school.
A63: This data is based on the level of provision your school delivered in the autumn term 2025.
A65: Other LA Top-up funding is not paid to you by Coventry City Council and you will need to invoice the relevant Local Authorities for this
A66: funding. If you need contact information for any other Local Authority please contact SEN Management Services on 024 7683 1614.

Sheet Spring 2026 Top-up (hidden)
A1: ='Summary of Funding'!A1 -> Date Issued: 21st April 2026 | M1: ='Summary of Funding'!H1 -> Last Amended: 9th April 2026
A2: ='Summary of Funding'!A2 -> COVENTRY CITY COUNCIL
A3: ='Summary of Funding'!A3 -> 2025-26 Funding Allocations for Special Schools & Alternative Provision | P3: ='Summary of Funding'!P3 -> 1
A4: Spring 2026 Top-up Funding
A6: =_xlfn.XLOOKUP(P3,Data!A4:A12,Data!B4:B12) -> Castle Wood Special School | P6: Checks
A10: Total days in term: | B10: =Data!$A$73 -> 55
A11: Spring 2026 Funded days - Coventry
A12: Actual | D12: Cat 1 | E12: Cat 2 | F12: Cat 3 | G12: Cat 4 | H12: Cat 5 | I12: Cat 6
C13: Level A | D13: 0 | E13: 0 | F13: 0 | G13: 0 | H13: 0 | I13: 0
C14: Level B | D14: 0 | E14: 0 | F14: 0 | G14: 0 | H14: 0 | I14: 0
C15: Level C | D15: =_xlfn.XLOOKUP($P$3,Data!$A$86:$A$94,Data!E86:E94) -> 0 | E15: =_xlfn.XLOOKUP($P$3,Data!$A$86:$A$94,Data!F86:F94) -> 0 | F15: 0 | G15: 0 | H15: 0 | I15: 0
C16: Level D | D16: =_xlfn.XLOOKUP($P$3,Data!$A$86:$A$94,Data!G86:G94) -> 55 | E16: =_xlfn.XLOOKUP($P$3,Data!$A$86:$A$94,Data!H86:H94) -> 0 | F16: =_xlfn.XLOOKUP($P$3,Data!$A$86:$A$94,Data!I86:I94) -> 0 | G16: =_xlfn.XLOOKUP($P$3,Data!$A$86:$A$94,Data!J86:J94) -> 55 | H16: 0 | I16: 0
C17: Level E | D17: =_xlfn.XLOOKUP($P$3,Data!$A$86:$A$94,Data!K86:K94) -> 6534 | E17: =_xlfn.XLOOKUP($P$3,Data!$A$86:$A$94,Data!L86:L94) -> 440 | F17: =_xlfn.XLOOKUP($P$3,Data!$A$86:$A$94,Data!M86:M94) -> 0 | G17: =_xlfn.XLOOKUP($P$3,Data!$A$86:$A$94,Data!N86:N94) -> 405 | H17: =_xlfn.XLOOKUP($P$3,Data!$A$86:$A$94,Data!O86:O94) -> 555 | I17: =_xlfn.XLOOKUP($P$3,Data!$A$86:$A$94,Data!P86:P94) -> 0 | K17: Total FTE
C18: Level F | D18: =_xlfn.XLOOKUP($P$3,Data!$A$86:$A$94,Data!Q86:Q94) -> 1745 | E18: =_xlfn.XLOOKUP($P$3,Data!$A$86:$A$94,Data!R86:R94) -> 330 | F18: =_xlfn.XLOOKUP($P$3,Data!$A$86:$A$94,Data!S86:S94) -> 0 | G18: =_xlfn.XLOOKUP($P$3,Data!$A$86:$A$94,Data!T86:T94) -> 188 | H18: =_xlfn.XLOOKUP($P$3,Data!$A$86:$A$94,Data!U86:U94) -> 110 | I18: =_xlfn.XLOOKUP($P$3,Data!$A$86:$A$94,Data!V86:V94) -> 0 | K18: =SUM(D13:I20)/B10 -> 189.4
C20: PRU | D20: =_xlfn.XLOOKUP($P$3,Data!$A$86:$A$94,Data!D86:D94) -> 0
A22: Spring 2026 Top-up Funding - Coventry
A23: Actual | D23: Cat 1 | E23: Cat 2 | F23: Cat 3 | G23: Cat 4 | H23: Cat 5 | I23: Cat 6
C24: Level A | D24: =D13*('HN Framework Values'!D38/Data!$A$16) -> 0 | E24: =E13*('HN Framework Values'!E38/Data!$A$16) -> 0 | F24: =F13*('HN Framework Values'!F38/Data!$A$16) -> 0 | G24: =G13*('HN Framework Values'!G38/Data!$A$16) -> 0 | H24: 0 | I24: 0
C25: Level B | D25: =D14*('HN Framework Values'!D39/Data!$A$16) -> 0 | E25: =E14*('HN Framework Values'!E39/Data!$A$16) -> 0 | F25: =F14*('HN Framework Values'!F39/Data!$A$16) -> 0 | G25: =G14*('HN Framework Values'!G39/Data!$A$16) -> 0 | H25: 0 | I25: 0
C26: Level C | D26: =D15*('HN Framework Values'!D40/Data!$A$16) -> 0 | E26: =E15*('HN Framework Values'!E40/Data!$A$16) -> 0 | F26: =F15*('HN Framework Values'!F40/Data!$A$16) -> 0 | G26: =G15*('HN Framework Values'!G40/Data!$A$16) -> 0 | H26: 0 | I26: 0 | K26: Total Coventry Top-up
C27: Level D | D27: =D16*('HN Framework Values'!D41/Data!$A$16) -> 891.4168636 | E27: =E16*('HN Framework Values'!E41/Data!$A$16) -> 0 | F27: =F16*('HN Framework Values'!F41/Data!$A$16) -> 0 | G27: =G16*('HN Framework Values'!G41/Data!$A$16) -> 2228.542159 | H27: 0 | I27: 0
C28: Level E | D28: =D17*('HN Framework Values'!D42/Data!$A$16) -> 353000.9521 | E28: =E17*('HN Framework Values'!E42/Data!$A$16) -> 21988.28688 | F28: =F17*('HN Framework Values'!F42/Data!$A$16) -> 0 | G28: =G17*('HN Framework Values'!G42/Data!$A$16) -> 27350.27452 | H28: =H17*('HN Framework Values'!H42/Data!$A$16) -> 76341.82655 | I28: =I17*('HN Framework Values'!I42/Data!$A$16) -> 0
C29: Level F | D29: =D18*('HN Framework Values'!D43/Data!$A$16) -> 153195.3737 | E29: =E18*('HN Framework Values'!E43/Data!$A$16) -> 26742.48683 | F29: =F18*('HN Framework Values'!F43/Data!$A$16) -> 0 | G29: =G18*('HN Framework Values'!G43/Data!$A$16) -> 15235.11371 | H29: =H18*('HN Framework Values'!H43/Data!$A$16) -> 30261.62494 | I29: =I18*('HN Framework Values'!I43/Data!$A$16) -> 0 | K29: =SUM(D24:I31) -> 707235.8982
C31: PRU | D31: =D20*'HN Framework Values'!D33/Data!A16 -> 0
A33: Spring 2026 Funded days - Other LAs
A34: Actual | D34: Cat 1 | E34: Cat 2 | F34: Cat 3 | G34: Cat 4 | H34: Cat 5 | I34: Cat 6
C35: Level A | D35: 0 | E35: 0 | F35: 0 | G35: 0 | H35: 0 | I35: 0
C36: Level B | D36: 0 | E36: 0 | F36: 0 | G36: 0 | H36: 0 | I36: 0
C37: Level C | D37: =_xlfn.XLOOKUP($P$3,Data!$A$86:$A$94,Data!Z86:Z94) -> 0 | E37: =_xlfn.XLOOKUP($P$3,Data!$A$86:$A$94,Data!AA86:AA94) -> 0 | F37: 0 | G37: 0 | H37: 0 | I37: 0
C38: Level D | D38: =_xlfn.XLOOKUP($P$3,Data!$A$86:$A$94,Data!AB86:AB94) -> 0 | E38: =_xlfn.XLOOKUP($P$3,Data!$A$86:$A$94,Data!AC86:AC94) -> 0 | F38: =_xlfn.XLOOKUP($P$3,Data!$A$86:$A$94,Data!AD86:AD94) -> 0 | G38: =_xlfn.XLOOKUP($P$3,Data!$A$86:$A$94,Data!AE86:AE94) -> 0 | H38: 0 | I38: 0
C39: Level E | D39: =_xlfn.XLOOKUP($P$3,Data!$A$86:$A$94,Data!AF86:AF94) -> 245 | E39: =_xlfn.XLOOKUP($P$3,Data!$A$86:$A$94,Data!AG86:AG94) -> 0 | F39: =_xlfn.XLOOKUP($P$3,Data!$A$86:$A$94,Data!AH86:AH94) -> 0 | G39: =_xlfn.XLOOKUP($P$3,Data!$A$86:$A$94,Data!AI86:AI94) -> 0 | H39: =_xlfn.XLOOKUP($P$3,Data!$A$86:$A$94,Data!AJ86:AJ94) -> 0 | I39: =_xlfn.XLOOKUP($P$3,Data!$A$86:$A$94,Data!AK86:AK94) -> 0 | K39: Total FTE
C40: Level F | D40: =_xlfn.XLOOKUP($P$3,Data!$A$86:$A$94,Data!AL86:AL94) -> 0 | E40: =_xlfn.XLOOKUP($P$3,Data!$A$86:$A$94,Data!AM86:AM94) -> 0 | F40: =_xlfn.XLOOKUP($P$3,Data!$A$86:$A$94,Data!AN86:AN94) -> 0 | G40: =_xlfn.XLOOKUP($P$3,Data!$A$86:$A$94,Data!AO86:AO94) -> 0 | H40: =_xlfn.XLOOKUP($P$3,Data!$A$86:$A$94,Data!AP86:AP94) -> 0 | I40: =_xlfn.XLOOKUP($P$3,Data!$A$86:$A$94,Data!AQ86:AQ94) -> 0 | K40: =SUM(D35:I42)/B10 -> 4.454545455
C42: PRU | D42: =_xlfn.XLOOKUP($P$3,Data!$A$86:$A$94,Data!Y86:Y94) -> 0
A44: Spring 2026 Top-up Funding - Other LAs
A45: Actual | D45: Cat 1 | E45: Cat 2 | F45: Cat 3 | G45: Cat 4 | H45: Cat 5 | I45: Cat 6
C46: Level A | D46: =D35*('HN Framework Values'!D38/Data!$A$16) -> 0 | E46: =E35*('HN Framework Values'!E38/Data!$A$16) -> 0 | F46: =F35*('HN Framework Values'!F38/Data!$A$16) -> 0 | G46: =G35*('HN Framework Values'!G38/Data!$A$16) -> 0 | H46: =H35*('HN Framework Values'!H38/Data!$A$16) -> 0 | I46: =I35*('HN Framework Values'!I38/Data!$A$16) -> 0
C47: Level B | D47: =D36*('HN Framework Values'!D39/Data!$A$16) -> 0 | E47: =E36*('HN Framework Values'!E39/Data!$A$16) -> 0 | F47: =F36*('HN Framework Values'!F39/Data!$A$16) -> 0 | G47: =G36*('HN Framework Values'!G39/Data!$A$16) -> 0 | H47: =H36*('HN Framework Values'!H39/Data!$A$16) -> 0 | I47: =I36*('HN Framework Values'!I39/Data!$A$16) -> 0
C48: Level C | D48: =D37*('HN Framework Values'!D40/Data!$A$16) -> 0 | E48: =E37*('HN Framework Values'!E40/Data!$A$16) -> 0 | F48: =F37*('HN Framework Values'!F40/Data!$A$16) -> 0 | G48: =G37*('HN Framework Values'!G40/Data!$A$16) -> 0 | H48: =H37*('HN Framework Values'!H40/Data!$A$16) -> 0 | I48: =I37*('HN Framework Values'!I40/Data!$A$16) -> 0 | K48: Total Other LA Top-up
C49: Level D | D49: =D38*('HN Framework Values'!D41/Data!$A$16) -> 0 | E49: =E38*('HN Framework Values'!E41/Data!$A$16) -> 0 | F49: =F38*('HN Framework Values'!F41/Data!$A$16) -> 0 | G49: =G38*('HN Framework Values'!G41/Data!$A$16) -> 0 | H49: =H38*('HN Framework Values'!H41/Data!$A$16) -> 0 | I49: =I38*('HN Framework Values'!I41/Data!$A$16) -> 0
C50: Level E | D50: =D39*('HN Framework Values'!D42/Data!$A$16) -> 13236.18507 | E50: =E39*('HN Framework Values'!E42/Data!$A$16) -> 0 | F50: =F39*('HN Framework Values'!F42/Data!$A$16) -> 0 | G50: =G39*('HN Framework Values'!G42/Data!$A$16) -> 0 | H50: =H39*('HN Framework Values'!H42/Data!$A$16) -> 0 | I50: =I39*('HN Framework Values'!I42/Data!$A$16) -> 0
C51: Level F | D51: =D40*('HN Framework Values'!D43/Data!$A$16) -> 0 | E51: =E40*('HN Framework Values'!E43/Data!$A$16) -> 0 | F51: =F40*('HN Framework Values'!F43/Data!$A$16) -> 0 | G51: =G40*('HN Framework Values'!G43/Data!$A$16) -> 0 | H51: =H40*('HN Framework Values'!H43/Data!$A$16) -> 0 | I51: =I40*('HN Framework Values'!I43/Data!$A$16) -> 0 | K51: =SUM(D46:I53) -> 13236.18507
C53: PRU | D53: =D42*'HN Framework Values'!D33/Data!A16 -> 0
A55: Total ACTUAL Spring 2026 Top-up Funding | K55: =K51+K29 -> 720472.0833 | Q55: =_xlfn.XLOOKUP(P3,Data!A86:A94,Data!AT86:AT94)-K55 -> 0
A60: Notes
A62: Top up funding is allocated to pupils based on their High Needs Banding and how many days they are on roll at your school.
A64: This data is based on the level of provision your school delivered in the spring term 2026.
A66: Other LA Top-up funding is not paid to you by Coventry City Council and you will need to invoice the relevant Local Authorities for this
A67: funding. If you need contact information for any other Local Authority please contact SEN Management Services on 024 7683 1614.

Sheet Data (hidden)
A1: 1 | B1: 2 | C1: 3 | D1: 4 | E1: 5 | F1: 6 | G1: 7 | H1: 8 | I1: 9 | J1: 10 | K1: 11 | L1: 12 | M1: 13 | N1: 14 | O1: 15 | P1: 16 | Q1: 17 | R1: 18 | S1: 19 | T1: 20 | U1: 21 | V1: 22 | W1: 23 | X1: 24 | Y1: 25 | Z1: 26 | AA1: 27 | AB1: 28 | AC1: 29 | AD1: 30 | AE1: 31 | AF1: 32 | AG1: 33 | AH1: 34 | AI1: 35 | AJ1: 36 | AK1: 37 | AL1: 38 | AM1: 39 | AN1: 40 | AO1: 41 | AP1: 42 | AQ1: 43 | AR1: 44 | AS1: 45 | AT1: 46
C2: 2024-25 places* | F2: 2025-26 Places Information | Q2: Place Led Funding | Y2: 0.005 | Z2: Funding Rate Information | AS2: Other Funding Elements | AX2: Deductions
A3: Ref # | B3: School Name | C3: TOTAL Apr - Jul PLACES | D3: TOTAL Aug PLACES | E3: TOTAL Sep - Mar PLACES | F3: Pre-16 Apr - Jul | G3: Pre-16 Aug | H3: Pre-16 Sept - Dec | I3: Pre-16 Jan - Mar | J3: Post-16 Apr - Jul | K3: Post-16 Aug - Mar | L3: TOTAL Apr - Jul PLACES | M3: TOTAL Aug PLACES | N3: TOTAL Sep - Dec PLACES | O3: TOTAL Jan - Mar PLACES | Q3: Pre-16 Apr - Jul | R3: Pre-16 Aug | S3: Pre-16 Sept - Dec | T3: Pre-16 Jan - Mar | U3: Post-16 Apr - Jul | V3: Post-16 Aug | W3: Post-16 Sept - Mar | Y3: Coventry ELC Band | Z3: Band 1C | AA3: Band 2C | AB3: Band 1D | AC3: Band 2D | AD3: Band 3D | AE3: Band 4D | AF3: Band 1E | AG3: Band 2E | AH3: Band 3E | AI3: Band 4E | AJ3: Band 5E | AK3: Band 6E | AL3: Band 1F | AM3: Band 2F | AN3: Band 3F | AO3: Band 4F | AP3: Band 5F | AQ3: Band 6F | AS3: 2025/26 Pupil Premium | AT3: 2025/26 TPG/TPECG | AU3: 2025/26 Additional Funding | AV3: 2025/26 CSBG | AW3: Split Site Funding | AX3: RPA
A4: 1 | B4: Castle Wood Special School | C4: =[5]Data!$K4 -> 160 | D4: =[5]Data!$L4 -> 160 | E4: =[5]Data!$M4 -> 164 | F4: 164 | G4: 164 | H4: =164+20-4+10 -> 190 | I4: =H4 -> 190 | J4: 0 | K4: 0 | L4: =F4+J4 -> 164 | M4: =G4+K4 -> 164 | N4: =H4+K4 -> 190 | O4: =I4+K4 -> 190 | Q4: =F4*10000*4/12 -> 546666.6667 | R4: =G4*10000*1/12 -> 136666.6667 | S4: =H4*10000*4/12 -> 633333.3333 | T4: =I4*10000*3/12 -> 475000 | U4: =J4*10000*4/12 -> 0 | V4: =J4*10000*1/12 -> 0 | W4: =K4*10000*7/12 -> 0 | Y4: 0 | Z4: ='[6]Banded Framework'!$R$7 -> 2620.221587 | AA4: ='[6]Banded Framework'!$S$7 -> 3144.270392 | AB4: ='[6]Banded Framework'!$R$8 -> 3144.270392 | AC4: ='[6]Banded Framework'!$S$8 -> 5240.443175 | AD4: ='[6]Banded Framework'!$T$8 -> 7860.675979 | AE4: ='[6]Banded Framework'!$U$8 -> 7860.675979 | AF4: ='[6]Banded Framework'!$R$9 -> 10480.89757 | AG4: ='[6]Banded Framework'!$S$9 -> 9694.835577 | AH4: ='[6]Banded Framework'!$T$9 -> 13101.11915 | AI4: ='[6]Banded Framework'!$U$9 -> 13101.11915 | AJ4: ='[6]Banded Framework'!$V$9 -> 26685.25108 | AK4: 0 | AL4: ='[6]Banded Framework'!$R$10 -> 17031.46275 | AM4: ='[6]Banded Framework'!$S$10 -> 15721.34074 | AN4: ='[6]Banded Framework'!$T$10 -> 17031.46275 | AO4: ='[6]Banded Framework'!$U$10 -> 15721.34074 | AP4: ='[6]Banded Framework'!$V$10 -> 53370.50216 | AQ4: 0 | AS4: =[7]Allocations!$V$60 -> 104535 | AT4: =[8]Sheet1!$J$15 -> 118250 | AU4: =(([9]Sheet1!M2*L4)/12*5)+(([9]Sheet1!M2*O4)/12*7) -> 133574.7831 | AV4: =+[10]Sheet1!$K$10+[11]Sheet1!$J$10+[12]Sheet1!$F$10+[13]Sheet1!$J$10 -> 503177.62 | AW4: 0 | AX4: =-'[14]LAMS Data'!$AE$34 -> -4320
A5: 2 | B5: Kingsbury Academy | C5: =[5]Data!$K5 -> 100 | D5: =[5]Data!$L5 -> 100 | E5: =[5]Data!$M5 -> 100 | F5: =100+3 -> 103 | G5: =100+3 -> 103 | H5: =100+6 -> 106 | I5: =H5 -> 106 | J5: 0 | K5: 0 | L5: 103 | M5: 103 | N5: =H5+K5 -> 106 | O5: =I5+K5 -> 106 | Q5: 343333.3333 | R5: 85833.33333 | S5: 353333.3333 | T5: 265000 | U5: 0 | V5: 0 | W5: 0 | Y5: 0 | Z5: ='[6]Banded Framework'!$R$7 -> 2620.221587 | AA5: ='[6]Banded Framework'!$S$7 -> 3144.270392 | AB5: ='[6]Banded Framework'!$R$8 -> 3144.270392 | AC5: ='[6]Banded Framework'!$S$8 -> 5240.443175 | AD5: ='[6]Banded Framework'!$T$8 -> 7860.675979 | AE5: ='[6]Banded Framework'!$U$8 -> 7860.675979 | AF5: ='[6]Banded Framework'!$R$9 -> 10480.89757 | AG5: ='[6]Banded Framework'!$S$9 -> 9694.835577 | AH5: ='[6]Banded Framework'!$T$9 -> 13101.11915 | AI5: ='[6]Banded Framework'!$U$9 -> 13101.11915 | AJ5: ='[6]Banded Framework'!$V$9 -> 26685.25108 | AK5: 0 | AL5: ='[6]Banded Framework'!$R$10 -> 17031.46275 | AM5: ='[6]Banded Framework'!$S$10 -> 15721.34074 | AN5: ='[6]Banded Framework'!$T$10 -> 17031.46275 | AO5: ='[6]Banded Framework'!$U$10 -> 15721.34074 | AP5: ='[6]Banded Framework'!$V$10 -> 53370.50216 | AQ5: 0 | AS5: 0 | AT5: =[8]Sheet1!$J$16 -> 69135 | AU5: =(([9]Sheet1!M3*L5)/12*5)+(([9]Sheet1!M3*O5)/12*7) -> 78524.52219 | AV5: =+[10]Sheet1!$K$13+[11]Sheet1!$J$13+[12]Sheet1!$F$13+[13]Sheet1!$J$13 -> 299433.75 | AW5: 0 | AX5: 0
A6: 3 | B6: Riverbank Academy | C6: =[5]Data!$K6 -> 200 | D6: =[5]Data!$L6 -> 200 | E6: =[5]Data!$M6 -> 209 | F6: 189 | G6: 189 | H6: =189+6+1+4 -> 200 | I6: =H6 -> 200 | J6: 20 | K6: 20 | L6: 209 | M6: 209 | N6: 220 | O6: 220 | Q6: 630000 | R6: 157500 | S6: 666666.6667 | T6: 500000 | U6: 66666.66667 | V6: 16666.66667 | W6: 116666.6667 | Y6: 0 | Z6: ='[6]Banded Framework'!$R$7 -> 2620.221587 | AA6: ='[6]Banded Framework'!$S$7 -> 3144.270392 | AB6: ='[6]Banded Framework'!$R$8 -> 3144.270392 | AC6: ='[6]Banded Framework'!$S$8 -> 5240.443175 | AD6: ='[6]Banded Framework'!$T$8 -> 7860.675979 | AE6: ='[6]Banded Framework'!$U$8 -> 7860.675979 | AF6: ='[6]Banded Framework'!$R$9 -> 10480.89757 | AG6: ='[6]Banded Framework'!$S$9 -> 9694.835577 | AH6: ='[6]Banded Framework'!$T$9 -> 13101.11915 | AI6: ='[6]Banded Framework'!$U$9 -> 13101.11915 | AJ6: ='[6]Banded Framework'!$V$9 -> 26685.25108 | AK6: =35530.11*(1+Y2) -> 35707.76055 | AL6: ='[6]Banded Framework'!$R$10 -> 17031.46275 | AM6: ='[6]Banded Framework'!$S$10 -> 15721.34074 | AN6: ='[6]Banded Framework'!$T$10 -> 17031.46275 | AO6: ='[6]Banded Framework'!$U$10 -> 15721.34074 | AP6: ='[6]Banded Framework'!$V$10 -> 53370.50216 | AQ6: 0 | AS6: 0 | AT6: =[8]Sheet1!$J$17 -> 142175 | AU6: =(([9]Sheet1!M4*L6)/12*5)+(([9]Sheet1!M4*O6)/12*7) -> 145774.7765 | AV6: =+[10]Sheet1!$K$14+[11]Sheet1!$J$14+[12]Sheet1!$F$14+[13]Sheet1!$J$14 -> 616353.92 | AW6: 0 | AX6: 0
A7: 4 | B7: Corley Academy | C7: =[5]Data!$K7 -> 140 | D7: =[5]Data!$L7 -> 140 | E7: =[5]Data!$M7 -> 155 | F7: 145 | G7: 145 | H7: =145+10 -> 155 | I7: =H7 -> 155 | J7: 10 | K7: 10 | L7: 155 | M7: 155 | N7: 165 | O7: 165 | Q7: 483333.3333 | R7: 120833.3333 | S7: 516666.6667 | T7: 387500 | U7: 33333.33333 | V7: 8333.333333 | W7: 58333.33333 | Y7: 0 | Z7: ='[6]Banded Framework'!$R$7 -> 2620.221587 | AA7: ='[6]Banded Framework'!$S$7 -> 3144.270392 | AB7: ='[6]Banded Framework'!$R$8 -> 3144.270392 | AC7: ='[6]Banded Framework'!$S$8 -> 5240.443175 | AD7: ='[6]Banded Framework'!$T$8 -> 7860.675979 | AE7: ='[6]Banded Framework'!$U$8 -> 7860.675979 | AF7: ='[6]Banded Framework'!$R$9 -> 10480.89757 | AG7: ='[6]Banded Framework'!$S$9 -> 9694.835577 | AH7: ='[6]Banded Framework'!$T$9 -> 13101.11915 | AI7: ='[6]Banded Framework'!$U$9 -> 13101.11915 | AJ7: ='[6]Banded Framework'!$V$9 -> 26685.25108 | AK7: 0 | AL7: ='[6]Banded Framework'!$R$10 -> 17031.46275 | AM7: ='[6]Banded Framework'!$S$10 -> 15721.34074 | AN7: ='[6]Banded Framework'!$T$10 -> 17031.46275 | AO7: ='[6]Banded Framework'!$U$10 -> 15721.34074 | AP7: ='[6]Banded Framework'!$V$10 -> 53370.50216 | AQ7: 0 | AS7: 0 | AT7: =[8]Sheet1!$J$18 -> 106150 | AU7: =(([9]Sheet1!M5*L7)/12*5)+(([9]Sheet1!M5*O7)/12*7) -> 115338.381 | AV7: =+[10]Sheet1!$K$12+[11]Sheet1!$J$12+[12]Sheet1!$F$12+[13]Sheet1!$J$12 -> 460390.88 | AW7: 0 | AX7: 0
A8: 5 | B8: Tiverton Special School | C8: =[5]Data!$K8 -> 121 | D8: =[5]Data!$L8 -> 121 | E8: =[5]Data!$M8 -> 131 | F8: =131+2 -> 133 | G8: =131+2 -> 133 | H8: =131+2 -> 133 | I8: =H8+3 -> 136 | J8: 0 | K8: 0 | L8: 133 | M8: 133 | N8: 133 | O8: 136 | Q8: 443333.3333 | R8: 110833.3333 | S8: 443333.3333 | T8: 340000 | U8: 0 | V8: 0 | W8: 0 | Y8: 0 | Z8: ='[6]Banded Framework'!$R$7 -> 2620.221587 | AA8: ='[6]Banded Framework'!$S$7 -> 3144.270392 | AB8: ='[6]Banded Framework'!$R$8 -> 3144.270392 | AC8: ='[6]Banded Framework'!$S$8 -> 5240.443175 | AD8: ='[6]Banded Framework'!$T$8 -> 7860.675979 | AE8: ='[6]Banded Framework'!$U$8 -> 7860.675979 | AF8: ='[6]Banded Framework'!$R$9 -> 10480.89757 | AG8: ='[6]Banded Framework'!$S$9 -> 9694.835577 | AH8: ='[6]Banded Framework'!$T$9 -> 13101.11915 | AI8: ='[6]Banded Framework'!$U$9 -> 13101.11915 | AJ8: ='[6]Banded Framework'!$V$9 -> 26685.25108 | AK8: 0 | AL8: ='[6]Banded Framework'!$R$10 -> 17031.46275 | AM8: ='[6]Banded Framework'!$S$10 -> 15721.34074 | AN8: ='[6]Banded Framework'!$T$10 -> 17031.46275 | AO8: ='[6]Banded Framework'!$U$10 -> 15721.34074 | AP8: ='[6]Banded Framework'!$V$10 -> 53370.50216 | AQ8: 0 | AS8: =[7]Allocations!$V$61 -> 68890 | AT8: =[8]Sheet1!$J$19 -> 87780 | AU8: =(([9]Sheet1!M6*L8)/12*5)+(([9]Sheet1!M6*N8)/12*4)+(([9]Sheet1!M6*O8)/12*3) -> 98944.47858 | AV8: =+[10]Sheet1!$K$7+[11]Sheet1!$J$7+[12]Sheet1!$F$7+[13]Sheet1!$J$7 -> 379773.07 | AW8: 0 | AX8: =-'[14]LAMS Data'!$AE$41 -> -3267 | AZ8: Goal Seek | BA8: 0.05913469681
A9: 6 | B9: Baginton Fields Special School | C9: =[5]Data!$K9 -> 126 | D9: =[5]Data!$L9 -> 126 | E9: =[5]Data!$M9 -> 126 | F9: 88 | G9: 88 | H9: 88 | I9: =H9 -> 88 | J9: 38 | K9: 38 | L9: 126 | M9: 126 | N9: 126 | O9: 126 | Q9: 293333.3333 | R9: 73333.33333 | S9: 293333.3333 | T9: 220000 | U9: 126666.6667 | V9: 31666.66667 | W9: 221666.6667 | Y9: 0 | Z9: ='[6]Banded Framework'!$R$7 -> 2620.221587 | AA9: ='[6]Banded Framework'!$S$7 -> 3144.270392 | AB9: ='[6]Banded Framework'!$R$8 -> 3144.270392 | AC9: ='[6]Banded Framework'!$S$8 -> 5240.443175 | AD9: ='[6]Banded Framework'!$T$8 -> 7860.675979 | AE9: ='[6]Banded Framework'!$U$8 -> 7860.675979 | AF9: ='[6]Banded Framework'!$R$9 -> 10480.89757 | AG9: ='[6]Banded Framework'!$S$9 -> 9694.835577 | AH9: ='[6]Banded Framework'!$T$9 -> 13101.11915 | AI9: ='[6]Banded Framework'!$U$9 -> 13101.11915 | AJ9: ='[6]Banded Framework'!$V$9 -> 26685.25108 | AK9: 0 | AL9: ='[6]Banded Framework'!$R$10 -> 17031.46275 | AM9: ='[6]Banded Framework'!$S$10 -> 15721.34074 | AN9: ='[6]Banded Framework'!$T$10 -> 17031.46275 | AO9: ='[6]Banded Framework'!$U$10 -> 15721.34074 | AP9: ='[6]Banded Framework'!$V$10 -> 53370.50216 | AQ9: 0 | AS9: 0 | AT9: =[8]Sheet1!$J$20 -> 83160 | AU9: =(([9]Sheet1!M7*L9)/12*5)+(([9]Sheet1!M7*O9)/12*7) -> 96543.24004 | AV9: =+[10]Sheet1!$K$11+[11]Sheet1!$J$11+[12]Sheet1!$F$11+[13]Sheet1!$J$11 -> 359749.69 | AW9: 0 | AX9: =-IFERROR(_xlfn.XLOOKUP(A9,'[15]LAMS Data'!$AH:$AH,'[15]LAMS Data'!$AE:$AE),0) -> 0 | AZ9: =K121 -> 16905477.14
A10: 7 | B10: Sherbourne Fields Special School | C10: =[5]Data!$K10 -> 251 | D10: =[5]Data!$L10 -> 251 | E10: =[5]Data!$M10 -> 258 | F10: 224 | G10: 224 | H10: 224 | I10: =H10 -> 224 | J10: 34 | K10: 34 | L10: 258 | M10: 258 | N10: 258 | O10: 258 | Q10: 746666.6667 | R10: 186666.6667 | S10: 746666.6667 | T10: 560000 | U10: 113333.3333 | V10: 28333.33333 | W10: 198333.3333 | Y10: 0 | Z10: ='[6]Banded Framework'!$R$7 -> 2620.221587 | AA10: ='[6]Banded Framework'!$S$7 -> 3144.270392 | AB10: ='[6]Banded Framework'!$R$8 -> 3144.270392 | AC10: ='[6]Banded Framework'!$S$8 -> 5240.443175 | AD10: ='[6]Banded Framework'!$T$8 -> 7860.675979 | AE10: ='[6]Banded Framework'!$U$8 -> 7860.675979 | AF10: ='[6]Banded Framework'!$R$9 -> 10480.89757 | AG10: ='[6]Banded Framework'!$S$9 -> 9694.835577 | AH10: ='[6]Banded Framework'!$T$9 -> 13101.11915 | AI10: ='[6]Banded Framework'!$U$9 -> 13101.11915 | AJ10: ='[6]Banded Framework'!$V$9 -> 26685.25108 | AK10: 0 | AL10: ='[6]Banded Framework'!$R$10 -> 17031.46275 | AM10: ='[6]Banded Framework'!$S$10 -> 15721.34074 | AN10: ='[6]Banded Framework'!$T$10 -> 17031.46275 | AO10: ='[6]Banded Framework'!$U$10 -> 15721.34074 | AP10: ='[6]Banded Framework'!$V$10 -> 53370.50216 | AQ10: 0 | AS10: =[16]Allocations!$V$62+[16]Allocations!$V$67 -> 105755 | AT10: =[8]Sheet1!$J$21 -> 170280 | AU10: =(([9]Sheet1!M8*L10)/12*5)+(([9]Sheet1!M8*O10)/12*7) -> 186417.9333 | AV10: =+[10]Sheet1!$K$6+[11]Sheet1!$J$6+[12]Sheet1!$F$6+[13]Sheet1!$J$6 -> 736629.55 | AW10: 0 | AX10: =-'[14]LAMS Data'!$AE$12 -> -6966 | AZ10: 896123
A11: 8 | B11: Woodfield Special School | C11: =[5]Data!$K11 -> 155 | D11: =[5]Data!$L11 -> 155 | E11: =[5]Data!$M11 -> 155 | F11: 155 | G11: 155 | H11: =155+6 -> 161 | I11: =H11 -> 161 | J11: 0 | K11: 0 | L11: 155 | M11: 155 | N11: 161 | O11: 161 | Q11: 516666.6667 | R11: 129166.6667 | S11: 536666.6667 | T11: 402500 | U11: 0 | V11: 0 | W11: 0 | Y11: 0 | Z11: ='[6]Banded Framework'!$R$7 -> 2620.221587 | AA11: ='[6]Banded Framework'!$S$7 -> 3144.270392 | AB11: ='[6]Banded Framework'!$R$8 -> 3144.270392 | AC11: ='[6]Banded Framework'!$S$8 -> 5240.443175 | AD11: ='[6]Banded Framework'!$T$8 -> 7860.675979 | AE11: ='[6]Banded Framework'!$U$8 -> 7860.675979 | AF11: ='[6]Banded Framework'!$R$9 -> 10480.89757 | AG11: ='[6]Banded Framework'!$S$9 -> 9694.835577 | AH11: ='[6]Banded Framework'!$T$9 -> 13101.11915 | AI11: ='[6]Banded Framework'!$U$9 -> 13101.11915 | AJ11: ='[6]Banded Framework'!$V$9 -> 26685.25108 | AK11: 0 | AL11: ='[6]Banded Framework'!$R$10 -> 17031.46275 | AM11: ='[6]Banded Framework'!$S$10 -> 15721.34074 | AN11: ='[6]Banded Framework'!$T$10 -> 17031.46275 | AO11: ='[6]Banded Framework'!$U$10 -> 15721.34074 | AP11: ='[6]Banded Framework'!$V$10 -> 53370.50216 | AQ11: 0 | AS11: =[16]Allocations!$V$63+[16]Allocations!$V$68 -> 159290 | AT11: =[8]Sheet1!$J$22 -> 104610 | AU11: =(([9]Sheet1!M9*L11)/12*5)+(([9]Sheet1!M9*O11)/12*7) -> 127078.7202 | AV11: =+[10]Sheet1!$K$8+[11]Sheet1!$J$8+[12]Sheet1!$F$8+[13]Sheet1!$J$8 -> 453254.01 | AW11: 90000 | AX11: =-'[14]LAMS Data'!$AE$4 -> -4185 | AZ11: =SUM(AZ9:AZ10) -> 17801600.14
A12: 9 | B12: Coventry Extended Learning Centre | C12: =[5]Data!$K12 -> 120 | D12: =[5]Data!$L12 -> 120 | E12: =[5]Data!$M12 -> 120 | F12: 120 | G12: 120 | H12: 120 | I12: =H12 -> 120 | J12: 0 | K12: 0 | L12: 120 | M12: 120 | N12: 120 | O12: 120 | Q12: 400000 | R12: 100000 | S12: 400000 | T12: 300000 | U12: 0 | V12: 0 | W12: 0 | Y12: =[17]BandedFrameworks!$J$38*(1+$Y$2) -> 12897.34992 | Z12: 0 | AA12: 0 | AB12: 0 | AC12: 0 | AD12: 0 | AE12: 0 | AF12: 0 | AG12: 0 | AH12: 0 | AI12: 0 | AJ12: 0 | AK12: 0 | AL12: 0 | AM12: 0 | AN12: 0 | AO12: 0 | AP12: 0 | AQ12: 0 | AS12: 0 | AT12: =[8]Sheet1!$J$23+6962 -> 86162 | AU12: =(([9]Sheet1!M13*L12)/12*5)+(([9]Sheet1!M13*O12)/12*7) -> 72160 | AV12: =+[10]Sheet1!$K$9+[11]Sheet1!$J$9+[12]Sheet1!$F$9+[13]Sheet1!$J$9 -> 342617.51 | AW12: 0 | AX12: =-IFERROR(_xlfn.XLOOKUP(A12,'[15]LAMS Data'!$AH:$AH,'[15]LAMS Data'!$AE:$AE),0) -> 0 | AY12: Need to add £6,962 to £79,200 for fixed value Historic TPG
C13: =SUM(C4:C12) -> 1373 | D13: 1373 | E13: 1418 | F13: 1321 | G13: 1321 | H13: 1377 | I13: 1380 | J13: 102 | K13: 102 | L13: 1423 | M13: 1423 | N13: =SUM(N4:N12) -> 1479 | O13: 1482 | Q13: =SUM(Q4:Q12) -> 4403333.333 | R13: 1100833.333 | S13: 4590000 | T13: 3450000 | U13: 340000 | V13: 85000 | W13: 595000 | AS13: =SUM(AS4:AS12) -> 438470 | AT13: 967702 | AU13: =SUM(AU4:AU12) -> 1054356.835 | AV13: =SUM(AV4:AV12) -> 4151380 | AW13: =SUM(AW4:AW12) -> 90000 | AX13: -18738
AM15: =AA5*66/197 -> 1053.410385
A16: 194 | D16: Coventry pupils | Y16: Other LA Pupils
C17: Place Led | D17: Cov ELC Band | E17: Band 1C | F17: Band 2C | G17: Band 1D | H17: Band 2D | I17: Band 3D | J17: Band 4D | K17: Band 1E | L17: Band 2E | M17: Band 3E | N17: Band 4E | O17: Band 5E | P17: Band 6E | Q17: Band 1F | R17: Band 2F | S17: Band 3F | T17: Band 4F | U17: Band 5F | V17: Band 6F | W17: No. FTEs | X17: Coventry | Y17: Cov ELC Band | Z17: Band 1C | AA17: Band 2C | AB17: Band 1D | AC17: Band 2D | AD17: Band 3D | AE17: Band 4D | AF17: Band 1E | AG17: Band 2E | AH17: Band 3E | AI17: Band 4E | AJ17: Band 5E | AK17: Band 6E | AL17: Band 1F | AM17: Band 2F | AN17: Band 3F | AO17: Band 4F | AP17: Band 5F | AQ17: Band 6F | AR17: No. FTEs | AS17: Other LA | AT17: Total Top Up | AV17: Manual Check | AW17: Total | AX17: 24/25 | AY17: 24/25 | AZ17: Budget Setting | BA17: 24/25 | BB17: Additional | BC17: Ave Top Up
C18: Day Rate | D18: Day Units | E18: Day Units | F18: Day Units | G18: Day Units | H18: Day Units | I18: Day Units | J18: Day Units | K18: Day Units | L18: Day Units | M18: Day Units | N18: Day Units | O18: Day Units | P18: Day Units | Q18: Day Units | R18: Day Units | S18: Day Units | T18: Day Units | U18: Day Units | V18: Day Units | W18: Equivalency | X18: Funding £ | Y18: Day Units | Z18: Day Units | AA18: Day Units | AB18: Day Units | AC18: Day Units | AD18: Day Units | AE18: Day Units | AF18: Day Units | AG18: Day Units | AH18: Day Units | AI18: Day Units | AJ18: Day Units | AK18: Day Units | AL18: Day Units | AM18: Day Units | AN18: Day Units | AO18: Day Units | AP18: Day Units | AQ18: Day Units | AR18: Equivalency | AS18: Funding £ | AT18: Funding £ | AU18: No. FTE | AW18: Places | AX18: v3 FTE | AY18: Places | BA18: Term Days | BB18: Place Days | BE18: ELC Band | BF18: Band 1C | BG18: Band 2C | BH18: Band 1D | BI18: Band 2D | BJ18: Band 3D | BK18: Band 4D | BL18: Band 1E | BM18: Band 2E | BN18: Band 3E | BO18: Band 4E | BP18: Band 5E | BQ18: Band 6E | BR18: Band 1F | BS18: Band 2F | BT18: Band 3F | BU18: Band 4F | BV18: Band 5F | BW18: Band 6F | BY18: ELC Band | BZ18: Band 1C | CA18: Band 2C | CB18: Band 1D | CC18: Band 2D | CD18: Band 3D | CE18: Band 4D | CF18: Band 1E | CG18: Band 2E | CH18: Band 3E | CI18: Band 4E | CJ18: Band 5E | CK18: Band 6E | CL18: Band 1F | CM18: Band 2F | CN18: Band 3F | CO18: Band 4F | CP18: Band 5F | CQ18: Band 6F
B19: Summer Term 2025
A20: 64 | B20: School | BA20: 69
A21: 1 | B21: Castle Wood | C21: =10000/$A$16 -> 51.54639175 | D21: 0 | E21: =SUMIFS(SummerProvRep!$K:$K,SummerProvRep!$A:$A,Data!$A$21,SummerProvRep!$P:$P,"Coventry",SummerProvRep!$U:$U,Data!E$17) -> 0 | F21: =SUMIFS(SummerProvRep!$K:$K,SummerProvRep!$A:$A,Data!$A$21,SummerProvRep!$P:$P,"Coventry",SummerProvRep!$U:$U,Data!F$17) -> 0 | G21: =SUMIFS(SummerProvRep!$K:$K,SummerProvRep!$A:$A,Data!$A$21,SummerProvRep!$P:$P,"Coventry",SummerProvRep!$U:$U,Data!G$17) -> 0 | H21: =SUMIFS(SummerProvRep!$K:$K,SummerProvRep!$A:$A,Data!$A$21,SummerProvRep!$P:$P,"Coventry",SummerProvRep!$U:$U,Data!H$17) -> 0 | I21: =SUMIFS(SummerProvRep!$K:$K,SummerProvRep!$A:$A,Data!$A$21,SummerProvRep!$P:$P,"Coventry",SummerProvRep!$U:$U,Data!I$17) -> 0 | J21: =SUMIFS(SummerProvRep!$K:$K,SummerProvRep!$A:$A,Data!$A$21,SummerProvRep!$P:$P,"Coventry",SummerProvRep!$U:$U,Data!J$17) -> 64 | K21: =SUMIFS(SummerProvRep!$K:$K,SummerProvRep!$A:$A,Data!$A$21,SummerProvRep!$P:$P,"Coventry",SummerProvRep!$U:$U,Data!K$17) -> 5637 | L21: =SUMIFS(SummerProvRep!$K:$K,SummerProvRep!$A:$A,Data!$A$21,SummerProvRep!$P:$P,"Coventry",SummerProvRep!$U:$U,Data!L$17) -> 576 | M21: =SUMIFS(SummerProvRep!$K:$K,SummerProvRep!$A:$A,Data!$A$21,SummerProvRep!$P:$P,"Coventry",SummerProvRep!$U:$U,Data!M$17) -> 0 | N21: =SUMIFS(SummerProvRep!$K:$K,SummerProvRep!$A:$A,Data!$A$21,SummerProvRep!$P:$P,"Coventry",SummerProvRep!$U:$U,Data!N$17) -> 448 | O21: =SUMIFS(SummerProvRep!$K:$K,SummerProvRep!$A:$A,Data!$A$21,SummerProvRep!$P:$P,"Coventry",SummerProvRep!$U:$U,Data!O$17) -> 640 | P21: =SUMIFS(SummerProvRep!$K:$K,SummerProvRep!$A:$A,Data!$A$21,SummerProvRep!$P:$P,"Coventry",SummerProvRep!$U:$U,Data!P$17) -> 0 | Q21: =SUMIFS(SummerProvRep!$K:$K,SummerProvRep!$A:$A,Data!$A$21,SummerProvRep!$P:$P,"Coventry",SummerProvRep!$U:$U,Data!Q$17) -> 2048 | R21: =SUMIFS(SummerProvRep!$K:$K,SummerProvRep!$A:$A,Data!$A$21,SummerProvRep!$P:$P,"Coventry",SummerProvRep!$U:$U,Data!R$17) -> 448 | S21: =SUMIFS(SummerProvRep!$K:$K,SummerProvRep!$A:$A,Data!$A$21,SummerProvRep!$P:$P,"Coventry",SummerProvRep!$U:$U,Data!S$17) -> 0 | T21: =SUMIFS(SummerProvRep!$K:$K,SummerProvRep!$A:$A,Data!$A$21,SummerProvRep!$P:$P,"Coventry",SummerProvRep!$U:$U,Data!T$17) -> 384 | U21: =SUMIFS(SummerProvRep!$K:$K,SummerProvRep!$A:$A,Data!$A$21,SummerProvRep!$P:$P,"Coventry",SummerProvRep!$U:$U,Data!U$17) -> 161 | V21: =SUMIFS(SummerProvRep!$K:$K,SummerProvRep!$A:$A,Data!$A$21,SummerProvRep!$P:$P,"Coventry",SummerProvRep!$U:$U,Data!V$17) -> 0 | W21: =SUM(D21:V21)/$A$20 -> 162.59375 | X21: =SUMPRODUCT(E21:V21,$Z$6:$AQ$6)/$A$16 -> 745717.6921 | Y21: 0 | Z21: =SUMIFS(SummerProvRep!$K:$K,SummerProvRep!$A:$A,Data!#REF!,SummerProvRep!$P:$P,"<>Coventry",SummerProvRep!$U:$U,Data!Z$17) -> 0 | AA21: =SUMIFS(SummerProvRep!$K:$K,SummerProvRep!$A:$A,Data!#REF!,SummerProvRep!$P:$P,"<>Coventry",SummerProvRep!$U:$U,Data!AA$17) -> 0 | AB21: =SUMIFS(SummerProvRep!$K:$K,SummerProvRep!$A:$A,Data!#REF!,SummerProvRep!$P:$P,"<>Coventry",SummerProvRep!$U:$U,Data!AB$17) -> 0 | AC21: =SUMIFS(SummerProvRep!$K:$K,SummerProvRep!$A:$A,Data!#REF!,SummerProvRep!$P:$P,"<>Coventry",SummerProvRep!$U:$U,Data!AC$17) -> 0 | AD21: =SUMIFS(SummerProvRep!$K:$K,SummerProvRep!$A:$A,Data!#REF!,SummerProvRep!$P:$P,"<>Coventry",SummerProvRep!$U:$U,Data!AD$17) -> 0 | AE21: =SUMIFS(SummerProvRep!$K:$K,SummerProvRep!$A:$A,Data!#REF!,SummerProvRep!$P:$P,"<>Coventry",SummerProvRep!$U:$U,Data!AE$17) -> 0 | AF21: =SUMIFS(SummerProvRep!$K:$K,SummerProvRep!$A:$A,Data!$A$21,SummerProvRep!$P:$P,"<>Coventry",SummerProvRep!$U:$U,Data!AF$17) -> 128 | AG21: =SUMIFS(SummerProvRep!$K:$K,SummerProvRep!$A:$A,Data!$A$21,SummerProvRep!$P:$P,"<>Coventry",SummerProvRep!$U:$U,Data!AG$17) -> 0 | AH21: =SUMIFS(SummerProvRep!$K:$K,SummerProvRep!$A:$A,Data!$A$21,SummerProvRep!$P:$P,"<>Coventry",SummerProvRep!$U:$U,Data!AH$17) -> 0 | AI21: =SUMIFS(SummerProvRep!$K:$K,SummerProvRep!$A:$A,Data!$A$21,SummerProvRep!$P:$P,"<>Coventry",SummerProvRep!$U:$U,Data!AI$17) -> 0 | AJ21: =SUMIFS(SummerProvRep!$K:$K,SummerProvRep!$A:$A,Data!$A$21,SummerProvRep!$P:$P,"<>Coventry",SummerProvRep!$U:$U,Data!AJ$17) -> 0 | AK21: =SUMIFS(SummerProvRep!$K:$K,SummerProvRep!$A:$A,Data!$A$21,SummerProvRep!$P:$P,"<>Coventry",SummerProvRep!$U:$U,Data!AK$17) -> 0 | AL21: =SUMIFS(SummerProvRep!$K:$K,SummerProvRep!$A:$A,Data!$A$21,SummerProvRep!$P:$P,"<>Coventry",SummerProvRep!$U:$U,Data!AL$17) -> 64 | AM21: =SUMIFS(SummerProvRep!$K:$K,SummerProvRep!$A:$A,Data!$A$21,SummerProvRep!$P:$P,"<>Coventry",SummerProvRep!$U:$U,Data!AM$17) -> 0 | AN21: =SUMIFS(SummerProvRep!$K:$K,SummerProvRep!$A:$A,Data!$A$21,SummerProvRep!$P:$P,"<>Coventry",SummerProvRep!$U:$U,Data!AN$17) -> 0 | AO21: =SUMIFS(SummerProvRep!$K:$K,SummerProvRep!$A:$A,Data!$A$21,SummerProvRep!$P:$P,"<>Coventry",SummerProvRep!$U:$U,Data!AO$17) -> 0 | AP21: =SUMIFS(SummerProvRep!$K:$K,SummerProvRep!$A:$A,Data!$A$21,SummerProvRep!$P:$P,"<>Coventry",SummerProvRep!$U:$U,Data!AP$17) -> 0 | AQ21: =SUMIFS(SummerProvRep!$K:$K,SummerProvRep!$A:$A,Data!$A$21,SummerProvRep!$P:$P,"<>Coventry",SummerProvRep!$U:$U,Data!AQ$17) -> 0 | AR21: =SUM(Z21:AQ21)/$A$20 -> 3 | AS21: =SUMPRODUCT(Y21:AQ21,$Y$6:$AQ$6)/$A$16 -> 12533.85827 | AT21: =X21+AS21 -> 758251.5504 | AU21: =AR21+W21 -> 165.59375 | AV21: =AU21-AW21 -> 1.59375 | AW21: =L4 -> 164 | AX21: =[5]Data!$AU21 -> 161 | AY21: =C4 -> 160 | BB21: =($L$4-$AU$21)*$A$20 -> -102 | BD21: =AU21*$A$20 -> 10598 | BE21: =$BB$21/$BD$21*D21 -> 0 | BF21: 0 | BG21: 0 | BH21: 0 | BI21: 0 | BJ21: 0 | BK21: -0.6159652765 | BL21: -54.25306662 | BM21: -5.543687488 | BN21: 0 | BO21: -4.311756935 | BP21: -6.159652765 | BQ21: 0 | BR21: -19.71088885 | BS21: -4.311756935 | BT21: 0 | BU21: -3.695791659 | BV21: -1.549537649 | BW21: 0 | BY21: =$BB$21/$BD$21*Y21 -> 0 | BZ21: 0 | CA21: 0 | CB21: 0 | CC21: 0 | CD21: 0 | CE21: 0 | CF21: -1.231930553 | CG21: 0 | CH21: 0 | CI21: 0 | CJ21: 0 | CK21: 0 | CL21: -0.6159652765 | CM21: 0 | CN21: 0 | CO21: 0 | CP21: 0 | CQ21: 0
A22: 2 | B22: Kingsbury | C22: =10000/$A$16 -> 51.54639175 | D22: 0 | E22: =SUMIFS(SummerProvRep!$K:$K,SummerProvRep!$A:$A,Data!$A$22,SummerProvRep!$P:$P,"Coventry",SummerProvRep!$U:$U,Data!E$17) -> 0 | F22: =SUMIFS(SummerProvRep!$K:$K,SummerProvRep!$A:$A,Data!$A$22,SummerProvRep!$P:$P,"Coventry",SummerProvRep!$U:$U,Data!F$17) -> 0 | G22: =SUMIFS(SummerProvRep!$K:$K,SummerProvRep!$A:$A,Data!$A$22,SummerProvRep!$P:$P,"Coventry",SummerProvRep!$U:$U,Data!G$17) -> 0 | H22: =SUMIFS(SummerProvRep!$K:$K,SummerProvRep!$A:$A,Data!$A$22,SummerProvRep!$P:$P,"Coventry",SummerProvRep!$U:$U,Data!H$17) -> 0 | I22: =SUMIFS(SummerProvRep!$K:$K,SummerProvRep!$A:$A,Data!$A$22,SummerProvRep!$P:$P,"Coventry",SummerProvRep!$U:$U,Data!I$17) -> 0 | J22: =SUMIFS(SummerProvRep!$K:$K,SummerProvRep!$A:$A,Data!$A$22,SummerProvRep!$P:$P,"Coventry",SummerProvRep!$U:$U,Data!J$17) -> 0 | K22: =SUMIFS(SummerProvRep!$K:$K,SummerProvRep!$A:$A,Data!$A$22,SummerProvRep!$P:$P,"Coventry",SummerProvRep!$U:$U,Data!K$17) -> 3823 | L22: =SUMIFS(SummerProvRep!$K:$K,SummerProvRep!$A:$A,Data!$A$22,SummerProvRep!$P:$P,"Coventry",SummerProvRep!$U:$U,Data!L$17) -> 128 | M22: =SUMIFS(SummerProvRep!$K:$K,SummerProvRep!$A:$A,Data!$A$22,SummerProvRep!$P:$P,"Coventry",SummerProvRep!$U:$U,Data!M$17) -> 0 | N22: =SUMIFS(SummerProvRep!$K:$K,SummerProvRep!$A:$A,Data!$A$22,SummerProvRep!$P:$P,"Coventry",SummerProvRep!$U:$U,Data!N$17) -> 0 | O22: =SUMIFS(SummerProvRep!$K:$K,SummerProvRep!$A:$A,Data!$A$22,SummerProvRep!$P:$P,"Coventry",SummerProvRep!$U:$U,Data!O$17) -> 634 | P22: =SUMIFS(SummerProvRep!$K:$K,SummerProvRep!$A:$A,Data!$A$22,SummerProvRep!$P:$P,"Coventry",SummerProvRep!$U:$U,Data!P$17) -> 0 | Q22: =SUMIFS(SummerProvRep!$K:$K,SummerProvRep!$A:$A,Data!$A$22,SummerProvRep!$P:$P,"Coventry",SummerProvRep!$U:$U,Data!Q$17) -> 1559 | R22: =SUMIFS(SummerProvRep!$K:$K,SummerProvRep!$A:$A,Data!$A$22,SummerProvRep!$P:$P,"Coventry",SummerProvRep!$U:$U,Data!R$17) -> 0 | S22: =SUMIFS(SummerProvRep!$K:$K,SummerProvRep!$A:$A,Data!$A$22,SummerProvRep!$P:$P,"Coventry",SummerProvRep!$U:$U,Data!S$17) -> 0 | T22: =SUMIFS(SummerProvRep!$K:$K,SummerProvRep!$A:$A,Data!$A$22,SummerProvRep!$P:$P,"Coventry",SummerProvRep!$U:$U,Data!T$17) -> 0 | U22: =SUMIFS(SummerProvRep!$K:$K,SummerProvRep!$A:$A,Data!$A$22,SummerProvRep!$P:$P,"Coventry",SummerProvRep!$U:$U,Data!U$17) -> 0 | V22: =SUMIFS(SummerProvRep!$K:$K,SummerProvRep!$A:$A,Data!$A$22,SummerProvRep!$P:$P,"Coventry",SummerProvRep!$U:$U,Data!V$17) -> 0 | W22: =SUM(D22:V22)/$A$20 -> 96 | X22: 437009.8452 | Y22: 0 | Z22: =SUMIFS(SummerProvRep!$K:$K,SummerProvRep!$A:$A,Data!#REF!,SummerProvRep!$P:$P,"<>Coventry",SummerProvRep!$U:$U,Data!Z$17) -> 0 | AA22: =SUMIFS(SummerProvRep!$K:$K,SummerProvRep!$A:$A,Data!#REF!,SummerProvRep!$P:$P,"<>Coventry",SummerProvRep!$U:$U,Data!AA$17) -> 0 | AB22: =SUMIFS(SummerProvRep!$K:$K,SummerProvRep!$A:$A,Data!#REF!,SummerProvRep!$P:$P,"<>Coventry",SummerProvRep!$U:$U,Data!AB$17) -> 0 | AC22: =SUMIFS(SummerProvRep!$K:$K,SummerProvRep!$A:$A,Data!#REF!,SummerProvRep!$P:$P,"<>Coventry",SummerProvRep!$U:$U,Data!AC$17) -> 0 | AD22: =SUMIFS(SummerProvRep!$K:$K,SummerProvRep!$A:$A,Data!#REF!,SummerProvRep!$P:$P,"<>Coventry",SummerProvRep!$U:$U,Data!AD$17) -> 0 | AE22: =SUMIFS(SummerProvRep!$K:$K,SummerProvRep!$A:$A,Data!#REF!,SummerProvRep!$P:$P,"<>Coventry",SummerProvRep!$U:$U,Data!AE$17) -> 0 | AF22: =SUMIFS(SummerProvRep!$K:$K,SummerProvRep!$A:$A,Data!$A$22,SummerProvRep!$P:$P,"<>Coventry",SummerProvRep!$U:$U,Data!AF$17) -> 64 | AG22: =SUMIFS(SummerProvRep!$K:$K,SummerProvRep!$A:$A,Data!$A$22,SummerProvRep!$P:$P,"<>Coventry",SummerProvRep!$U:$U,Data!AG$17) -> 64 | AH22: =SUMIFS(SummerProvRep!$K:$K,SummerProvRep!$A:$A,Data!$A$22,SummerProvRep!$P:$P,"<>Coventry",SummerProvRep!$U:$U,Data!AH$17) -> 0 | AI22: =SUMIFS(SummerProvRep!$K:$K,SummerProvRep!$A:$A,Data!$A$22,SummerProvRep!$P:$P,"<>Coventry",SummerProvRep!$U:$U,Data!AI$17) -> 0 | AJ22: =SUMIFS(SummerProvRep!$K:$K,SummerProvRep!$A:$A,Data!$A$22,SummerProvRep!$P:$P,"<>Coventry",SummerProvRep!$U:$U,Data!AJ$17) -> 0 | AK22: =SUMIFS(SummerProvRep!$K:$K,SummerProvRep!$A:$A,Data!$A$22,SummerProvRep!$P:$P,"<>Coventry",SummerProvRep!$U:$U,Data!AK$17) -> 0 | AL22: =SUMIFS(SummerProvRep!$K:$K,SummerProvRep!$A:$A,Data!$A$22,SummerProvRep!$P:$P,"<>Coventry",SummerProvRep!$U:$U,Data!AL$17) -> 128 | AM22: =SUMIFS(SummerProvRep!$K:$K,SummerProvRep!$A:$A,Data!$A$22,SummerProvRep!$P:$P,"<>Coventry",SummerProvRep!$U:$U,Data!AM$17) -> 0 | AN22: =SUMIFS(SummerProvRep!$K:$K,SummerProvRep!$A:$A,Data!$A$22,SummerProvRep!$P:$P,"<>Coventry",SummerProvRep!$U:$U,Data!AN$17) -> 0 | AO22: =SUMIFS(SummerProvRep!$K:$K,SummerProvRep!$A:$A,Data!$A$22,SummerProvRep!$P:$P,"<>Coventry",SummerProvRep!$U:$U,Data!AO$17) -> 0 | AP22: =SUMIFS(SummerProvRep!$K:$K,SummerProvRep!$A:$A,Data!$A$22,SummerProvRep!$P:$P,"<>Coventry",SummerProvRep!$U:$U,Data!AP$17) -> 0 | AQ22: =SUMIFS(SummerProvRep!$K:$K,SummerProvRep!$A:$A,Data!$A$22,SummerProvRep!$P:$P,"<>Coventry",SummerProvRep!$U:$U,Data!AQ$17) -> 0 | AR22: 4 | AS22: 17893.16574 | AT22: 454903.0109 | AU22: 100 | AV22: =AU22-AW22 -> -3 | AW22: 103 | AX22: =[5]Data!$AU22 -> 100 | AY22: 100 | BB22: =($L$5-$AU$22)*$A$20 -> 192 | BD22: =AU22*$A$20 -> 6400 | BE22: =$BB$22/$BD$22*D22 -> 0 | BF22: 0 | BG22: 0 | BH22: 0 | BI22: 0 | BJ22: 0 | BK22: 0 | BL22: 114.69 | BM22: 3.84 | BN22: 0 | BO22: 0 | BP22: 19.02 | BQ22: 0 | BR22: 46.77 | BS22: 0 | BT22: 0 | BU22: 0 | BV22: 0 | BW22: 0 | BY22: =$BB$22/$BD$22*Y22 -> 0 | BZ22: 0 | CA22: 0 | CB22: 0 | CC22: 0 | CD22: 0 | CE22: 0 | CF22: 1.92 | CG22: 1.92 | CH22: 0 | CI22: 0 | CJ22: 0 | CK22: 0 | CL22: 3.84 | CM22: 0 | CN22: 0 | CO22: 0 | CP22: 0 | CQ22: 0
A23: 3 | B23: Riverbank | C23: 51.54639175 | D23: 0 | E23: =SUMIFS(SummerProvRep!$K:$K,SummerProvRep!$A:$A,Data!$A$23,SummerProvRep!$P:$P,"Coventry",SummerProvRep!$U:$U,Data!E$17) -> 0 | F23: =SUMIFS(SummerProvRep!$K:$K,SummerProvRep!$A:$A,Data!$A$23,SummerProvRep!$P:$P,"Coventry",SummerProvRep!$U:$U,Data!F$17) -> 0 | G23: =SUMIFS(SummerProvRep!$K:$K,SummerProvRep!$A:$A,Data!$A$23,SummerProvRep!$P:$P,"Coventry",SummerProvRep!$U:$U,Data!G$17) -> 356 | H23: =SUMIFS(SummerProvRep!$K:$K,SummerProvRep!$A:$A,Data!$A$23,SummerProvRep!$P:$P,"Coventry",SummerProvRep!$U:$U,Data!H$17) -> 426 | I23: =SUMIFS(SummerProvRep!$K:$K,SummerProvRep!$A:$A,Data!$A$23,SummerProvRep!$P:$P,"Coventry",SummerProvRep!$U:$U,Data!I$17) -> 0 | J23: =SUMIFS(SummerProvRep!$K:$K,SummerProvRep!$A:$A,Data!$A$23,SummerProvRep!$P:$P,"Coventry",SummerProvRep!$U:$U,Data!J$17) -> 0 | K23: =SUMIFS(SummerProvRep!$K:$K,SummerProvRep!$A:$A,Data!$A$23,SummerProvRep!$P:$P,"Coventry",SummerProvRep!$U:$U,Data!K$17) -> 4835 | L23: =SUMIFS(SummerProvRep!$K:$K,SummerProvRep!$A:$A,Data!$A$23,SummerProvRep!$P:$P,"Coventry",SummerProvRep!$U:$U,Data!L$17) -> 3611 | M23: =SUMIFS(SummerProvRep!$K:$K,SummerProvRep!$A:$A,Data!$A$23,SummerProvRep!$P:$P,"Coventry",SummerProvRep!$U:$U,Data!M$17) -> 73 | N23: =SUMIFS(SummerProvRep!$K:$K,SummerProvRep!$A:$A,Data!$A$23,SummerProvRep!$P:$P,"Coventry",SummerProvRep!$U:$U,Data!N$17) -> 512 | O23: =SUMIFS(SummerProvRep!$K:$K,SummerProvRep!$A:$A,Data!$A$23,SummerProvRep!$P:$P,"Coventry",SummerProvRep!$U:$U,Data!O$17) -> 593 | P23: =SUMIFS(SummerProvRep!$K:$K,SummerProvRep!$A:$A,Data!$A$23,SummerProvRep!$P:$P,"Coventry",SummerProvRep!$U:$U,Data!P$17) -> 255 | Q23: =SUMIFS(SummerProvRep!$K:$K,SummerProvRep!$A:$A,Data!$A$23,SummerProvRep!$P:$P,"Coventry",SummerProvRep!$U:$U,Data!Q$17) -> 1550 | R23: =SUMIFS(SummerProvRep!$K:$K,SummerProvRep!$A:$A,Data!$A$23,SummerProvRep!$P:$P,"Coventry",SummerProvRep!$U:$U,Data!R$17) -> 384 | S23: =SUMIFS(SummerProvRep!$K:$K,SummerProvRep!$A:$A,Data!$A$23,SummerProvRep!$P:$P,"Coventry",SummerProvRep!$U:$U,Data!S$17) -> 0 | T23: =SUMIFS(SummerProvRep!$K:$K,SummerProvRep!$A:$A,Data!$A$23,SummerProvRep!$P:$P,"Coventry",SummerProvRep!$U:$U,Data!T$17) -> 192 | U23: =SUMIFS(SummerProvRep!$K:$K,SummerProvRep!$A:$A,Data!$A$23,SummerProvRep!$P:$P,"Coventry",SummerProvRep!$U:$U,Data!U$17) -> 0 | V23: =SUMIFS(SummerProvRep!$K:$K,SummerProvRep!$A:$A,Data!$A$23,SummerProvRep!$P:$P,"Coventry",SummerProvRep!$U:$U,Data!V$17) -> 0 | W23: 199.796875 | X23: 809707.3563 | Y23: 0 | Z23: =SUMIFS(SummerProvRep!$K:$K,SummerProvRep!$A:$A,Data!#REF!,SummerProvRep!$P:$P,"<>Coventry",SummerProvRep!$U:$U,Data!Z$17) -> 0 | AA23: =SUMIFS(SummerProvRep!$K:$K,SummerProvRep!$A:$A,Data!#REF!,SummerProvRep!$P:$P,"<>Coventry",SummerProvRep!$U:$U,Data!AA$17) -> 0 | AB23: =SUMIFS(SummerProvRep!$K:$K,SummerProvRep!$A:$A,Data!#REF!,SummerProvRep!$P:$P,"<>Coventry",SummerProvRep!$U:$U,Data!AB$17) -> 0 | AC23: =SUMIFS(SummerProvRep!$K:$K,SummerProvRep!$A:$A,Data!#REF!,SummerProvRep!$P:$P,"<>Coventry",SummerProvRep!$U:$U,Data!AC$17) -> 0 | AD23: =SUMIFS(SummerProvRep!$K:$K,SummerProvRep!$A:$A,Data!#REF!,SummerProvRep!$P:$P,"<>Coventry",SummerProvRep!$U:$U,Data!AD$17) -> 0 | AE23: =SUMIFS(SummerProvRep!$K:$K,SummerProvRep!$A:$A,Data!#REF!,SummerProvRep!$P:$P,"<>Coventry",SummerProvRep!$U:$U,Data!AE$17) -> 0 | AF23: =SUMIFS(SummerProvRep!$K:$K,SummerProvRep!$A:$A,Data!$A$23,SummerProvRep!$P:$P,"<>Coventry",SummerProvRep!$U:$U,Data!AF$17) -> 0 | AG23: =SUMIFS(SummerProvRep!$K:$K,SummerProvRep!$A:$A,Data!$A$23,SummerProvRep!$P:$P,"<>Coventry",SummerProvRep!$U:$U,Data!AG$17) -> 64 | AH23: =SUMIFS(SummerProvRep!$K:$K,SummerProvRep!$A:$A,Data!$A$23,SummerProvRep!$P:$P,"<>Coventry",SummerProvRep!$U:$U,Data!AH$17) -> 0 | AI23: =SUMIFS(SummerProvRep!$K:$K,SummerProvRep!$A:$A,Data!$A$23,SummerProvRep!$P:$P,"<>Coventry",SummerProvRep!$U:$U,Data!AI$17) -> 0 | AJ23: =SUMIFS(SummerProvRep!$K:$K,SummerProvRep!$A:$A,Data!$A$23,SummerProvRep!$P:$P,"<>Coventry",SummerProvRep!$U:$U,Data!AJ$17) -> 0 | AK23: =SUMIFS(SummerProvRep!$K:$K,SummerProvRep!$A:$A,Data!$A$23,SummerProvRep!$P:$P,"<>Coventry",SummerProvRep!$U:$U,Data!AK$17) -> 0 | AL23: =SUMIFS(SummerProvRep!$K:$K,SummerProvRep!$A:$A,Data!$A$23,SummerProvRep!$P:$P,"<>Coventry",SummerProvRep!$U:$U,Data!AL$17) -> 0 | AM23: =SUMIFS(SummerProvRep!$K:$K,SummerProvRep!$A:$A,Data!$A$23,SummerProvRep!$P:$P,"<>Coventry",SummerProvRep!$U:$U,Data!AM$17) -> 0 | AN23: =SUMIFS(SummerProvRep!$K:$K,SummerProvRep!$A:$A,Data!$A$23,SummerProvRep!$P:$P,"<>Coventry",SummerProvRep!$U:$U,Data!AN$17) -> 0 | AO23: =SUMIFS(SummerProvRep!$K:$K,SummerProvRep!$A:$A,Data!$A$23,SummerProvRep!$P:$P,"<>Coventry",SummerProvRep!$U:$U,Data!AO$17) -> 0 | AP23: =SUMIFS(SummerProvRep!$K:$K,SummerProvRep!$A:$A,Data!$A$23,SummerProvRep!$P:$P,"<>Coventry",SummerProvRep!$U:$U,Data!AP$17) -> 0 | AQ23: =SUMIFS(SummerProvRep!$K:$K,SummerProvRep!$A:$A,Data!$A$23,SummerProvRep!$P:$P,"<>Coventry",SummerProvRep!$U:$U,Data!AQ$17) -> 0 | AR23: 1 | AS23: 3198.296273 | AT23: 812905.6526 | AU23: 200.796875 | AV23: =AU23-AW23 -> -8.203125 | AW23: 209 | AX23: =[5]Data!$AU23 -> 192.8550725 | AY23: 200 | BB23: =($L$6-$AU$23)*$A$20 -> 525 | BD23: =AU23*$A$20 -> 12851 | BE23: =$BB$23/$BD$23*D23 -> 0 | BF23: 0 | BG23: 0 | BH23: 14.54361528 | BI23: 17.40331492 | BJ23: 0 | BK23: 0 | BL23: 197.523539 | BM23: 147.5196483 | BN23: 2.98225819 | BO23: 20.91666018 | BP23: 24.22574119 | BQ23: 10.41747724 | BR23: 63.32192047 | BS23: 15.68749514 | BT23: 0 | BU23: 7.843747568 | BV23: 0 | BW23: 0 | BY23: =$BB$23/$BD$23*Y23 -> 0 | BZ23: 0 | CA23: 0 | CB23: 0 | CC23: 0 | CD23: 0 | CE23: 0 | CF23: 0 | CG23: 2.614582523 | CH23: 0 | CI23: 0 | CJ23: 0 | CK23: 0 | CL23: 0 | CM23: 0 | CN23: 0 | CO23: 0 | CP23: 0 | CQ23: 0
A24: 4 | B24: Corley | C24: 51.54639175 | D24: 0 | E24: =SUMIFS(SummerProvRep!$K:$K,SummerProvRep!$A:$A,Data!$A$24,SummerProvRep!$P:$P,"Coventry",SummerProvRep!$U:$U,Data!E$17) -> 0 | F24: =SUMIFS(SummerProvRep!$K:$K,SummerProvRep!$A:$A,Data!$A$24,SummerProvRep!$P:$P,"Coventry",SummerProvRep!$U:$U,Data!F$17) -> 0 | G24: =SUMIFS(SummerProvRep!$K:$K,SummerProvRep!$A:$A,Data!$A$24,SummerProvRep!$P:$P,"Coventry",SummerProvRep!$U:$U,Data!G$17) -> 192 | H24: =SUMIFS(SummerProvRep!$K:$K,SummerProvRep!$A:$A,Data!$A$24,SummerProvRep!$P:$P,"Coventry",SummerProvRep!$U:$U,Data!H$17) -> 192 | I24: =SUMIFS(SummerProvRep!$K:$K,SummerProvRep!$A:$A,Data!$A$24,SummerProvRep!$P:$P,"Coventry",SummerProvRep!$U:$U,Data!I$17) -> 0 | J24: =SUMIFS(SummerProvRep!$K:$K,SummerProvRep!$A:$A,Data!$A$24,SummerProvRep!$P:$P,"Coventry",SummerProvRep!$U:$U,Data!J$17) -> 0 | K24: =SUMIFS(SummerProvRep!$K:$K,SummerProvRep!$A:$A,Data!$A$24,SummerProvRep!$P:$P,"Coventry",SummerProvRep!$U:$U,Data!K$17) -> 7695 | L24: =SUMIFS(SummerProvRep!$K:$K,SummerProvRep!$A:$A,Data!$A$24,SummerProvRep!$P:$P,"Coventry",SummerProvRep!$U:$U,Data!L$17) -> 0 | M24: =SUMIFS(SummerProvRep!$K:$K,SummerProvRep!$A:$A,Data!$A$24,SummerProvRep!$P:$P,"Coventry",SummerProvRep!$U:$U,Data!M$17) -> 391 | N24: =SUMIFS(SummerProvRep!$K:$K,SummerProvRep!$A:$A,Data!$A$24,SummerProvRep!$P:$P,"Coventry",SummerProvRep!$U:$U,Data!N$17) -> 0 | O24: =SUMIFS(SummerProvRep!$K:$K,SummerProvRep!$A:$A,Data!$A$24,SummerProvRep!$P:$P,"Coventry",SummerProvRep!$U:$U,Data!O$17) -> 440 | P24: =SUMIFS(SummerProvRep!$K:$K,SummerProvRep!$A:$A,Data!$A$24,SummerProvRep!$P:$P,"Coventry",SummerProvRep!$U:$U,Data!P$17) -> 0 | Q24: =SUMIFS(SummerProvRep!$K:$K,SummerProvRep!$A:$A,Data!$A$24,SummerProvRep!$P:$P,"Coventry",SummerProvRep!$U:$U,Data!Q$17) -> 765 | R24: =SUMIFS(SummerProvRep!$K:$K,SummerProvRep!$A:$A,Data!$A$24,SummerProvRep!$P:$P,"Coventry",SummerProvRep!$U:$U,Data!R$17) -> 0 | S24: =SUMIFS(SummerProvRep!$K:$K,SummerProvRep!$A:$A,Data!$A$24,SummerProvRep!$P:$P,"Coventry",SummerProvRep!$U:$U,Data!S$17) -> 0 | T24: =SUMIFS(SummerProvRep!$K:$K,SummerProvRep!$A:$A,Data!$A$24,SummerProvRep!$P:$P,"Coventry",SummerProvRep!$U:$U,Data!T$17) -> 0 | U24: =SUMIFS(SummerProvRep!$K:$K,SummerProvRep!$A:$A,Data!$A$24,SummerProvRep!$P:$P,"Coventry",SummerProvRep!$U:$U,Data!U$17) -> 0 | V24: =SUMIFS(SummerProvRep!$K:$K,SummerProvRep!$A:$A,Data!$A$24,SummerProvRep!$P:$P,"Coventry",SummerProvRep!$U:$U,Data!V$17) -> 0 | W24: 151.171875 | X24: 578110.7673 | Y24: 0 | Z24: =SUMIFS(SummerProvRep!$K:$K,SummerProvRep!$A:$A,Data!#REF!,SummerProvRep!$P:$P,"<>Coventry",SummerProvRep!$U:$U,Data!Z$17) -> 0 | AA24: =SUMIFS(SummerProvRep!$K:$K,SummerProvRep!$A:$A,Data!#REF!,SummerProvRep!$P:$P,"<>Coventry",SummerProvRep!$U:$U,Data!AA$17) -> 0 | AB24: =SUMIFS(SummerProvRep!$K:$K,SummerProvRep!$A:$A,Data!#REF!,SummerProvRep!$P:$P,"<>Coventry",SummerProvRep!$U:$U,Data!AB$17) -> 0 | AC24: =SUMIFS(SummerProvRep!$K:$K,SummerProvRep!$A:$A,Data!#REF!,SummerProvRep!$P:$P,"<>Coventry",SummerProvRep!$U:$U,Data!AC$17) -> 0 | AD24: =SUMIFS(SummerProvRep!$K:$K,SummerProvRep!$A:$A,Data!#REF!,SummerProvRep!$P:$P,"<>Coventry",SummerProvRep!$U:$U,Data!AD$17) -> 0 | AE24: =SUMIFS(SummerProvRep!$K:$K,SummerProvRep!$A:$A,Data!#REF!,SummerProvRep!$P:$P,"<>Coventry",SummerProvRep!$U:$U,Data!AE$17) -> 0 | AF24: =SUMIFS(SummerProvRep!$K:$K,SummerProvRep!$A:$A,Data!$A$24,SummerProvRep!$P:$P,"<>Coventry",SummerProvRep!$U:$U,Data!AF$17) -> 128 | AG24: =SUMIFS(SummerProvRep!$K:$K,SummerProvRep!$A:$A,Data!$A$24,SummerProvRep!$P:$P,"<>Coventry",SummerProvRep!$U:$U,Data!AG$17) -> 0 | AH24: =SUMIFS(SummerProvRep!$K:$K,SummerProvRep!$A:$A,Data!$A$24,SummerProvRep!$P:$P,"<>Coventry",SummerProvRep!$U:$U,Data!AH$17) -> 0 | AI24: =SUMIFS(SummerProvRep!$K:$K,SummerProvRep!$A:$A,Data!$A$24,SummerProvRep!$P:$P,"<>Coventry",SummerProvRep!$U:$U,Data!AI$17) -> 0 | AJ24: =SUMIFS(SummerProvRep!$K:$K,SummerProvRep!$A:$A,Data!$A$24,SummerProvRep!$P:$P,"<>Coventry",SummerProvRep!$U:$U,Data!AJ$17) -> 0 | AK24: =SUMIFS(SummerProvRep!$K:$K,SummerProvRep!$A:$A,Data!$A$24,SummerProvRep!$P:$P,"<>Coventry",SummerProvRep!$U:$U,Data!AK$17) -> 0 | AL24: =SUMIFS(SummerProvRep!$K:$K,SummerProvRep!$A:$A,Data!$A$24,SummerProvRep!$P:$P,"<>Coventry",SummerProvRep!$U:$U,Data!AL$17) -> 0 | AM24: =SUMIFS(SummerProvRep!$K:$K,SummerProvRep!$A:$A,Data!$A$24,SummerProvRep!$P:$P,"<>Coventry",SummerProvRep!$U:$U,Data!AM$17) -> 0 | AN24: =SUMIFS(SummerProvRep!$K:$K,SummerProvRep!$A:$A,Data!$A$24,SummerProvRep!$P:$P,"<>Coventry",SummerProvRep!$U:$U,Data!AN$17) -> 0 | AO24: =SUMIFS(SummerProvRep!$K:$K,SummerProvRep!$A:$A,Data!$A$24,SummerProvRep!$P:$P,"<>Coventry",SummerProvRep!$U:$U,Data!AO$17) -> 0 | AP24: =SUMIFS(SummerProvRep!$K:$K,SummerProvRep!$A:$A,Data!$A$24,SummerProvRep!$P:$P,"<>Coventry",SummerProvRep!$U:$U,Data!AP$17) -> 0 | AQ24: =SUMIFS(SummerProvRep!$K:$K,SummerProvRep!$A:$A,Data!$A$24,SummerProvRep!$P:$P,"<>Coventry",SummerProvRep!$U:$U,Data!AQ$17) -> 0 | AR24: 2 | AS24: 6915.231384 | AT24: 585025.9987 | AU24: 153.171875 | AV24: -1.828125 | AW24: 155 | AX24: =[5]Data!$AU24 -> 147.3768116 | AY24: 140 | BB24: =($L$7-$AU$24)*$A$20 -> 117 | BD24: 9803 | BE24: =$BB$24/$BD$24*D24 -> 0 | BF24: 0 | BG24: 0 | BH24: 2.291543405 | BI24: 2.291543405 | BJ24: 0 | BK24: 0 | BL24: 91.84076303 | BM24: 0 | BN24: 4.666632663 | BO24: 0 | BP24: 5.251453637 | BQ24: 0 | BR24: 9.130368255 | BS24: 0 | BT24: 0 | BU24: 0 | BV24: 0 | BW24: 0 | BY24: =$BB$24/$BD$24*Y24 -> 0 | BZ24: 0 | CA24: 0 | CB24: 0 | CC24: 0 | CD24: 0 | CE24: 0 | CF24: 1.527695603 | CG24: 0 | CH24: 0 | CI24: 0 | CJ24: 0 | CK24: 0 | CL24: 0 | CM24: 0 | CN24: 0 | CO24: 0 | CP24: 0 | CQ24: 0
A25: 5 | B25: Tiverton | C25: 51.54639175 | D25: 0 | E25: =SUMIFS(SummerProvRep!$K:$K,SummerProvRep!$A:$A,Data!$A$25,SummerProvRep!$P:$P,"Coventry",SummerProvRep!$U:$U,Data!E$17) -> 0 | F25: =SUMIFS(SummerProvRep!$K:$K,SummerProvRep!$A:$A,Data!$A$25,SummerProvRep!$P:$P,"Coventry",SummerProvRep!$U:$U,Data!F$17) -> 0 | G25: =SUMIFS(SummerProvRep!$K:$K,SummerProvRep!$A:$A,Data!$A$25,SummerProvRep!$P:$P,"Coventry",SummerProvRep!$U:$U,Data!G$17) -> 0 | H25: =SUMIFS(SummerProvRep!$K:$K,SummerProvRep!$A:$A,Data!$A$25,SummerProvRep!$P:$P,"Coventry",SummerProvRep!$U:$U,Data!H$17) -> 0 | I25: =SUMIFS(SummerProvRep!$K:$K,SummerProvRep!$A:$A,Data!$A$25,SummerProvRep!$P:$P,"Coventry",SummerProvRep!$U:$U,Data!I$17) -> 0 | J25: =SUMIFS(SummerProvRep!$K:$K,SummerProvRep!$A:$A,Data!$A$25,SummerProvRep!$P:$P,"Coventry",SummerProvRep!$U:$U,Data!J$17) -> 0 | K25: =SUMIFS(SummerProvRep!$K:$K,SummerProvRep!$A:$A,Data!$A$25,SummerProvRep!$P:$P,"Coventry",SummerProvRep!$U:$U,Data!K$17) -> 4893 | L25: =SUMIFS(SummerProvRep!$K:$K,SummerProvRep!$A:$A,Data!$A$25,SummerProvRep!$P:$P,"Coventry",SummerProvRep!$U:$U,Data!L$17) -> 704 | M25: =SUMIFS(SummerProvRep!$K:$K,SummerProvRep!$A:$A,Data!$A$25,SummerProvRep!$P:$P,"Coventry",SummerProvRep!$U:$U,Data!M$17) -> 0 | N25: =SUMIFS(SummerProvRep!$K:$K,SummerProvRep!$A:$A,Data!$A$25,SummerProvRep!$P:$P,"Coventry",SummerProvRep!$U:$U,Data!N$17) -> 320 | O25: =SUMIFS(SummerProvRep!$K:$K,SummerProvRep!$A:$A,Data!$A$25,SummerProvRep!$P:$P,"Coventry",SummerProvRep!$U:$U,Data!O$17) -> 392 | P25: =SUMIFS(SummerProvRep!$K:$K,SummerProvRep!$A:$A,Data!$A$25,SummerProvRep!$P:$P,"Coventry",SummerProvRep!$U:$U,Data!P$17) -> 0 | Q25: =SUMIFS(SummerProvRep!$K:$K,SummerProvRep!$A:$A,Data!$A$25,SummerProvRep!$P:$P,"Coventry",SummerProvRep!$U:$U,Data!Q$17) -> 1122 | R25: =SUMIFS(SummerProvRep!$K:$K,SummerProvRep!$A:$A,Data!$A$25,SummerProvRep!$P:$P,"Coventry",SummerProvRep!$U:$U,Data!R$17) -> 448 | S25: =SUMIFS(SummerProvRep!$K:$K,SummerProvRep!$A:$A,Data!$A$25,SummerProvRep!$P:$P,"Coventry",SummerProvRep!$U:$U,Data!S$17) -> 0 | T25: =SUMIFS(SummerProvRep!$K:$K,SummerProvRep!$A:$A,Data!$A$25,SummerProvRep!$P:$P,"Coventry",SummerProvRep!$U:$U,Data!T$17) -> 384 | U25: =SUMIFS(SummerProvRep!$K:$K,SummerProvRep!$A:$A,Data!$A$25,SummerProvRep!$P:$P,"Coventry",SummerProvRep!$U:$U,Data!U$17) -> 57 | V25: =SUMIFS(SummerProvRep!$K:$K,SummerProvRep!$A:$A,Data!$A$25,SummerProvRep!$P:$P,"Coventry",SummerProvRep!$U:$U,Data!V$17) -> 0 | W25: 130 | X25: 556663.6491 | Y25: 0 | Z25: =SUMIFS(SummerProvRep!$K:$K,SummerProvRep!$A:$A,Data!#REF!,SummerProvRep!$P:$P,"<>Coventry",SummerProvRep!$U:$U,Data!Z$17) -> 0 | AA25: =SUMIFS(SummerProvRep!$K:$K,SummerProvRep!$A:$A,Data!#REF!,SummerProvRep!$P:$P,"<>Coventry",SummerProvRep!$U:$U,Data!AA$17) -> 0 | AB25: =SUMIFS(SummerProvRep!$K:$K,SummerProvRep!$A:$A,Data!#REF!,SummerProvRep!$P:$P,"<>Coventry",SummerProvRep!$U:$U,Data!AB$17) -> 0 | AC25: =SUMIFS(SummerProvRep!$K:$K,SummerProvRep!$A:$A,Data!#REF!,SummerProvRep!$P:$P,"<>Coventry",SummerProvRep!$U:$U,Data!AC$17) -> 0 | AD25: =SUMIFS(SummerProvRep!$K:$K,SummerProvRep!$A:$A,Data!#REF!,SummerProvRep!$P:$P,"<>Coventry",SummerProvRep!$U:$U,Data!AD$17) -> 0 | AE25: =SUMIFS(SummerProvRep!$K:$K,SummerProvRep!$A:$A,Data!#REF!,SummerProvRep!$P:$P,"<>Coventry",SummerProvRep!$U:$U,Data!AE$17) -> 0 | AF25: =SUMIFS(SummerProvRep!$K:$K,SummerProvRep!$A:$A,Data!$A$25,SummerProvRep!$P:$P,"<>Coventry",SummerProvRep!$U:$U,Data!AF$17) -> 0 | AG25: =SUMIFS(SummerProvRep!$K:$K,SummerProvRep!$A:$A,Data!$A$25,SummerProvRep!$P:$P,"<>Coventry",SummerProvRep!$U:$U,Data!AG$17) -> 0 | AH25: =SUMIFS(SummerProvRep!$K:$K,SummerProvRep!$A:$A,Data!$A$25,SummerProvRep!$P:$P,"<>Coventry",SummerProvRep!$U:$U,Data!AH$17) -> 0 | AI25: =SUMIFS(SummerProvRep!$K:$K,SummerProvRep!$A:$A,Data!$A$25,SummerProvRep!$P:$P,"<>Coventry",SummerProvRep!$U:$U,Data!AI$17) -> 0 | AJ25: =SUMIFS(SummerProvRep!$K:$K,SummerProvRep!$A:$A,Data!$A$25,SummerProvRep!$P:$P,"<>Coventry",SummerProvRep!$U:$U,Data!AJ$17) -> 0 | AK25: =SUMIFS(SummerProvRep!$K:$K,SummerProvRep!$A:$A,Data!$A$25,SummerProvRep!$P:$P,"<>Coventry",SummerProvRep!$U:$U,Data!AK$17) -> 0 | AL25: =SUMIFS(SummerProvRep!$K:$K,SummerProvRep!$A:$A,Data!$A$25,SummerProvRep!$P:$P,"<>Coventry",SummerProvRep!$U:$U,Data!AL$17) -> 64 | AM25: =SUMIFS(SummerProvRep!$K:$K,SummerProvRep!$A:$A,Data!$A$25,SummerProvRep!$P:$P,"<>Coventry",SummerProvRep!$U:$U,Data!AM$17) -> 0 | AN25: =SUMIFS(SummerProvRep!$K:$K,SummerProvRep!$A:$A,Data!$A$25,SummerProvRep!$P:$P,"<>Coventry",SummerProvRep!$U:$U,Data!AN$17) -> 0 | AO25: =SUMIFS(SummerProvRep!$K:$K,SummerProvRep!$A:$A,Data!$A$25,SummerProvRep!$P:$P,"<>Coventry",SummerProvRep!$U:$U,Data!AO$17) -> 0 | AP25: =SUMIFS(SummerProvRep!$K:$K,SummerProvRep!$A:$A,Data!$A$25,SummerProvRep!$P:$P,"<>Coventry",SummerProvRep!$U:$U,Data!AP$17) -> 0 | AQ25: =SUMIFS(SummerProvRep!$K:$K,SummerProvRep!$A:$A,Data!$A$25,SummerProvRep!$P:$P,"<>Coventry",SummerProvRep!$U:$U,Data!AQ$17) -> 0 | AR25: 1 | AS25: 5618.626887 | AT25: 562282.276 | AU25: 131 | AV25: -2 | AW25: 133 | AX25: =[5]Data!$AU25 -> 120 | AY25: 121 | BB25: =($L$8-$AU$25)*$A$20 -> 128 | BD25: 8384 | BE25: =$BB$25/$BD$25*D25 -> 0 | BF25: 0 | BG25: 0 | BH25: 0 | BI25: 0 | BJ25: 0 | BK25: 0 | BL25: 74.70229008 | BM25: 10.7480916 | BN25: 0 | BO25: 4.885496183 | BP25: 5.984732824 | BQ25: 0 | BR25: 17.12977099 | BS25: 6.839694656 | BT25: 0 | BU25: 5.86259542 | BV25: 0.8702290076 | BW25: 0 | BY25: =$BB$25/$BD$25*Y25 -> 0 | BZ25: 0 | CA25: 0 | CB25: 0 | CC25: 0 | CD25: 0 | CE25: 0 | CF25: 0 | CG25: 0 | CH25: 0 | CI25: 0 | CJ25: 0 | CK25: 0 | CL25: 0.9770992366 | CM25: 0 | CN25: 0 | CO25: 0 | CP25: 0 | CQ25: 0
A26: 6 | B26: Baginton Fields | C26: 51.54639175 | D26: 0 | E26: =SUMIFS(SummerProvRep!$K:$K,SummerProvRep!$A:$A,Data!$A$26,SummerProvRep!$P:$P,"Coventry",SummerProvRep!$U:$U,Data!E$17) -> 0 | F26: =SUMIFS(SummerProvRep!$K:$K,SummerProvRep!$A:$A,Data!$A$26,SummerProvRep!$P:$P,"Coventry",SummerProvRep!$U:$U,Data!F$17) -> 0 | G26: =SUMIFS(SummerProvRep!$K:$K,SummerProvRep!$A:$A,Data!$A$26,SummerProvRep!$P:$P,"Coventry",SummerProvRep!$U:$U,Data!G$17) -> 0 | H26: =SUMIFS(SummerProvRep!$K:$K,SummerProvRep!$A:$A,Data!$A$26,SummerProvRep!$P:$P,"Coventry",SummerProvRep!$U:$U,Data!H$17) -> 0 | I26: =SUMIFS(SummerProvRep!$K:$K,SummerProvRep!$A:$A,Data!$A$26,SummerProvRep!$P:$P,"Coventry",SummerProvRep!$U:$U,Data!I$17) -> 0 | J26: =SUMIFS(SummerProvRep!$K:$K,SummerProvRep!$A:$A,Data!$A$26,SummerProvRep!$P:$P,"Coventry",SummerProvRep!$U:$U,Data!J$17) -> 0 | K26: =SUMIFS(SummerProvRep!$K:$K,SummerProvRep!$A:$A,Data!$A$26,SummerProvRep!$P:$P,"Coventry",SummerProvRep!$U:$U,Data!K$17) -> 1728 | L26: =SUMIFS(SummerProvRep!$K:$K,SummerProvRep!$A:$A,Data!$A$26,SummerProvRep!$P:$P,"Coventry",SummerProvRep!$U:$U,Data!L$17) -> 2366 | M26: =SUMIFS(SummerProvRep!$K:$K,SummerProvRep!$A:$A,Data!$A$26,SummerProvRep!$P:$P,"Coventry",SummerProvRep!$U:$U,Data!M$17) -> 0 | N26: =SUMIFS(SummerProvRep!$K:$K,SummerProvRep!$A:$A,Data!$A$26,SummerProvRep!$P:$P,"Coventry",SummerProvRep!$U:$U,Data!N$17) -> 128 | O26: =SUMIFS(SummerProvRep!$K:$K,SummerProvRep!$A:$A,Data!$A$26,SummerProvRep!$P:$P,"Coventry",SummerProvRep!$U:$U,Data!O$17) -> 778 | P26: =SUMIFS(SummerProvRep!$K:$K,SummerProvRep!$A:$A,Data!$A$26,SummerProvRep!$P:$P,"Coventry",SummerProvRep!$U:$U,Data!P$17) -> 0 | Q26: =SUMIFS(SummerProvRep!$K:$K,SummerProvRep!$A:$A,Data!$A$26,SummerProvRep!$P:$P,"Coventry",SummerProvRep!$U:$U,Data!Q$17) -> 1821 | R26: =SUMIFS(SummerProvRep!$K:$K,SummerProvRep!$A:$A,Data!$A$26,SummerProvRep!$P:$P,"Coventry",SummerProvRep!$U:$U,Data!R$17) -> 768 | S26: =SUMIFS(SummerProvRep!$K:$K,SummerProvRep!$A:$A,Data!$A$26,SummerProvRep!$P:$P,"Coventry",SummerProvRep!$U:$U,Data!S$17) -> 0 | T26: =SUMIFS(SummerProvRep!$K:$K,SummerProvRep!$A:$A,Data!$A$26,SummerProvRep!$P:$P,"Coventry",SummerProvRep!$U:$U,Data!T$17) -> 128 | U26: =SUMIFS(SummerProvRep!$K:$K,SummerProvRep!$A:$A,Data!$A$26,SummerProvRep!$P:$P,"Coventry",SummerProvRep!$U:$U,Data!U$17) -> 58 | V26: =SUMIFS(SummerProvRep!$K:$K,SummerProvRep!$A:$A,Data!$A$26,SummerProvRep!$P:$P,"Coventry",SummerProvRep!$U:$U,Data!V$17) -> 0 | W26: 121.484375 | X26: 575686.3127 | Y26: 0 | Z26: =SUMIFS(SummerProvRep!$K:$K,SummerProvRep!$A:$A,Data!#REF!,SummerProvRep!$P:$P,"<>Coventry",SummerProvRep!$U:$U,Data!Z$17) -> 0 | AA26: =SUMIFS(SummerProvRep!$K:$K,SummerProvRep!$A:$A,Data!#REF!,SummerProvRep!$P:$P,"<>Coventry",SummerProvRep!$U:$U,Data!AA$17) -> 0 | AB26: =SUMIFS(SummerProvRep!$K:$K,SummerProvRep!$A:$A,Data!#REF!,SummerProvRep!$P:$P,"<>Coventry",SummerProvRep!$U:$U,Data!AB$17) -> 0 | AC26: =SUMIFS(SummerProvRep!$K:$K,SummerProvRep!$A:$A,Data!#REF!,SummerProvRep!$P:$P,"<>Coventry",SummerProvRep!$U:$U,Data!AC$17) -> 0 | AD26: =SUMIFS(SummerProvRep!$K:$K,SummerProvRep!$A:$A,Data!#REF!,SummerProvRep!$P:$P,"<>Coventry",SummerProvRep!$U:$U,Data!AD$17) -> 0 | AE26: =SUMIFS(SummerProvRep!$K:$K,SummerProvRep!$A:$A,Data!#REF!,SummerProvRep!$P:$P,"<>Coventry",SummerProvRep!$U:$U,Data!AE$17) -> 0 | AF26: =SUMIFS(SummerProvRep!$K:$K,SummerProvRep!$A:$A,Data!$A$26,SummerProvRep!$P:$P,"<>Coventry",SummerProvRep!$U:$U,Data!AF$17) -> 0 | AG26: =SUMIFS(SummerProvRep!$K:$K,SummerProvRep!$A:$A,Data!$A$26,SummerProvRep!$P:$P,"<>Coventry",SummerProvRep!$U:$U,Data!AG$17) -> 64 | AH26: =SUMIFS(SummerProvRep!$K:$K,SummerProvRep!$A:$A,Data!$A$26,SummerProvRep!$P:$P,"<>Coventry",SummerProvRep!$U:$U,Data!AH$17) -> 0 | AI26: =SUMIFS(SummerProvRep!$K:$K,SummerProvRep!$A:$A,Data!$A$26,SummerProvRep!$P:$P,"<>Coventry",SummerProvRep!$U:$U,Data!AI$17) -> 0 | AJ26: =SUMIFS(SummerProvRep!$K:$K,SummerProvRep!$A:$A,Data!$A$26,SummerProvRep!$P:$P,"<>Coventry",SummerProvRep!$U:$U,Data!AJ$17) -> 0 | AK26: =SUMIFS(SummerProvRep!$K:$K,SummerProvRep!$A:$A,Data!$A$26,SummerProvRep!$P:$P,"<>Coventry",SummerProvRep!$U:$U,Data!AK$17) -> 0 | AL26: =SUMIFS(SummerProvRep!$K:$K,SummerProvRep!$A:$A,Data!$A$26,SummerProvRep!$P:$P,"<>Coventry",SummerProvRep!$U:$U,Data!AL$17) -> 0 | AM26: =SUMIFS(SummerProvRep!$K:$K,SummerProvRep!$A:$A,Data!$A$26,SummerProvRep!$P:$P,"<>Coventry",SummerProvRep!$U:$U,Data!AM$17) -> 0 | AN26: =SUMIFS(SummerProvRep!$K:$K,SummerProvRep!$A:$A,Data!$A$26,SummerProvRep!$P:$P,"<>Coventry",SummerProvRep!$U:$U,Data!AN$17) -> 0 | AO26: =SUMIFS(SummerProvRep!$K:$K,SummerProvRep!$A:$A,Data!$A$26,SummerProvRep!$P:$P,"<>Coventry",SummerProvRep!$U:$U,Data!AO$17) -> 0 | AP26: =SUMIFS(SummerProvRep!$K:$K,SummerProvRep!$A:$A,Data!$A$26,SummerProvRep!$P:$P,"<>Coventry",SummerProvRep!$U:$U,Data!AP$17) -> 0 | AQ26: =SUMIFS(SummerProvRep!$K:$K,SummerProvRep!$A:$A,Data!$A$26,SummerProvRep!$P:$P,"<>Coventry",SummerProvRep!$U:$U,Data!AQ$17) -> 0 | AR26: 1 | AS26: 3198.296273 | AT26: 578884.609 | AU26: 122.484375 | AV26: -3.515625 | AW26: 126 | AX26: =[5]Data!$AU26 -> 123.0289855 | AY26: 126 | BB26: =($L$9-$AU$26)*$A$20 -> 225 | BD26: 7839 | BE26: =$BB$26/$BD$26*D26 -> 0 | BF26: 0 | BG26: 0 | BH26: 0 | BI26: 0 | BJ26: 0 | BK26: 0 | BL26: 49.59816303 | BM26: 67.91044776 | BN26: 0 | BO26: 3.673938002 | BP26: 22.33065442 | BQ26: 0 | BR26: 52.26750861 | BS26: 22.04362801 | BT26: 0 | BU26: 3.673938002 | BV26: 1.664753157 | BW26: 0 | BY26: =$BB$26/$BD$26*Y26 -> 0 | BZ26: 0 | CA26: 0 | CB26: 0 | CC26: 0 | CD26: 0 | CE26: 0 | CF26: 0 | CG26: 1.836969001 | CH26: 0 | CI26: 0 | CJ26: 0 | CK26: 0 | CL26: 0 | CM26: 0 | CN26: 0 | CO26: 0 | CP26: 0 | CQ26: 0
A27: 7 | B27: Sherbourne Fields | C27: 51.54639175 | D27: 0 | E27: =SUMIFS(SummerProvRep!$K:$K,SummerProvRep!$A:$A,Data!$A$27,SummerProvRep!$P:$P,"Coventry",SummerProvRep!$U:$U,Data!E$17) -> 0 | F27: =SUMIFS(SummerProvRep!$K:$K,SummerProvRep!$A:$A,Data!$A$27,SummerProvRep!$P:$P,"Coventry",SummerProvRep!$U:$U,Data!F$17) -> 0 | G27: =SUMIFS(SummerProvRep!$K:$K,SummerProvRep!$A:$A,Data!$A$27,SummerProvRep!$P:$P,"Coventry",SummerProvRep!$U:$U,Data!G$17) -> 0 | H27: =SUMIFS(SummerProvRep!$K:$K,SummerProvRep!$A:$A,Data!$A$27,SummerProvRep!$P:$P,"Coventry",SummerProvRep!$U:$U,Data!H$17) -> 64 | I27: =SUMIFS(SummerProvRep!$K:$K,SummerProvRep!$A:$A,Data!$A$27,SummerProvRep!$P:$P,"Coventry",SummerProvRep!$U:$U,Data!I$17) -> 0 | J27: =SUMIFS(SummerProvRep!$K:$K,SummerProvRep!$A:$A,Data!$A$27,SummerProvRep!$P:$P,"Coventry",SummerProvRep!$U:$U,Data!J$17) -> 0 | K27: =SUMIFS(SummerProvRep!$K:$K,SummerProvRep!$A:$A,Data!$A$27,SummerProvRep!$P:$P,"Coventry",SummerProvRep!$U:$U,Data!K$17) -> 5568 | L27: =SUMIFS(SummerProvRep!$K:$K,SummerProvRep!$A:$A,Data!$A$27,SummerProvRep!$P:$P,"Coventry",SummerProvRep!$U:$U,Data!L$17) -> 3840 | M27: =SUMIFS(SummerProvRep!$K:$K,SummerProvRep!$A:$A,Data!$A$27,SummerProvRep!$P:$P,"Coventry",SummerProvRep!$U:$U,Data!M$17) -> 64 | N27: =SUMIFS(SummerProvRep!$K:$K,SummerProvRep!$A:$A,Data!$A$27,SummerProvRep!$P:$P,"Coventry",SummerProvRep!$U:$U,Data!N$17) -> 1856 | O27: =SUMIFS(SummerProvRep!$K:$K,SummerProvRep!$A:$A,Data!$A$27,SummerProvRep!$P:$P,"Coventry",SummerProvRep!$U:$U,Data!O$17) -> 192 | P27: =SUMIFS(SummerProvRep!$K:$K,SummerProvRep!$A:$A,Data!$A$27,SummerProvRep!$P:$P,"Coventry",SummerProvRep!$U:$U,Data!P$17) -> 0 | Q27: =SUMIFS(SummerProvRep!$K:$K,SummerProvRep!$A:$A,Data!$A$27,SummerProvRep!$P:$P,"Coventry",SummerProvRep!$U:$U,Data!Q$17) -> 1792 | R27: =SUMIFS(SummerProvRep!$K:$K,SummerProvRep!$A:$A,Data!$A$27,SummerProvRep!$P:$P,"Coventry",SummerProvRep!$U:$U,Data!R$17) -> 1662 | S27: =SUMIFS(SummerProvRep!$K:$K,SummerProvRep!$A:$A,Data!$A$27,SummerProvRep!$P:$P,"Coventry",SummerProvRep!$U:$U,Data!S$17) -> 0 | T27: =SUMIFS(SummerProvRep!$K:$K,SummerProvRep!$A:$A,Data!$A$27,SummerProvRep!$P:$P,"Coventry",SummerProvRep!$U:$U,Data!T$17) -> 1280 | U27: =SUMIFS(SummerProvRep!$K:$K,SummerProvRep!$A:$A,Data!$A$27,SummerProvRep!$P:$P,"Coventry",SummerProvRep!$U:$U,Data!U$17) -> 0 | V27: =SUMIFS(SummerProvRep!$K:$K,SummerProvRep!$A:$A,Data!$A$27,SummerProvRep!$P:$P,"Coventry",SummerProvRep!$U:$U,Data!V$17) -> 0 | W27: 254.96875 | X27: 1046244.728 | Y27: 0 | Z27: =SUMIFS(SummerProvRep!$K:$K,SummerProvRep!$A:$A,Data!#REF!,SummerProvRep!$P:$P,"<>Coventry",SummerProvRep!$U:$U,Data!Z$17) -> 0 | AA27: =SUMIFS(SummerProvRep!$K:$K,SummerProvRep!$A:$A,Data!#REF!,SummerProvRep!$P:$P,"<>Coventry",SummerProvRep!$U:$U,Data!AA$17) -> 0 | AB27: =SUMIFS(SummerProvRep!$K:$K,SummerProvRep!$A:$A,Data!#REF!,SummerProvRep!$P:$P,"<>Coventry",SummerProvRep!$U:$U,Data!AB$17) -> 0 | AC27: =SUMIFS(SummerProvRep!$K:$K,SummerProvRep!$A:$A,Data!#REF!,SummerProvRep!$P:$P,"<>Coventry",SummerProvRep!$U:$U,Data!AC$17) -> 0 | AD27: =SUMIFS(SummerProvRep!$K:$K,SummerProvRep!$A:$A,Data!#REF!,SummerProvRep!$P:$P,"<>Coventry",SummerProvRep!$U:$U,Data!AD$17) -> 0 | AE27: =SUMIFS(SummerProvRep!$K:$K,SummerProvRep!$A:$A,Data!#REF!,SummerProvRep!$P:$P,"<>Coventry",SummerProvRep!$U:$U,Data!AE$17) -> 0 | AF27: =SUMIFS(SummerProvRep!$K:$K,SummerProvRep!$A:$A,Data!$A$27,SummerProvRep!$P:$P,"<>Coventry",SummerProvRep!$U:$U,Data!AF$17) -> 128 | AG27: =SUMIFS(SummerProvRep!$K:$K,SummerProvRep!$A:$A,Data!$A$27,SummerProvRep!$P:$P,"<>Coventry",SummerProvRep!$U:$U,Data!AG$17) -> 0 | AH27: =SUMIFS(SummerProvRep!$K:$K,SummerProvRep!$A:$A,Data!$A$27,SummerProvRep!$P:$P,"<>Coventry",SummerProvRep!$U:$U,Data!AH$17) -> 0 | AI27: =SUMIFS(SummerProvRep!$K:$K,SummerProvRep!$A:$A,Data!$A$27,SummerProvRep!$P:$P,"<>Coventry",SummerProvRep!$U:$U,Data!AI$17) -> 64 | AJ27: =SUMIFS(SummerProvRep!$K:$K,SummerProvRep!$A:$A,Data!$A$27,SummerProvRep!$P:$P,"<>Coventry",SummerProvRep!$U:$U,Data!AJ$17) -> 0 | AK27: =SUMIFS(SummerProvRep!$K:$K,SummerProvRep!$A:$A,Data!$A$27,SummerProvRep!$P:$P,"<>Coventry",SummerProvRep!$U:$U,Data!AK$17) -> 0 | AL27: =SUMIFS(SummerProvRep!$K:$K,SummerProvRep!$A:$A,Data!$A$27,SummerProvRep!$P:$P,"<>Coventry",SummerProvRep!$U:$U,Data!AL$17) -> 0 | AM27: =SUMIFS(SummerProvRep!$K:$K,SummerProvRep!$A:$A,Data!$A$27,SummerProvRep!$P:$P,"<>Coventry",SummerProvRep!$U:$U,Data!AM$17) -> 0 | AN27: =SUMIFS(SummerProvRep!$K:$K,SummerProvRep!$A:$A,Data!$A$27,SummerProvRep!$P:$P,"<>Coventry",SummerProvRep!$U:$U,Data!AN$17) -> 0 | AO27: =SUMIFS(SummerProvRep!$K:$K,SummerProvRep!$A:$A,Data!$A$27,SummerProvRep!$P:$P,"<>Coventry",SummerProvRep!$U:$U,Data!AO$17) -> 128 | AP27: =SUMIFS(SummerProvRep!$K:$K,SummerProvRep!$A:$A,Data!$A$27,SummerProvRep!$P:$P,"<>Coventry",SummerProvRep!$U:$U,Data!AP$17) -> 0 | AQ27: =SUMIFS(SummerProvRep!$K:$K,SummerProvRep!$A:$A,Data!$A$27,SummerProvRep!$P:$P,"<>Coventry",SummerProvRep!$U:$U,Data!AQ$17) -> 0 | AR27: 5 | AS27: 21610.09345 | AT27: 1067854.822 | AU27: 259.96875 | AV27: 1.96875 | AW27: 258 | AX27: =[5]Data!$AU27 -> 252 | AY27: 251 | BB27: =($L$10-$AU$27)*$A$20 -> -126 | BD27: 16638 | BE27: =$BB$27/$BD$27*D27 -> 0 | BF27: 0 | BG27: 0 | BH27: 0 | BI27: -0.4846736387 | BJ27: 0 | BK27: 0 | BL27: -42.16660656 | BM27: -29.08041832 | BN27: -0.4846736387 | BO27: -14.05553552 | BP27: -1.454020916 | BQ27: 0 | BR27: -13.57086188 | BS27: -12.58636855 | BT27: 0 | BU27: -9.693472773 | BV27: 0 | BW27: 0 | BY27: =$BB$27/$BD$27*Y27 -> 0 | BZ27: 0 | CA27: 0 | CB27: 0 | CC27: 0 | CD27: 0 | CE27: 0 | CF27: -0.9693472773 | CG27: 0 | CH27: 0 | CI27: -0.4846736387 | CJ27: 0 | CK27: 0 | CL27: 0 | CM27: 0 | CN27: 0 | CO27: -0.9693472773 | CP27: 0 | CQ27: 0
A28: 8 | B28: Woodfield | C28: =10000/$A$16 -> 51.54639175 | D28: 0 | E28: =SUMIFS(SummerProvRep!$K:$K,SummerProvRep!$A:$A,Data!$A$28,SummerProvRep!$P:$P,"Coventry",SummerProvRep!$U:$U,Data!E$17) -> 0 | F28: =SUMIFS(SummerProvRep!$K:$K,SummerProvRep!$A:$A,Data!$A$28,SummerProvRep!$P:$P,"Coventry",SummerProvRep!$U:$U,Data!F$17) -> 0 | G28: =SUMIFS(SummerProvRep!$K:$K,SummerProvRep!$A:$A,Data!$A$28,SummerProvRep!$P:$P,"Coventry",SummerProvRep!$U:$U,Data!G$17) -> 0 | H28: =SUMIFS(SummerProvRep!$K:$K,SummerProvRep!$A:$A,Data!$A$28,SummerProvRep!$P:$P,"Coventry",SummerProvRep!$U:$U,Data!H$17) -> 0 | I28: =SUMIFS(SummerProvRep!$K:$K,SummerProvRep!$A:$A,Data!$A$28,SummerProvRep!$P:$P,"Coventry",SummerProvRep!$U:$U,Data!I$17) -> 0 | J28: =SUMIFS(SummerProvRep!$K:$K,SummerProvRep!$A:$A,Data!$A$28,SummerProvRep!$P:$P,"Coventry",SummerProvRep!$U:$U,Data!J$17) -> 0 | K28: =SUMIFS(SummerProvRep!$K:$K,SummerProvRep!$A:$A,Data!$A$28,SummerProvRep!$P:$P,"Coventry",SummerProvRep!$U:$U,Data!K$17) -> 0 | L28: =SUMIFS(SummerProvRep!$K:$K,SummerProvRep!$A:$A,Data!$A$28,SummerProvRep!$P:$P,"Coventry",SummerProvRep!$U:$U,Data!L$17) -> 0 | M28: =SUMIFS(SummerProvRep!$K:$K,SummerProvRep!$A:$A,Data!$A$28,SummerProvRep!$P:$P,"Coventry",SummerProvRep!$U:$U,Data!M$17) -> 0 | N28: =SUMIFS(SummerProvRep!$K:$K,SummerProvRep!$A:$A,Data!$A$28,SummerProvRep!$P:$P,"Coventry",SummerProvRep!$U:$U,Data!N$17) -> 0 | O28: =SUMIFS(SummerProvRep!$K:$K,SummerProvRep!$A:$A,Data!$A$28,SummerProvRep!$P:$P,"Coventry",SummerProvRep!$U:$U,Data!O$17) -> 576 | P28: =SUMIFS(SummerProvRep!$K:$K,SummerProvRep!$A:$A,Data!$A$28,SummerProvRep!$P:$P,"Coventry",SummerProvRep!$U:$U,Data!P$17) -> 0 | Q28: =SUMIFS(SummerProvRep!$K:$K,SummerProvRep!$A:$A,Data!$A$28,SummerProvRep!$P:$P,"Coventry",SummerProvRep!$U:$U,Data!Q$17) -> 9267 | R28: =SUMIFS(SummerProvRep!$K:$K,SummerProvRep!$A:$A,Data!$A$28,SummerProvRep!$P:$P,"Coventry",SummerProvRep!$U:$U,Data!R$17) -> 0 | S28: =SUMIFS(SummerProvRep!$K:$K,SummerProvRep!$A:$A,Data!$A$28,SummerProvRep!$P:$P,"Coventry",SummerProvRep!$U:$U,Data!S$17) -> 26 | T28: =SUMIFS(SummerProvRep!$K:$K,SummerProvRep!$A:$A,Data!$A$28,SummerProvRep!$P:$P,"Coventry",SummerProvRep!$U:$U,Data!T$17) -> 0 | U28: =SUMIFS(SummerProvRep!$K:$K,SummerProvRep!$A:$A,Data!$A$28,SummerProvRep!$P:$P,"Coventry",SummerProvRep!$U:$U,Data!U$17) -> 130 | V28: =SUMIFS(SummerProvRep!$K:$K,SummerProvRep!$A:$A,Data!$A$28,SummerProvRep!$P:$P,"Coventry",SummerProvRep!$U:$U,Data!V$17) -> 0 | W28: 156.234375 | X28: 930836.357 | Y28: 0 | Z28: =SUMIFS(SummerProvRep!$K:$K,SummerProvRep!$A:$A,Data!#REF!,SummerProvRep!$P:$P,"<>Coventry",SummerProvRep!$U:$U,Data!Z$17) -> 0 | AA28: =SUMIFS(SummerProvRep!$K:$K,SummerProvRep!$A:$A,Data!#REF!,SummerProvRep!$P:$P,"<>Coventry",SummerProvRep!$U:$U,Data!AA$17) -> 0 | AB28: =SUMIFS(SummerProvRep!$K:$K,SummerProvRep!$A:$A,Data!#REF!,SummerProvRep!$P:$P,"<>Coventry",SummerProvRep!$U:$U,Data!AB$17) -> 0 | AC28: =SUMIFS(SummerProvRep!$K:$K,SummerProvRep!$A:$A,Data!#REF!,SummerProvRep!$P:$P,"<>Coventry",SummerProvRep!$U:$U,Data!AC$17) -> 0 | AD28: =SUMIFS(SummerProvRep!$K:$K,SummerProvRep!$A:$A,Data!#REF!,SummerProvRep!$P:$P,"<>Coventry",SummerProvRep!$U:$U,Data!AD$17) -> 0 | AE28: =SUMIFS(SummerProvRep!$K:$K,SummerProvRep!$A:$A,Data!#REF!,SummerProvRep!$P:$P,"<>Coventry",SummerProvRep!$U:$U,Data!AE$17) -> 0 | AF28: =SUMIFS(SummerProvRep!$K:$K,SummerProvRep!$A:$A,Data!$A$28,SummerProvRep!$P:$P,"<>Coventry",SummerProvRep!$U:$U,Data!AF$17) -> 0 | AG28: =SUMIFS(SummerProvRep!$K:$K,SummerProvRep!$A:$A,Data!$A$28,SummerProvRep!$P:$P,"<>Coventry",SummerProvRep!$U:$U,Data!AG$17) -> 0 | AH28: =SUMIFS(SummerProvRep!$K:$K,SummerProvRep!$A:$A,Data!$A$28,SummerProvRep!$P:$P,"<>Coventry",SummerProvRep!$U:$U,Data!AH$17) -> 0 | AI28: =SUMIFS(SummerProvRep!$K:$K,SummerProvRep!$A:$A,Data!$A$28,SummerProvRep!$P:$P,"<>Coventry",SummerProvRep!$U:$U,Data!AI$17) -> 0 | AJ28: =SUMIFS(SummerProvRep!$K:$K,SummerProvRep!$A:$A,Data!$A$28,SummerProvRep!$P:$P,"<>Coventry",SummerProvRep!$U:$U,Data!AJ$17) -> 0 | AK28: =SUMIFS(SummerProvRep!$K:$K,SummerProvRep!$A:$A,Data!$A$28,SummerProvRep!$P:$P,"<>Coventry",SummerProvRep!$U:$U,Data!AK$17) -> 0 | AL28: =SUMIFS(SummerProvRep!$K:$K,SummerProvRep!$A:$A,Data!$A$28,SummerProvRep!$P:$P,"<>Coventry",SummerProvRep!$U:$U,Data!AL$17) -> 128 | AM28: =SUMIFS(SummerProvRep!$K:$K,SummerProvRep!$A:$A,Data!$A$28,SummerProvRep!$P:$P,"<>Coventry",SummerProvRep!$U:$U,Data!AM$17) -> 0 | AN28: =SUMIFS(SummerProvRep!$K:$K,SummerProvRep!$A:$A,Data!$A$28,SummerProvRep!$P:$P,"<>Coventry",SummerProvRep!$U:$U,Data!AN$17) -> 0 | AO28: =SUMIFS(SummerProvRep!$K:$K,SummerProvRep!$A:$A,Data!$A$28,SummerProvRep!$P:$P,"<>Coventry",SummerProvRep!$U:$U,Data!AO$17) -> 0 | AP28: =SUMIFS(SummerProvRep!$K:$K,SummerProvRep!$A:$A,Data!$A$28,SummerProvRep!$P:$P,"<>Coventry",SummerProvRep!$U:$U,Data!AP$17) -> 0 | AQ28: =SUMIFS(SummerProvRep!$K:$K,SummerProvRep!$A:$A,Data!$A$28,SummerProvRep!$P:$P,"<>Coventry",SummerProvRep!$U:$U,Data!AQ$17) -> 0 | AR28: =SUM(Y28:AQ28)/$A$20 -> 2 | AS28: 11237.25377 | AT28: 942073.6108 | AU28: 158.234375 | AV28: =AU28-AW28 -> 3.234375 | AW28: 155 | AX28: =[5]Data!$AU28 -> 157.2173913 | AY28: 155 | BB28: =($L$11-$AU$28)*$A$20 -> -207 | BD28: 10127 | BE28: =$BB$28/$BD$28*D28 -> 0 | BF28: 0 | BG28: 0 | BH28: 0 | BI28: 0 | BJ28: 0 | BK28: 0 | BL28: 0 | BM28: 0 | BN28: 0 | BO28: 0 | BP28: -11.77367434 | BQ28: 0 | BR28: -189.4212501 | BS28: 0 | BT28: -0.5314505777 | BU28: 0 | BV28: -2.657252888 | BW28: 0 | BY28: =$BB$28/$BD$28*Y28 -> 0 | BZ28: 0 | CA28: 0 | CB28: 0 | CC28: 0 | CD28: 0 | CE28: 0 | CF28: 0 | CG28: 0 | CH28: 0 | CI28: 0 | CJ28: 0 | CK28: 0 | CL28: -2.616372075 | CM28: 0 | CN28: 0 | CO28: 0 | CP28: 0 | CQ28: 0
A29: 9 | B29: Coventry ELC | C29: =10000/$A$16 -> 51.54639175 | D29: =120*A20 -> 7680 | E29: 0 | F29: 0 | G29: 0 | H29: 0 | I29: 0 | J29: 0 | K29: 0 | L29: 0 | M29: 0 | N29: 0 | O29: 0 | P29: 0 | Q29: 0 | R29: 0 | S29: 0 | T29: 0 | U29: 0 | V29: 0 | W29: 120 | X29: =SUMPRODUCT(D29:V29,$Y$12:$AQ$12)/$A$16 -> 510575.502 | Y29: 0 | Z29: 0 | AA29: 0 | AB29: 0 | AC29: 0 | AD29: 0 | AE29: 0 | AF29: 0 | AG29: 0 | AH29: 0 | AI29: 0 | AJ29: 0 | AK29: 0 | AL29: 0 | AM29: 0 | AN29: 0 | AO29: 0 | AP29: 0 | AQ29: 0 | AR29: =SUM(Y29:AQ29)/$A$20 -> 0 | AS29: =SUMPRODUCT(Y29:AQ29,$Y$12:$AQ$12)/$A$16 -> 0 | AT29: 510575.502 | AU29: 120 | AV29: =AU29-AW29 -> 0 | AW29: 120 | AX29: =[5]Data!$AU29 -> 120 | AY29: 120 | BB29: =($L$12-$AU$29)*$A$20 -> 0 | BD29: 7680 | BE29: =$BB$29/$BD$29*D29 -> 0 | BF29: 0 | BG29: 0 | BH29: 0 | BI29: 0 | BJ29: 0 | BK29: 0 | BL29: 0 | BM29: 0 | BN29: 0 | BO29: 0 | BP29: 0 | BQ29: 0 | BR29: 0 | BS29: 0 | BT29: 0 | BU29: 0 | BV29: 0 | BW29: 0 | BY29: =$BB$29/$BD$29*Y29 -> 0 | BZ29: 0 | CA29: 0 | CB29: 0 | CC29: 0 | CD29: 0 | CE29: 0 | CF29: 0 | CG29: 0 | CH29: 0 | CI29: 0 | CJ29: 0 | CK29: 0 | CL29: 0 | CM29: 0 | CN29: 0 | CO29: 0 | CP29: 0 | CQ29: 0
AS30: =SUM(AS21:AS29) -> 82204.82205 | AT30: =SUM(AT21:AT29) -> 6272757.032 | AU30: =SUM(AU21:AU29) -> 1411.25
B31: Summer Term 2025
A32: 64 | B32: School
A33: 1 | B33: Castle Wood | C33: =10000/$A$16 -> 51.54639175 | D33: =D21+BE21 -> 0 | E33: =SUMIFS(SummerProvRep!$K:$K,SummerProvRep!$A:$A,Data!$A$21,SummerProvRep!$P:$P,"Coventry",SummerProvRep!$U:$U,Data!E$17) -> 0 | F33: =SUMIFS(SummerProvRep!$K:$K,SummerProvRep!$A:$A,Data!$A$21,SummerProvRep!$P:$P,"Coventry",SummerProvRep!$U:$U,Data!F$17) -> 0 | G33: =SUMIFS(SummerProvRep!$K:$K,SummerProvRep!$A:$A,Data!$A$21,SummerProvRep!$P:$P,"Coventry",SummerProvRep!$U:$U,Data!G$17) -> 0 | H33: =SUMIFS(SummerProvRep!$K:$K,SummerProvRep!$A:$A,Data!$A$21,SummerProvRep!$P:$P,"Coventry",SummerProvRep!$U:$U,Data!H$17) -> 0 | I33: =SUMIFS(SummerProvRep!$K:$K,SummerProvRep!$A:$A,Data!$A$21,SummerProvRep!$P:$P,"Coventry",SummerProvRep!$U:$U,Data!I$17) -> 0 | J33: =SUMIFS(SummerProvRep!$K:$K,SummerProvRep!$A:$A,Data!$A$21,SummerProvRep!$P:$P,"Coventry",SummerProvRep!$U:$U,Data!J$17) -> 64 | K33: =SUMIFS(SummerProvRep!$K:$K,SummerProvRep!$A:$A,Data!$A$21,SummerProvRep!$P:$P,"Coventry",SummerProvRep!$U:$U,Data!K$17) -> 5637 | L33: =SUMIFS(SummerProvRep!$K:$K,SummerProvRep!$A:$A,Data!$A$21,SummerProvRep!$P:$P,"Coventry",SummerProvRep!$U:$U,Data!L$17) -> 576 | M33: =SUMIFS(SummerProvRep!$K:$K,SummerProvRep!$A:$A,Data!$A$21,SummerProvRep!$P:$P,"Coventry",SummerProvRep!$U:$U,Data!M$17) -> 0 | N33: =SUMIFS(SummerProvRep!$K:$K,SummerProvRep!$A:$A,Data!$A$21,SummerProvRep!$P:$P,"Coventry",SummerProvRep!$U:$U,Data!N$17) -> 448 | O33: =SUMIFS(SummerProvRep!$K:$K,SummerProvRep!$A:$A,Data!$A$21,SummerProvRep!$P:$P,"Coventry",SummerProvRep!$U:$U,Data!O$17) -> 640 | P33: =SUMIFS(SummerProvRep!$K:$K,SummerProvRep!$A:$A,Data!$A$21,SummerProvRep!$P:$P,"Coventry",SummerProvRep!$U:$U,Data!P$17) -> 0 | Q33: =SUMIFS(SummerProvRep!$K:$K,SummerProvRep!$A:$A,Data!$A$21,SummerProvRep!$P:$P,"Coventry",SummerProvRep!$U:$U,Data!Q$17) -> 2048 | R33: =SUMIFS(SummerProvRep!$K:$K,SummerProvRep!$A:$A,Data!$A$21,SummerProvRep!$P:$P,"Coventry",SummerProvRep!$U:$U,Data!R$17) -> 448 | S33: =SUMIFS(SummerProvRep!$K:$K,SummerProvRep!$A:$A,Data!$A$21,SummerProvRep!$P:$P,"Coventry",SummerProvRep!$U:$U,Data!S$17) -> 0 | T33: =SUMIFS(SummerProvRep!$K:$K,SummerProvRep!$A:$A,Data!$A$21,SummerProvRep!$P:$P,"Coventry",SummerProvRep!$U:$U,Data!T$17) -> 384 | U33: =SUMIFS(SummerProvRep!$K:$K,SummerProvRep!$A:$A,Data!$A$21,SummerProvRep!$P:$P,"Coventry",SummerProvRep!$U:$U,Data!U$17) -> 161 | V33: =SUMIFS(SummerProvRep!$K:$K,SummerProvRep!$A:$A,Data!$A$21,SummerProvRep!$P:$P,"Coventry",SummerProvRep!$U:$U,Data!V$17) -> 0 | W33: =SUM(D33:V33)/$A$20 -> 162.59375 | X33: =SUMPRODUCT(E33:V33,$Z$6:$AQ$6)/$A$16 -> 745717.6921 | Y33: =Y21+BY21 -> 0 | Z33: =SUMIFS(SummerProvRep!$K:$K,SummerProvRep!$A:$A,Data!$A$21,SummerProvRep!$P:$P,"<>Coventry",SummerProvRep!$U:$U,Data!Z$17) -> 0 | AA33: =SUMIFS(SummerProvRep!$K:$K,SummerProvRep!$A:$A,Data!$A$21,SummerProvRep!$P:$P,"<>Coventry",SummerProvRep!$U:$U,Data!AA$17) -> 0 | AB33: =SUMIFS(SummerProvRep!$K:$K,SummerProvRep!$A:$A,Data!$A$21,SummerProvRep!$P:$P,"<>Coventry",SummerProvRep!$U:$U,Data!AB$17) -> 0 | AC33: =SUMIFS(SummerProvRep!$K:$K,SummerProvRep!$A:$A,Data!$A$21,SummerProvRep!$P:$P,"<>Coventry",SummerProvRep!$U:$U,Data!AC$17) -> 0 | AD33: =SUMIFS(SummerProvRep!$K:$K,SummerProvRep!$A:$A,Data!$A$21,SummerProvRep!$P:$P,"<>Coventry",SummerProvRep!$U:$U,Data!AD$17) -> 0 | AE33: =SUMIFS(SummerProvRep!$K:$K,SummerProvRep!$A:$A,Data!$A$21,SummerProvRep!$P:$P,"<>Coventry",SummerProvRep!$U:$U,Data!AE$17) -> 0 | AF33: =SUMIFS(SummerProvRep!$K:$K,SummerProvRep!$A:$A,Data!$A$21,SummerProvRep!$P:$P,"<>Coventry",SummerProvRep!$U:$U,Data!AF$17) -> 128 | AG33: =SUMIFS(SummerProvRep!$K:$K,SummerProvRep!$A:$A,Data!$A$21,SummerProvRep!$P:$P,"<>Coventry",SummerProvRep!$U:$U,Data!AG$17) -> 0 | AH33: =SUMIFS(SummerProvRep!$K:$K,SummerProvRep!$A:$A,Data!$A$21,SummerProvRep!$P:$P,"<>Coventry",SummerProvRep!$U:$U,Data!AH$17) -> 0 | AI33: =SUMIFS(SummerProvRep!$K:$K,SummerProvRep!$A:$A,Data!$A$21,SummerProvRep!$P:$P,"<>Coventry",SummerProvRep!$U:$U,Data!AI$17) -> 0 | AJ33: =SUMIFS(SummerProvRep!$K:$K,SummerProvRep!$A:$A,Data!$A$21,SummerProvRep!$P:$P,"<>Coventry",SummerProvRep!$U:$U,Data!AJ$17) -> 0 | AK33: =SUMIFS(SummerProvRep!$K:$K,SummerProvRep!$A:$A,Data!$A$21,SummerProvRep!$P:$P,"<>Coventry",SummerProvRep!$U:$U,Data!AK$17) -> 0 | AL33: =SUMIFS(SummerProvRep!$K:$K,SummerProvRep!$A:$A,Data!$A$21,SummerProvRep!$P:$P,"<>Coventry",SummerProvRep!$U:$U,Data!AL$17) -> 64 | AM33: =SUMIFS(SummerProvRep!$K:$K,SummerProvRep!$A:$A,Data!$A$21,SummerProvRep!$P:$P,"<>Coventry",SummerProvRep!$U:$U,Data!AM$17) -> 0 | AN33: =SUMIFS(SummerProvRep!$K:$K,SummerProvRep!$A:$A,Data!$A$21,SummerProvRep!$P:$P,"<>Coventry",SummerProvRep!$U:$U,Data!AN$17) -> 0 | AO33: =SUMIFS(SummerProvRep!$K:$K,SummerProvRep!$A:$A,Data!$A$21,SummerProvRep!$P:$P,"<>Coventry",SummerProvRep!$U:$U,Data!AO$17) -> 0 | AP33: =SUMIFS(SummerProvRep!$K:$K,SummerProvRep!$A:$A,Data!$A$21,SummerProvRep!$P:$P,"<>Coventry",SummerProvRep!$U:$U,Data!AP$17) -> 0 | AQ33: =SUMIFS(SummerProvRep!$K:$K,SummerProvRep!$A:$A,Data!$A$21,SummerProvRep!$P:$P,"<>Coventry",SummerProvRep!$U:$U,Data!AQ$17) -> 0 | AR33: =SUM(Z33:AQ33)/$A$20 -> 3 | AS33: =SUMPRODUCT(Y33:AQ33,$Y$6:$AQ$6)/$A$16 -> 12533.85827 | AT33: =X33+AS33 -> 758251.5504 | AU33: =AR33+W33 -> 165.59375 | AV33: =AU33-AW33 -> 1.59375 | AW33: =L4 -> 164 | AX33: =[5]Data!$AU21 -> 161 | AY33: =C4 -> 160 | BA33: =(AT33/69*200)/AU33 -> 13272.42472 | BC33: =X33/W33 -> 4586.38596
A34: 2 | B34: Kingsbury | C34: =10000/$A$16 -> 51.54639175 | D34: 0 | E34: =SUMIFS(SummerProvRep!$K:$K,SummerProvRep!$A:$A,Data!$A$22,SummerProvRep!$P:$P,"Coventry",SummerProvRep!$U:$U,Data!E$17) -> 0 | F34: =SUMIFS(SummerProvRep!$K:$K,SummerProvRep!$A:$A,Data!$A$22,SummerProvRep!$P:$P,"Coventry",SummerProvRep!$U:$U,Data!F$17) -> 0 | G34: =SUMIFS(SummerProvRep!$K:$K,SummerProvRep!$A:$A,Data!$A$22,SummerProvRep!$P:$P,"Coventry",SummerProvRep!$U:$U,Data!G$17) -> 0 | H34: =SUMIFS(SummerProvRep!$K:$K,SummerProvRep!$A:$A,Data!$A$22,SummerProvRep!$P:$P,"Coventry",SummerProvRep!$U:$U,Data!H$17) -> 0 | I34: =SUMIFS(SummerProvRep!$K:$K,SummerProvRep!$A:$A,Data!$A$22,SummerProvRep!$P:$P,"Coventry",SummerProvRep!$U:$U,Data!I$17) -> 0 | J34: =SUMIFS(SummerProvRep!$K:$K,SummerProvRep!$A:$A,Data!$A$22,SummerProvRep!$P:$P,"Coventry",SummerProvRep!$U:$U,Data!J$17) -> 0 | K34: =SUMIFS(SummerProvRep!$K:$K,SummerProvRep!$A:$A,Data!$A$22,SummerProvRep!$P:$P,"Coventry",SummerProvRep!$U:$U,Data!K$17) -> 3823 | L34: =SUMIFS(SummerProvRep!$K:$K,SummerProvRep!$A:$A,Data!$A$22,SummerProvRep!$P:$P,"Coventry",SummerProvRep!$U:$U,Data!L$17) -> 128 | M34: =SUMIFS(SummerProvRep!$K:$K,SummerProvRep!$A:$A,Data!$A$22,SummerProvRep!$P:$P,"Coventry",SummerProvRep!$U:$U,Data!M$17) -> 0 | N34: =SUMIFS(SummerProvRep!$K:$K,SummerProvRep!$A:$A,Data!$A$22,SummerProvRep!$P:$P,"Coventry",SummerProvRep!$U:$U,Data!N$17) -> 0 | O34: =SUMIFS(SummerProvRep!$K:$K,SummerProvRep!$A:$A,Data!$A$22,SummerProvRep!$P:$P,"Coventry",SummerProvRep!$U:$U,Data!O$17) -> 634 | P34: =SUMIFS(SummerProvRep!$K:$K,SummerProvRep!$A:$A,Data!$A$22,SummerProvRep!$P:$P,"Coventry",SummerProvRep!$U:$U,Data!P$17) -> 0 | Q34: =SUMIFS(SummerProvRep!$K:$K,SummerProvRep!$A:$A,Data!$A$22,SummerProvRep!$P:$P,"Coventry",SummerProvRep!$U:$U,Data!Q$17) -> 1559 | R34: =SUMIFS(SummerProvRep!$K:$K,SummerProvRep!$A:$A,Data!$A$22,SummerProvRep!$P:$P,"Coventry",SummerProvRep!$U:$U,Data!R$17) -> 0 | S34: =SUMIFS(SummerProvRep!$K:$K,SummerProvRep!$A:$A,Data!$A$22,SummerProvRep!$P:$P,"Coventry",SummerProvRep!$U:$U,Data!S$17) -> 0 | T34: =SUMIFS(SummerProvRep!$K:$K,SummerProvRep!$A:$A,Data!$A$22,SummerProvRep!$P:$P,"Coventry",SummerProvRep!$U:$U,Data!T$17) -> 0 | U34: =SUMIFS(SummerProvRep!$K:$K,SummerProvRep!$A:$A,Data!$A$22,SummerProvRep!$P:$P,"Coventry",SummerProvRep!$U:$U,Data!U$17) -> 0 | V34: =SUMIFS(SummerProvRep!$K:$K,SummerProvRep!$A:$A,Data!$A$22,SummerProvRep!$P:$P,"Coventry",SummerProvRep!$U:$U,Data!V$17) -> 0 | W34: 96 | X34: 437009.8452 | Y34: 0 | Z34: =SUMIFS(SummerProvRep!$K:$K,SummerProvRep!$A:$A,Data!$A$22,SummerProvRep!$P:$P,"<>Coventry",SummerProvRep!$U:$U,Data!Z$17) -> 0 | AA34: =SUMIFS(SummerProvRep!$K:$K,SummerProvRep!$A:$A,Data!$A$22,SummerProvRep!$P:$P,"<>Coventry",SummerProvRep!$U:$U,Data!AA$17) -> 0 | AB34: =SUMIFS(SummerProvRep!$K:$K,SummerProvRep!$A:$A,Data!$A$22,SummerProvRep!$P:$P,"<>Coventry",SummerProvRep!$U:$U,Data!AB$17) -> 0 | AC34: =SUMIFS(SummerProvRep!$K:$K,SummerProvRep!$A:$A,Data!$A$22,SummerProvRep!$P:$P,"<>Coventry",SummerProvRep!$U:$U,Data!AC$17) -> 0 | AD34: =SUMIFS(SummerProvRep!$K:$K,SummerProvRep!$A:$A,Data!$A$22,SummerProvRep!$P:$P,"<>Coventry",SummerProvRep!$U:$U,Data!AD$17) -> 0 | AE34: =SUMIFS(SummerProvRep!$K:$K,SummerProvRep!$A:$A,Data!$A$22,SummerProvRep!$P:$P,"<>Coventry",SummerProvRep!$U:$U,Data!AE$17) -> 0 | AF34: =SUMIFS(SummerProvRep!$K:$K,SummerProvRep!$A:$A,Data!$A$22,SummerProvRep!$P:$P,"<>Coventry",SummerProvRep!$U:$U,Data!AF$17) -> 64 | AG34: =SUMIFS(SummerProvRep!$K:$K,SummerProvRep!$A:$A,Data!$A$22,SummerProvRep!$P:$P,"<>Coventry",SummerProvRep!$U:$U,Data!AG$17) -> 64 | AH34: =SUMIFS(SummerProvRep!$K:$K,SummerProvRep!$A:$A,Data!$A$22,SummerProvRep!$P:$P,"<>Coventry",SummerProvRep!$U:$U,Data!AH$17) -> 0 | AI34: =SUMIFS(SummerProvRep!$K:$K,SummerProvRep!$A:$A,Data!$A$22,SummerProvRep!$P:$P,"<>Coventry",SummerProvRep!$U:$U,Data!AI$17) -> 0 | AJ34: =SUMIFS(SummerProvRep!$K:$K,SummerProvRep!$A:$A,Data!$A$22,SummerProvRep!$P:$P,"<>Coventry",SummerProvRep!$U:$U,Data!AJ$17) -> 0 | AK34: =SUMIFS(SummerProvRep!$K:$K,SummerProvRep!$A:$A,Data!$A$22,SummerProvRep!$P:$P,"<>Coventry",SummerProvRep!$U:$U,Data!AK$17) -> 0 | AL34: =SUMIFS(SummerProvRep!$K:$K,SummerProvRep!$A:$A,Data!$A$22,SummerProvRep!$P:$P,"<>Coventry",SummerProvRep!$U:$U,Data!AL$17) -> 128 | AM34: =SUMIFS(SummerProvRep!$K:$K,SummerProvRep!$A:$A,Data!$A$22,SummerProvRep!$P:$P,"<>Coventry",SummerProvRep!$U:$U,Data!AM$17) -> 0 | AN34: =SUMIFS(SummerProvRep!$K:$K,SummerProvRep!$A:$A,Data!$A$22,SummerProvRep!$P:$P,"<>Coventry",SummerProvRep!$U:$U,Data!AN$17) -> 0 | AO34: =SUMIFS(SummerProvRep!$K:$K,SummerProvRep!$A:$A,Data!$A$22,SummerProvRep!$P:$P,"<>Coventry",SummerProvRep!$U:$U,Data!AO$17) -> 0 | AP34: =SUMIFS(SummerProvRep!$K:$K,SummerProvRep!$A:$A,Data!$A$22,SummerProvRep!$P:$P,"<>Coventry",SummerProvRep!$U:$U,Data!AP$17) -> 0 | AQ34: =SUMIFS(SummerProvRep!$K:$K,SummerProvRep!$A:$A,Data!$A$22,SummerProvRep!$P:$P,"<>Coventry",SummerProvRep!$U:$U,Data!AQ$17) -> 0 | AR34: 4 | AS34: 17893.16574 | AT34: 454903.0109 | AU34: 100 | AV34: =AU34-AW34 -> -3 | AW34: 103 | AX34: =[5]Data!$AU22 -> 100 | AY34: 100 | BA34: =(AT34/69*200)/AU34 -> 13185.59452 | BC34: =X34/W34 -> 4552.185887
A35: 3 | B35: Riverbank | C35: 51.54639175 | D35: 0 | E35: =SUMIFS(SummerProvRep!$K:$K,SummerProvRep!$A:$A,Data!$A$23,SummerProvRep!$P:$P,"Coventry",SummerProvRep!$U:$U,Data!E$17) -> 0 | F35: =SUMIFS(SummerProvRep!$K:$K,SummerProvRep!$A:$A,Data!$A$23,SummerProvRep!$P:$P,"Coventry",SummerProvRep!$U:$U,Data!F$17) -> 0 | G35: =SUMIFS(SummerProvRep!$K:$K,SummerProvRep!$A:$A,Data!$A$23,SummerProvRep!$P:$P,"Coventry",SummerProvRep!$U:$U,Data!G$17) -> 356 | H35: =SUMIFS(SummerProvRep!$K:$K,SummerProvRep!$A:$A,Data!$A$23,SummerProvRep!$P:$P,"Coventry",SummerProvRep!$U:$U,Data!H$17) -> 426 | I35: =SUMIFS(SummerProvRep!$K:$K,SummerProvRep!$A:$A,Data!$A$23,SummerProvRep!$P:$P,"Coventry",SummerProvRep!$U:$U,Data!I$17) -> 0 | J35: =SUMIFS(SummerProvRep!$K:$K,SummerProvRep!$A:$A,Data!$A$23,SummerProvRep!$P:$P,"Coventry",SummerProvRep!$U:$U,Data!J$17) -> 0 | K35: =SUMIFS(SummerProvRep!$K:$K,SummerProvRep!$A:$A,Data!$A$23,SummerProvRep!$P:$P,"Coventry",SummerProvRep!$U:$U,Data!K$17) -> 4835 | L35: =SUMIFS(SummerProvRep!$K:$K,SummerProvRep!$A:$A,Data!$A$23,SummerProvRep!$P:$P,"Coventry",SummerProvRep!$U:$U,Data!L$17) -> 3611 | M35: =SUMIFS(SummerProvRep!$K:$K,SummerProvRep!$A:$A,Data!$A$23,SummerProvRep!$P:$P,"Coventry",SummerProvRep!$U:$U,Data!M$17) -> 73 | N35: =SUMIFS(SummerProvRep!$K:$K,SummerProvRep!$A:$A,Data!$A$23,SummerProvRep!$P:$P,"Coventry",SummerProvRep!$U:$U,Data!N$17) -> 512 | O35: =SUMIFS(SummerProvRep!$K:$K,SummerProvRep!$A:$A,Data!$A$23,SummerProvRep!$P:$P,"Coventry",SummerProvRep!$U:$U,Data!O$17) -> 593 | P35: =SUMIFS(SummerProvRep!$K:$K,SummerProvRep!$A:$A,Data!$A$23,SummerProvRep!$P:$P,"Coventry",SummerProvRep!$U:$U,Data!P$17) -> 255 | Q35: =SUMIFS(SummerProvRep!$K:$K,SummerProvRep!$A:$A,Data!$A$23,SummerProvRep!$P:$P,"Coventry",SummerProvRep!$U:$U,Data!Q$17) -> 1550 | R35: =SUMIFS(SummerProvRep!$K:$K,SummerProvRep!$A:$A,Data!$A$23,SummerProvRep!$P:$P,"Coventry",SummerProvRep!$U:$U,Data!R$17) -> 384 | S35: =SUMIFS(SummerProvRep!$K:$K,SummerProvRep!$A:$A,Data!$A$23,SummerProvRep!$P:$P,"Coventry",SummerProvRep!$U:$U,Data!S$17) -> 0 | T35: =SUMIFS(SummerProvRep!$K:$K,SummerProvRep!$A:$A,Data!$A$23,SummerProvRep!$P:$P,"Coventry",SummerProvRep!$U:$U,Data!T$17) -> 192 | U35: =SUMIFS(SummerProvRep!$K:$K,SummerProvRep!$A:$A,Data!$A$23,SummerProvRep!$P:$P,"Coventry",SummerProvRep!$U:$U,Data!U$17) -> 0 | V35: =SUMIFS(SummerProvRep!$K:$K,SummerProvRep!$A:$A,Data!$A$23,SummerProvRep!$P:$P,"Coventry",SummerProvRep!$U:$U,Data!V$17) -> 0 | W35: 199.796875 | X35: 809707.3563 | Y35: 0 | Z35: =SUMIFS(SummerProvRep!$K:$K,SummerProvRep!$A:$A,Data!$A$23,SummerProvRep!$P:$P,"<>Coventry",SummerProvRep!$U:$U,Data!Z$17) -> 0 | AA35: =SUMIFS(SummerProvRep!$K:$K,SummerProvRep!$A:$A,Data!$A$23,SummerProvRep!$P:$P,"<>Coventry",SummerProvRep!$U:$U,Data!AA$17) -> 0 | AB35: =SUMIFS(SummerProvRep!$K:$K,SummerProvRep!$A:$A,Data!$A$23,SummerProvRep!$P:$P,"<>Coventry",SummerProvRep!$U:$U,Data!AB$17) -> 0 | AC35: =SUMIFS(SummerProvRep!$K:$K,SummerProvRep!$A:$A,Data!$A$23,SummerProvRep!$P:$P,"<>Coventry",SummerProvRep!$U:$U,Data!AC$17) -> 0 | AD35: =SUMIFS(SummerProvRep!$K:$K,SummerProvRep!$A:$A,Data!$A$23,SummerProvRep!$P:$P,"<>Coventry",SummerProvRep!$U:$U,Data!AD$17) -> 0 | AE35: =SUMIFS(SummerProvRep!$K:$K,SummerProvRep!$A:$A,Data!$A$23,SummerProvRep!$P:$P,"<>Coventry",SummerProvRep!$U:$U,Data!AE$17) -> 0 | AF35: =SUMIFS(SummerProvRep!$K:$K,SummerProvRep!$A:$A,Data!$A$23,SummerProvRep!$P:$P,"<>Coventry",SummerProvRep!$U:$U,Data!AF$17) -> 0 | AG35: =SUMIFS(SummerProvRep!$K:$K,SummerProvRep!$A:$A,Data!$A$23,SummerProvRep!$P:$P,"<>Coventry",SummerProvRep!$U:$U,Data!AG$17) -> 64 | AH35: =SUMIFS(SummerProvRep!$K:$K,SummerProvRep!$A:$A,Data!$A$23,SummerProvRep!$P:$P,"<>Coventry",SummerProvRep!$U:$U,Data!AH$17) -> 0 | AI35: =SUMIFS(SummerProvRep!$K:$K,SummerProvRep!$A:$A,Data!$A$23,SummerProvRep!$P:$P,"<>Coventry",SummerProvRep!$U:$U,Data!AI$17) -> 0 | AJ35: =SUMIFS(SummerProvRep!$K:$K,SummerProvRep!$A:$A,Data!$A$23,SummerProvRep!$P:$P,"<>Coventry",SummerProvRep!$U:$U,Data!AJ$17) -> 0 | AK35: =SUMIFS(SummerProvRep!$K:$K,SummerProvRep!$A:$A,Data!$A$23,SummerProvRep!$P:$P,"<>Coventry",SummerProvRep!$U:$U,Data!AK$17) -> 0 | AL35: =SUMIFS(SummerProvRep!$K:$K,SummerProvRep!$A:$A,Data!$A$23,SummerProvRep!$P:$P,"<>Coventry",SummerProvRep!$U:$U,Data!AL$17) -> 0 | AM35: =SUMIFS(SummerProvRep!$K:$K,SummerProvRep!$A:$A,Data!$A$23,SummerProvRep!$P:$P,"<>Coventry",SummerProvRep!$U:$U,Data!AM$17) -> 0 | AN35: =SUMIFS(SummerProvRep!$K:$K,SummerProvRep!$A:$A,Data!$A$23,SummerProvRep!$P:$P,"<>Coventry",SummerProvRep!$U:$U,Data!AN$17) -> 0 | AO35: =SUMIFS(SummerProvRep!$K:$K,SummerProvRep!$A:$A,Data!$A$23,SummerProvRep!$P:$P,"<>Coventry",SummerProvRep!$U:$U,Data!AO$17) -> 0 | AP35: =SUMIFS(SummerProvRep!$K:$K,SummerProvRep!$A:$A,Data!$A$23,SummerProvRep!$P:$P,"<>Coventry",SummerProvRep!$U:$U,Data!AP$17) -> 0 | AQ35: =SUMIFS(SummerProvRep!$K:$K,SummerProvRep!$A:$A,Data!$A$23,SummerProvRep!$P:$P,"<>Coventry",SummerProvRep!$U:$U,Data!AQ$17) -> 0 | AR35: 1 | AS35: 3198.296273 | AT35: 812905.6526 | AU35: 200.796875 | AV35: =AU35-AW35 -> -8.203125 | AW35: 209 | AX35: =[5]Data!$AU23 -> 192.8550725 | AY35: 200 | BA35: =(AT35/69*200)/AU35 -> 11734.48675 | BC35: 4052.652757
A36: 4 | B36: Corley | C36: 51.54639175 | D36: 0 | E36: =SUMIFS(SummerProvRep!$K:$K,SummerProvRep!$A:$A,Data!$A$24,SummerProvRep!$P:$P,"Coventry",SummerProvRep!$U:$U,Data!E$17) -> 0 | F36: =SUMIFS(SummerProvRep!$K:$K,SummerProvRep!$A:$A,Data!$A$24,SummerProvRep!$P:$P,"Coventry",SummerProvRep!$U:$U,Data!F$17) -> 0 | G36: =SUMIFS(SummerProvRep!$K:$K,SummerProvRep!$A:$A,Data!$A$24,SummerProvRep!$P:$P,"Coventry",SummerProvRep!$U:$U,Data!G$17) -> 192 | H36: =SUMIFS(SummerProvRep!$K:$K,SummerProvRep!$A:$A,Data!$A$24,SummerProvRep!$P:$P,"Coventry",SummerProvRep!$U:$U,Data!H$17) -> 192 | I36: =SUMIFS(SummerProvRep!$K:$K,SummerProvRep!$A:$A,Data!$A$24,SummerProvRep!$P:$P,"Coventry",SummerProvRep!$U:$U,Data!I$17) -> 0 | J36: =SUMIFS(SummerProvRep!$K:$K,SummerProvRep!$A:$A,Data!$A$24,SummerProvRep!$P:$P,"Coventry",SummerProvRep!$U:$U,Data!J$17) -> 0 | K36: =SUMIFS(SummerProvRep!$K:$K,SummerProvRep!$A:$A,Data!$A$24,SummerProvRep!$P:$P,"Coventry",SummerProvRep!$U:$U,Data!K$17) -> 7695 | L36: =SUMIFS(SummerProvRep!$K:$K,SummerProvRep!$A:$A,Data!$A$24,SummerProvRep!$P:$P,"Coventry",SummerProvRep!$U:$U,Data!L$17) -> 0 | M36: =SUMIFS(SummerProvRep!$K:$K,SummerProvRep!$A:$A,Data!$A$24,SummerProvRep!$P:$P,"Coventry",SummerProvRep!$U:$U,Data!M$17) -> 391 | N36: =SUMIFS(SummerProvRep!$K:$K,SummerProvRep!$A:$A,Data!$A$24,SummerProvRep!$P:$P,"Coventry",SummerProvRep!$U:$U,Data!N$17) -> 0 | O36: =SUMIFS(SummerProvRep!$K:$K,SummerProvRep!$A:$A,Data!$A$24,SummerProvRep!$P:$P,"Coventry",SummerProvRep!$U:$U,Data!O$17) -> 440 | P36: =SUMIFS(SummerProvRep!$K:$K,SummerProvRep!$A:$A,Data!$A$24,SummerProvRep!$P:$P,"Coventry",SummerProvRep!$U:$U,Data!P$17) -> 0 | Q36: =SUMIFS(SummerProvRep!$K:$K,SummerProvRep!$A:$A,Data!$A$24,SummerProvRep!$P:$P,"Coventry",SummerProvRep!$U:$U,Data!Q$17) -> 765 | R36: =SUMIFS(SummerProvRep!$K:$K,SummerProvRep!$A:$A,Data!$A$24,SummerProvRep!$P:$P,"Coventry",SummerProvRep!$U:$U,Data!R$17) -> 0 | S36: =SUMIFS(SummerProvRep!$K:$K,SummerProvRep!$A:$A,Data!$A$24,SummerProvRep!$P:$P,"Coventry",SummerProvRep!$U:$U,Data!S$17) -> 0 | T36: =SUMIFS(SummerProvRep!$K:$K,SummerProvRep!$A:$A,Data!$A$24,SummerProvRep!$P:$P,"Coventry",SummerProvRep!$U:$U,Data!T$17) -> 0 | U36: =SUMIFS(SummerProvRep!$K:$K,SummerProvRep!$A:$A,Data!$A$24,SummerProvRep!$P:$P,"Coventry",SummerProvRep!$U:$U,Data!U$17) -> 0 | V36: =SUMIFS(SummerProvRep!$K:$K,SummerProvRep!$A:$A,Data!$A$24,SummerProvRep!$P:$P,"Coventry",SummerProvRep!$U:$U,Data!V$17) -> 0 | W36: 151.171875 | X36: 578110.7673 | Y36: 0 | Z36: =SUMIFS(SummerProvRep!$K:$K,SummerProvRep!$A:$A,Data!$A$24,SummerProvRep!$P:$P,"<>Coventry",SummerProvRep!$U:$U,Data!Z$17) -> 0 | AA36: =SUMIFS(SummerProvRep!$K:$K,SummerProvRep!$A:$A,Data!$A$24,SummerProvRep!$P:$P,"<>Coventry",SummerProvRep!$U:$U,Data!AA$17) -> 0 | AB36: =SUMIFS(SummerProvRep!$K:$K,SummerProvRep!$A:$A,Data!$A$24,SummerProvRep!$P:$P,"<>Coventry",SummerProvRep!$U:$U,Data!AB$17) -> 0 | AC36: =SUMIFS(SummerProvRep!$K:$K,SummerProvRep!$A:$A,Data!$A$24,SummerProvRep!$P:$P,"<>Coventry",SummerProvRep!$U:$U,Data!AC$17) -> 0 | AD36: =SUMIFS(SummerProvRep!$K:$K,SummerProvRep!$A:$A,Data!$A$24,SummerProvRep!$P:$P,"<>Coventry",SummerProvRep!$U:$U,Data!AD$17) -> 0 | AE36: =SUMIFS(SummerProvRep!$K:$K,SummerProvRep!$A:$A,Data!$A$24,SummerProvRep!$P:$P,"<>Coventry",SummerProvRep!$U:$U,Data!AE$17) -> 0 | AF36: =SUMIFS(SummerProvRep!$K:$K,SummerProvRep!$A:$A,Data!$A$24,SummerProvRep!$P:$P,"<>Coventry",SummerProvRep!$U:$U,Data!AF$17) -> 128 | AG36: =SUMIFS(SummerProvRep!$K:$K,SummerProvRep!$A:$A,Data!$A$24,SummerProvRep!$P:$P,"<>Coventry",SummerProvRep!$U:$U,Data!AG$17) -> 0 | AH36: =SUMIFS(SummerProvRep!$K:$K,SummerProvRep!$A:$A,Data!$A$24,SummerProvRep!$P:$P,"<>Coventry",SummerProvRep!$U:$U,Data!AH$17) -> 0 | AI36: =SUMIFS(SummerProvRep!$K:$K,SummerProvRep!$A:$A,Data!$A$24,SummerProvRep!$P:$P,"<>Coventry",SummerProvRep!$U:$U,Data!AI$17) -> 0 | AJ36: =SUMIFS(SummerProvRep!$K:$K,SummerProvRep!$A:$A,Data!$A$24,SummerProvRep!$P:$P,"<>Coventry",SummerProvRep!$U:$U,Data!AJ$17) -> 0 | AK36: =SUMIFS(SummerProvRep!$K:$K,SummerProvRep!$A:$A,Data!$A$24,SummerProvRep!$P:$P,"<>Coventry",SummerProvRep!$U:$U,Data!AK$17) -> 0 | AL36: =SUMIFS(SummerProvRep!$K:$K,SummerProvRep!$A:$A,Data!$A$24,SummerProvRep!$P:$P,"<>Coventry",SummerProvRep!$U:$U,Data!AL$17) -> 0 | AM36: =SUMIFS(SummerProvRep!$K:$K,SummerProvRep!$A:$A,Data!$A$24,SummerProvRep!$P:$P,"<>Coventry",SummerProvRep!$U:$U,Data!AM$17) -> 0 | AN36: =SUMIFS(SummerProvRep!$K:$K,SummerProvRep!$A:$A,Data!$A$24,SummerProvRep!$P:$P,"<>Coventry",SummerProvRep!$U:$U,Data!AN$17) -> 0 | AO36: =SUMIFS(SummerProvRep!$K:$K,SummerProvRep!$A:$A,Data!$A$24,SummerProvRep!$P:$P,"<>Coventry",SummerProvRep!$U:$U,Data!AO$17) -> 0 | AP36: =SUMIFS(SummerProvRep!$K:$K,SummerProvRep!$A:$A,Data!$A$24,SummerProvRep!$P:$P,"<>Coventry",SummerProvRep!$U:$U,Data!AP$17) -> 0 | AQ36: =SUMIFS(SummerProvRep!$K:$K,SummerProvRep!$A:$A,Data!$A$24,SummerProvRep!$P:$P,"<>Coventry",SummerProvRep!$U:$U,Data!AQ$17) -> 0 | AR36: 2 | AS36: 6915.231384 | AT36: 585025.9987 | AU36: 153.171875 | AV36: =AU36-AW36 -> -1.828125 | AW36: 155 | AX36: =[5]Data!$AU24 -> 147.3768116 | AY36: 140 | BA36: 11070.74998 | BC36: 3824.195256
A37: 5 | B37: Tiverton | C37: 51.54639175 | D37: 0 | E37: =SUMIFS(SummerProvRep!$K:$K,SummerProvRep!$A:$A,Data!$A$25,SummerProvRep!$P:$P,"Coventry",SummerProvRep!$U:$U,Data!E$17) -> 0 | F37: =SUMIFS(SummerProvRep!$K:$K,SummerProvRep!$A:$A,Data!$A$25,SummerProvRep!$P:$P,"Coventry",SummerProvRep!$U:$U,Data!F$17) -> 0 | G37: =SUMIFS(SummerProvRep!$K:$K,SummerProvRep!$A:$A,Data!$A$25,SummerProvRep!$P:$P,"Coventry",SummerProvRep!$U:$U,Data!G$17) -> 0 | H37: =SUMIFS(SummerProvRep!$K:$K,SummerProvRep!$A:$A,Data!$A$25,SummerProvRep!$P:$P,"Coventry",SummerProvRep!$U:$U,Data!H$17) -> 0 | I37: =SUMIFS(SummerProvRep!$K:$K,SummerProvRep!$A:$A,Data!$A$25,SummerProvRep!$P:$P,"Coventry",SummerProvRep!$U:$U,Data!I$17) -> 0 | J37: =SUMIFS(SummerProvRep!$K:$K,SummerProvRep!$A:$A,Data!$A$25,SummerProvRep!$P:$P,"Coventry",SummerProvRep!$U:$U,Data!J$17) -> 0 | K37: =SUMIFS(SummerProvRep!$K:$K,SummerProvRep!$A:$A,Data!$A$25,SummerProvRep!$P:$P,"Coventry",SummerProvRep!$U:$U,Data!K$17) -> 4893 | L37: =SUMIFS(SummerProvRep!$K:$K,SummerProvRep!$A:$A,Data!$A$25,SummerProvRep!$P:$P,"Coventry",SummerProvRep!$U:$U,Data!L$17) -> 704 | M37: =SUMIFS(SummerProvRep!$K:$K,SummerProvRep!$A:$A,Data!$A$25,SummerProvRep!$P:$P,"Coventry",SummerProvRep!$U:$U,Data!M$17) -> 0 | N37: =SUMIFS(SummerProvRep!$K:$K,SummerProvRep!$A:$A,Data!$A$25,SummerProvRep!$P:$P,"Coventry",SummerProvRep!$U:$U,Data!N$17) -> 320 | O37: =SUMIFS(SummerProvRep!$K:$K,SummerProvRep!$A:$A,Data!$A$25,SummerProvRep!$P:$P,"Coventry",SummerProvRep!$U:$U,Data!O$17) -> 392 | P37: =SUMIFS(SummerProvRep!$K:$K,SummerProvRep!$A:$A,Data!$A$25,SummerProvRep!$P:$P,"Coventry",SummerProvRep!$U:$U,Data!P$17) -> 0 | Q37: =SUMIFS(SummerProvRep!$K:$K,SummerProvRep!$A:$A,Data!$A$25,SummerProvRep!$P:$P,"Coventry",SummerProvRep!$U:$U,Data!Q$17) -> 1122 | R37: =SUMIFS(SummerProvRep!$K:$K,SummerProvRep!$A:$A,Data!$A$25,SummerProvRep!$P:$P,"Coventry",SummerProvRep!$U:$U,Data!R$17) -> 448 | S37: =SUMIFS(SummerProvRep!$K:$K,SummerProvRep!$A:$A,Data!$A$25,SummerProvRep!$P:$P,"Coventry",SummerProvRep!$U:$U,Data!S$17) -> 0 | T37: =SUMIFS(SummerProvRep!$K:$K,SummerProvRep!$A:$A,Data!$A$25,SummerProvRep!$P:$P,"Coventry",SummerProvRep!$U:$U,Data!T$17) -> 384 | U37: =SUMIFS(SummerProvRep!$K:$K,SummerProvRep!$A:$A,Data!$A$25,SummerProvRep!$P:$P,"Coventry",SummerProvRep!$U:$U,Data!U$17) -> 57 | V37: =SUMIFS(SummerProvRep!$K:$K,SummerProvRep!$A:$A,Data!$A$25,SummerProvRep!$P:$P,"Coventry",SummerProvRep!$U:$U,Data!V$17) -> 0 | W37: 130 | X37: 556663.6491 | Y37: 0 | Z37: =SUMIFS(SummerProvRep!$K:$K,SummerProvRep!$A:$A,Data!$A$25,SummerProvRep!$P:$P,"<>Coventry",SummerProvRep!$U:$U,Data!Z$17) -> 0 | AA37: =SUMIFS(SummerProvRep!$K:$K,SummerProvRep!$A:$A,Data!$A$25,SummerProvRep!$P:$P,"<>Coventry",SummerProvRep!$U:$U,Data!AA$17) -> 0 | AB37: =SUMIFS(SummerProvRep!$K:$K,SummerProvRep!$A:$A,Data!$A$25,SummerProvRep!$P:$P,"<>Coventry",SummerProvRep!$U:$U,Data!AB$17) -> 0 | AC37: =SUMIFS(SummerProvRep!$K:$K,SummerProvRep!$A:$A,Data!$A$25,SummerProvRep!$P:$P,"<>Coventry",SummerProvRep!$U:$U,Data!AC$17) -> 0 | AD37: =SUMIFS(SummerProvRep!$K:$K,SummerProvRep!$A:$A,Data!$A$25,SummerProvRep!$P:$P,"<>Coventry",SummerProvRep!$U:$U,Data!AD$17) -> 0 | AE37: =SUMIFS(SummerProvRep!$K:$K,SummerProvRep!$A:$A,Data!$A$25,SummerProvRep!$P:$P,"<>Coventry",SummerProvRep!$U:$U,Data!AE$17) -> 0 | AF37: =SUMIFS(SummerProvRep!$K:$K,SummerProvRep!$A:$A,Data!$A$25,SummerProvRep!$P:$P,"<>Coventry",SummerProvRep!$U:$U,Data!AF$17) -> 0 | AG37: =SUMIFS(SummerProvRep!$K:$K,SummerProvRep!$A:$A,Data!$A$25,SummerProvRep!$P:$P,"<>Coventry",SummerProvRep!$U:$U,Data!AG$17) -> 0 | AH37: =SUMIFS(SummerProvRep!$K:$K,SummerProvRep!$A:$A,Data!$A$25,SummerProvRep!$P:$P,"<>Coventry",SummerProvRep!$U:$U,Data!AH$17) -> 0 | AI37: =SUMIFS(SummerProvRep!$K:$K,SummerProvRep!$A:$A,Data!$A$25,SummerProvRep!$P:$P,"<>Coventry",SummerProvRep!$U:$U,Data!AI$17) -> 0 | AJ37: =SUMIFS(SummerProvRep!$K:$K,SummerProvRep!$A:$A,Data!$A$25,SummerProvRep!$P:$P,"<>Coventry",SummerProvRep!$U:$U,Data!AJ$17) -> 0 | AK37: =SUMIFS(SummerProvRep!$K:$K,SummerProvRep!$A:$A,Data!$A$25,SummerProvRep!$P:$P,"<>Coventry",SummerProvRep!$U:$U,Data!AK$17) -> 0 | AL37: =SUMIFS(SummerProvRep!$K:$K,SummerProvRep!$A:$A,Data!$A$25,SummerProvRep!$P:$P,"<>Coventry",SummerProvRep!$U:$U,Data!AL$17) -> 64 | AM37: =SUMIFS(SummerProvRep!$K:$K,SummerProvRep!$A:$A,Data!$A$25,SummerProvRep!$P:$P,"<>Coventry",SummerProvRep!$U:$U,Data!AM$17) -> 0 | AN37: =SUMIFS(SummerProvRep!$K:$K,SummerProvRep!$A:$A,Data!$A$25,SummerProvRep!$P:$P,"<>Coventry",SummerProvRep!$U:$U,Data!AN$17) -> 0 | AO37: =SUMIFS(SummerProvRep!$K:$K,SummerProvRep!$A:$A,Data!$A$25,SummerProvRep!$P:$P,"<>Coventry",SummerProvRep!$U:$U,Data!AO$17) -> 0 | AP37: =SUMIFS(SummerProvRep!$K:$K,SummerProvRep!$A:$A,Data!$A$25,SummerProvRep!$P:$P,"<>Coventry",SummerProvRep!$U:$U,Data!AP$17) -> 0 | AQ37: =SUMIFS(SummerProvRep!$K:$K,SummerProvRep!$A:$A,Data!$A$25,SummerProvRep!$P:$P,"<>Coventry",SummerProvRep!$U:$U,Data!AQ$17) -> 0 | AR37: 1 | AS37: 5618.626887 | AT37: 562282.276 | AU37: 131 | AV37: -2 | AW37: 133 | AX37: =[5]Data!$AU25 -> 120 | AY37: 121 | BA37: 12441.24961 | BC37: 4282.02807
A38: 6 | B38: Baginton Fields | C38: 51.54639175 | D38: 0 | E38: =SUMIFS(SummerProvRep!$K:$K,SummerProvRep!$A:$A,Data!$A$26,SummerProvRep!$P:$P,"Coventry",SummerProvRep!$U:$U,Data!E$17) -> 0 | F38: =SUMIFS(SummerProvRep!$K:$K,SummerProvRep!$A:$A,Data!$A$26,SummerProvRep!$P:$P,"Coventry",SummerProvRep!$U:$U,Data!F$17) -> 0 | G38: =SUMIFS(SummerProvRep!$K:$K,SummerProvRep!$A:$A,Data!$A$26,SummerProvRep!$P:$P,"Coventry",SummerProvRep!$U:$U,Data!G$17) -> 0 | H38: =SUMIFS(SummerProvRep!$K:$K,SummerProvRep!$A:$A,Data!$A$26,SummerProvRep!$P:$P,"Coventry",SummerProvRep!$U:$U,Data!H$17) -> 0 | I38: =SUMIFS(SummerProvRep!$K:$K,SummerProvRep!$A:$A,Data!$A$26,SummerProvRep!$P:$P,"Coventry",SummerProvRep!$U:$U,Data!I$17) -> 0 | J38: =SUMIFS(SummerProvRep!$K:$K,SummerProvRep!$A:$A,Data!$A$26,SummerProvRep!$P:$P,"Coventry",SummerProvRep!$U:$U,Data!J$17) -> 0 | K38: =SUMIFS(SummerProvRep!$K:$K,SummerProvRep!$A:$A,Data!$A$26,SummerProvRep!$P:$P,"Coventry",SummerProvRep!$U:$U,Data!K$17) -> 1728 | L38: =SUMIFS(SummerProvRep!$K:$K,SummerProvRep!$A:$A,Data!$A$26,SummerProvRep!$P:$P,"Coventry",SummerProvRep!$U:$U,Data!L$17) -> 2366 | M38: =SUMIFS(SummerProvRep!$K:$K,SummerProvRep!$A:$A,Data!$A$26,SummerProvRep!$P:$P,"Coventry",SummerProvRep!$U:$U,Data!M$17) -> 0 | N38: =SUMIFS(SummerProvRep!$K:$K,SummerProvRep!$A:$A,Data!$A$26,SummerProvRep!$P:$P,"Coventry",SummerProvRep!$U:$U,Data!N$17) -> 128 | O38: =SUMIFS(SummerProvRep!$K:$K,SummerProvRep!$A:$A,Data!$A$26,SummerProvRep!$P:$P,"Coventry",SummerProvRep!$U:$U,Data!O$17) -> 778 | P38: =SUMIFS(SummerProvRep!$K:$K,SummerProvRep!$A:$A,Data!$A$26,SummerProvRep!$P:$P,"Coventry",SummerProvRep!$U:$U,Data!P$17) -> 0 | Q38: =SUMIFS(SummerProvRep!$K:$K,SummerProvRep!$A:$A,Data!$A$26,SummerProvRep!$P:$P,"Coventry",SummerProvRep!$U:$U,Data!Q$17) -> 1821 | R38: =SUMIFS(SummerProvRep!$K:$K,SummerProvRep!$A:$A,Data!$A$26,SummerProvRep!$P:$P,"Coventry",SummerProvRep!$U:$U,Data!R$17) -> 768 | S38: =SUMIFS(SummerProvRep!$K:$K,SummerProvRep!$A:$A,Data!$A$26,SummerProvRep!$P:$P,"Coventry",SummerProvRep!$U:$U,Data!S$17) -> 0 | T38: =SUMIFS(SummerProvRep!$K:$K,SummerProvRep!$A:$A,Data!$A$26,SummerProvRep!$P:$P,"Coventry",SummerProvRep!$U:$U,Data!T$17) -> 128 | U38: =SUMIFS(SummerProvRep!$K:$K,SummerProvRep!$A:$A,Data!$A$26,SummerProvRep!$P:$P,"Coventry",SummerProvRep!$U:$U,Data!U$17) -> 58 | V38: =SUMIFS(SummerProvRep!$K:$K,SummerProvRep!$A:$A,Data!$A$26,SummerProvRep!$P:$P,"Coventry",SummerProvRep!$U:$U,Data!V$17) -> 0 | W38: 121.484375 | X38: 575686.3127 | Y38: 0 | Z38: =SUMIFS(SummerProvRep!$K:$K,SummerProvRep!$A:$A,Data!$A$26,SummerProvRep!$P:$P,"<>Coventry",SummerProvRep!$U:$U,Data!Z$17) -> 0 | AA38: =SUMIFS(SummerProvRep!$K:$K,SummerProvRep!$A:$A,Data!$A$26,SummerProvRep!$P:$P,"<>Coventry",SummerProvRep!$U:$U,Data!AA$17) -> 0 | AB38: =SUMIFS(SummerProvRep!$K:$K,SummerProvRep!$A:$A,Data!$A$26,SummerProvRep!$P:$P,"<>Coventry",SummerProvRep!$U:$U,Data!AB$17) -> 0 | AC38: =SUMIFS(SummerProvRep!$K:$K,SummerProvRep!$A:$A,Data!$A$26,SummerProvRep!$P:$P,"<>Coventry",SummerProvRep!$U:$U,Data!AC$17) -> 0 | AD38: =SUMIFS(SummerProvRep!$K:$K,SummerProvRep!$A:$A,Data!$A$26,SummerProvRep!$P:$P,"<>Coventry",SummerProvRep!$U:$U,Data!AD$17) -> 0 | AE38: =SUMIFS(SummerProvRep!$K:$K,SummerProvRep!$A:$A,Data!$A$26,SummerProvRep!$P:$P,"<>Coventry",SummerProvRep!$U:$U,Data!AE$17) -> 0 | AF38: =SUMIFS(SummerProvRep!$K:$K,SummerProvRep!$A:$A,Data!$A$26,SummerProvRep!$P:$P,"<>Coventry",SummerProvRep!$U:$U,Data!AF$17) -> 0 | AG38: =SUMIFS(SummerProvRep!$K:$K,SummerProvRep!$A:$A,Data!$A$26,SummerProvRep!$P:$P,"<>Coventry",SummerProvRep!$U:$U,Data!AG$17) -> 64 | AH38: =SUMIFS(SummerProvRep!$K:$K,SummerProvRep!$A:$A,Data!$A$26,SummerProvRep!$P:$P,"<>Coventry",SummerProvRep!$U:$U,Data!AH$17) -> 0 | AI38: =SUMIFS(SummerProvRep!$K:$K,SummerProvRep!$A:$A,Data!$A$26,SummerProvRep!$P:$P,"<>Coventry",SummerProvRep!$U:$U,Data!AI$17) -> 0 | AJ38: =SUMIFS(SummerProvRep!$K:$K,SummerProvRep!$A:$A,Data!$A$26,SummerProvRep!$P:$P,"<>Coventry",SummerProvRep!$U:$U,Data!AJ$17) -> 0 | AK38: =SUMIFS(SummerProvRep!$K:$K,SummerProvRep!$A:$A,Data!$A$26,SummerProvRep!$P:$P,"<>Coventry",SummerProvRep!$U:$U,Data!AK$17) -> 0 | AL38: =SUMIFS(SummerProvRep!$K:$K,SummerProvRep!$A:$A,Data!$A$26,SummerProvRep!$P:$P,"<>Coventry",SummerProvRep!$U:$U,Data!AL$17) -> 0 | AM38: =SUMIFS(SummerProvRep!$K:$K,SummerProvRep!$A:$A,Data!$A$26,SummerProvRep!$P:$P,"<>Coventry",SummerProvRep!$U:$U,Data!AM$17) -> 0 | AN38: =SUMIFS(SummerProvRep!$K:$K,SummerProvRep!$A:$A,Data!$A$26,SummerProvRep!$P:$P,"<>Coventry",SummerProvRep!$U:$U,Data!AN$17) -> 0 | AO38: =SUMIFS(SummerProvRep!$K:$K,SummerProvRep!$A:$A,Data!$A$26,SummerProvRep!$P:$P,"<>Coventry",SummerProvRep!$U:$U,Data!AO$17) -> 0 | AP38: =SUMIFS(SummerProvRep!$K:$K,SummerProvRep!$A:$A,Data!$A$26,SummerProvRep!$P:$P,"<>Coventry",SummerProvRep!$U:$U,Data!AP$17) -> 0 | AQ38: =SUMIFS(SummerProvRep!$K:$K,SummerProvRep!$A:$A,Data!$A$26,SummerProvRep!$P:$P,"<>Coventry",SummerProvRep!$U:$U,Data!AQ$17) -> 0 | AR38: 1 | AS38: 3198.296273 | AT38: 578884.609 | AU38: 122.484375 | AV38: -3.515625 | AW38: 126 | AX38: =[5]Data!$AU26 -> 123.0289855 | AY38: 126 | BA38: 13699.10573 | BC38: 4738.768362
A39: 7 | B39: Sherbourne Fields | C39: 51.54639175 | D39: 0 | E39: =SUMIFS(SummerProvRep!$K:$K,SummerProvRep!$A:$A,Data!$A$27,SummerProvRep!$P:$P,"Coventry",SummerProvRep!$U:$U,Data!E$17) -> 0 | F39: =SUMIFS(SummerProvRep!$K:$K,SummerProvRep!$A:$A,Data!$A$27,SummerProvRep!$P:$P,"Coventry",SummerProvRep!$U:$U,Data!F$17) -> 0 | G39: =SUMIFS(SummerProvRep!$K:$K,SummerProvRep!$A:$A,Data!$A$27,SummerProvRep!$P:$P,"Coventry",SummerProvRep!$U:$U,Data!G$17) -> 0 | H39: =SUMIFS(SummerProvRep!$K:$K,SummerProvRep!$A:$A,Data!$A$27,SummerProvRep!$P:$P,"Coventry",SummerProvRep!$U:$U,Data!H$17) -> 64 | I39: =SUMIFS(SummerProvRep!$K:$K,SummerProvRep!$A:$A,Data!$A$27,SummerProvRep!$P:$P,"Coventry",SummerProvRep!$U:$U,Data!I$17) -> 0 | J39: =SUMIFS(SummerProvRep!$K:$K,SummerProvRep!$A:$A,Data!$A$27,SummerProvRep!$P:$P,"Coventry",SummerProvRep!$U:$U,Data!J$17) -> 0 | K39: =SUMIFS(SummerProvRep!$K:$K,SummerProvRep!$A:$A,Data!$A$27,SummerProvRep!$P:$P,"Coventry",SummerProvRep!$U:$U,Data!K$17) -> 5568 | L39: =SUMIFS(SummerProvRep!$K:$K,SummerProvRep!$A:$A,Data!$A$27,SummerProvRep!$P:$P,"Coventry",SummerProvRep!$U:$U,Data!L$17) -> 3840 | M39: =SUMIFS(SummerProvRep!$K:$K,SummerProvRep!$A:$A,Data!$A$27,SummerProvRep!$P:$P,"Coventry",SummerProvRep!$U:$U,Data!M$17) -> 64 | N39: =SUMIFS(SummerProvRep!$K:$K,SummerProvRep!$A:$A,Data!$A$27,SummerProvRep!$P:$P,"Coventry",SummerProvRep!$U:$U,Data!N$17) -> 1856 | O39: =SUMIFS(SummerProvRep!$K:$K,SummerProvRep!$A:$A,Data!$A$27,SummerProvRep!$P:$P,"Coventry",SummerProvRep!$U:$U,Data!O$17) -> 192 | P39: =SUMIFS(SummerProvRep!$K:$K,SummerProvRep!$A:$A,Data!$A$27,SummerProvRep!$P:$P,"Coventry",SummerProvRep!$U:$U,Data!P$17) -> 0 | Q39: =SUMIFS(SummerProvRep!$K:$K,SummerProvRep!$A:$A,Data!$A$27,SummerProvRep!$P:$P,"Coventry",SummerProvRep!$U:$U,Data!Q$17) -> 1792 | R39: =SUMIFS(SummerProvRep!$K:$K,SummerProvRep!$A:$A,Data!$A$27,SummerProvRep!$P:$P,"Coventry",SummerProvRep!$U:$U,Data!R$17) -> 1662 | S39: =SUMIFS(SummerProvRep!$K:$K,SummerProvRep!$A:$A,Data!$A$27,SummerProvRep!$P:$P,"Coventry",SummerProvRep!$U:$U,Data!S$17) -> 0 | T39: =SUMIFS(SummerProvRep!$K:$K,SummerProvRep!$A:$A,Data!$A$27,SummerProvRep!$P:$P,"Coventry",SummerProvRep!$U:$U,Data!T$17) -> 1280 | U39: =SUMIFS(SummerProvRep!$K:$K,SummerProvRep!$A:$A,Data!$A$27,SummerProvRep!$P:$P,"Coventry",SummerProvRep!$U:$U,Data!U$17) -> 0 | V39: =SUMIFS(SummerProvRep!$K:$K,SummerProvRep!$A:$A,Data!$A$27,SummerProvRep!$P:$P,"Coventry",SummerProvRep!$U:$U,Data!V$17) -> 0 | W39: 254.96875 | X39: 1046244.728 | Y39: 0 | Z39: =SUMIFS(SummerProvRep!$K:$K,SummerProvRep!$A:$A,Data!$A$27,SummerProvRep!$P:$P,"<>Coventry",SummerProvRep!$U:$U,Data!Z$17) -> 0 | AA39: =SUMIFS(SummerProvRep!$K:$K,SummerProvRep!$A:$A,Data!$A$27,SummerProvRep!$P:$P,"<>Coventry",SummerProvRep!$U:$U,Data!AA$17) -> 0 | AB39: =SUMIFS(SummerProvRep!$K:$K,SummerProvRep!$A:$A,Data!$A$27,SummerProvRep!$P:$P,"<>Coventry",SummerProvRep!$U:$U,Data!AB$17) -> 0 | AC39: =SUMIFS(SummerProvRep!$K:$K,SummerProvRep!$A:$A,Data!$A$27,SummerProvRep!$P:$P,"<>Coventry",SummerProvRep!$U:$U,Data!AC$17) -> 0 | AD39: =SUMIFS(SummerProvRep!$K:$K,SummerProvRep!$A:$A,Data!$A$27,SummerProvRep!$P:$P,"<>Coventry",SummerProvRep!$U:$U,Data!AD$17) -> 0 | AE39: =SUMIFS(SummerProvRep!$K:$K,SummerProvRep!$A:$A,Data!$A$27,SummerProvRep!$P:$P,"<>Coventry",SummerProvRep!$U:$U,Data!AE$17) -> 0 | AF39: =SUMIFS(SummerProvRep!$K:$K,SummerProvRep!$A:$A,Data!$A$27,SummerProvRep!$P:$P,"<>Coventry",SummerProvRep!$U:$U,Data!AF$17) -> 128 | AG39: =SUMIFS(SummerProvRep!$K:$K,SummerProvRep!$A:$A,Data!$A$27,SummerProvRep!$P:$P,"<>Coventry",SummerProvRep!$U:$U,Data!AG$17) -> 0 | AH39: =SUMIFS(SummerProvRep!$K:$K,SummerProvRep!$A:$A,Data!$A$27,SummerProvRep!$P:$P,"<>Coventry",SummerProvRep!$U:$U,Data!AH$17) -> 0 | AI39: =SUMIFS(SummerProvRep!$K:$K,SummerProvRep!$A:$A,Data!$A$27,SummerProvRep!$P:$P,"<>Coventry",SummerProvRep!$U:$U,Data!AI$17) -> 64 | AJ39: =SUMIFS(SummerProvRep!$K:$K,SummerProvRep!$A:$A,Data!$A$27,SummerProvRep!$P:$P,"<>Coventry",SummerProvRep!$U:$U,Data!AJ$17) -> 0 | AK39: =SUMIFS(SummerProvRep!$K:$K,SummerProvRep!$A:$A,Data!$A$27,SummerProvRep!$P:$P,"<>Coventry",SummerProvRep!$U:$U,Data!AK$17) -> 0 | AL39: =SUMIFS(SummerProvRep!$K:$K,SummerProvRep!$A:$A,Data!$A$27,SummerProvRep!$P:$P,"<>Coventry",SummerProvRep!$U:$U,Data!AL$17) -> 0 | AM39: =SUMIFS(SummerProvRep!$K:$K,SummerProvRep!$A:$A,Data!$A$27,SummerProvRep!$P:$P,"<>Coventry",SummerProvRep!$U:$U,Data!AM$17) -> 0 | AN39: =SUMIFS(SummerProvRep!$K:$K,SummerProvRep!$A:$A,Data!$A$27,SummerProvRep!$P:$P,"<>Coventry",SummerProvRep!$U:$U,Data!AN$17) -> 0 | AO39: =SUMIFS(SummerProvRep!$K:$K,SummerProvRep!$A:$A,Data!$A$27,SummerProvRep!$P:$P,"<>Coventry",SummerProvRep!$U:$U,Data!AO$17) -> 128 | AP39: =SUMIFS(SummerProvRep!$K:$K,SummerProvRep!$A:$A,Data!$A$27,SummerProvRep!$P:$P,"<>Coventry",SummerProvRep!$U:$U,Data!AP$17) -> 0 | AQ39: =SUMIFS(SummerProvRep!$K:$K,SummerProvRep!$A:$A,Data!$A$27,SummerProvRep!$P:$P,"<>Coventry",SummerProvRep!$U:$U,Data!AQ$17) -> 0 | AR39: 5 | AS39: 21610.09345 | AT39: 1067854.822 | AU39: 259.96875 | AV39: 1.96875 | AW39: 258 | AX39: =[5]Data!$AU27 -> 252 | AY39: 251 | BA39: 11906.16706 | BC39: 4103.423374
A40: 8 | B40: Woodfield | C40: =10000/$A$16 -> 51.54639175 | D40: 0 | E40: =SUMIFS(SummerProvRep!$K:$K,SummerProvRep!$A:$A,Data!$A$28,SummerProvRep!$P:$P,"Coventry",SummerProvRep!$U:$U,Data!E$17) -> 0 | F40: =SUMIFS(SummerProvRep!$K:$K,SummerProvRep!$A:$A,Data!$A$28,SummerProvRep!$P:$P,"Coventry",SummerProvRep!$U:$U,Data!F$17) -> 0 | G40: =SUMIFS(SummerProvRep!$K:$K,SummerProvRep!$A:$A,Data!$A$28,SummerProvRep!$P:$P,"Coventry",SummerProvRep!$U:$U,Data!G$17) -> 0 | H40: =SUMIFS(SummerProvRep!$K:$K,SummerProvRep!$A:$A,Data!$A$28,SummerProvRep!$P:$P,"Coventry",SummerProvRep!$U:$U,Data!H$17) -> 0 | I40: =SUMIFS(SummerProvRep!$K:$K,SummerProvRep!$A:$A,Data!$A$28,SummerProvRep!$P:$P,"Coventry",SummerProvRep!$U:$U,Data!I$17) -> 0 | J40: =SUMIFS(SummerProvRep!$K:$K,SummerProvRep!$A:$A,Data!$A$28,SummerProvRep!$P:$P,"Coventry",SummerProvRep!$U:$U,Data!J$17) -> 0 | K40: =SUMIFS(SummerProvRep!$K:$K,SummerProvRep!$A:$A,Data!$A$28,SummerProvRep!$P:$P,"Coventry",SummerProvRep!$U:$U,Data!K$17) -> 0 | L40: =SUMIFS(SummerProvRep!$K:$K,SummerProvRep!$A:$A,Data!$A$28,SummerProvRep!$P:$P,"Coventry",SummerProvRep!$U:$U,Data!L$17) -> 0 | M40: =SUMIFS(SummerProvRep!$K:$K,SummerProvRep!$A:$A,Data!$A$28,SummerProvRep!$P:$P,"Coventry",SummerProvRep!$U:$U,Data!M$17) -> 0 | N40: =SUMIFS(SummerProvRep!$K:$K,SummerProvRep!$A:$A,Data!$A$28,SummerProvRep!$P:$P,"Coventry",SummerProvRep!$U:$U,Data!N$17) -> 0 | O40: =SUMIFS(SummerProvRep!$K:$K,SummerProvRep!$A:$A,Data!$A$28,SummerProvRep!$P:$P,"Coventry",SummerProvRep!$U:$U,Data!O$17) -> 576 | P40: =SUMIFS(SummerProvRep!$K:$K,SummerProvRep!$A:$A,Data!$A$28,SummerProvRep!$P:$P,"Coventry",SummerProvRep!$U:$U,Data!P$17) -> 0 | Q40: =SUMIFS(SummerProvRep!$K:$K,SummerProvRep!$A:$A,Data!$A$28,SummerProvRep!$P:$P,"Coventry",SummerProvRep!$U:$U,Data!Q$17) -> 9267 | R40: =SUMIFS(SummerProvRep!$K:$K,SummerProvRep!$A:$A,Data!$A$28,SummerProvRep!$P:$P,"Coventry",SummerProvRep!$U:$U,Data!R$17) -> 0 | S40: =SUMIFS(SummerProvRep!$K:$K,SummerProvRep!$A:$A,Data!$A$28,SummerProvRep!$P:$P,"Coventry",SummerProvRep!$U:$U,Data!S$17) -> 26 | T40: =SUMIFS(SummerProvRep!$K:$K,SummerProvRep!$A:$A,Data!$A$28,SummerProvRep!$P:$P,"Coventry",SummerProvRep!$U:$U,Data!T$17) -> 0 | U40: =SUMIFS(SummerProvRep!$K:$K,SummerProvRep!$A:$A,Data!$A$28,SummerProvRep!$P:$P,"Coventry",SummerProvRep!$U:$U,Data!U$17) -> 130 | V40: =SUMIFS(SummerProvRep!$K:$K,SummerProvRep!$A:$A,Data!$A$28,SummerProvRep!$P:$P,"Coventry",SummerProvRep!$U:$U,Data!V$17) -> 0 | W40: 156.234375 | X40: 930836.357 | Y40: 0 | Z40: =SUMIFS(SummerProvRep!$K:$K,SummerProvRep!$A:$A,Data!$A$28,SummerProvRep!$P:$P,"<>Coventry",SummerProvRep!$U:$U,Data!Z$17) -> 0 | AA40: =SUMIFS(SummerProvRep!$K:$K,SummerProvRep!$A:$A,Data!$A$28,SummerProvRep!$P:$P,"<>Coventry",SummerProvRep!$U:$U,Data!AA$17) -> 0 | AB40: =SUMIFS(SummerProvRep!$K:$K,SummerProvRep!$A:$A,Data!$A$28,SummerProvRep!$P:$P,"<>Coventry",SummerProvRep!$U:$U,Data!AB$17) -> 0 | AC40: =SUMIFS(SummerProvRep!$K:$K,SummerProvRep!$A:$A,Data!$A$28,SummerProvRep!$P:$P,"<>Coventry",SummerProvRep!$U:$U,Data!AC$17) -> 0 | AD40: =SUMIFS(SummerProvRep!$K:$K,SummerProvRep!$A:$A,Data!$A$28,SummerProvRep!$P:$P,"<>Coventry",SummerProvRep!$U:$U,Data!AD$17) -> 0 | AE40: =SUMIFS(SummerProvRep!$K:$K,SummerProvRep!$A:$A,Data!$A$28,SummerProvRep!$P:$P,"<>Coventry",SummerProvRep!$U:$U,Data!AE$17) -> 0 | AF40: =SUMIFS(SummerProvRep!$K:$K,SummerProvRep!$A:$A,Data!$A$28,SummerProvRep!$P:$P,"<>Coventry",SummerProvRep!$U:$U,Data!AF$17) -> 0 | AG40: =SUMIFS(SummerProvRep!$K:$K,SummerProvRep!$A:$A,Data!$A$28,SummerProvRep!$P:$P,"<>Coventry",SummerProvRep!$U:$U,Data!AG$17) -> 0 | AH40: =SUMIFS(SummerProvRep!$K:$K,SummerProvRep!$A:$A,Data!$A$28,SummerProvRep!$P:$P,"<>Coventry",SummerProvRep!$U:$U,Data!AH$17) -> 0 | AI40: =SUMIFS(SummerProvRep!$K:$K,SummerProvRep!$A:$A,Data!$A$28,SummerProvRep!$P:$P,"<>Coventry",SummerProvRep!$U:$U,Data!AI$17) -> 0 | AJ40: =SUMIFS(SummerProvRep!$K:$K,SummerProvRep!$A:$A,Data!$A$28,SummerProvRep!$P:$P,"<>Coventry",SummerProvRep!$U:$U,Data!AJ$17) -> 0 | AK40: =SUMIFS(SummerProvRep!$K:$K,SummerProvRep!$A:$A,Data!$A$28,SummerProvRep!$P:$P,"<>Coventry",SummerProvRep!$U:$U,Data!AK$17) -> 0 | AL40: =SUMIFS(SummerProvRep!$K:$K,SummerProvRep!$A:$A,Data!$A$28,SummerProvRep!$P:$P,"<>Coventry",SummerProvRep!$U:$U,Data!AL$17) -> 128 | AM40: =SUMIFS(SummerProvRep!$K:$K,SummerProvRep!$A:$A,Data!$A$28,SummerProvRep!$P:$P,"<>Coventry",SummerProvRep!$U:$U,Data!AM$17) -> 0 | AN40: =SUMIFS(SummerProvRep!$K:$K,SummerProvRep!$A:$A,Data!$A$28,SummerProvRep!$P:$P,"<>Coventry",SummerProvRep!$U:$U,Data!AN$17) -> 0 | AO40: =SUMIFS(SummerProvRep!$K:$K,SummerProvRep!$A:$A,Data!$A$28,SummerProvRep!$P:$P,"<>Coventry",SummerProvRep!$U:$U,Data!AO$17) -> 0 | AP40: =SUMIFS(SummerProvRep!$K:$K,SummerProvRep!$A:$A,Data!$A$28,SummerProvRep!$P:$P,"<>Coventry",SummerProvRep!$U:$U,Data!AP$17) -> 0 | AQ40: =SUMIFS(SummerProvRep!$K:$K,SummerProvRep!$A:$A,Data!$A$28,SummerProvRep!$P:$P,"<>Coventry",SummerProvRep!$U:$U,Data!AQ$17) -> 0 | AR40: =SUM(Y40:AQ40)/$A$20 -> 2 | AS40: 11237.25377 | AT40: 942073.6108 | AU40: 158.234375 | AV40: =AU40-AW40 -> 3.234375 | AW40: 155 | AX40: =[5]Data!$AU28 -> 157.2173913 | AY40: 155 | BA40: 17256.98444 | BC40: 5957.94848
A41: 9 | B41: Coventry ELC | C41: =10000/$A$16 -> 51.54639175 | D41: 7680 | E41: =E29+BF29 -> 0 | F41: 0 | G41: 0 | H41: 0 | I41: 0 | J41: 0 | K41: 0 | L41: 0 | M41: 0 | N41: 0 | O41: 0 | P41: 0 | Q41: 0 | R41: 0 | S41: 0 | T41: 0 | U41: 0 | V41: 0 | W41: 120 | X41: =SUMPRODUCT(D41:V41,$Y$12:$AQ$12)/$A$16 -> 510575.502 | Y41: 0 | Z41: =Z29+BZ29 -> 0 | AA41: 0 | AB41: 0 | AC41: 0 | AD41: 0 | AE41: 0 | AF41: 0 | AG41: 0 | AH41: 0 | AI41: 0 | AJ41: 0 | AK41: 0 | AL41: 0 | AM41: 0 | AN41: 0 | AO41: 0 | AP41: 0 | AQ41: 0 | AR41: =SUM(Y41:AQ41)/$A$20 -> 0 | AS41: =SUMPRODUCT(Y41:AQ41,$Y$12:$AQ$12)/$A$16 -> 0 | AT41: 510575.502 | AU41: 120 | AV41: =AU41-AW41 -> 0 | AW41: 120 | AX41: =[5]Data!$AU29 -> 120 | AY41: 120 | BA41: 12332.74159 | BC41: 4254.79585
AS42: =SUM(AS33:AS41) -> 82204.82205 | AT42: =SUM(AT33:AT41) -> 6272757.032 | AU42: =SUM(AU33:AU41) -> 1411.25
D44: Coventry pupils | Y44: Other LA Pupils
B45: Autumn Term 2025
A46: 75 | B46: School | BA46: 75
A47: 1 | B47: Castle Wood | C47: =10000/$A$16 -> 51.54639175 | D47: 0 | E47: =SUMIFS(AutumnProvRep!$K:$K,AutumnProvRep!$A:$A,Data!$A$21,AutumnProvRep!$P:$P,"Coventry",AutumnProvRep!$U:$U,Data!E$17)/$BA$46*$A$46 -> 0 | F47: =SUMIFS(AutumnProvRep!$K:$K,AutumnProvRep!$A:$A,Data!$A$21,AutumnProvRep!$P:$P,"Coventry",AutumnProvRep!$U:$U,Data!F$17)/$BA$46*$A$46 -> 0 | G47: =SUMIFS(AutumnProvRep!$K:$K,AutumnProvRep!$A:$A,Data!$A$21,AutumnProvRep!$P:$P,"Coventry",AutumnProvRep!$U:$U,Data!G$17)/$BA$46*$A$46 -> 73 | H47: =SUMIFS(AutumnProvRep!$K:$K,AutumnProvRep!$A:$A,Data!$A$21,AutumnProvRep!$P:$P,"Coventry",AutumnProvRep!$U:$U,Data!H$17)/$BA$46*$A$46 -> 0 | I47: =SUMIFS(AutumnProvRep!$K:$K,AutumnProvRep!$A:$A,Data!$A$21,AutumnProvRep!$P:$P,"Coventry",AutumnProvRep!$U:$U,Data!I$17)/$BA$46*$A$46 -> 0 | J47: =SUMIFS(AutumnProvRep!$K:$K,AutumnProvRep!$A:$A,Data!$A$21,AutumnProvRep!$P:$P,"Coventry",AutumnProvRep!$U:$U,Data!J$17)/$BA$46*$A$46 -> 75 | K47: =SUMIFS(AutumnProvRep!$K:$K,AutumnProvRep!$A:$A,Data!$A$21,AutumnProvRep!$P:$P,"Coventry",AutumnProvRep!$U:$U,Data!K$17)/$BA$46*$A$46 -> 8436 | L47: =SUMIFS(AutumnProvRep!$K:$K,AutumnProvRep!$A:$A,Data!$A$21,AutumnProvRep!$P:$P,"Coventry",AutumnProvRep!$U:$U,Data!L$17)/$BA$46*$A$46 -> 600 | M47: =SUMIFS(AutumnProvRep!$K:$K,AutumnProvRep!$A:$A,Data!$A$21,AutumnProvRep!$P:$P,"Coventry",AutumnProvRep!$U:$U,Data!M$17)/$BA$46*$A$46 -> 0 | N47: =SUMIFS(AutumnProvRep!$K:$K,AutumnProvRep!$A:$A,Data!$A$21,AutumnProvRep!$P:$P,"Coventry",AutumnProvRep!$U:$U,Data!N$17)/$BA$46*$A$46 -> 521 | O47: =SUMIFS(AutumnProvRep!$K:$K,AutumnProvRep!$A:$A,Data!$A$21,AutumnProvRep!$P:$P,"Coventry",AutumnProvRep!$U:$U,Data!O$17)/$BA$46*$A$46 -> 762 | P47: =SUMIFS(AutumnProvRep!$K:$K,AutumnProvRep!$A:$A,Data!$A$21,AutumnProvRep!$P:$P,"Coventry",AutumnProvRep!$U:$U,Data!P$17)/$BA$46*$A$46 -> 0 | Q47: =SUMIFS(AutumnProvRep!$K:$K,AutumnProvRep!$A:$A,Data!$A$21,AutumnProvRep!$P:$P,"Coventry",AutumnProvRep!$U:$U,Data!Q$17)/$BA$46*$A$46 -> 2275 | R47: =SUMIFS(AutumnProvRep!$K:$K,AutumnProvRep!$A:$A,Data!$A$21,AutumnProvRep!$P:$P,"Coventry",AutumnProvRep!$U:$U,Data!R$17)/$BA$46*$A$46 -> 450 | S47: =SUMIFS(AutumnProvRep!$K:$K,AutumnProvRep!$A:$A,Data!$A$21,AutumnProvRep!$P:$P,"Coventry",AutumnProvRep!$U:$U,Data!S$17)/$BA$46*$A$46 -> 0 | T47: =SUMIFS(AutumnProvRep!$K:$K,AutumnProvRep!$A:$A,Data!$A$21,AutumnProvRep!$P:$P,"Coventry",AutumnProvRep!$U:$U,Data!T$17)/$BA$46*$A$46 -> 300 | U47: =SUMIFS(AutumnProvRep!$K:$K,AutumnProvRep!$A:$A,Data!$A$21,AutumnProvRep!$P:$P,"Coventry",AutumnProvRep!$U:$U,Data!U$17)/$BA$46*$A$46 -> 94 | V47: =SUMIFS(AutumnProvRep!$K:$K,AutumnProvRep!$A:$A,Data!$A$21,AutumnProvRep!$P:$P,"Coventry",AutumnProvRep!$U:$U,Data!V$17)/$BA$46*$A$46 -> 0 | W47: =SUM(D47:V47)/$A$46 -> 181.1466667 | X47: =SUMPRODUCT(D47:V47,$Y$6:$AQ$6)/$A$16 -> 916325.2092 | Y47: 0 | Z47: =SUMIFS(AutumnProvRep!$K:$K,AutumnProvRep!$A:$A,Data!$A$21,AutumnProvRep!$P:$P,"<>Coventry",AutumnProvRep!$U:$U,Data!Z$17)/$BA$46*$A$46 -> 0 | AA47: =SUMIFS(AutumnProvRep!$K:$K,AutumnProvRep!$A:$A,Data!$A$21,AutumnProvRep!$P:$P,"<>Coventry",AutumnProvRep!$U:$U,Data!AA$17)/$BA$46*$A$46 -> 0 | AB47: =SUMIFS(AutumnProvRep!$K:$K,AutumnProvRep!$A:$A,Data!$A$21,AutumnProvRep!$P:$P,"<>Coventry",AutumnProvRep!$U:$U,Data!AB$17)/$BA$46*$A$46 -> 0 | AC47: =SUMIFS(AutumnProvRep!$K:$K,AutumnProvRep!$A:$A,Data!$A$21,AutumnProvRep!$P:$P,"<>Coventry",AutumnProvRep!$U:$U,Data!AC$17)/$BA$46*$A$46 -> 0 | AD47: =SUMIFS(AutumnProvRep!$K:$K,AutumnProvRep!$A:$A,Data!$A$21,AutumnProvRep!$P:$P,"<>Coventry",AutumnProvRep!$U:$U,Data!AD$17)/$BA$46*$A$46 -> 0 | AE47: =SUMIFS(AutumnProvRep!$K:$K,AutumnProvRep!$A:$A,Data!$A$21,AutumnProvRep!$P:$P,"<>Coventry",AutumnProvRep!$U:$U,Data!AE$17)/$BA$46*$A$46 -> 0 | AF47: =SUMIFS(AutumnProvRep!$K:$K,AutumnProvRep!$A:$A,Data!$A$21,AutumnProvRep!$P:$P,"<>Coventry",AutumnProvRep!$U:$U,Data!AF$17)/$BA$46*$A$46 -> 296 | AG47: =SUMIFS(AutumnProvRep!$K:$K,AutumnProvRep!$A:$A,Data!$A$21,AutumnProvRep!$P:$P,"<>Coventry",AutumnProvRep!$U:$U,Data!AG$17)/$BA$46*$A$46 -> 0 | AH47: =SUMIFS(AutumnProvRep!$K:$K,AutumnProvRep!$A:$A,Data!$A$21,AutumnProvRep!$P:$P,"<>Coventry",AutumnProvRep!$U:$U,Data!AH$17)/$BA$46*$A$46 -> 0 | AI47: =SUMIFS(AutumnProvRep!$K:$K,AutumnProvRep!$A:$A,Data!$A$21,AutumnProvRep!$P:$P,"<>Coventry",AutumnProvRep!$U:$U,Data!AI$17)/$BA$46*$A$46 -> 0 | AJ47: =SUMIFS(AutumnProvRep!$K:$K,AutumnProvRep!$A:$A,Data!$A$21,AutumnProvRep!$P:$P,"<>Coventry",AutumnProvRep!$U:$U,Data!AJ$17)/$BA$46*$A$46 -> 0 | AK47: =SUMIFS(AutumnProvRep!$K:$K,AutumnProvRep!$A:$A,Data!$A$21,AutumnProvRep!$P:$P,"<>Coventry",AutumnProvRep!$U:$U,Data!AK$17)/$BA$46*$A$46 -> 0 | AL47: =SUMIFS(AutumnProvRep!$K:$K,AutumnProvRep!$A:$A,Data!$A$21,AutumnProvRep!$P:$P,"<>Coventry",AutumnProvRep!$U:$U,Data!AL$17)/$BA$46*$A$46 -> 0 | AM47: =SUMIFS(AutumnProvRep!$K:$K,AutumnProvRep!$A:$A,Data!$A$21,AutumnProvRep!$P:$P,"<>Coventry",AutumnProvRep!$U:$U,Data!AM$17)/$BA$46*$A$46 -> 0 | AN47: =SUMIFS(AutumnProvRep!$K:$K,AutumnProvRep!$A:$A,Data!$A$21,AutumnProvRep!$P:$P,"<>Coventry",AutumnProvRep!$U:$U,Data!AN$17)/$BA$46*$A$46 -> 0 | AO47: =SUMIFS(AutumnProvRep!$K:$K,AutumnProvRep!$A:$A,Data!$A$21,AutumnProvRep!$P:$P,"<>Coventry",AutumnProvRep!$U:$U,Data!AO$17)/$BA$46*$A$46 -> 0 | AP47: =SUMIFS(AutumnProvRep!$K:$K,AutumnProvRep!$A:$A,Data!$A$21,AutumnProvRep!$P:$P,"<>Coventry",AutumnProvRep!$U:$U,Data!AP$17)/$BA$46*$A$46 -> 0 | AQ47: =SUMIFS(AutumnProvRep!$K:$K,AutumnProvRep!$A:$A,Data!$A$21,AutumnProvRep!$P:$P,"<>Coventry",AutumnProvRep!$U:$U,Data!AQ$17)/$BA$46*$A$46 -> 0 | AR47: =SUM(Y47:AQ47)/$A$46 -> 3.946666667 | AS47: =SUMPRODUCT(Y47:AQ47,$Y$6:$AQ$6)/$A$16 -> 15991.47258 | AT47: =X47+AS47 -> 932316.6817 | AU47: =AR47+W47 -> 185.0933333 | AV47: =AU47-AW47 -> -4.906666667 | AW47: =O4 -> 190 | AX47: =[5]Data!$AU35 -> 159.6842105 | AY47: =E4 -> 164 | BB47: =($O$4-$AU$47)*$A$46 -> 368 | BD47: =AU47*$A$46 -> 13882 | BE47: =$BB$47/$BD$47*D47 -> 0 | BF47: 0 | BG47: 0 | BH47: 1.935167843 | BI47: 0 | BJ47: 0 | BK47: 1.98818614 | BL47: 223.6311771 | BM47: 15.90548912 | BN47: 0 | BO47: 13.81126639 | BP47: 20.19997119 | BQ47: 0 | BR47: 60.30831292 | BS47: 11.92911684 | BT47: 0 | BU47: 7.952744561 | BV47: 2.491859963 | BW47: 0 | BY47: =$BB$47/$BD$47*Y47 -> 0 | BZ47: 0 | CA47: 0 | CB47: 0 | CC47: 0 | CD47: 0 | CE47: 0 | CF47: 7.846707967 | CG47: 0 | CH47: 0 | CI47: 0 | CJ47: 0 | CK47: 0 | CL47: 0 | CM47: 0 | CN47: 0 | CO47: 0 | CP47: 0 | CQ47: 0
A48: 2 | B48: Kingsbury | C48: =10000/$A$16 -> 51.54639175 | D48: 0 | E48: =SUMIFS(AutumnProvRep!$K:$K,AutumnProvRep!$A:$A,Data!$A$22,AutumnProvRep!$P:$P,"Coventry",AutumnProvRep!$U:$U,Data!E$17)/$BA$46*$A$46 -> 0 | F48: =SUMIFS(AutumnProvRep!$K:$K,AutumnProvRep!$A:$A,Data!$A$22,AutumnProvRep!$P:$P,"Coventry",AutumnProvRep!$U:$U,Data!F$17)/$BA$46*$A$46 -> 0 | G48: =SUMIFS(AutumnProvRep!$K:$K,AutumnProvRep!$A:$A,Data!$A$22,AutumnProvRep!$P:$P,"Coventry",AutumnProvRep!$U:$U,Data!G$17)/$BA$46*$A$46 -> 0 | H48: =SUMIFS(AutumnProvRep!$K:$K,AutumnProvRep!$A:$A,Data!$A$22,AutumnProvRep!$P:$P,"Coventry",AutumnProvRep!$U:$U,Data!H$17)/$BA$46*$A$46 -> 0 | I48: =SUMIFS(AutumnProvRep!$K:$K,AutumnProvRep!$A:$A,Data!$A$22,AutumnProvRep!$P:$P,"Coventry",AutumnProvRep!$U:$U,Data!I$17)/$BA$46*$A$46 -> 0 | J48: =SUMIFS(AutumnProvRep!$K:$K,AutumnProvRep!$A:$A,Data!$A$22,AutumnProvRep!$P:$P,"Coventry",AutumnProvRep!$U:$U,Data!J$17)/$BA$46*$A$46 -> 0 | K48: =SUMIFS(AutumnProvRep!$K:$K,AutumnProvRep!$A:$A,Data!$A$22,AutumnProvRep!$P:$P,"Coventry",AutumnProvRep!$U:$U,Data!K$17)/$BA$46*$A$46 -> 4241 | L48: =SUMIFS(AutumnProvRep!$K:$K,AutumnProvRep!$A:$A,Data!$A$22,AutumnProvRep!$P:$P,"Coventry",AutumnProvRep!$U:$U,Data!L$17)/$BA$46*$A$46 -> 150 | M48: =SUMIFS(AutumnProvRep!$K:$K,AutumnProvRep!$A:$A,Data!$A$22,AutumnProvRep!$P:$P,"Coventry",AutumnProvRep!$U:$U,Data!M$17)/$BA$46*$A$46 -> 0 | N48: =SUMIFS(AutumnProvRep!$K:$K,AutumnProvRep!$A:$A,Data!$A$22,AutumnProvRep!$P:$P,"Coventry",AutumnProvRep!$U:$U,Data!N$17)/$BA$46*$A$46 -> 0 | O48: =SUMIFS(AutumnProvRep!$K:$K,AutumnProvRep!$A:$A,Data!$A$22,AutumnProvRep!$P:$P,"Coventry",AutumnProvRep!$U:$U,Data!O$17)/$BA$46*$A$46 -> 1233 | P48: =SUMIFS(AutumnProvRep!$K:$K,AutumnProvRep!$A:$A,Data!$A$22,AutumnProvRep!$P:$P,"Coventry",AutumnProvRep!$U:$U,Data!P$17)/$BA$46*$A$46 -> 0 | Q48: =SUMIFS(AutumnProvRep!$K:$K,AutumnProvRep!$A:$A,Data!$A$22,AutumnProvRep!$P:$P,"Coventry",AutumnProvRep!$U:$U,Data!Q$17)/$BA$46*$A$46 -> 2061 | R48: =SUMIFS(AutumnProvRep!$K:$K,AutumnProvRep!$A:$A,Data!$A$22,AutumnProvRep!$P:$P,"Coventry",AutumnProvRep!$U:$U,Data!R$17)/$BA$46*$A$46 -> 0 | S48: =SUMIFS(AutumnProvRep!$K:$K,AutumnProvRep!$A:$A,Data!$A$22,AutumnProvRep!$P:$P,"Coventry",AutumnProvRep!$U:$U,Data!S$17)/$BA$46*$A$46 -> 0 | T48: =SUMIFS(AutumnProvRep!$K:$K,AutumnProvRep!$A:$A,Data!$A$22,AutumnProvRep!$P:$P,"Coventry",AutumnProvRep!$U:$U,Data!T$17)/$BA$46*$A$46 -> 0 | U48: =SUMIFS(AutumnProvRep!$K:$K,AutumnProvRep!$A:$A,Data!$A$22,AutumnProvRep!$P:$P,"Coventry",AutumnProvRep!$U:$U,Data!U$17)/$BA$46*$A$46 -> 0 | V48: =SUMIFS(AutumnProvRep!$K:$K,AutumnProvRep!$A:$A,Data!$A$22,AutumnProvRep!$P:$P,"Coventry",AutumnProvRep!$U:$U,Data!V$17)/$BA$46*$A$46 -> 0 | W48: 102.4666667 | X48: 587157.0682 | Y48: 0 | Z48: =SUMIFS(AutumnProvRep!$K:$K,AutumnProvRep!$A:$A,Data!$A$22,AutumnProvRep!$P:$P,"<>Coventry",AutumnProvRep!$U:$U,Data!Z$17)/$BA$46*$A$46 -> 0 | AA48: =SUMIFS(AutumnProvRep!$K:$K,AutumnProvRep!$A:$A,Data!$A$22,AutumnProvRep!$P:$P,"<>Coventry",AutumnProvRep!$U:$U,Data!AA$17)/$BA$46*$A$46 -> 0 | AB48: =SUMIFS(AutumnProvRep!$K:$K,AutumnProvRep!$A:$A,Data!$A$22,AutumnProvRep!$P:$P,"<>Coventry",AutumnProvRep!$U:$U,Data!AB$17)/$BA$46*$A$46 -> 0 | AC48: =SUMIFS(AutumnProvRep!$K:$K,AutumnProvRep!$A:$A,Data!$A$22,AutumnProvRep!$P:$P,"<>Coventry",AutumnProvRep!$U:$U,Data!AC$17)/$BA$46*$A$46 -> 0 | AD48: =SUMIFS(AutumnProvRep!$K:$K,AutumnProvRep!$A:$A,Data!$A$22,AutumnProvRep!$P:$P,"<>Coventry",AutumnProvRep!$U:$U,Data!AD$17)/$BA$46*$A$46 -> 0 | AE48: =SUMIFS(AutumnProvRep!$K:$K,AutumnProvRep!$A:$A,Data!$A$22,AutumnProvRep!$P:$P,"<>Coventry",AutumnProvRep!$U:$U,Data!AE$17)/$BA$46*$A$46 -> 0 | AF48: =SUMIFS(AutumnProvRep!$K:$K,AutumnProvRep!$A:$A,Data!$A$22,AutumnProvRep!$P:$P,"<>Coventry",AutumnProvRep!$U:$U,Data!AF$17)/$BA$46*$A$46 -> 75 | AG48: =SUMIFS(AutumnProvRep!$K:$K,AutumnProvRep!$A:$A,Data!$A$22,AutumnProvRep!$P:$P,"<>Coventry",AutumnProvRep!$U:$U,Data!AG$17)/$BA$46*$A$46 -> 75 | AH48: =SUMIFS(AutumnProvRep!$K:$K,AutumnProvRep!$A:$A,Data!$A$22,AutumnProvRep!$P:$P,"<>Coventry",AutumnProvRep!$U:$U,Data!AH$17)/$BA$46*$A$46 -> 0 | AI48: =SUMIFS(AutumnProvRep!$K:$K,AutumnProvRep!$A:$A,Data!$A$22,AutumnProvRep!$P:$P,"<>Coventry",AutumnProvRep!$U:$U,Data!AI$17)/$BA$46*$A$46 -> 0 | AJ48: =SUMIFS(AutumnProvRep!$K:$K,AutumnProvRep!$A:$A,Data!$A$22,AutumnProvRep!$P:$P,"<>Coventry",AutumnProvRep!$U:$U,Data!AJ$17)/$BA$46*$A$46 -> 0 | AK48: =SUMIFS(AutumnProvRep!$K:$K,AutumnProvRep!$A:$A,Data!$A$22,AutumnProvRep!$P:$P,"<>Coventry",AutumnProvRep!$U:$U,Data!AK$17)/$BA$46*$A$46 -> 0 | AL48: =SUMIFS(AutumnProvRep!$K:$K,AutumnProvRep!$A:$A,Data!$A$22,AutumnProvRep!$P:$P,"<>Coventry",AutumnProvRep!$U:$U,Data!AL$17)/$BA$46*$A$46 -> 75 | AM48: =SUMIFS(AutumnProvRep!$K:$K,AutumnProvRep!$A:$A,Data!$A$22,AutumnProvRep!$P:$P,"<>Coventry",AutumnProvRep!$U:$U,Data!AM$17)/$BA$46*$A$46 -> 0 | AN48: =SUMIFS(AutumnProvRep!$K:$K,AutumnProvRep!$A:$A,Data!$A$22,AutumnProvRep!$P:$P,"<>Coventry",AutumnProvRep!$U:$U,Data!AN$17)/$BA$46*$A$46 -> 0 | AO48: =SUMIFS(AutumnProvRep!$K:$K,AutumnProvRep!$A:$A,Data!$A$22,AutumnProvRep!$P:$P,"<>Coventry",AutumnProvRep!$U:$U,Data!AO$17)/$BA$46*$A$46 -> 0 | AP48: =SUMIFS(AutumnProvRep!$K:$K,AutumnProvRep!$A:$A,Data!$A$22,AutumnProvRep!$P:$P,"<>Coventry",AutumnProvRep!$U:$U,Data!AP$17)/$BA$46*$A$46 -> 0 | AQ48: =SUMIFS(AutumnProvRep!$K:$K,AutumnProvRep!$A:$A,Data!$A$22,AutumnProvRep!$P:$P,"<>Coventry",AutumnProvRep!$U:$U,Data!AQ$17)/$BA$46*$A$46 -> 0 | AR48: =SUM(Y48:AQ48)/$A$46 -> 3 | AS48: 14384.22522 | AT48: 601541.2934 | AU48: =AR48+W48 -> 105.4666667 | AV48: -0.5333333333 | AW48: 106 | AX48: =[5]Data!$AU36 -> 100.25 | AY48: 100 | BB48: =($O$5-$AU$48)*$A$46 -> 40 | BD48: =AU48*$A$46 -> 7910 | BE48: =$BB$48/$BD$48*D48 -> 0 | BF48: 0 | BG48: 0 | BH48: 0 | BI48: 0 | BJ48: 0 | BK48: 0 | BL48: 21.44627054 | BM48: 0.7585335019 | BN48: 0 | BO48: 0 | BP48: 6.235145386 | BQ48: 0 | BR48: 10.42225032 | BS48: 0 | BT48: 0 | BU48: 0 | BV48: 0 | BW48: 0 | BY48: =$BB$48/$BD$48*Y48 -> 0 | BZ48: 0 | CA48: 0 | CB48: 0 | CC48: 0 | CD48: 0 | CE48: 0 | CF48: 0.3792667509 | CG48: 0.3792667509 | CH48: 0 | CI48: 0 | CJ48: 0 | CK48: 0 | CL48: 0.3792667509 | CM48: 0 | CN48: 0 | CO48: 0 | CP48: 0 | CQ48: 0
A49: 3 | B49: RiverBank | C49: 51.54639175 | D49: 0 | E49: =SUMIFS(AutumnProvRep!$K:$K,AutumnProvRep!$A:$A,Data!$A$23,AutumnProvRep!$P:$P,"Coventry",AutumnProvRep!$U:$U,Data!E$17)/$BA$46*$A$46 -> 0 | F49: =SUMIFS(AutumnProvRep!$K:$K,AutumnProvRep!$A:$A,Data!$A$23,AutumnProvRep!$P:$P,"Coventry",AutumnProvRep!$U:$U,Data!F$17)/$BA$46*$A$46 -> 0 | G49: =SUMIFS(AutumnProvRep!$K:$K,AutumnProvRep!$A:$A,Data!$A$23,AutumnProvRep!$P:$P,"Coventry",AutumnProvRep!$U:$U,Data!G$17)/$BA$46*$A$46 -> 150 | H49: =SUMIFS(AutumnProvRep!$K:$K,AutumnProvRep!$A:$A,Data!$A$23,AutumnProvRep!$P:$P,"Coventry",AutumnProvRep!$U:$U,Data!H$17)/$BA$46*$A$46 -> 225 | I49: =SUMIFS(AutumnProvRep!$K:$K,AutumnProvRep!$A:$A,Data!$A$23,AutumnProvRep!$P:$P,"Coventry",AutumnProvRep!$U:$U,Data!I$17)/$BA$46*$A$46 -> 0 | J49: =SUMIFS(AutumnProvRep!$K:$K,AutumnProvRep!$A:$A,Data!$A$23,AutumnProvRep!$P:$P,"Coventry",AutumnProvRep!$U:$U,Data!J$17)/$BA$46*$A$46 -> 0 | K49: =SUMIFS(AutumnProvRep!$K:$K,AutumnProvRep!$A:$A,Data!$A$23,AutumnProvRep!$P:$P,"Coventry",AutumnProvRep!$U:$U,Data!K$17)/$BA$46*$A$46 -> 6894 | L49: =SUMIFS(AutumnProvRep!$K:$K,AutumnProvRep!$A:$A,Data!$A$23,AutumnProvRep!$P:$P,"Coventry",AutumnProvRep!$U:$U,Data!L$17)/$BA$46*$A$46 -> 3672 | M49: =SUMIFS(AutumnProvRep!$K:$K,AutumnProvRep!$A:$A,Data!$A$23,AutumnProvRep!$P:$P,"Coventry",AutumnProvRep!$U:$U,Data!M$17)/$BA$46*$A$46 -> 75 | N49: =SUMIFS(AutumnProvRep!$K:$K,AutumnProvRep!$A:$A,Data!$A$23,AutumnProvRep!$P:$P,"Coventry",AutumnProvRep!$U:$U,Data!N$17)/$BA$46*$A$46 -> 600 | O49: =SUMIFS(AutumnProvRep!$K:$K,AutumnProvRep!$A:$A,Data!$A$23,AutumnProvRep!$P:$P,"Coventry",AutumnProvRep!$U:$U,Data!O$17)/$BA$46*$A$46 -> 681 | P49: =SUMIFS(AutumnProvRep!$K:$K,AutumnProvRep!$A:$A,Data!$A$23,AutumnProvRep!$P:$P,"Coventry",AutumnProvRep!$U:$U,Data!P$17)/$BA$46*$A$46 -> 225 | Q49: =SUMIFS(AutumnProvRep!$K:$K,AutumnProvRep!$A:$A,Data!$A$23,AutumnProvRep!$P:$P,"Coventry",AutumnProvRep!$U:$U,Data!Q$17)/$BA$46*$A$46 -> 2548 | R49: =SUMIFS(AutumnProvRep!$K:$K,AutumnProvRep!$A:$A,Data!$A$23,AutumnProvRep!$P:$P,"Coventry",AutumnProvRep!$U:$U,Data!R$17)/$BA$46*$A$46 -> 600 | S49: =SUMIFS(AutumnProvRep!$K:$K,AutumnProvRep!$A:$A,Data!$A$23,AutumnProvRep!$P:$P,"Coventry",AutumnProvRep!$U:$U,Data!S$17)/$BA$46*$A$46 -> 0 | T49: =SUMIFS(AutumnProvRep!$K:$K,AutumnProvRep!$A:$A,Data!$A$23,AutumnProvRep!$P:$P,"Coventry",AutumnProvRep!$U:$U,Data!T$17)/$BA$46*$A$46 -> 225 | U49: =SUMIFS(AutumnProvRep!$K:$K,AutumnProvRep!$A:$A,Data!$A$23,AutumnProvRep!$P:$P,"Coventry",AutumnProvRep!$U:$U,Data!U$17)/$BA$46*$A$46 -> 0 | V49: =SUMIFS(AutumnProvRep!$K:$K,AutumnProvRep!$A:$A,Data!$A$23,AutumnProvRep!$P:$P,"Coventry",AutumnProvRep!$U:$U,Data!V$17)/$BA$46*$A$46 -> 0 | W49: 211.9333333 | X49: 1035679.975 | Y49: 0 | Z49: =SUMIFS(AutumnProvRep!$K:$K,AutumnProvRep!$A:$A,Data!$A$23,AutumnProvRep!$P:$P,"<>Coventry",AutumnProvRep!$U:$U,Data!Z$17)/$BA$46*$A$46 -> 0 | AA49: =SUMIFS(AutumnProvRep!$K:$K,AutumnProvRep!$A:$A,Data!$A$23,AutumnProvRep!$P:$P,"<>Coventry",AutumnProvRep!$U:$U,Data!AA$17)/$BA$46*$A$46 -> 0 | AB49: =SUMIFS(AutumnProvRep!$K:$K,AutumnProvRep!$A:$A,Data!$A$23,AutumnProvRep!$P:$P,"<>Coventry",AutumnProvRep!$U:$U,Data!AB$17)/$BA$46*$A$46 -> 0 | AC49: =SUMIFS(AutumnProvRep!$K:$K,AutumnProvRep!$A:$A,Data!$A$23,AutumnProvRep!$P:$P,"<>Coventry",AutumnProvRep!$U:$U,Data!AC$17)/$BA$46*$A$46 -> 0 | AD49: =SUMIFS(AutumnProvRep!$K:$K,AutumnProvRep!$A:$A,Data!$A$23,AutumnProvRep!$P:$P,"<>Coventry",AutumnProvRep!$U:$U,Data!AD$17)/$BA$46*$A$46 -> 0 | AE49: =SUMIFS(AutumnProvRep!$K:$K,AutumnProvRep!$A:$A,Data!$A$23,AutumnProvRep!$P:$P,"<>Coventry",AutumnProvRep!$U:$U,Data!AE$17)/$BA$46*$A$46 -> 0 | AF49: =SUMIFS(AutumnProvRep!$K:$K,AutumnProvRep!$A:$A,Data!$A$23,AutumnProvRep!$P:$P,"<>Coventry",AutumnProvRep!$U:$U,Data!AF$17)/$BA$46*$A$46 -> 0 | AG49: =SUMIFS(AutumnProvRep!$K:$K,AutumnProvRep!$A:$A,Data!$A$23,AutumnProvRep!$P:$P,"<>Coventry",AutumnProvRep!$U:$U,Data!AG$17)/$BA$46*$A$46 -> 75 | AH49: =SUMIFS(AutumnProvRep!$K:$K,AutumnProvRep!$A:$A,Data!$A$23,AutumnProvRep!$P:$P,"<>Coventry",AutumnProvRep!$U:$U,Data!AH$17)/$BA$46*$A$46 -> 0 | AI49: =SUMIFS(AutumnProvRep!$K:$K,AutumnProvRep!$A:$A,Data!$A$23,AutumnProvRep!$P:$P,"<>Coventry",AutumnProvRep!$U:$U,Data!AI$17)/$BA$46*$A$46 -> 0 | AJ49: =SUMIFS(AutumnProvRep!$K:$K,AutumnProvRep!$A:$A,Data!$A$23,AutumnProvRep!$P:$P,"<>Coventry",AutumnProvRep!$U:$U,Data!AJ$17)/$BA$46*$A$46 -> 0 | AK49: =SUMIFS(AutumnProvRep!$K:$K,AutumnProvRep!$A:$A,Data!$A$23,AutumnProvRep!$P:$P,"<>Coventry",AutumnProvRep!$U:$U,Data!AK$17)/$BA$46*$A$46 -> 0 | AL49: =SUMIFS(AutumnProvRep!$K:$K,AutumnProvRep!$A:$A,Data!$A$23,AutumnProvRep!$P:$P,"<>Coventry",AutumnProvRep!$U:$U,Data!AL$17)/$BA$46*$A$46 -> 75 | AM49: =SUMIFS(AutumnProvRep!$K:$K,AutumnProvRep!$A:$A,Data!$A$23,AutumnProvRep!$P:$P,"<>Coventry",AutumnProvRep!$U:$U,Data!AM$17)/$BA$46*$A$46 -> 0 | AN49: =SUMIFS(AutumnProvRep!$K:$K,AutumnProvRep!$A:$A,Data!$A$23,AutumnProvRep!$P:$P,"<>Coventry",AutumnProvRep!$U:$U,Data!AN$17)/$BA$46*$A$46 -> 0 | AO49: =SUMIFS(AutumnProvRep!$K:$K,AutumnProvRep!$A:$A,Data!$A$23,AutumnProvRep!$P:$P,"<>Coventry",AutumnProvRep!$U:$U,Data!AO$17)/$BA$46*$A$46 -> 0 | AP49: =SUMIFS(AutumnProvRep!$K:$K,AutumnProvRep!$A:$A,Data!$A$23,AutumnProvRep!$P:$P,"<>Coventry",AutumnProvRep!$U:$U,Data!AP$17)/$BA$46*$A$46 -> 0 | AQ49: =SUMIFS(AutumnProvRep!$K:$K,AutumnProvRep!$A:$A,Data!$A$23,AutumnProvRep!$P:$P,"<>Coventry",AutumnProvRep!$U:$U,Data!AQ$17)/$BA$46*$A$46 -> 0 | AR49: 2 | AS49: 10332.33183 | AT49: 1046012.306 | AU49: 213.9333333 | AV49: -6.066666667 | AW49: 220 | AX49: =[5]Data!$AU37 -> 196.2368421 | AY49: 209 | BB49: =($O$6-$AU$49)*$A$46 -> 455 | BD49: 16045 | BE49: =$BB$49/$BD$49*D49 -> 0 | BF49: 0 | BG49: 0 | BH49: 4.253661577 | BI49: 6.380492365 | BJ49: 0 | BK49: 0 | BL49: 195.4982861 | BM49: 104.1296354 | BN49: 2.126830788 | BO49: 17.01464631 | BP49: 19.31162356 | BQ49: 6.380492365 | BR49: 72.25553132 | BS49: 17.01464631 | BT49: 0 | BU49: 6.380492365 | BV49: 0 | BW49: 0 | BY49: =$BB$49/$BD$49*Y49 -> 0 | BZ49: 0 | CA49: 0 | CB49: 0 | CC49: 0 | CD49: 0 | CE49: 0 | CF49: 0 | CG49: 2.126830788 | CH49: 0 | CI49: 0 | CJ49: 0 | CK49: 0 | CL49: 2.126830788 | CM49: 0 | CN49: 0 | CO49: 0 | CP49: 0 | CQ49: 0
A50: 4 | B50: Corley | C50: 51.54639175 | D50: 0 | E50: =SUMIFS(AutumnProvRep!$K:$K,AutumnProvRep!$A:$A,Data!$A$24,AutumnProvRep!$P:$P,"Coventry",AutumnProvRep!$U:$U,Data!E$17)/$BA$46*$A$46 -> 0 | F50: =SUMIFS(AutumnProvRep!$K:$K,AutumnProvRep!$A:$A,Data!$A$24,AutumnProvRep!$P:$P,"Coventry",AutumnProvRep!$U:$U,Data!F$17)/$BA$46*$A$46 -> 0 | G50: =SUMIFS(AutumnProvRep!$K:$K,AutumnProvRep!$A:$A,Data!$A$24,AutumnProvRep!$P:$P,"Coventry",AutumnProvRep!$U:$U,Data!G$17)/$BA$46*$A$46 -> 300 | H50: =SUMIFS(AutumnProvRep!$K:$K,AutumnProvRep!$A:$A,Data!$A$24,AutumnProvRep!$P:$P,"Coventry",AutumnProvRep!$U:$U,Data!H$17)/$BA$46*$A$46 -> 225 | I50: =SUMIFS(AutumnProvRep!$K:$K,AutumnProvRep!$A:$A,Data!$A$24,AutumnProvRep!$P:$P,"Coventry",AutumnProvRep!$U:$U,Data!I$17)/$BA$46*$A$46 -> 0 | J50: =SUMIFS(AutumnProvRep!$K:$K,AutumnProvRep!$A:$A,Data!$A$24,AutumnProvRep!$P:$P,"Coventry",AutumnProvRep!$U:$U,Data!J$17)/$BA$46*$A$46 -> 0 | K50: =SUMIFS(AutumnProvRep!$K:$K,AutumnProvRep!$A:$A,Data!$A$24,AutumnProvRep!$P:$P,"Coventry",AutumnProvRep!$U:$U,Data!K$17)/$BA$46*$A$46 -> 9438 | L50: =SUMIFS(AutumnProvRep!$K:$K,AutumnProvRep!$A:$A,Data!$A$24,AutumnProvRep!$P:$P,"Coventry",AutumnProvRep!$U:$U,Data!L$17)/$BA$46*$A$46 -> 0 | M50: =SUMIFS(AutumnProvRep!$K:$K,AutumnProvRep!$A:$A,Data!$A$24,AutumnProvRep!$P:$P,"Coventry",AutumnProvRep!$U:$U,Data!M$17)/$BA$46*$A$46 -> 450 | N50: =SUMIFS(AutumnProvRep!$K:$K,AutumnProvRep!$A:$A,Data!$A$24,AutumnProvRep!$P:$P,"Coventry",AutumnProvRep!$U:$U,Data!N$17)/$BA$46*$A$46 -> 0 | O50: =SUMIFS(AutumnProvRep!$K:$K,AutumnProvRep!$A:$A,Data!$A$24,AutumnProvRep!$P:$P,"Coventry",AutumnProvRep!$U:$U,Data!O$17)/$BA$46*$A$46 -> 599 | P50: =SUMIFS(AutumnProvRep!$K:$K,AutumnProvRep!$A:$A,Data!$A$24,AutumnProvRep!$P:$P,"Coventry",AutumnProvRep!$U:$U,Data!P$17)/$BA$46*$A$46 -> 0 | Q50: =SUMIFS(AutumnProvRep!$K:$K,AutumnProvRep!$A:$A,Data!$A$24,AutumnProvRep!$P:$P,"Coventry",AutumnProvRep!$U:$U,Data!Q$17)/$BA$46*$A$46 -> 1200 | R50: =SUMIFS(AutumnProvRep!$K:$K,AutumnProvRep!$A:$A,Data!$A$24,AutumnProvRep!$P:$P,"Coventry",AutumnProvRep!$U:$U,Data!R$17)/$BA$46*$A$46 -> 0 | S50: =SUMIFS(AutumnProvRep!$K:$K,AutumnProvRep!$A:$A,Data!$A$24,AutumnProvRep!$P:$P,"Coventry",AutumnProvRep!$U:$U,Data!S$17)/$BA$46*$A$46 -> 0 | T50: =SUMIFS(AutumnProvRep!$K:$K,AutumnProvRep!$A:$A,Data!$A$24,AutumnProvRep!$P:$P,"Coventry",AutumnProvRep!$U:$U,Data!T$17)/$BA$46*$A$46 -> 0 | U50: =SUMIFS(AutumnProvRep!$K:$K,AutumnProvRep!$A:$A,Data!$A$24,AutumnProvRep!$P:$P,"Coventry",AutumnProvRep!$U:$U,Data!U$17)/$BA$46*$A$46 -> 0 | V50: =SUMIFS(AutumnProvRep!$K:$K,AutumnProvRep!$A:$A,Data!$A$24,AutumnProvRep!$P:$P,"Coventry",AutumnProvRep!$U:$U,Data!V$17)/$BA$46*$A$46 -> 0 | W50: 162.8266667 | X50: 738962.9711 | Y50: 0 | Z50: =SUMIFS(AutumnProvRep!$K:$K,AutumnProvRep!$A:$A,Data!$A$24,AutumnProvRep!$P:$P,"<>Coventry",AutumnProvRep!$U:$U,Data!Z$17)/$BA$46*$A$46 -> 0 | AA50: =SUMIFS(AutumnProvRep!$K:$K,AutumnProvRep!$A:$A,Data!$A$24,AutumnProvRep!$P:$P,"<>Coventry",AutumnProvRep!$U:$U,Data!AA$17)/$BA$46*$A$46 -> 0 | AB50: =SUMIFS(AutumnProvRep!$K:$K,AutumnProvRep!$A:$A,Data!$A$24,AutumnProvRep!$P:$P,"<>Coventry",AutumnProvRep!$U:$U,Data!AB$17)/$BA$46*$A$46 -> 0 | AC50: =SUMIFS(AutumnProvRep!$K:$K,AutumnProvRep!$A:$A,Data!$A$24,AutumnProvRep!$P:$P,"<>Coventry",AutumnProvRep!$U:$U,Data!AC$17)/$BA$46*$A$46 -> 0 | AD50: =SUMIFS(AutumnProvRep!$K:$K,AutumnProvRep!$A:$A,Data!$A$24,AutumnProvRep!$P:$P,"<>Coventry",AutumnProvRep!$U:$U,Data!AD$17)/$BA$46*$A$46 -> 0 | AE50: =SUMIFS(AutumnProvRep!$K:$K,AutumnProvRep!$A:$A,Data!$A$24,AutumnProvRep!$P:$P,"<>Coventry",AutumnProvRep!$U:$U,Data!AE$17)/$BA$46*$A$46 -> 0 | AF50: =SUMIFS(AutumnProvRep!$K:$K,AutumnProvRep!$A:$A,Data!$A$24,AutumnProvRep!$P:$P,"<>Coventry",AutumnProvRep!$U:$U,Data!AF$17)/$BA$46*$A$46 -> 150 | AG50: =SUMIFS(AutumnProvRep!$K:$K,AutumnProvRep!$A:$A,Data!$A$24,AutumnProvRep!$P:$P,"<>Coventry",AutumnProvRep!$U:$U,Data!AG$17)/$BA$46*$A$46 -> 0 | AH50: =SUMIFS(AutumnProvRep!$K:$K,AutumnProvRep!$A:$A,Data!$A$24,AutumnProvRep!$P:$P,"<>Coventry",AutumnProvRep!$U:$U,Data!AH$17)/$BA$46*$A$46 -> 0 | AI50: =SUMIFS(AutumnProvRep!$K:$K,AutumnProvRep!$A:$A,Data!$A$24,AutumnProvRep!$P:$P,"<>Coventry",AutumnProvRep!$U:$U,Data!AI$17)/$BA$46*$A$46 -> 0 | AJ50: =SUMIFS(AutumnProvRep!$K:$K,AutumnProvRep!$A:$A,Data!$A$24,AutumnProvRep!$P:$P,"<>Coventry",AutumnProvRep!$U:$U,Data!AJ$17)/$BA$46*$A$46 -> 0 | AK50: =SUMIFS(AutumnProvRep!$K:$K,AutumnProvRep!$A:$A,Data!$A$24,AutumnProvRep!$P:$P,"<>Coventry",AutumnProvRep!$U:$U,Data!AK$17)/$BA$46*$A$46 -> 0 | AL50: =SUMIFS(AutumnProvRep!$K:$K,AutumnProvRep!$A:$A,Data!$A$24,AutumnProvRep!$P:$P,"<>Coventry",AutumnProvRep!$U:$U,Data!AL$17)/$BA$46*$A$46 -> 0 | AM50: =SUMIFS(AutumnProvRep!$K:$K,AutumnProvRep!$A:$A,Data!$A$24,AutumnProvRep!$P:$P,"<>Coventry",AutumnProvRep!$U:$U,Data!AM$17)/$BA$46*$A$46 -> 0 | AN50: =SUMIFS(AutumnProvRep!$K:$K,AutumnProvRep!$A:$A,Data!$A$24,AutumnProvRep!$P:$P,"<>Coventry",AutumnProvRep!$U:$U,Data!AN$17)/$BA$46*$A$46 -> 0 | AO50: =SUMIFS(AutumnProvRep!$K:$K,AutumnProvRep!$A:$A,Data!$A$24,AutumnProvRep!$P:$P,"<>Coventry",AutumnProvRep!$U:$U,Data!AO$17)/$BA$46*$A$46 -> 0 | AP50: =SUMIFS(AutumnProvRep!$K:$K,AutumnProvRep!$A:$A,Data!$A$24,AutumnProvRep!$P:$P,"<>Coventry",AutumnProvRep!$U:$U,Data!AP$17)/$BA$46*$A$46 -> 0 | AQ50: =SUMIFS(AutumnProvRep!$K:$K,AutumnProvRep!$A:$A,Data!$A$24,AutumnProvRep!$P:$P,"<>Coventry",AutumnProvRep!$U:$U,Data!AQ$17)/$BA$46*$A$46 -> 0 | AR50: 2 | AS50: 8103.786778 | AT50: 747066.7578 | AU50: 164.8266667 | AV50: -0.1733333333 | AW50: 165 | AX50: =[5]Data!$AU38 -> 155.3552632 | AY50: 155 | BB50: =($O$7-$AU$50)*$A$46 -> 13 | BD50: 12362 | BE50: =$BB$50/$BD$50*D50 -> 0 | BF50: 0 | BG50: 0 | BH50: 0.3154829316 | BI50: 0.2366121987 | BJ50: 0 | BK50: 0 | BL50: 9.925093027 | BM50: 0 | BN50: 0.4732243973 | BO50: 0 | BP50: 0.6299142534 | BQ50: 0 | BR50: 1.261931726 | BS50: 0 | BT50: 0 | BU50: 0 | BV50: 0 | BW50: 0 | BY50: =$BB$50/$BD$50*Y50 -> 0 | BZ50: 0 | CA50: 0 | CB50: 0 | CC50: 0 | CD50: 0 | CE50: 0 | CF50: 0.1577414658 | CG50: 0 | CH50: 0 | CI50: 0 | CJ50: 0 | CK50: 0 | CL50: 0 | CM50: 0 | CN50: 0 | CO50: 0 | CP50: 0 | CQ50: 0
A51: 5 | B51: Tiverton | C51: 51.54639175 | D51: 0 | E51: =SUMIFS(AutumnProvRep!$K:$K,AutumnProvRep!$A:$A,Data!$A$25,AutumnProvRep!$P:$P,"Coventry",AutumnProvRep!$U:$U,Data!E$17)/$BA$46*$A$46 -> 0 | F51: =SUMIFS(AutumnProvRep!$K:$K,AutumnProvRep!$A:$A,Data!$A$25,AutumnProvRep!$P:$P,"Coventry",AutumnProvRep!$U:$U,Data!F$17)/$BA$46*$A$46 -> 0 | G51: =SUMIFS(AutumnProvRep!$K:$K,AutumnProvRep!$A:$A,Data!$A$25,AutumnProvRep!$P:$P,"Coventry",AutumnProvRep!$U:$U,Data!G$17)/$BA$46*$A$46 -> 0 | H51: =SUMIFS(AutumnProvRep!$K:$K,AutumnProvRep!$A:$A,Data!$A$25,AutumnProvRep!$P:$P,"Coventry",AutumnProvRep!$U:$U,Data!H$17)/$BA$46*$A$46 -> 0 | I51: =SUMIFS(AutumnProvRep!$K:$K,AutumnProvRep!$A:$A,Data!$A$25,AutumnProvRep!$P:$P,"Coventry",AutumnProvRep!$U:$U,Data!I$17)/$BA$46*$A$46 -> 0 | J51: =SUMIFS(AutumnProvRep!$K:$K,AutumnProvRep!$A:$A,Data!$A$25,AutumnProvRep!$P:$P,"Coventry",AutumnProvRep!$U:$U,Data!J$17)/$BA$46*$A$46 -> 0 | K51: =SUMIFS(AutumnProvRep!$K:$K,AutumnProvRep!$A:$A,Data!$A$25,AutumnProvRep!$P:$P,"Coventry",AutumnProvRep!$U:$U,Data!K$17)/$BA$46*$A$46 -> 6201 | L51: =SUMIFS(AutumnProvRep!$K:$K,AutumnProvRep!$A:$A,Data!$A$25,AutumnProvRep!$P:$P,"Coventry",AutumnProvRep!$U:$U,Data!L$17)/$BA$46*$A$46 -> 600 | M51: =SUMIFS(AutumnProvRep!$K:$K,AutumnProvRep!$A:$A,Data!$A$25,AutumnProvRep!$P:$P,"Coventry",AutumnProvRep!$U:$U,Data!M$17)/$BA$46*$A$46 -> 0 | N51: =SUMIFS(AutumnProvRep!$K:$K,AutumnProvRep!$A:$A,Data!$A$25,AutumnProvRep!$P:$P,"Coventry",AutumnProvRep!$U:$U,Data!N$17)/$BA$46*$A$46 -> 300 | O51: =SUMIFS(AutumnProvRep!$K:$K,AutumnProvRep!$A:$A,Data!$A$25,AutumnProvRep!$P:$P,"Coventry",AutumnProvRep!$U:$U,Data!O$17)/$BA$46*$A$46 -> 375 | P51: =SUMIFS(AutumnProvRep!$K:$K,AutumnProvRep!$A:$A,Data!$A$25,AutumnProvRep!$P:$P,"Coventry",AutumnProvRep!$U:$U,Data!P$17)/$BA$46*$A$46 -> 0 | Q51: =SUMIFS(AutumnProvRep!$K:$K,AutumnProvRep!$A:$A,Data!$A$25,AutumnProvRep!$P:$P,"Coventry",AutumnProvRep!$U:$U,Data!Q$17)/$BA$46*$A$46 -> 1332 | R51: =SUMIFS(AutumnProvRep!$K:$K,AutumnProvRep!$A:$A,Data!$A$25,AutumnProvRep!$P:$P,"Coventry",AutumnProvRep!$U:$U,Data!R$17)/$BA$46*$A$46 -> 450 | S51: =SUMIFS(AutumnProvRep!$K:$K,AutumnProvRep!$A:$A,Data!$A$25,AutumnProvRep!$P:$P,"Coventry",AutumnProvRep!$U:$U,Data!S$17)/$BA$46*$A$46 -> 0 | T51: =SUMIFS(AutumnProvRep!$K:$K,AutumnProvRep!$A:$A,Data!$A$25,AutumnProvRep!$P:$P,"Coventry",AutumnProvRep!$U:$U,Data!T$17)/$BA$46*$A$46 -> 433 | U51: =SUMIFS(AutumnProvRep!$K:$K,AutumnProvRep!$A:$A,Data!$A$25,AutumnProvRep!$P:$P,"Coventry",AutumnProvRep!$U:$U,Data!U$17)/$BA$46*$A$46 -> 75 | V51: =SUMIFS(AutumnProvRep!$K:$K,AutumnProvRep!$A:$A,Data!$A$25,AutumnProvRep!$P:$P,"Coventry",AutumnProvRep!$U:$U,Data!V$17)/$BA$46*$A$46 -> 0 | W51: 130.2133333 | X51: 645963.3607 | Y51: 0 | Z51: =SUMIFS(AutumnProvRep!$K:$K,AutumnProvRep!$A:$A,Data!$A$25,AutumnProvRep!$P:$P,"<>Coventry",AutumnProvRep!$U:$U,Data!Z$17)/$BA$46*$A$46 -> 0 | AA51: =SUMIFS(AutumnProvRep!$K:$K,AutumnProvRep!$A:$A,Data!$A$25,AutumnProvRep!$P:$P,"<>Coventry",AutumnProvRep!$U:$U,Data!AA$17)/$BA$46*$A$46 -> 0 | AB51: =SUMIFS(AutumnProvRep!$K:$K,AutumnProvRep!$A:$A,Data!$A$25,AutumnProvRep!$P:$P,"<>Coventry",AutumnProvRep!$U:$U,Data!AB$17)/$BA$46*$A$46 -> 0 | AC51: =SUMIFS(AutumnProvRep!$K:$K,AutumnProvRep!$A:$A,Data!$A$25,AutumnProvRep!$P:$P,"<>Coventry",AutumnProvRep!$U:$U,Data!AC$17)/$BA$46*$A$46 -> 0 | AD51: =SUMIFS(AutumnProvRep!$K:$K,AutumnProvRep!$A:$A,Data!$A$25,AutumnProvRep!$P:$P,"<>Coventry",AutumnProvRep!$U:$U,Data!AD$17)/$BA$46*$A$46 -> 0 | AE51: =SUMIFS(AutumnProvRep!$K:$K,AutumnProvRep!$A:$A,Data!$A$25,AutumnProvRep!$P:$P,"<>Coventry",AutumnProvRep!$U:$U,Data!AE$17)/$BA$46*$A$46 -> 0 | AF51: =SUMIFS(AutumnProvRep!$K:$K,AutumnProvRep!$A:$A,Data!$A$25,AutumnProvRep!$P:$P,"<>Coventry",AutumnProvRep!$U:$U,Data!AF$17)/$BA$46*$A$46 -> 0 | AG51: =SUMIFS(AutumnProvRep!$K:$K,AutumnProvRep!$A:$A,Data!$A$25,AutumnProvRep!$P:$P,"<>Coventry",AutumnProvRep!$U:$U,Data!AG$17)/$BA$46*$A$46 -> 0 | AH51: =SUMIFS(AutumnProvRep!$K:$K,AutumnProvRep!$A:$A,Data!$A$25,AutumnProvRep!$P:$P,"<>Coventry",AutumnProvRep!$U:$U,Data!AH$17)/$BA$46*$A$46 -> 0 | AI51: =SUMIFS(AutumnProvRep!$K:$K,AutumnProvRep!$A:$A,Data!$A$25,AutumnProvRep!$P:$P,"<>Coventry",AutumnProvRep!$U:$U,Data!AI$17)/$BA$46*$A$46 -> 0 | AJ51: =SUMIFS(AutumnProvRep!$K:$K,AutumnProvRep!$A:$A,Data!$A$25,AutumnProvRep!$P:$P,"<>Coventry",AutumnProvRep!$U:$U,Data!AJ$17)/$BA$46*$A$46 -> 0 | AK51: =SUMIFS(AutumnProvRep!$K:$K,AutumnProvRep!$A:$A,Data!$A$25,AutumnProvRep!$P:$P,"<>Coventry",AutumnProvRep!$U:$U,Data!AK$17)/$BA$46*$A$46 -> 0 | AL51: =SUMIFS(AutumnProvRep!$K:$K,AutumnProvRep!$A:$A,Data!$A$25,AutumnProvRep!$P:$P,"<>Coventry",AutumnProvRep!$U:$U,Data!AL$17)/$BA$46*$A$46 -> 75 | AM51: =SUMIFS(AutumnProvRep!$K:$K,AutumnProvRep!$A:$A,Data!$A$25,AutumnProvRep!$P:$P,"<>Coventry",AutumnProvRep!$U:$U,Data!AM$17)/$BA$46*$A$46 -> 0 | AN51: =SUMIFS(AutumnProvRep!$K:$K,AutumnProvRep!$A:$A,Data!$A$25,AutumnProvRep!$P:$P,"<>Coventry",AutumnProvRep!$U:$U,Data!AN$17)/$BA$46*$A$46 -> 0 | AO51: =SUMIFS(AutumnProvRep!$K:$K,AutumnProvRep!$A:$A,Data!$A$25,AutumnProvRep!$P:$P,"<>Coventry",AutumnProvRep!$U:$U,Data!AO$17)/$BA$46*$A$46 -> 0 | AP51: =SUMIFS(AutumnProvRep!$K:$K,AutumnProvRep!$A:$A,Data!$A$25,AutumnProvRep!$P:$P,"<>Coventry",AutumnProvRep!$U:$U,Data!AP$17)/$BA$46*$A$46 -> 0 | AQ51: =SUMIFS(AutumnProvRep!$K:$K,AutumnProvRep!$A:$A,Data!$A$25,AutumnProvRep!$P:$P,"<>Coventry",AutumnProvRep!$U:$U,Data!AQ$17)/$BA$46*$A$46 -> 0 | AR51: 1 | AS51: 6584.328384 | AT51: 652547.6891 | AU51: 131.2133333 | AV51: -4.786666667 | AW51: 136 | AX51: =[5]Data!$AU39 -> 128.8947368 | AY51: 131 | BB51: =($O$8-$AU$51)*$A$46 -> 359 | BD51: 9841 | BE51: =$BB$51/$BD$51*D51 -> 0 | BF51: 0 | BG51: 0 | BH51: 0 | BI51: 0 | BJ51: 0 | BK51: 0 | BL51: 226.2126816 | BM51: 21.88801951 | BN51: 0 | BO51: 10.94400976 | BP51: 13.68001219 | BQ51: 0 | BR51: 48.59140331 | BS51: 16.41601463 | BT51: 0 | BU51: 15.79585408 | BV51: 2.736002439 | BW51: 0 | BY51: =$BB$51/$BD$51*Y51 -> 0 | BZ51: 0 | CA51: 0 | CB51: 0 | CC51: 0 | CD51: 0 | CE51: 0 | CF51: 0 | CG51: 0 | CH51: 0 | CI51: 0 | CJ51: 0 | CK51: 0 | CL51: 2.736002439 | CM51: 0 | CN51: 0 | CO51: 0 | CP51: 0 | CQ51: 0
A52: 6 | B52: Baginton Fields | C52: 51.54639175 | D52: 0 | E52: =SUMIFS(AutumnProvRep!$K:$K,AutumnProvRep!$A:$A,Data!$A$26,AutumnProvRep!$P:$P,"Coventry",AutumnProvRep!$U:$U,Data!E$17)/$BA$46*$A$46 -> 0 | F52: =SUMIFS(AutumnProvRep!$K:$K,AutumnProvRep!$A:$A,Data!$A$26,AutumnProvRep!$P:$P,"Coventry",AutumnProvRep!$U:$U,Data!F$17)/$BA$46*$A$46 -> 0 | G52: =SUMIFS(AutumnProvRep!$K:$K,AutumnProvRep!$A:$A,Data!$A$26,AutumnProvRep!$P:$P,"Coventry",AutumnProvRep!$U:$U,Data!G$17)/$BA$46*$A$46 -> 0 | H52: =SUMIFS(AutumnProvRep!$K:$K,AutumnProvRep!$A:$A,Data!$A$26,AutumnProvRep!$P:$P,"Coventry",AutumnProvRep!$U:$U,Data!H$17)/$BA$46*$A$46 -> 0 | I52: =SUMIFS(AutumnProvRep!$K:$K,AutumnProvRep!$A:$A,Data!$A$26,AutumnProvRep!$P:$P,"Coventry",AutumnProvRep!$U:$U,Data!I$17)/$BA$46*$A$46 -> 0 | J52: =SUMIFS(AutumnProvRep!$K:$K,AutumnProvRep!$A:$A,Data!$A$26,AutumnProvRep!$P:$P,"Coventry",AutumnProvRep!$U:$U,Data!J$17)/$BA$46*$A$46 -> 0 | K52: =SUMIFS(AutumnProvRep!$K:$K,AutumnProvRep!$A:$A,Data!$A$26,AutumnProvRep!$P:$P,"Coventry",AutumnProvRep!$U:$U,Data!K$17)/$BA$46*$A$46 -> 2659 | L52: =SUMIFS(AutumnProvRep!$K:$K,AutumnProvRep!$A:$A,Data!$A$26,AutumnProvRep!$P:$P,"Coventry",AutumnProvRep!$U:$U,Data!L$17)/$BA$46*$A$46 -> 2427 | M52: =SUMIFS(AutumnProvRep!$K:$K,AutumnProvRep!$A:$A,Data!$A$26,AutumnProvRep!$P:$P,"Coventry",AutumnProvRep!$U:$U,Data!M$17)/$BA$46*$A$46 -> 0 | N52: =SUMIFS(AutumnProvRep!$K:$K,AutumnProvRep!$A:$A,Data!$A$26,AutumnProvRep!$P:$P,"Coventry",AutumnProvRep!$U:$U,Data!N$17)/$BA$46*$A$46 -> 300 | O52: =SUMIFS(AutumnProvRep!$K:$K,AutumnProvRep!$A:$A,Data!$A$26,AutumnProvRep!$P:$P,"Coventry",AutumnProvRep!$U:$U,Data!O$17)/$BA$46*$A$46 -> 825 | P52: =SUMIFS(AutumnProvRep!$K:$K,AutumnProvRep!$A:$A,Data!$A$26,AutumnProvRep!$P:$P,"Coventry",AutumnProvRep!$U:$U,Data!P$17)/$BA$46*$A$46 -> 0 | Q52: =SUMIFS(AutumnProvRep!$K:$K,AutumnProvRep!$A:$A,Data!$A$26,AutumnProvRep!$P:$P,"Coventry",AutumnProvRep!$U:$U,Data!Q$17)/$BA$46*$A$46 -> 2011 | R52: =SUMIFS(AutumnProvRep!$K:$K,AutumnProvRep!$A:$A,Data!$A$26,AutumnProvRep!$P:$P,"Coventry",AutumnProvRep!$U:$U,Data!R$17)/$BA$46*$A$46 -> 750 | S52: =SUMIFS(AutumnProvRep!$K:$K,AutumnProvRep!$A:$A,Data!$A$26,AutumnProvRep!$P:$P,"Coventry",AutumnProvRep!$U:$U,Data!S$17)/$BA$46*$A$46 -> 0 | T52: =SUMIFS(AutumnProvRep!$K:$K,AutumnProvRep!$A:$A,Data!$A$26,AutumnProvRep!$P:$P,"Coventry",AutumnProvRep!$U:$U,Data!T$17)/$BA$46*$A$46 -> 300 | U52: =SUMIFS(AutumnProvRep!$K:$K,AutumnProvRep!$A:$A,Data!$A$26,AutumnProvRep!$P:$P,"Coventry",AutumnProvRep!$U:$U,Data!U$17)/$BA$46*$A$46 -> 0 | V52: =SUMIFS(AutumnProvRep!$K:$K,AutumnProvRep!$A:$A,Data!$A$26,AutumnProvRep!$P:$P,"Coventry",AutumnProvRep!$U:$U,Data!V$17)/$BA$46*$A$46 -> 0 | W52: 123.6266667 | X52: 660316.5971 | Y52: 0 | Z52: =SUMIFS(AutumnProvRep!$K:$K,AutumnProvRep!$A:$A,Data!$A$26,AutumnProvRep!$P:$P,"<>Coventry",AutumnProvRep!$U:$U,Data!Z$17)/$BA$46*$A$46 -> 0 | AA52: =SUMIFS(AutumnProvRep!$K:$K,AutumnProvRep!$A:$A,Data!$A$26,AutumnProvRep!$P:$P,"<>Coventry",AutumnProvRep!$U:$U,Data!AA$17)/$BA$46*$A$46 -> 0 | AB52: =SUMIFS(AutumnProvRep!$K:$K,AutumnProvRep!$A:$A,Data!$A$26,AutumnProvRep!$P:$P,"<>Coventry",AutumnProvRep!$U:$U,Data!AB$17)/$BA$46*$A$46 -> 0 | AC52: =SUMIFS(AutumnProvRep!$K:$K,AutumnProvRep!$A:$A,Data!$A$26,AutumnProvRep!$P:$P,"<>Coventry",AutumnProvRep!$U:$U,Data!AC$17)/$BA$46*$A$46 -> 0 | AD52: =SUMIFS(AutumnProvRep!$K:$K,AutumnProvRep!$A:$A,Data!$A$26,AutumnProvRep!$P:$P,"<>Coventry",AutumnProvRep!$U:$U,Data!AD$17)/$BA$46*$A$46 -> 0 | AE52: =SUMIFS(AutumnProvRep!$K:$K,AutumnProvRep!$A:$A,Data!$A$26,AutumnProvRep!$P:$P,"<>Coventry",AutumnProvRep!$U:$U,Data!AE$17)/$BA$46*$A$46 -> 0 | AF52: =SUMIFS(AutumnProvRep!$K:$K,AutumnProvRep!$A:$A,Data!$A$26,AutumnProvRep!$P:$P,"<>Coventry",AutumnProvRep!$U:$U,Data!AF$17)/$BA$46*$A$46 -> 0 | AG52: =SUMIFS(AutumnProvRep!$K:$K,AutumnProvRep!$A:$A,Data!$A$26,AutumnProvRep!$P:$P,"<>Coventry",AutumnProvRep!$U:$U,Data!AG$17)/$BA$46*$A$46 -> 75 | AH52: =SUMIFS(AutumnProvRep!$K:$K,AutumnProvRep!$A:$A,Data!$A$26,AutumnProvRep!$P:$P,"<>Coventry",AutumnProvRep!$U:$U,Data!AH$17)/$BA$46*$A$46 -> 0 | AI52: =SUMIFS(AutumnProvRep!$K:$K,AutumnProvRep!$A:$A,Data!$A$26,AutumnProvRep!$P:$P,"<>Coventry",AutumnProvRep!$U:$U,Data!AI$17)/$BA$46*$A$46 -> 0 | AJ52: =SUMIFS(AutumnProvRep!$K:$K,AutumnProvRep!$A:$A,Data!$A$26,AutumnProvRep!$P:$P,"<>Coventry",AutumnProvRep!$U:$U,Data!AJ$17)/$BA$46*$A$46 -> 0 | AK52: =SUMIFS(AutumnProvRep!$K:$K,AutumnProvRep!$A:$A,Data!$A$26,AutumnProvRep!$P:$P,"<>Coventry",AutumnProvRep!$U:$U,Data!AK$17)/$BA$46*$A$46 -> 0 | AL52: =SUMIFS(AutumnProvRep!$K:$K,AutumnProvRep!$A:$A,Data!$A$26,AutumnProvRep!$P:$P,"<>Coventry",AutumnProvRep!$U:$U,Data!AL$17)/$BA$46*$A$46 -> 0 | AM52: =SUMIFS(AutumnProvRep!$K:$K,AutumnProvRep!$A:$A,Data!$A$26,AutumnProvRep!$P:$P,"<>Coventry",AutumnProvRep!$U:$U,Data!AM$17)/$BA$46*$A$46 -> 0 | AN52: =SUMIFS(AutumnProvRep!$K:$K,AutumnProvRep!$A:$A,Data!$A$26,AutumnProvRep!$P:$P,"<>Coventry",AutumnProvRep!$U:$U,Data!AN$17)/$BA$46*$A$46 -> 0 | AO52: =SUMIFS(AutumnProvRep!$K:$K,AutumnProvRep!$A:$A,Data!$A$26,AutumnProvRep!$P:$P,"<>Coventry",AutumnProvRep!$U:$U,Data!AO$17)/$BA$46*$A$46 -> 0 | AP52: =SUMIFS(AutumnProvRep!$K:$K,AutumnProvRep!$A:$A,Data!$A$26,AutumnProvRep!$P:$P,"<>Coventry",AutumnProvRep!$U:$U,Data!AP$17)/$BA$46*$A$46 -> 0 | AQ52: =SUMIFS(AutumnProvRep!$K:$K,AutumnProvRep!$A:$A,Data!$A$26,AutumnProvRep!$P:$P,"<>Coventry",AutumnProvRep!$U:$U,Data!AQ$17)/$BA$46*$A$46 -> 0 | AR52: 1 | AS52: 3748.003445 | AT52: 664064.6005 | AU52: 124.6266667 | AV52: -1.373333333 | AW52: 126 | AX52: =[5]Data!$AU40 -> 125.0526316 | AY52: 126 | BB52: =($O$9-$AU$52)*$A$46 -> 103 | BD52: 9347 | BE52: =$BB$52/$BD$52*D52 -> 0 | BF52: 0 | BG52: 0 | BH52: 0 | BI52: 0 | BJ52: 0 | BK52: 0 | BL52: 29.30105916 | BM52: 26.74451696 | BN52: 0 | BO52: 3.305873542 | BP52: 9.091152241 | BQ52: 0 | BR52: 22.16037231 | BS52: 8.264683856 | BT52: 0 | BU52: 3.305873542 | BV52: 0 | BW52: 0 | BY52: =$BB$52/$BD$52*Y52 -> 0 | BZ52: 0 | CA52: 0 | CB52: 0 | CC52: 0 | CD52: 0 | CE52: 0 | CF52: 0 | CG52: 0.8264683856 | CH52: 0 | CI52: 0 | CJ52: 0 | CK52: 0 | CL52: 0 | CM52: 0 | CN52: 0 | CO52: 0 | CP52: 0 | CQ52: 0
A53: 7 | B53: Sherbourne Fields | C53: 51.54639175 | D53: 0 | E53: =SUMIFS(AutumnProvRep!$K:$K,AutumnProvRep!$A:$A,Data!$A$27,AutumnProvRep!$P:$P,"Coventry",AutumnProvRep!$U:$U,Data!E$17)/$BA$46*$A$46 -> 0 | F53: =SUMIFS(AutumnProvRep!$K:$K,AutumnProvRep!$A:$A,Data!$A$27,AutumnProvRep!$P:$P,"Coventry",AutumnProvRep!$U:$U,Data!F$17)/$BA$46*$A$46 -> 0 | G53: =SUMIFS(AutumnProvRep!$K:$K,AutumnProvRep!$A:$A,Data!$A$27,AutumnProvRep!$P:$P,"Coventry",AutumnProvRep!$U:$U,Data!G$17)/$BA$46*$A$46 -> 0 | H53: =SUMIFS(AutumnProvRep!$K:$K,AutumnProvRep!$A:$A,Data!$A$27,AutumnProvRep!$P:$P,"Coventry",AutumnProvRep!$U:$U,Data!H$17)/$BA$46*$A$46 -> 75 | I53: =SUMIFS(AutumnProvRep!$K:$K,AutumnProvRep!$A:$A,Data!$A$27,AutumnProvRep!$P:$P,"Coventry",AutumnProvRep!$U:$U,Data!I$17)/$BA$46*$A$46 -> 0 | J53: =SUMIFS(AutumnProvRep!$K:$K,AutumnProvRep!$A:$A,Data!$A$27,AutumnProvRep!$P:$P,"Coventry",AutumnProvRep!$U:$U,Data!J$17)/$BA$46*$A$46 -> 0 | K53: =SUMIFS(AutumnProvRep!$K:$K,AutumnProvRep!$A:$A,Data!$A$27,AutumnProvRep!$P:$P,"Coventry",AutumnProvRep!$U:$U,Data!K$17)/$BA$46*$A$46 -> 7009 | L53: =SUMIFS(AutumnProvRep!$K:$K,AutumnProvRep!$A:$A,Data!$A$27,AutumnProvRep!$P:$P,"Coventry",AutumnProvRep!$U:$U,Data!L$17)/$BA$46*$A$46 -> 4198 | M53: =SUMIFS(AutumnProvRep!$K:$K,AutumnProvRep!$A:$A,Data!$A$27,AutumnProvRep!$P:$P,"Coventry",AutumnProvRep!$U:$U,Data!M$17)/$BA$46*$A$46 -> 75 | N53: =SUMIFS(AutumnProvRep!$K:$K,AutumnProvRep!$A:$A,Data!$A$27,AutumnProvRep!$P:$P,"Coventry",AutumnProvRep!$U:$U,Data!N$17)/$BA$46*$A$46 -> 1983 | O53: =SUMIFS(AutumnProvRep!$K:$K,AutumnProvRep!$A:$A,Data!$A$27,AutumnProvRep!$P:$P,"Coventry",AutumnProvRep!$U:$U,Data!O$17)/$BA$46*$A$46 -> 225 | P53: =SUMIFS(AutumnProvRep!$K:$K,AutumnProvRep!$A:$A,Data!$A$27,AutumnProvRep!$P:$P,"Coventry",AutumnProvRep!$U:$U,Data!P$17)/$BA$46*$A$46 -> 0 | Q53: =SUMIFS(AutumnProvRep!$K:$K,AutumnProvRep!$A:$A,Data!$A$27,AutumnProvRep!$P:$P,"Coventry",AutumnProvRep!$U:$U,Data!Q$17)/$BA$46*$A$46 -> 2021 | R53: =SUMIFS(AutumnProvRep!$K:$K,AutumnProvRep!$A:$A,Data!$A$27,AutumnProvRep!$P:$P,"Coventry",AutumnProvRep!$U:$U,Data!R$17)/$BA$46*$A$46 -> 1761 | S53: =SUMIFS(AutumnProvRep!$K:$K,AutumnProvRep!$A:$A,Data!$A$27,AutumnProvRep!$P:$P,"Coventry",AutumnProvRep!$U:$U,Data!S$17)/$BA$46*$A$46 -> 0 | T53: =SUMIFS(AutumnProvRep!$K:$K,AutumnProvRep!$A:$A,Data!$A$27,AutumnProvRep!$P:$P,"Coventry",AutumnProvRep!$U:$U,Data!T$17)/$BA$46*$A$46 -> 1611 | U53: =SUMIFS(AutumnProvRep!$K:$K,AutumnProvRep!$A:$A,Data!$A$27,AutumnProvRep!$P:$P,"Coventry",AutumnProvRep!$U:$U,Data!U$17)/$BA$46*$A$46 -> 0 | V53: =SUMIFS(AutumnProvRep!$K:$K,AutumnProvRep!$A:$A,Data!$A$27,AutumnProvRep!$P:$P,"Coventry",AutumnProvRep!$U:$U,Data!V$17)/$BA$46*$A$46 -> 0 | W53: 252.7733333 | X53: 1211091.732 | Y53: 0 | Z53: =SUMIFS(AutumnProvRep!$K:$K,AutumnProvRep!$A:$A,Data!$A$27,AutumnProvRep!$P:$P,"<>Coventry",AutumnProvRep!$U:$U,Data!Z$17)/$BA$46*$A$46 -> 0 | AA53: =SUMIFS(AutumnProvRep!$K:$K,AutumnProvRep!$A:$A,Data!$A$27,AutumnProvRep!$P:$P,"<>Coventry",AutumnProvRep!$U:$U,Data!AA$17)/$BA$46*$A$46 -> 0 | AB53: =SUMIFS(AutumnProvRep!$K:$K,AutumnProvRep!$A:$A,Data!$A$27,AutumnProvRep!$P:$P,"<>Coventry",AutumnProvRep!$U:$U,Data!AB$17)/$BA$46*$A$46 -> 0 | AC53: =SUMIFS(AutumnProvRep!$K:$K,AutumnProvRep!$A:$A,Data!$A$27,AutumnProvRep!$P:$P,"<>Coventry",AutumnProvRep!$U:$U,Data!AC$17)/$BA$46*$A$46 -> 0 | AD53: =SUMIFS(AutumnProvRep!$K:$K,AutumnProvRep!$A:$A,Data!$A$27,AutumnProvRep!$P:$P,"<>Coventry",AutumnProvRep!$U:$U,Data!AD$17)/$BA$46*$A$46 -> 0 | AE53: =SUMIFS(AutumnProvRep!$K:$K,AutumnProvRep!$A:$A,Data!$A$27,AutumnProvRep!$P:$P,"<>Coventry",AutumnProvRep!$U:$U,Data!AE$17)/$BA$46*$A$46 -> 0 | AF53: =SUMIFS(AutumnProvRep!$K:$K,AutumnProvRep!$A:$A,Data!$A$27,AutumnProvRep!$P:$P,"<>Coventry",AutumnProvRep!$U:$U,Data!AF$17)/$BA$46*$A$46 -> 150 | AG53: =SUMIFS(AutumnProvRep!$K:$K,AutumnProvRep!$A:$A,Data!$A$27,AutumnProvRep!$P:$P,"<>Coventry",AutumnProvRep!$U:$U,Data!AG$17)/$BA$46*$A$46 -> 0 | AH53: =SUMIFS(AutumnProvRep!$K:$K,AutumnProvRep!$A:$A,Data!$A$27,AutumnProvRep!$P:$P,"<>Coventry",AutumnProvRep!$U:$U,Data!AH$17)/$BA$46*$A$46 -> 0 | AI53: =SUMIFS(AutumnProvRep!$K:$K,AutumnProvRep!$A:$A,Data!$A$27,AutumnProvRep!$P:$P,"<>Coventry",AutumnProvRep!$U:$U,Data!AI$17)/$BA$46*$A$46 -> 75 | AJ53: =SUMIFS(AutumnProvRep!$K:$K,AutumnProvRep!$A:$A,Data!$A$27,AutumnProvRep!$P:$P,"<>Coventry",AutumnProvRep!$U:$U,Data!AJ$17)/$BA$46*$A$46 -> 0 | AK53: =SUMIFS(AutumnProvRep!$K:$K,AutumnProvRep!$A:$A,Data!$A$27,AutumnProvRep!$P:$P,"<>Coventry",AutumnProvRep!$U:$U,Data!AK$17)/$BA$46*$A$46 -> 0 | AL53: =SUMIFS(AutumnProvRep!$K:$K,AutumnProvRep!$A:$A,Data!$A$27,AutumnProvRep!$P:$P,"<>Coventry",AutumnProvRep!$U:$U,Data!AL$17)/$BA$46*$A$46 -> 0 | AM53: =SUMIFS(AutumnProvRep!$K:$K,AutumnProvRep!$A:$A,Data!$A$27,AutumnProvRep!$P:$P,"<>Coventry",AutumnProvRep!$U:$U,Data!AM$17)/$BA$46*$A$46 -> 0 | AN53: =SUMIFS(AutumnProvRep!$K:$K,AutumnProvRep!$A:$A,Data!$A$27,AutumnProvRep!$P:$P,"<>Coventry",AutumnProvRep!$U:$U,Data!AN$17)/$BA$46*$A$46 -> 0 | AO53: =SUMIFS(AutumnProvRep!$K:$K,AutumnProvRep!$A:$A,Data!$A$27,AutumnProvRep!$P:$P,"<>Coventry",AutumnProvRep!$U:$U,Data!AO$17)/$BA$46*$A$46 -> 150 | AP53: =SUMIFS(AutumnProvRep!$K:$K,AutumnProvRep!$A:$A,Data!$A$27,AutumnProvRep!$P:$P,"<>Coventry",AutumnProvRep!$U:$U,Data!AP$17)/$BA$46*$A$46 -> 0 | AQ53: =SUMIFS(AutumnProvRep!$K:$K,AutumnProvRep!$A:$A,Data!$A$27,AutumnProvRep!$P:$P,"<>Coventry",AutumnProvRep!$U:$U,Data!AQ$17)/$BA$46*$A$46 -> 0 | AR53: 5 | AS53: 25324.32826 | AT53: 1236416.06 | AU53: 257.7733333 | AV53: -0.2266666667 | AW53: 258 | AX53: =[5]Data!$AU41 -> 251.8552632 | AY53: 258 | BB53: =($O$10-$AU$53)*$A$46 -> 17 | BD53: 19333 | BE53: =$BB$53/$BD$53*D53 -> 0 | BF53: 0 | BG53: 0 | BH53: 0 | BI53: 0.06594941292 | BJ53: 0 | BK53: 0 | BL53: 6.163192469 | BM53: 3.691408473 | BN53: 0.06594941292 | BO53: 1.743702478 | BP53: 0.1978482388 | BQ53: 0 | BR53: 1.777116847 | BS53: 1.548492215 | BT53: 0 | BU53: 1.41659339 | BV53: 0 | BW53: 0 | BY53: =$BB$53/$BD$53*Y53 -> 0 | BZ53: 0 | CA53: 0 | CB53: 0 | CC53: 0 | CD53: 0 | CE53: 0 | CF53: 0.1318988258 | CG53: 0 | CH53: 0 | CI53: 0.06594941292 | CJ53: 0 | CK53: 0 | CL53: 0 | CM53: 0 | CN53: 0 | CO53: 0.1318988258 | CP53: 0 | CQ53: 0
A54: 8 | B54: Woodfield | C54: =10000/$A$16 -> 51.54639175 | D54: 0 | E54: =SUMIFS(AutumnProvRep!$K:$K,AutumnProvRep!$A:$A,Data!$A$28,AutumnProvRep!$P:$P,"Coventry",AutumnProvRep!$U:$U,Data!E$17)/$BA$46*$A$46 -> 0 | F54: =SUMIFS(AutumnProvRep!$K:$K,AutumnProvRep!$A:$A,Data!$A$28,AutumnProvRep!$P:$P,"Coventry",AutumnProvRep!$U:$U,Data!F$17)/$BA$46*$A$46 -> 0 | G54: =SUMIFS(AutumnProvRep!$K:$K,AutumnProvRep!$A:$A,Data!$A$28,AutumnProvRep!$P:$P,"Coventry",AutumnProvRep!$U:$U,Data!G$17)/$BA$46*$A$46 -> 0 | H54: =SUMIFS(AutumnProvRep!$K:$K,AutumnProvRep!$A:$A,Data!$A$28,AutumnProvRep!$P:$P,"Coventry",AutumnProvRep!$U:$U,Data!H$17)/$BA$46*$A$46 -> 0 | I54: =SUMIFS(AutumnProvRep!$K:$K,AutumnProvRep!$A:$A,Data!$A$28,AutumnProvRep!$P:$P,"Coventry",AutumnProvRep!$U:$U,Data!I$17)/$BA$46*$A$46 -> 0 | J54: =SUMIFS(AutumnProvRep!$K:$K,AutumnProvRep!$A:$A,Data!$A$28,AutumnProvRep!$P:$P,"Coventry",AutumnProvRep!$U:$U,Data!J$17)/$BA$46*$A$46 -> 0 | K54: =SUMIFS(AutumnProvRep!$K:$K,AutumnProvRep!$A:$A,Data!$A$28,AutumnProvRep!$P:$P,"Coventry",AutumnProvRep!$U:$U,Data!K$17)/$BA$46*$A$46 -> 0 | L54: =SUMIFS(AutumnProvRep!$K:$K,AutumnProvRep!$A:$A,Data!$A$28,AutumnProvRep!$P:$P,"Coventry",AutumnProvRep!$U:$U,Data!L$17)/$BA$46*$A$46 -> 0 | M54: =SUMIFS(AutumnProvRep!$K:$K,AutumnProvRep!$A:$A,Data!$A$28,AutumnProvRep!$P:$P,"Coventry",AutumnProvRep!$U:$U,Data!M$17)/$BA$46*$A$46 -> 0 | N54: =SUMIFS(AutumnProvRep!$K:$K,AutumnProvRep!$A:$A,Data!$A$28,AutumnProvRep!$P:$P,"Coventry",AutumnProvRep!$U:$U,Data!N$17)/$BA$46*$A$46 -> 0 | O54: =SUMIFS(AutumnProvRep!$K:$K,AutumnProvRep!$A:$A,Data!$A$28,AutumnProvRep!$P:$P,"Coventry",AutumnProvRep!$U:$U,Data!O$17)/$BA$46*$A$46 -> 600 | P54: =SUMIFS(AutumnProvRep!$K:$K,AutumnProvRep!$A:$A,Data!$A$28,AutumnProvRep!$P:$P,"Coventry",AutumnProvRep!$U:$U,Data!P$17)/$BA$46*$A$46 -> 0 | Q54: =SUMIFS(AutumnProvRep!$K:$K,AutumnProvRep!$A:$A,Data!$A$28,AutumnProvRep!$P:$P,"Coventry",AutumnProvRep!$U:$U,Data!Q$17)/$BA$46*$A$46 -> 11133 | R54: =SUMIFS(AutumnProvRep!$K:$K,AutumnProvRep!$A:$A,Data!$A$28,AutumnProvRep!$P:$P,"Coventry",AutumnProvRep!$U:$U,Data!R$17)/$BA$46*$A$46 -> 0 | S54: =SUMIFS(AutumnProvRep!$K:$K,AutumnProvRep!$A:$A,Data!$A$28,AutumnProvRep!$P:$P,"Coventry",AutumnProvRep!$U:$U,Data!S$17)/$BA$46*$A$46 -> 150 | T54: =SUMIFS(AutumnProvRep!$K:$K,AutumnProvRep!$A:$A,Data!$A$28,AutumnProvRep!$P:$P,"Coventry",AutumnProvRep!$U:$U,Data!T$17)/$BA$46*$A$46 -> 0 | U54: =SUMIFS(AutumnProvRep!$K:$K,AutumnProvRep!$A:$A,Data!$A$28,AutumnProvRep!$P:$P,"Coventry",AutumnProvRep!$U:$U,Data!U$17)/$BA$46*$A$46 -> 150 | V54: =SUMIFS(AutumnProvRep!$K:$K,AutumnProvRep!$A:$A,Data!$A$28,AutumnProvRep!$P:$P,"Coventry",AutumnProvRep!$U:$U,Data!V$17)/$BA$46*$A$46 -> 0 | W54: =SUM(D54:V54)/$A$46 -> 160.44 | X54: 1114343.919 | Y54: 0 | Z54: =SUMIFS(AutumnProvRep!$K:$K,AutumnProvRep!$A:$A,Data!$A$28,AutumnProvRep!$P:$P,"<>Coventry",AutumnProvRep!$U:$U,Data!Z$17)/$BA$46*$A$46 -> 0 | AA54: =SUMIFS(AutumnProvRep!$K:$K,AutumnProvRep!$A:$A,Data!$A$28,AutumnProvRep!$P:$P,"<>Coventry",AutumnProvRep!$U:$U,Data!AA$17)/$BA$46*$A$46 -> 0 | AB54: =SUMIFS(AutumnProvRep!$K:$K,AutumnProvRep!$A:$A,Data!$A$28,AutumnProvRep!$P:$P,"<>Coventry",AutumnProvRep!$U:$U,Data!AB$17)/$BA$46*$A$46 -> 0 | AC54: =SUMIFS(AutumnProvRep!$K:$K,AutumnProvRep!$A:$A,Data!$A$28,AutumnProvRep!$P:$P,"<>Coventry",AutumnProvRep!$U:$U,Data!AC$17)/$BA$46*$A$46 -> 0 | AD54: =SUMIFS(AutumnProvRep!$K:$K,AutumnProvRep!$A:$A,Data!$A$28,AutumnProvRep!$P:$P,"<>Coventry",AutumnProvRep!$U:$U,Data!AD$17)/$BA$46*$A$46 -> 0 | AE54: =SUMIFS(AutumnProvRep!$K:$K,AutumnProvRep!$A:$A,Data!$A$28,AutumnProvRep!$P:$P,"<>Coventry",AutumnProvRep!$U:$U,Data!AE$17)/$BA$46*$A$46 -> 0 | AF54: =SUMIFS(AutumnProvRep!$K:$K,AutumnProvRep!$A:$A,Data!$A$28,AutumnProvRep!$P:$P,"<>Coventry",AutumnProvRep!$U:$U,Data!AF$17)/$BA$46*$A$46 -> 0 | AG54: =SUMIFS(AutumnProvRep!$K:$K,AutumnProvRep!$A:$A,Data!$A$28,AutumnProvRep!$P:$P,"<>Coventry",AutumnProvRep!$U:$U,Data!AG$17)/$BA$46*$A$46 -> 0 | AH54: =SUMIFS(AutumnProvRep!$K:$K,AutumnProvRep!$A:$A,Data!$A$28,AutumnProvRep!$P:$P,"<>Coventry",AutumnProvRep!$U:$U,Data!AH$17)/$BA$46*$A$46 -> 0 | AI54: =SUMIFS(AutumnProvRep!$K:$K,AutumnProvRep!$A:$A,Data!$A$28,AutumnProvRep!$P:$P,"<>Coventry",AutumnProvRep!$U:$U,Data!AI$17)/$BA$46*$A$46 -> 0 | AJ54: =SUMIFS(AutumnProvRep!$K:$K,AutumnProvRep!$A:$A,Data!$A$28,AutumnProvRep!$P:$P,"<>Coventry",AutumnProvRep!$U:$U,Data!AJ$17)/$BA$46*$A$46 -> 0 | AK54: =SUMIFS(AutumnProvRep!$K:$K,AutumnProvRep!$A:$A,Data!$A$28,AutumnProvRep!$P:$P,"<>Coventry",AutumnProvRep!$U:$U,Data!AK$17)/$BA$46*$A$46 -> 0 | AL54: =SUMIFS(AutumnProvRep!$K:$K,AutumnProvRep!$A:$A,Data!$A$28,AutumnProvRep!$P:$P,"<>Coventry",AutumnProvRep!$U:$U,Data!AL$17)/$BA$46*$A$46 -> 75 | AM54: =SUMIFS(AutumnProvRep!$K:$K,AutumnProvRep!$A:$A,Data!$A$28,AutumnProvRep!$P:$P,"<>Coventry",AutumnProvRep!$U:$U,Data!AM$17)/$BA$46*$A$46 -> 0 | AN54: =SUMIFS(AutumnProvRep!$K:$K,AutumnProvRep!$A:$A,Data!$A$28,AutumnProvRep!$P:$P,"<>Coventry",AutumnProvRep!$U:$U,Data!AN$17)/$BA$46*$A$46 -> 75 | AO54: =SUMIFS(AutumnProvRep!$K:$K,AutumnProvRep!$A:$A,Data!$A$28,AutumnProvRep!$P:$P,"<>Coventry",AutumnProvRep!$U:$U,Data!AO$17)/$BA$46*$A$46 -> 0 | AP54: =SUMIFS(AutumnProvRep!$K:$K,AutumnProvRep!$A:$A,Data!$A$28,AutumnProvRep!$P:$P,"<>Coventry",AutumnProvRep!$U:$U,Data!AP$17)/$BA$46*$A$46 -> 0 | AQ54: =SUMIFS(AutumnProvRep!$K:$K,AutumnProvRep!$A:$A,Data!$A$28,AutumnProvRep!$P:$P,"<>Coventry",AutumnProvRep!$U:$U,Data!AQ$17)/$BA$46*$A$46 -> 0 | AR54: 2 | AS54: 13168.65677 | AT54: 1127512.575 | AU54: 162.44 | AV54: 1.44 | AW54: 161 | AX54: =[5]Data!$AU42 -> 155.6315789 | AY54: 155 | BB54: =($O$11-$AU$54)*$A$46 -> -108 | BD54: 12183 | BE54: =$BB$54/$BD$54*D54 -> 0 | BF54: 0 | BG54: 0 | BH54: 0 | BI54: 0 | BJ54: 0 | BK54: 0 | BL54: 0 | BM54: 0 | BN54: 0 | BO54: 0 | BP54: -5.318886974 | BQ54: 0 | BR54: -98.6919478 | BS54: 0 | BT54: -1.329721743 | BU54: 0 | BV54: -1.329721743 | BW54: 0 | BY54: =$BB$54/$BD$54*Y54 -> 0 | BZ54: 0 | CA54: 0 | CB54: 0 | CC54: 0 | CD54: 0 | CE54: 0 | CF54: 0 | CG54: 0 | CH54: 0 | CI54: 0 | CJ54: 0 | CK54: 0 | CL54: -0.6648608717 | CM54: 0 | CN54: -0.6648608717 | CO54: 0 | CP54: 0 | CQ54: 0
A55: 9 | B55: Coventry ELC | C55: =10000/$A$16 -> 51.54639175 | D55: =120*A46 -> 9000 | E55: 0 | F55: 0 | G55: 0 | H55: 0 | I55: 0 | J55: 0 | K55: 0 | L55: 0 | M55: 0 | N55: 0 | O55: 0 | P55: 0 | Q55: 0 | R55: 0 | S55: 0 | T55: 0 | U55: 0 | V55: 0 | W55: =SUM(D55:V55)/$A$46 -> 120 | X55: =SUMPRODUCT(D55:V55,$Y$12:$AQ$12)/$A$16 -> 598330.6664 | Y55: =A46*0 -> 0 | Z55: 0 | AA55: 0 | AB55: 0 | AC55: 0 | AD55: 0 | AE55: 0 | AF55: 0 | AG55: 0 | AH55: 0 | AI55: 0 | AJ55: 0 | AK55: 0 | AL55: 0 | AM55: 0 | AN55: 0 | AO55: 0 | AP55: 0 | AQ55: 0 | AR55: 0 | AS55: =SUMPRODUCT(Y55:AQ55,$Y$12:$AQ$12)/$A$16 -> 0 | AT55: 598330.6664 | AU55: 120 | AV55: =AU55-AW55 -> 0 | AW55: 120 | AX55: =[5]Data!$AU43 -> 120 | AY55: 120 | BB55: =($O$12-$AU$55)*$A$46 -> 0 | BD55: 9000 | BE55: =$BB$55/$BD$55*D55 -> 0 | BF55: 0 | BG55: 0 | BH55: 0 | BI55: 0 | BJ55: 0 | BK55: 0 | BL55: 0 | BM55: 0 | BN55: 0 | BO55: 0 | BP55: 0 | BQ55: 0 | BR55: 0 | BS55: 0 | BT55: 0 | BU55: 0 | BV55: 0 | BW55: 0 | BY55: =$BB$55/$BD$55*Y55 -> 0 | BZ55: 0 | CA55: 0 | CB55: 0 | CC55: 0 | CD55: 0 | CE55: 0 | CF55: 0 | CG55: 0 | CH55: 0 | CI55: 0 | CJ55: 0 | CK55: 0 | CL55: 0 | CM55: 0 | CN55: 0 | CO55: 0 | CP55: 0 | CQ55: 0
AS56: =SUM(AS47:AS55) -> 97637.13326 | AT56: =SUM(AT47:AT55) -> 7605808.631 | AU56: =SUM(AU47:AU55) -> 1465.373333
B57: Autumn Term 2025
A58: 75 | B58: School
A59: 1 | B59: Castle Wood | C59: =10000/$A$16 -> 51.54639175 | D59: =D47+BE47 -> 0 | E59: =SUMIFS(AutumnProvRep!$K:$K,AutumnProvRep!$A:$A,$A21,AutumnProvRep!$P:$P,"Coventry",AutumnProvRep!$U:$U,Data!E$17) -> 0 | F59: =SUMIFS(AutumnProvRep!$K:$K,AutumnProvRep!$A:$A,$A21,AutumnProvRep!$P:$P,"Coventry",AutumnProvRep!$U:$U,Data!F$17) -> 0 | G59: =SUMIFS(AutumnProvRep!$K:$K,AutumnProvRep!$A:$A,$A21,AutumnProvRep!$P:$P,"Coventry",AutumnProvRep!$U:$U,Data!G$17) -> 73 | H59: =SUMIFS(AutumnProvRep!$K:$K,AutumnProvRep!$A:$A,$A21,AutumnProvRep!$P:$P,"Coventry",AutumnProvRep!$U:$U,Data!H$17) -> 0 | I59: =SUMIFS(AutumnProvRep!$K:$K,AutumnProvRep!$A:$A,$A21,AutumnProvRep!$P:$P,"Coventry",AutumnProvRep!$U:$U,Data!I$17) -> 0 | J59: =SUMIFS(AutumnProvRep!$K:$K,AutumnProvRep!$A:$A,$A21,AutumnProvRep!$P:$P,"Coventry",AutumnProvRep!$U:$U,Data!J$17) -> 75 | K59: =SUMIFS(AutumnProvRep!$K:$K,AutumnProvRep!$A:$A,$A21,AutumnProvRep!$P:$P,"Coventry",AutumnProvRep!$U:$U,Data!K$17) -> 8436 | L59: =SUMIFS(AutumnProvRep!$K:$K,AutumnProvRep!$A:$A,$A21,AutumnProvRep!$P:$P,"Coventry",AutumnProvRep!$U:$U,Data!L$17) -> 600 | M59: =SUMIFS(AutumnProvRep!$K:$K,AutumnProvRep!$A:$A,$A21,AutumnProvRep!$P:$P,"Coventry",AutumnProvRep!$U:$U,Data!M$17) -> 0 | N59: =SUMIFS(AutumnProvRep!$K:$K,AutumnProvRep!$A:$A,$A21,AutumnProvRep!$P:$P,"Coventry",AutumnProvRep!$U:$U,Data!N$17) -> 521 | O59: =SUMIFS(AutumnProvRep!$K:$K,AutumnProvRep!$A:$A,$A21,AutumnProvRep!$P:$P,"Coventry",AutumnProvRep!$U:$U,Data!O$17) -> 762 | P59: =SUMIFS(AutumnProvRep!$K:$K,AutumnProvRep!$A:$A,$A21,AutumnProvRep!$P:$P,"Coventry",AutumnProvRep!$U:$U,Data!P$17) -> 0 | Q59: =SUMIFS(AutumnProvRep!$K:$K,AutumnProvRep!$A:$A,$A21,AutumnProvRep!$P:$P,"Coventry",AutumnProvRep!$U:$U,Data!Q$17) -> 2275 | R59: =SUMIFS(AutumnProvRep!$K:$K,AutumnProvRep!$A:$A,$A21,AutumnProvRep!$P:$P,"Coventry",AutumnProvRep!$U:$U,Data!R$17) -> 450 | S59: =SUMIFS(AutumnProvRep!$K:$K,AutumnProvRep!$A:$A,$A21,AutumnProvRep!$P:$P,"Coventry",AutumnProvRep!$U:$U,Data!S$17) -> 0 | T59: =SUMIFS(AutumnProvRep!$K:$K,AutumnProvRep!$A:$A,$A21,AutumnProvRep!$P:$P,"Coventry",AutumnProvRep!$U:$U,Data!T$17) -> 300 | U59: =SUMIFS(AutumnProvRep!$K:$K,AutumnProvRep!$A:$A,$A21,AutumnProvRep!$P:$P,"Coventry",AutumnProvRep!$U:$U,Data!U$17) -> 94 | V59: =SUMIFS(AutumnProvRep!$K:$K,AutumnProvRep!$A:$A,$A21,AutumnProvRep!$P:$P,"Coventry",AutumnProvRep!$U:$U,Data!V$17) -> 0 | W59: =SUM(D59:V59)/$A$46 -> 181.1466667 | X59: =SUMPRODUCT(D59:V59,$Y$6:$AQ$6)/$A$16 -> 916325.2092 | Y59: =Y47+BY47 -> 0 | Z59: =SUMIFS(AutumnProvRep!$K:$K,AutumnProvRep!$A:$A,$A21,AutumnProvRep!$P:$P,"<>Coventry",AutumnProvRep!$U:$U,Data!Z$17) -> 0 | AA59: =SUMIFS(AutumnProvRep!$K:$K,AutumnProvRep!$A:$A,$A21,AutumnProvRep!$P:$P,"<>Coventry",AutumnProvRep!$U:$U,Data!AA$17) -> 0 | AB59: =SUMIFS(AutumnProvRep!$K:$K,AutumnProvRep!$A:$A,$A21,AutumnProvRep!$P:$P,"<>Coventry",AutumnProvRep!$U:$U,Data!AB$17) -> 0 | AC59: =SUMIFS(AutumnProvRep!$K:$K,AutumnProvRep!$A:$A,$A21,AutumnProvRep!$P:$P,"<>Coventry",AutumnProvRep!$U:$U,Data!AC$17) -> 0 | AD59: =SUMIFS(AutumnProvRep!$K:$K,AutumnProvRep!$A:$A,$A21,AutumnProvRep!$P:$P,"<>Coventry",AutumnProvRep!$U:$U,Data!AD$17) -> 0 | AE59: =SUMIFS(AutumnProvRep!$K:$K,AutumnProvRep!$A:$A,$A21,AutumnProvRep!$P:$P,"<>Coventry",AutumnProvRep!$U:$U,Data!AE$17) -> 0 | AF59: =SUMIFS(AutumnProvRep!$K:$K,AutumnProvRep!$A:$A,$A21,AutumnProvRep!$P:$P,"<>Coventry",AutumnProvRep!$U:$U,Data!AF$17) -> 296 | AG59: =SUMIFS(AutumnProvRep!$K:$K,AutumnProvRep!$A:$A,$A21,AutumnProvRep!$P:$P,"<>Coventry",AutumnProvRep!$U:$U,Data!AG$17) -> 0 | AH59: =SUMIFS(AutumnProvRep!$K:$K,AutumnProvRep!$A:$A,$A21,AutumnProvRep!$P:$P,"<>Coventry",AutumnProvRep!$U:$U,Data!AH$17) -> 0 | AI59: =SUMIFS(AutumnProvRep!$K:$K,AutumnProvRep!$A:$A,$A21,AutumnProvRep!$P:$P,"<>Coventry",AutumnProvRep!$U:$U,Data!AI$17) -> 0 | AJ59: =SUMIFS(AutumnProvRep!$K:$K,AutumnProvRep!$A:$A,$A21,AutumnProvRep!$P:$P,"<>Coventry",AutumnProvRep!$U:$U,Data!AJ$17) -> 0 | AK59: =SUMIFS(AutumnProvRep!$K:$K,AutumnProvRep!$A:$A,$A21,AutumnProvRep!$P:$P,"<>Coventry",AutumnProvRep!$U:$U,Data!AK$17) -> 0 | AL59: =SUMIFS(AutumnProvRep!$K:$K,AutumnProvRep!$A:$A,$A21,AutumnProvRep!$P:$P,"<>Coventry",AutumnProvRep!$U:$U,Data!AL$17) -> 0 | AM59: =SUMIFS(AutumnProvRep!$K:$K,AutumnProvRep!$A:$A,$A21,AutumnProvRep!$P:$P,"<>Coventry",AutumnProvRep!$U:$U,Data!AM$17) -> 0 | AN59: =SUMIFS(AutumnProvRep!$K:$K,AutumnProvRep!$A:$A,$A21,AutumnProvRep!$P:$P,"<>Coventry",AutumnProvRep!$U:$U,Data!AN$17) -> 0 | AO59: =SUMIFS(AutumnProvRep!$K:$K,AutumnProvRep!$A:$A,$A21,AutumnProvRep!$P:$P,"<>Coventry",AutumnProvRep!$U:$U,Data!AO$17) -> 0 | AP59: =SUMIFS(AutumnProvRep!$K:$K,AutumnProvRep!$A:$A,$A21,AutumnProvRep!$P:$P,"<>Coventry",AutumnProvRep!$U:$U,Data!AP$17) -> 0 | AQ59: =SUMIFS(AutumnProvRep!$K:$K,AutumnProvRep!$A:$A,$A21,AutumnProvRep!$P:$P,"<>Coventry",AutumnProvRep!$U:$U,Data!AQ$17) -> 0 | AR59: =SUM(Y59:AQ59)/$A$46 -> 3.946666667 | AS59: =SUMPRODUCT(Y59:AQ59,$Y$6:$AQ$6)/$A$16 -> 15991.47258 | AT59: =X59+AS59 -> 932316.6817 | AU59: =AR59+W59 -> 185.0933333 | AV59: =AU59-AW59 -> -4.906666667 | AW59: =O4 -> 190 | AX59: =[5]Data!$AU35 -> 159.6842105 | AY59: =E4 -> 164 | BA59: =(AT59/75*200)/AU59 -> 13432.0225 | BC59: =X59/W59 -> 5058.471271
A60: 2 | B60: Kingsbury | C60: =10000/$A$16 -> 51.54639175 | D60: =D48+BE48 -> 0 | E60: =SUMIFS(AutumnProvRep!$K:$K,AutumnProvRep!$A:$A,$A22,AutumnProvRep!$P:$P,"Coventry",AutumnProvRep!$U:$U,Data!E$17) -> 0 | F60: =SUMIFS(AutumnProvRep!$K:$K,AutumnProvRep!$A:$A,$A22,AutumnProvRep!$P:$P,"Coventry",AutumnProvRep!$U:$U,Data!F$17) -> 0 | G60: =SUMIFS(AutumnProvRep!$K:$K,AutumnProvRep!$A:$A,$A22,AutumnProvRep!$P:$P,"Coventry",AutumnProvRep!$U:$U,Data!G$17) -> 0 | H60: =SUMIFS(AutumnProvRep!$K:$K,AutumnProvRep!$A:$A,$A22,AutumnProvRep!$P:$P,"Coventry",AutumnProvRep!$U:$U,Data!H$17) -> 0 | I60: =SUMIFS(AutumnProvRep!$K:$K,AutumnProvRep!$A:$A,$A22,AutumnProvRep!$P:$P,"Coventry",AutumnProvRep!$U:$U,Data!I$17) -> 0 | J60: =SUMIFS(AutumnProvRep!$K:$K,AutumnProvRep!$A:$A,$A22,AutumnProvRep!$P:$P,"Coventry",AutumnProvRep!$U:$U,Data!J$17) -> 0 | K60: =SUMIFS(AutumnProvRep!$K:$K,AutumnProvRep!$A:$A,$A22,AutumnProvRep!$P:$P,"Coventry",AutumnProvRep!$U:$U,Data!K$17) -> 4241 | L60: =SUMIFS(AutumnProvRep!$K:$K,AutumnProvRep!$A:$A,$A22,AutumnProvRep!$P:$P,"Coventry",AutumnProvRep!$U:$U,Data!L$17) -> 150 | M60: =SUMIFS(AutumnProvRep!$K:$K,AutumnProvRep!$A:$A,$A22,AutumnProvRep!$P:$P,"Coventry",AutumnProvRep!$U:$U,Data!M$17) -> 0 | N60: =SUMIFS(AutumnProvRep!$K:$K,AutumnProvRep!$A:$A,$A22,AutumnProvRep!$P:$P,"Coventry",AutumnProvRep!$U:$U,Data!N$17) -> 0 | O60: =SUMIFS(AutumnProvRep!$K:$K,AutumnProvRep!$A:$A,$A22,AutumnProvRep!$P:$P,"Coventry",AutumnProvRep!$U:$U,Data!O$17) -> 1233 | P60: =SUMIFS(AutumnProvRep!$K:$K,AutumnProvRep!$A:$A,$A22,AutumnProvRep!$P:$P,"Coventry",AutumnProvRep!$U:$U,Data!P$17) -> 0 | Q60: =SUMIFS(AutumnProvRep!$K:$K,AutumnProvRep!$A:$A,$A22,AutumnProvRep!$P:$P,"Coventry",AutumnProvRep!$U:$U,Data!Q$17) -> 2061 | R60: =SUMIFS(AutumnProvRep!$K:$K,AutumnProvRep!$A:$A,$A22,AutumnProvRep!$P:$P,"Coventry",AutumnProvRep!$U:$U,Data!R$17) -> 0 | S60: =SUMIFS(AutumnProvRep!$K:$K,AutumnProvRep!$A:$A,$A22,AutumnProvRep!$P:$P,"Coventry",AutumnProvRep!$U:$U,Data!S$17) -> 0 | T60: =SUMIFS(AutumnProvRep!$K:$K,AutumnProvRep!$A:$A,$A22,AutumnProvRep!$P:$P,"Coventry",AutumnProvRep!$U:$U,Data!T$17) -> 0 | U60: =SUMIFS(AutumnProvRep!$K:$K,AutumnProvRep!$A:$A,$A22,AutumnProvRep!$P:$P,"Coventry",AutumnProvRep!$U:$U,Data!U$17) -> 0 | V60: =SUMIFS(AutumnProvRep!$K:$K,AutumnProvRep!$A:$A,$A22,AutumnProvRep!$P:$P,"Coventry",AutumnProvRep!$U:$U,Data!V$17) -> 0 | W60: 102.4666667 | X60: 587157.0682 | Y60: =Y48+BY48 -> 0 | Z60: =SUMIFS(AutumnProvRep!$K:$K,AutumnProvRep!$A:$A,$A22,AutumnProvRep!$P:$P,"<>Coventry",AutumnProvRep!$U:$U,Data!Z$17) -> 0 | AA60: =SUMIFS(AutumnProvRep!$K:$K,AutumnProvRep!$A:$A,$A22,AutumnProvRep!$P:$P,"<>Coventry",AutumnProvRep!$U:$U,Data!AA$17) -> 0 | AB60: =SUMIFS(AutumnProvRep!$K:$K,AutumnProvRep!$A:$A,$A22,AutumnProvRep!$P:$P,"<>Coventry",AutumnProvRep!$U:$U,Data!AB$17) -> 0 | AC60: =SUMIFS(AutumnProvRep!$K:$K,AutumnProvRep!$A:$A,$A22,AutumnProvRep!$P:$P,"<>Coventry",AutumnProvRep!$U:$U,Data!AC$17) -> 0 | AD60: =SUMIFS(AutumnProvRep!$K:$K,AutumnProvRep!$A:$A,$A22,AutumnProvRep!$P:$P,"<>Coventry",AutumnProvRep!$U:$U,Data!AD$17) -> 0 | AE60: =SUMIFS(AutumnProvRep!$K:$K,AutumnProvRep!$A:$A,$A22,AutumnProvRep!$P:$P,"<>Coventry",AutumnProvRep!$U:$U,Data!AE$17) -> 0 | AF60: =SUMIFS(AutumnProvRep!$K:$K,AutumnProvRep!$A:$A,$A22,AutumnProvRep!$P:$P,"<>Coventry",AutumnProvRep!$U:$U,Data!AF$17) -> 75 | AG60: =SUMIFS(AutumnProvRep!$K:$K,AutumnProvRep!$A:$A,$A22,AutumnProvRep!$P:$P,"<>Coventry",AutumnProvRep!$U:$U,Data!AG$17) -> 75 | AH60: =SUMIFS(AutumnProvRep!$K:$K,AutumnProvRep!$A:$A,$A22,AutumnProvRep!$P:$P,"<>Coventry",AutumnProvRep!$U:$U,Data!AH$17) -> 0 | AI60: =SUMIFS(AutumnProvRep!$K:$K,AutumnProvRep!$A:$A,$A22,AutumnProvRep!$P:$P,"<>Coventry",AutumnProvRep!$U:$U,Data!AI$17) -> 0 | AJ60: =SUMIFS(AutumnProvRep!$K:$K,AutumnProvRep!$A:$A,$A22,AutumnProvRep!$P:$P,"<>Coventry",AutumnProvRep!$U:$U,Data!AJ$17) -> 0 | AK60: =SUMIFS(AutumnProvRep!$K:$K,AutumnProvRep!$A:$A,$A22,AutumnProvRep!$P:$P,"<>Coventry",AutumnProvRep!$U:$U,Data!AK$17) -> 0 | AL60: =SUMIFS(AutumnProvRep!$K:$K,AutumnProvRep!$A:$A,$A22,AutumnProvRep!$P:$P,"<>Coventry",AutumnProvRep!$U:$U,Data!AL$17) -> 75 | AM60: =SUMIFS(AutumnProvRep!$K:$K,AutumnProvRep!$A:$A,$A22,AutumnProvRep!$P:$P,"<>Coventry",AutumnProvRep!$U:$U,Data!AM$17) -> 0 | AN60: =SUMIFS(AutumnProvRep!$K:$K,AutumnProvRep!$A:$A,$A22,AutumnProvRep!$P:$P,"<>Coventry",AutumnProvRep!$U:$U,Data!AN$17) -> 0 | AO60: =SUMIFS(AutumnProvRep!$K:$K,AutumnProvRep!$A:$A,$A22,AutumnProvRep!$P:$P,"<>Coventry",AutumnProvRep!$U:$U,Data!AO$17) -> 0 | AP60: =SUMIFS(AutumnProvRep!$K:$K,AutumnProvRep!$A:$A,$A22,AutumnProvRep!$P:$P,"<>Coventry",AutumnProvRep!$U:$U,Data!AP$17) -> 0 | AQ60: =SUMIFS(AutumnProvRep!$K:$K,AutumnProvRep!$A:$A,$A22,AutumnProvRep!$P:$P,"<>Coventry",AutumnProvRep!$U:$U,Data!AQ$17) -> 0 | AR60: =SUM(Y60:AQ60)/$A$46 -> 3 | AS60: 14384.22522 | AT60: 601541.2934 | AU60: 105.4666667 | AV60: -0.5333333333 | AW60: 106 | AX60: =[5]Data!$AU36 -> 100.25 | AY60: 100 | BA60: =(AT60/75*200)/AU60 -> 15209.64079 | BC60: 5730.225129
A61: 3 | B61: RiverBank | C61: 51.54639175 | D61: 0 | E61: =SUMIFS(AutumnProvRep!$K:$K,AutumnProvRep!$A:$A,$A23,AutumnProvRep!$P:$P,"Coventry",AutumnProvRep!$U:$U,Data!E$17) -> 0 | F61: =SUMIFS(AutumnProvRep!$K:$K,AutumnProvRep!$A:$A,$A23,AutumnProvRep!$P:$P,"Coventry",AutumnProvRep!$U:$U,Data!F$17) -> 0 | G61: =SUMIFS(AutumnProvRep!$K:$K,AutumnProvRep!$A:$A,$A23,AutumnProvRep!$P:$P,"Coventry",AutumnProvRep!$U:$U,Data!G$17) -> 150 | H61: =SUMIFS(AutumnProvRep!$K:$K,AutumnProvRep!$A:$A,$A23,AutumnProvRep!$P:$P,"Coventry",AutumnProvRep!$U:$U,Data!H$17) -> 225 | I61: =SUMIFS(AutumnProvRep!$K:$K,AutumnProvRep!$A:$A,$A23,AutumnProvRep!$P:$P,"Coventry",AutumnProvRep!$U:$U,Data!I$17) -> 0 | J61: =SUMIFS(AutumnProvRep!$K:$K,AutumnProvRep!$A:$A,$A23,AutumnProvRep!$P:$P,"Coventry",AutumnProvRep!$U:$U,Data!J$17) -> 0 | K61: =SUMIFS(AutumnProvRep!$K:$K,AutumnProvRep!$A:$A,$A23,AutumnProvRep!$P:$P,"Coventry",AutumnProvRep!$U:$U,Data!K$17) -> 6894 | L61: =SUMIFS(AutumnProvRep!$K:$K,AutumnProvRep!$A:$A,$A23,AutumnProvRep!$P:$P,"Coventry",AutumnProvRep!$U:$U,Data!L$17) -> 3672 | M61: =SUMIFS(AutumnProvRep!$K:$K,AutumnProvRep!$A:$A,$A23,AutumnProvRep!$P:$P,"Coventry",AutumnProvRep!$U:$U,Data!M$17) -> 75 | N61: =SUMIFS(AutumnProvRep!$K:$K,AutumnProvRep!$A:$A,$A23,AutumnProvRep!$P:$P,"Coventry",AutumnProvRep!$U:$U,Data!N$17) -> 600 | O61: =SUMIFS(AutumnProvRep!$K:$K,AutumnProvRep!$A:$A,$A23,AutumnProvRep!$P:$P,"Coventry",AutumnProvRep!$U:$U,Data!O$17) -> 681 | P61: =SUMIFS(AutumnProvRep!$K:$K,AutumnProvRep!$A:$A,$A23,AutumnProvRep!$P:$P,"Coventry",AutumnProvRep!$U:$U,Data!P$17) -> 225 | Q61: =SUMIFS(AutumnProvRep!$K:$K,AutumnProvRep!$A:$A,$A23,AutumnProvRep!$P:$P,"Coventry",AutumnProvRep!$U:$U,Data!Q$17) -> 2548 | R61: =SUMIFS(AutumnProvRep!$K:$K,AutumnProvRep!$A:$A,$A23,AutumnProvRep!$P:$P,"Coventry",AutumnProvRep!$U:$U,Data!R$17) -> 600 | S61: =SUMIFS(AutumnProvRep!$K:$K,AutumnProvRep!$A:$A,$A23,AutumnProvRep!$P:$P,"Coventry",AutumnProvRep!$U:$U,Data!S$17) -> 0 | T61: =SUMIFS(AutumnProvRep!$K:$K,AutumnProvRep!$A:$A,$A23,AutumnProvRep!$P:$P,"Coventry",AutumnProvRep!$U:$U,Data!T$17) -> 225 | U61: =SUMIFS(AutumnProvRep!$K:$K,AutumnProvRep!$A:$A,$A23,AutumnProvRep!$P:$P,"Coventry",AutumnProvRep!$U:$U,Data!U$17) -> 0 | V61: =SUMIFS(AutumnProvRep!$K:$K,AutumnProvRep!$A:$A,$A23,AutumnProvRep!$P:$P,"Coventry",AutumnProvRep!$U:$U,Data!V$17) -> 0 | W61: 211.9333333 | X61: 1035679.975 | Y61: 0 | Z61: =SUMIFS(AutumnProvRep!$K:$K,AutumnProvRep!$A:$A,$A23,AutumnProvRep!$P:$P,"<>Coventry",AutumnProvRep!$U:$U,Data!Z$17) -> 0 | AA61: =SUMIFS(AutumnProvRep!$K:$K,AutumnProvRep!$A:$A,$A23,AutumnProvRep!$P:$P,"<>Coventry",AutumnProvRep!$U:$U,Data!AA$17) -> 0 | AB61: =SUMIFS(AutumnProvRep!$K:$K,AutumnProvRep!$A:$A,$A23,AutumnProvRep!$P:$P,"<>Coventry",AutumnProvRep!$U:$U,Data!AB$17) -> 0 | AC61: =SUMIFS(AutumnProvRep!$K:$K,AutumnProvRep!$A:$A,$A23,AutumnProvRep!$P:$P,"<>Coventry",AutumnProvRep!$U:$U,Data!AC$17) -> 0 | AD61: =SUMIFS(AutumnProvRep!$K:$K,AutumnProvRep!$A:$A,$A23,AutumnProvRep!$P:$P,"<>Coventry",AutumnProvRep!$U:$U,Data!AD$17) -> 0 | AE61: =SUMIFS(AutumnProvRep!$K:$K,AutumnProvRep!$A:$A,$A23,AutumnProvRep!$P:$P,"<>Coventry",AutumnProvRep!$U:$U,Data!AE$17) -> 0 | AF61: =SUMIFS(AutumnProvRep!$K:$K,AutumnProvRep!$A:$A,$A23,AutumnProvRep!$P:$P,"<>Coventry",AutumnProvRep!$U:$U,Data!AF$17) -> 0 | AG61: =SUMIFS(AutumnProvRep!$K:$K,AutumnProvRep!$A:$A,$A23,AutumnProvRep!$P:$P,"<>Coventry",AutumnProvRep!$U:$U,Data!AG$17) -> 75 | AH61: =SUMIFS(AutumnProvRep!$K:$K,AutumnProvRep!$A:$A,$A23,AutumnProvRep!$P:$P,"<>Coventry",AutumnProvRep!$U:$U,Data!AH$17) -> 0 | AI61: =SUMIFS(AutumnProvRep!$K:$K,AutumnProvRep!$A:$A,$A23,AutumnProvRep!$P:$P,"<>Coventry",AutumnProvRep!$U:$U,Data!AI$17) -> 0 | AJ61: =SUMIFS(AutumnProvRep!$K:$K,AutumnProvRep!$A:$A,$A23,AutumnProvRep!$P:$P,"<>Coventry",AutumnProvRep!$U:$U,Data!AJ$17) -> 0 | AK61: =SUMIFS(AutumnProvRep!$K:$K,AutumnProvRep!$A:$A,$A23,AutumnProvRep!$P:$P,"<>Coventry",AutumnProvRep!$U:$U,Data!AK$17) -> 0 | AL61: =SUMIFS(AutumnProvRep!$K:$K,AutumnProvRep!$A:$A,$A23,AutumnProvRep!$P:$P,"<>Coventry",AutumnProvRep!$U:$U,Data!AL$17) -> 75 | AM61: =SUMIFS(AutumnProvRep!$K:$K,AutumnProvRep!$A:$A,$A23,AutumnProvRep!$P:$P,"<>Coventry",AutumnProvRep!$U:$U,Data!AM$17) -> 0 | AN61: =SUMIFS(AutumnProvRep!$K:$K,AutumnProvRep!$A:$A,$A23,AutumnProvRep!$P:$P,"<>Coventry",AutumnProvRep!$U:$U,Data!AN$17) -> 0 | AO61: =SUMIFS(AutumnProvRep!$K:$K,AutumnProvRep!$A:$A,$A23,AutumnProvRep!$P:$P,"<>Coventry",AutumnProvRep!$U:$U,Data!AO$17) -> 0 | AP61: =SUMIFS(AutumnProvRep!$K:$K,AutumnProvRep!$A:$A,$A23,AutumnProvRep!$P:$P,"<>Coventry",AutumnProvRep!$U:$U,Data!AP$17) -> 0 | AQ61: =SUMIFS(AutumnProvRep!$K:$K,AutumnProvRep!$A:$A,$A23,AutumnProvRep!$P:$P,"<>Coventry",AutumnProvRep!$U:$U,Data!AQ$17) -> 0 | AR61: 2 | AS61: 10332.33183 | AT61: 1046012.306 | AU61: 213.9333333 | AV61: -6.066666667 | AW61: 220 | AX61: =[5]Data!$AU37 -> 196.2368421 | AY61: 209 | BA61: 13038.4831 | BC61: 4886.819635
A62: 4 | B62: Corley | C62: 51.54639175 | D62: 0 | E62: =SUMIFS(AutumnProvRep!$K:$K,AutumnProvRep!$A:$A,$A24,AutumnProvRep!$P:$P,"Coventry",AutumnProvRep!$U:$U,Data!E$17) -> 0 | F62: =SUMIFS(AutumnProvRep!$K:$K,AutumnProvRep!$A:$A,$A24,AutumnProvRep!$P:$P,"Coventry",AutumnProvRep!$U:$U,Data!F$17) -> 0 | G62: =SUMIFS(AutumnProvRep!$K:$K,AutumnProvRep!$A:$A,$A24,AutumnProvRep!$P:$P,"Coventry",AutumnProvRep!$U:$U,Data!G$17) -> 300 | H62: =SUMIFS(AutumnProvRep!$K:$K,AutumnProvRep!$A:$A,$A24,AutumnProvRep!$P:$P,"Coventry",AutumnProvRep!$U:$U,Data!H$17) -> 225 | I62: =SUMIFS(AutumnProvRep!$K:$K,AutumnProvRep!$A:$A,$A24,AutumnProvRep!$P:$P,"Coventry",AutumnProvRep!$U:$U,Data!I$17) -> 0 | J62: =SUMIFS(AutumnProvRep!$K:$K,AutumnProvRep!$A:$A,$A24,AutumnProvRep!$P:$P,"Coventry",AutumnProvRep!$U:$U,Data!J$17) -> 0 | K62: =SUMIFS(AutumnProvRep!$K:$K,AutumnProvRep!$A:$A,$A24,AutumnProvRep!$P:$P,"Coventry",AutumnProvRep!$U:$U,Data!K$17) -> 9438 | L62: =SUMIFS(AutumnProvRep!$K:$K,AutumnProvRep!$A:$A,$A24,AutumnProvRep!$P:$P,"Coventry",AutumnProvRep!$U:$U,Data!L$17) -> 0 | M62: =SUMIFS(AutumnProvRep!$K:$K,AutumnProvRep!$A:$A,$A24,AutumnProvRep!$P:$P,"Coventry",AutumnProvRep!$U:$U,Data!M$17) -> 450 | N62: =SUMIFS(AutumnProvRep!$K:$K,AutumnProvRep!$A:$A,$A24,AutumnProvRep!$P:$P,"Coventry",AutumnProvRep!$U:$U,Data!N$17) -> 0 | O62: =SUMIFS(AutumnProvRep!$K:$K,AutumnProvRep!$A:$A,$A24,AutumnProvRep!$P:$P,"Coventry",AutumnProvRep!$U:$U,Data!O$17) -> 599 | P62: =SUMIFS(AutumnProvRep!$K:$K,AutumnProvRep!$A:$A,$A24,AutumnProvRep!$P:$P,"Coventry",AutumnProvRep!$U:$U,Data!P$17) -> 0 | Q62: =SUMIFS(AutumnProvRep!$K:$K,AutumnProvRep!$A:$A,$A24,AutumnProvRep!$P:$P,"Coventry",AutumnProvRep!$U:$U,Data!Q$17) -> 1200 | R62: =SUMIFS(AutumnProvRep!$K:$K,AutumnProvRep!$A:$A,$A24,AutumnProvRep!$P:$P,"Coventry",AutumnProvRep!$U:$U,Data!R$17) -> 0 | S62: =SUMIFS(AutumnProvRep!$K:$K,AutumnProvRep!$A:$A,$A24,AutumnProvRep!$P:$P,"Coventry",AutumnProvRep!$U:$U,Data!S$17) -> 0 | T62: =SUMIFS(AutumnProvRep!$K:$K,AutumnProvRep!$A:$A,$A24,AutumnProvRep!$P:$P,"Coventry",AutumnProvRep!$U:$U,Data!T$17) -> 0 | U62: =SUMIFS(AutumnProvRep!$K:$K,AutumnProvRep!$A:$A,$A24,AutumnProvRep!$P:$P,"Coventry",AutumnProvRep!$U:$U,Data!U$17) -> 0 | V62: =SUMIFS(AutumnProvRep!$K:$K,AutumnProvRep!$A:$A,$A24,AutumnProvRep!$P:$P,"Coventry",AutumnProvRep!$U:$U,Data!V$17) -> 0 | W62: 162.8266667 | X62: 738962.9711 | Y62: 0 | Z62: =SUMIFS(AutumnProvRep!$K:$K,AutumnProvRep!$A:$A,$A24,AutumnProvRep!$P:$P,"<>Coventry",AutumnProvRep!$U:$U,Data!Z$17) -> 0 | AA62: =SUMIFS(AutumnProvRep!$K:$K,AutumnProvRep!$A:$A,$A24,AutumnProvRep!$P:$P,"<>Coventry",AutumnProvRep!$U:$U,Data!AA$17) -> 0 | AB62: =SUMIFS(AutumnProvRep!$K:$K,AutumnProvRep!$A:$A,$A24,AutumnProvRep!$P:$P,"<>Coventry",AutumnProvRep!$U:$U,Data!AB$17) -> 0 | AC62: =SUMIFS(AutumnProvRep!$K:$K,AutumnProvRep!$A:$A,$A24,AutumnProvRep!$P:$P,"<>Coventry",AutumnProvRep!$U:$U,Data!AC$17) -> 0 | AD62: =SUMIFS(AutumnProvRep!$K:$K,AutumnProvRep!$A:$A,$A24,AutumnProvRep!$P:$P,"<>Coventry",AutumnProvRep!$U:$U,Data!AD$17) -> 0 | AE62: =SUMIFS(AutumnProvRep!$K:$K,AutumnProvRep!$A:$A,$A24,AutumnProvRep!$P:$P,"<>Coventry",AutumnProvRep!$U:$U,Data!AE$17) -> 0 | AF62: =SUMIFS(AutumnProvRep!$K:$K,AutumnProvRep!$A:$A,$A24,AutumnProvRep!$P:$P,"<>Coventry",AutumnProvRep!$U:$U,Data!AF$17) -> 150 | AG62: =SUMIFS(AutumnProvRep!$K:$K,AutumnProvRep!$A:$A,$A24,AutumnProvRep!$P:$P,"<>Coventry",AutumnProvRep!$U:$U,Data!AG$17) -> 0 | AH62: =SUMIFS(AutumnProvRep!$K:$K,AutumnProvRep!$A:$A,$A24,AutumnProvRep!$P:$P,"<>Coventry",AutumnProvRep!$U:$U,Data!AH$17) -> 0 | AI62: =SUMIFS(AutumnProvRep!$K:$K,AutumnProvRep!$A:$A,$A24,AutumnProvRep!$P:$P,"<>Coventry",AutumnProvRep!$U:$U,Data!AI$17) -> 0 | AJ62: =SUMIFS(AutumnProvRep!$K:$K,AutumnProvRep!$A:$A,$A24,AutumnProvRep!$P:$P,"<>Coventry",AutumnProvRep!$U:$U,Data!AJ$17) -> 0 | AK62: =SUMIFS(AutumnProvRep!$K:$K,AutumnProvRep!$A:$A,$A24,AutumnProvRep!$P:$P,"<>Coventry",AutumnProvRep!$U:$U,Data!AK$17) -> 0 | AL62: =SUMIFS(AutumnProvRep!$K:$K,AutumnProvRep!$A:$A,$A24,AutumnProvRep!$P:$P,"<>Coventry",AutumnProvRep!$U:$U,Data!AL$17) -> 0 | AM62: =SUMIFS(AutumnProvRep!$K:$K,AutumnProvRep!$A:$A,$A24,AutumnProvRep!$P:$P,"<>Coventry",AutumnProvRep!$U:$U,Data!AM$17) -> 0 | AN62: =SUMIFS(AutumnProvRep!$K:$K,AutumnProvRep!$A:$A,$A24,AutumnProvRep!$P:$P,"<>Coventry",AutumnProvRep!$U:$U,Data!AN$17) -> 0 | AO62: =SUMIFS(AutumnProvRep!$K:$K,AutumnProvRep!$A:$A,$A24,AutumnProvRep!$P:$P,"<>Coventry",AutumnProvRep!$U:$U,Data!AO$17) -> 0 | AP62: =SUMIFS(AutumnProvRep!$K:$K,AutumnProvRep!$A:$A,$A24,AutumnProvRep!$P:$P,"<>Coventry",AutumnProvRep!$U:$U,Data!AP$17) -> 0 | AQ62: =SUMIFS(AutumnProvRep!$K:$K,AutumnProvRep!$A:$A,$A24,AutumnProvRep!$P:$P,"<>Coventry",AutumnProvRep!$U:$U,Data!AQ$17) -> 0 | AR62: 2 | AS62: 8103.786778 | AT62: 747066.7578 | AU62: 164.8266667 | AV62: -0.1733333333 | AW62: 165 | AX62: =[5]Data!$AU38 -> 155.3552632 | AY62: 155 | BA62: 12086.50312 | BC62: 4538.341208
A63: 5 | B63: Tiverton | C63: 51.54639175 | D63: 0 | E63: =SUMIFS(AutumnProvRep!$K:$K,AutumnProvRep!$A:$A,$A25,AutumnProvRep!$P:$P,"Coventry",AutumnProvRep!$U:$U,Data!E$17) -> 0 | F63: =SUMIFS(AutumnProvRep!$K:$K,AutumnProvRep!$A:$A,$A25,AutumnProvRep!$P:$P,"Coventry",AutumnProvRep!$U:$U,Data!F$17) -> 0 | G63: =SUMIFS(AutumnProvRep!$K:$K,AutumnProvRep!$A:$A,$A25,AutumnProvRep!$P:$P,"Coventry",AutumnProvRep!$U:$U,Data!G$17) -> 0 | H63: =SUMIFS(AutumnProvRep!$K:$K,AutumnProvRep!$A:$A,$A25,AutumnProvRep!$P:$P,"Coventry",AutumnProvRep!$U:$U,Data!H$17) -> 0 | I63: =SUMIFS(AutumnProvRep!$K:$K,AutumnProvRep!$A:$A,$A25,AutumnProvRep!$P:$P,"Coventry",AutumnProvRep!$U:$U,Data!I$17) -> 0 | J63: =SUMIFS(AutumnProvRep!$K:$K,AutumnProvRep!$A:$A,$A25,AutumnProvRep!$P:$P,"Coventry",AutumnProvRep!$U:$U,Data!J$17) -> 0 | K63: =SUMIFS(AutumnProvRep!$K:$K,AutumnProvRep!$A:$A,$A25,AutumnProvRep!$P:$P,"Coventry",AutumnProvRep!$U:$U,Data!K$17) -> 6201 | L63: =SUMIFS(AutumnProvRep!$K:$K,AutumnProvRep!$A:$A,$A25,AutumnProvRep!$P:$P,"Coventry",AutumnProvRep!$U:$U,Data!L$17) -> 600 | M63: =SUMIFS(AutumnProvRep!$K:$K,AutumnProvRep!$A:$A,$A25,AutumnProvRep!$P:$P,"Coventry",AutumnProvRep!$U:$U,Data!M$17) -> 0 | N63: =SUMIFS(AutumnProvRep!$K:$K,AutumnProvRep!$A:$A,$A25,AutumnProvRep!$P:$P,"Coventry",AutumnProvRep!$U:$U,Data!N$17) -> 300 | O63: =SUMIFS(AutumnProvRep!$K:$K,AutumnProvRep!$A:$A,$A25,AutumnProvRep!$P:$P,"Coventry",AutumnProvRep!$U:$U,Data!O$17) -> 375 | P63: =SUMIFS(AutumnProvRep!$K:$K,AutumnProvRep!$A:$A,$A25,AutumnProvRep!$P:$P,"Coventry",AutumnProvRep!$U:$U,Data!P$17) -> 0 | Q63: =SUMIFS(AutumnProvRep!$K:$K,AutumnProvRep!$A:$A,$A25,AutumnProvRep!$P:$P,"Coventry",AutumnProvRep!$U:$U,Data!Q$17) -> 1332 | R63: =SUMIFS(AutumnProvRep!$K:$K,AutumnProvRep!$A:$A,$A25,AutumnProvRep!$P:$P,"Coventry",AutumnProvRep!$U:$U,Data!R$17) -> 450 | S63: =SUMIFS(AutumnProvRep!$K:$K,AutumnProvRep!$A:$A,$A25,AutumnProvRep!$P:$P,"Coventry",AutumnProvRep!$U:$U,Data!S$17) -> 0 | T63: =SUMIFS(AutumnProvRep!$K:$K,AutumnProvRep!$A:$A,$A25,AutumnProvRep!$P:$P,"Coventry",AutumnProvRep!$U:$U,Data!T$17) -> 433 | U63: =SUMIFS(AutumnProvRep!$K:$K,AutumnProvRep!$A:$A,$A25,AutumnProvRep!$P:$P,"Coventry",AutumnProvRep!$U:$U,Data!U$17) -> 75 | V63: =SUMIFS(AutumnProvRep!$K:$K,AutumnProvRep!$A:$A,$A25,AutumnProvRep!$P:$P,"Coventry",AutumnProvRep!$U:$U,Data!V$17) -> 0 | W63: 130.2133333 | X63: 645963.3607 | Y63: 0 | Z63: =SUMIFS(AutumnProvRep!$K:$K,AutumnProvRep!$A:$A,$A25,AutumnProvRep!$P:$P,"<>Coventry",AutumnProvRep!$U:$U,Data!Z$17) -> 0 | AA63: =SUMIFS(AutumnProvRep!$K:$K,AutumnProvRep!$A:$A,$A25,AutumnProvRep!$P:$P,"<>Coventry",AutumnProvRep!$U:$U,Data!AA$17) -> 0 | AB63: =SUMIFS(AutumnProvRep!$K:$K,AutumnProvRep!$A:$A,$A25,AutumnProvRep!$P:$P,"<>Coventry",AutumnProvRep!$U:$U,Data!AB$17) -> 0 | AC63: =SUMIFS(AutumnProvRep!$K:$K,AutumnProvRep!$A:$A,$A25,AutumnProvRep!$P:$P,"<>Coventry",AutumnProvRep!$U:$U,Data!AC$17) -> 0 | AD63: =SUMIFS(AutumnProvRep!$K:$K,AutumnProvRep!$A:$A,$A25,AutumnProvRep!$P:$P,"<>Coventry",AutumnProvRep!$U:$U,Data!AD$17) -> 0 | AE63: =SUMIFS(AutumnProvRep!$K:$K,AutumnProvRep!$A:$A,$A25,AutumnProvRep!$P:$P,"<>Coventry",AutumnProvRep!$U:$U,Data!AE$17) -> 0 | AF63: =SUMIFS(AutumnProvRep!$K:$K,AutumnProvRep!$A:$A,$A25,AutumnProvRep!$P:$P,"<>Coventry",AutumnProvRep!$U:$U,Data!AF$17) -> 0 | AG63: =SUMIFS(AutumnProvRep!$K:$K,AutumnProvRep!$A:$A,$A25,AutumnProvRep!$P:$P,"<>Coventry",AutumnProvRep!$U:$U,Data!AG$17) -> 0 | AH63: =SUMIFS(AutumnProvRep!$K:$K,AutumnProvRep!$A:$A,$A25,AutumnProvRep!$P:$P,"<>Coventry",AutumnProvRep!$U:$U,Data!AH$17) -> 0 | AI63: =SUMIFS(AutumnProvRep!$K:$K,AutumnProvRep!$A:$A,$A25,AutumnProvRep!$P:$P,"<>Coventry",AutumnProvRep!$U:$U,Data!AI$17) -> 0 | AJ63: =SUMIFS(AutumnProvRep!$K:$K,AutumnProvRep!$A:$A,$A25,AutumnProvRep!$P:$P,"<>Coventry",AutumnProvRep!$U:$U,Data!AJ$17) -> 0 | AK63: =SUMIFS(AutumnProvRep!$K:$K,AutumnProvRep!$A:$A,$A25,AutumnProvRep!$P:$P,"<>Coventry",AutumnProvRep!$U:$U,Data!AK$17) -> 0 | AL63: =SUMIFS(AutumnProvRep!$K:$K,AutumnProvRep!$A:$A,$A25,AutumnProvRep!$P:$P,"<>Coventry",AutumnProvRep!$U:$U,Data!AL$17) -> 75 | AM63: =SUMIFS(AutumnProvRep!$K:$K,AutumnProvRep!$A:$A,$A25,AutumnProvRep!$P:$P,"<>Coventry",AutumnProvRep!$U:$U,Data!AM$17) -> 0 | AN63: =SUMIFS(AutumnProvRep!$K:$K,AutumnProvRep!$A:$A,$A25,AutumnProvRep!$P:$P,"<>Coventry",AutumnProvRep!$U:$U,Data!AN$17) -> 0 | AO63: =SUMIFS(AutumnProvRep!$K:$K,AutumnProvRep!$A:$A,$A25,AutumnProvRep!$P:$P,"<>Coventry",AutumnProvRep!$U:$U,Data!AO$17) -> 0 | AP63: =SUMIFS(AutumnProvRep!$K:$K,AutumnProvRep!$A:$A,$A25,AutumnProvRep!$P:$P,"<>Coventry",AutumnProvRep!$U:$U,Data!AP$17) -> 0 | AQ63: =SUMIFS(AutumnProvRep!$K:$K,AutumnProvRep!$A:$A,$A25,AutumnProvRep!$P:$P,"<>Coventry",AutumnProvRep!$U:$U,Data!AQ$17) -> 0 | AR63: 1 | AS63: 6584.328384 | AT63: 652547.6891 | AU63: 131.2133333 | AV63: -4.786666667 | AW63: 136 | AX63: =[5]Data!$AU39 -> 128.8947368 | AY63: 131 | BA63: 13261.81667 | BC63: 4960.808115
A64: 6 | B64: Baginton Fields | C64: 51.54639175 | D64: 0 | E64: =SUMIFS(AutumnProvRep!$K:$K,AutumnProvRep!$A:$A,$A26,AutumnProvRep!$P:$P,"Coventry",AutumnProvRep!$U:$U,Data!E$17) -> 0 | F64: =SUMIFS(AutumnProvRep!$K:$K,AutumnProvRep!$A:$A,$A26,AutumnProvRep!$P:$P,"Coventry",AutumnProvRep!$U:$U,Data!F$17) -> 0 | G64: =SUMIFS(AutumnProvRep!$K:$K,AutumnProvRep!$A:$A,$A26,AutumnProvRep!$P:$P,"Coventry",AutumnProvRep!$U:$U,Data!G$17) -> 0 | H64: =SUMIFS(AutumnProvRep!$K:$K,AutumnProvRep!$A:$A,$A26,AutumnProvRep!$P:$P,"Coventry",AutumnProvRep!$U:$U,Data!H$17) -> 0 | I64: =SUMIFS(AutumnProvRep!$K:$K,AutumnProvRep!$A:$A,$A26,AutumnProvRep!$P:$P,"Coventry",AutumnProvRep!$U:$U,Data!I$17) -> 0 | J64: =SUMIFS(AutumnProvRep!$K:$K,AutumnProvRep!$A:$A,$A26,AutumnProvRep!$P:$P,"Coventry",AutumnProvRep!$U:$U,Data!J$17) -> 0 | K64: =SUMIFS(AutumnProvRep!$K:$K,AutumnProvRep!$A:$A,$A26,AutumnProvRep!$P:$P,"Coventry",AutumnProvRep!$U:$U,Data!K$17) -> 2659 | L64: =SUMIFS(AutumnProvRep!$K:$K,AutumnProvRep!$A:$A,$A26,AutumnProvRep!$P:$P,"Coventry",AutumnProvRep!$U:$U,Data!L$17) -> 2427 | M64: =SUMIFS(AutumnProvRep!$K:$K,AutumnProvRep!$A:$A,$A26,AutumnProvRep!$P:$P,"Coventry",AutumnProvRep!$U:$U,Data!M$17) -> 0 | N64: =SUMIFS(AutumnProvRep!$K:$K,AutumnProvRep!$A:$A,$A26,AutumnProvRep!$P:$P,"Coventry",AutumnProvRep!$U:$U,Data!N$17) -> 300 | O64: =SUMIFS(AutumnProvRep!$K:$K,AutumnProvRep!$A:$A,$A26,AutumnProvRep!$P:$P,"Coventry",AutumnProvRep!$U:$U,Data!O$17) -> 825 | P64: =SUMIFS(AutumnProvRep!$K:$K,AutumnProvRep!$A:$A,$A26,AutumnProvRep!$P:$P,"Coventry",AutumnProvRep!$U:$U,Data!P$17) -> 0 | Q64: =SUMIFS(AutumnProvRep!$K:$K,AutumnProvRep!$A:$A,$A26,AutumnProvRep!$P:$P,"Coventry",AutumnProvRep!$U:$U,Data!Q$17) -> 2011 | R64: =SUMIFS(AutumnProvRep!$K:$K,AutumnProvRep!$A:$A,$A26,AutumnProvRep!$P:$P,"Coventry",AutumnProvRep!$U:$U,Data!R$17) -> 750 | S64: =SUMIFS(AutumnProvRep!$K:$K,AutumnProvRep!$A:$A,$A26,AutumnProvRep!$P:$P,"Coventry",AutumnProvRep!$U:$U,Data!S$17) -> 0 | T64: =SUMIFS(AutumnProvRep!$K:$K,AutumnProvRep!$A:$A,$A26,AutumnProvRep!$P:$P,"Coventry",AutumnProvRep!$U:$U,Data!T$17) -> 300 | U64: =SUMIFS(AutumnProvRep!$K:$K,AutumnProvRep!$A:$A,$A26,AutumnProvRep!$P:$P,"Coventry",AutumnProvRep!$U:$U,Data!U$17) -> 0 | V64: =SUMIFS(AutumnProvRep!$K:$K,AutumnProvRep!$A:$A,$A26,AutumnProvRep!$P:$P,"Coventry",AutumnProvRep!$U:$U,Data!V$17) -> 0 | W64: =SUM(D64:V64)/$A$46 -> 123.6266667 | X64: 660316.5971 | Y64: 0 | Z64: =SUMIFS(AutumnProvRep!$K:$K,AutumnProvRep!$A:$A,$A26,AutumnProvRep!$P:$P,"<>Coventry",AutumnProvRep!$U:$U,Data!Z$17) -> 0 | AA64: =SUMIFS(AutumnProvRep!$K:$K,AutumnProvRep!$A:$A,$A26,AutumnProvRep!$P:$P,"<>Coventry",AutumnProvRep!$U:$U,Data!AA$17) -> 0 | AB64: =SUMIFS(AutumnProvRep!$K:$K,AutumnProvRep!$A:$A,$A26,AutumnProvRep!$P:$P,"<>Coventry",AutumnProvRep!$U:$U,Data!AB$17) -> 0 | AC64: =SUMIFS(AutumnProvRep!$K:$K,AutumnProvRep!$A:$A,$A26,AutumnProvRep!$P:$P,"<>Coventry",AutumnProvRep!$U:$U,Data!AC$17) -> 0 | AD64: =SUMIFS(AutumnProvRep!$K:$K,AutumnProvRep!$A:$A,$A26,AutumnProvRep!$P:$P,"<>Coventry",AutumnProvRep!$U:$U,Data!AD$17) -> 0 | AE64: =SUMIFS(AutumnProvRep!$K:$K,AutumnProvRep!$A:$A,$A26,AutumnProvRep!$P:$P,"<>Coventry",AutumnProvRep!$U:$U,Data!AE$17) -> 0 | AF64: =SUMIFS(AutumnProvRep!$K:$K,AutumnProvRep!$A:$A,$A26,AutumnProvRep!$P:$P,"<>Coventry",AutumnProvRep!$U:$U,Data!AF$17) -> 0 | AG64: =SUMIFS(AutumnProvRep!$K:$K,AutumnProvRep!$A:$A,$A26,AutumnProvRep!$P:$P,"<>Coventry",AutumnProvRep!$U:$U,Data!AG$17) -> 75 | AH64: =SUMIFS(AutumnProvRep!$K:$K,AutumnProvRep!$A:$A,$A26,AutumnProvRep!$P:$P,"<>Coventry",AutumnProvRep!$U:$U,Data!AH$17) -> 0 | AI64: =SUMIFS(AutumnProvRep!$K:$K,AutumnProvRep!$A:$A,$A26,AutumnProvRep!$P:$P,"<>Coventry",AutumnProvRep!$U:$U,Data!AI$17) -> 0 | AJ64: =SUMIFS(AutumnProvRep!$K:$K,AutumnProvRep!$A:$A,$A26,AutumnProvRep!$P:$P,"<>Coventry",AutumnProvRep!$U:$U,Data!AJ$17) -> 0 | AK64: =SUMIFS(AutumnProvRep!$K:$K,AutumnProvRep!$A:$A,$A26,AutumnProvRep!$P:$P,"<>Coventry",AutumnProvRep!$U:$U,Data!AK$17) -> 0 | AL64: =SUMIFS(AutumnProvRep!$K:$K,AutumnProvRep!$A:$A,$A26,AutumnProvRep!$P:$P,"<>Coventry",AutumnProvRep!$U:$U,Data!AL$17) -> 0 | AM64: =SUMIFS(AutumnProvRep!$K:$K,AutumnProvRep!$A:$A,$A26,AutumnProvRep!$P:$P,"<>Coventry",AutumnProvRep!$U:$U,Data!AM$17) -> 0 | AN64: =SUMIFS(AutumnProvRep!$K:$K,AutumnProvRep!$A:$A,$A26,AutumnProvRep!$P:$P,"<>Coventry",AutumnProvRep!$U:$U,Data!AN$17) -> 0 | AO64: =SUMIFS(AutumnProvRep!$K:$K,AutumnProvRep!$A:$A,$A26,AutumnProvRep!$P:$P,"<>Coventry",AutumnProvRep!$U:$U,Data!AO$17) -> 0 | AP64: =SUMIFS(AutumnProvRep!$K:$K,AutumnProvRep!$A:$A,$A26,AutumnProvRep!$P:$P,"<>Coventry",AutumnProvRep!$U:$U,Data!AP$17) -> 0 | AQ64: =SUMIFS(AutumnProvRep!$K:$K,AutumnProvRep!$A:$A,$A26,AutumnProvRep!$P:$P,"<>Coventry",AutumnProvRep!$U:$U,Data!AQ$17) -> 0 | AR64: 1 | AS64: 3748.003445 | AT64: 664064.6005 | AU64: 124.6266667 | AV64: -1.373333333 | AW64: 126 | AX64: =[5]Data!$AU40 -> 125.0526316 | AY64: 126 | BA64: 14209.14947 | BC64: 5341.214925
A65: 7 | B65: Sherbourne Fields | C65: 51.54639175 | D65: 0 | E65: =SUMIFS(AutumnProvRep!$K:$K,AutumnProvRep!$A:$A,$A27,AutumnProvRep!$P:$P,"Coventry",AutumnProvRep!$U:$U,Data!E$17) -> 0 | F65: =SUMIFS(AutumnProvRep!$K:$K,AutumnProvRep!$A:$A,$A27,AutumnProvRep!$P:$P,"Coventry",AutumnProvRep!$U:$U,Data!F$17) -> 0 | G65: =SUMIFS(AutumnProvRep!$K:$K,AutumnProvRep!$A:$A,$A27,AutumnProvRep!$P:$P,"Coventry",AutumnProvRep!$U:$U,Data!G$17) -> 0 | H65: =SUMIFS(AutumnProvRep!$K:$K,AutumnProvRep!$A:$A,$A27,AutumnProvRep!$P:$P,"Coventry",AutumnProvRep!$U:$U,Data!H$17) -> 75 | I65: =SUMIFS(AutumnProvRep!$K:$K,AutumnProvRep!$A:$A,$A27,AutumnProvRep!$P:$P,"Coventry",AutumnProvRep!$U:$U,Data!I$17) -> 0 | J65: =SUMIFS(AutumnProvRep!$K:$K,AutumnProvRep!$A:$A,$A27,AutumnProvRep!$P:$P,"Coventry",AutumnProvRep!$U:$U,Data!J$17) -> 0 | K65: =SUMIFS(AutumnProvRep!$K:$K,AutumnProvRep!$A:$A,$A27,AutumnProvRep!$P:$P,"Coventry",AutumnProvRep!$U:$U,Data!K$17) -> 7009 | L65: =SUMIFS(AutumnProvRep!$K:$K,AutumnProvRep!$A:$A,$A27,AutumnProvRep!$P:$P,"Coventry",AutumnProvRep!$U:$U,Data!L$17) -> 4198 | M65: =SUMIFS(AutumnProvRep!$K:$K,AutumnProvRep!$A:$A,$A27,AutumnProvRep!$P:$P,"Coventry",AutumnProvRep!$U:$U,Data!M$17) -> 75 | N65: =SUMIFS(AutumnProvRep!$K:$K,AutumnProvRep!$A:$A,$A27,AutumnProvRep!$P:$P,"Coventry",AutumnProvRep!$U:$U,Data!N$17) -> 1983 | O65: =SUMIFS(AutumnProvRep!$K:$K,AutumnProvRep!$A:$A,$A27,AutumnProvRep!$P:$P,"Coventry",AutumnProvRep!$U:$U,Data!O$17) -> 225 | P65: =SUMIFS(AutumnProvRep!$K:$K,AutumnProvRep!$A:$A,$A27,AutumnProvRep!$P:$P,"Coventry",AutumnProvRep!$U:$U,Data!P$17) -> 0 | Q65: =SUMIFS(AutumnProvRep!$K:$K,AutumnProvRep!$A:$A,$A27,AutumnProvRep!$P:$P,"Coventry",AutumnProvRep!$U:$U,Data!Q$17) -> 2021 | R65: =SUMIFS(AutumnProvRep!$K:$K,AutumnProvRep!$A:$A,$A27,AutumnProvRep!$P:$P,"Coventry",AutumnProvRep!$U:$U,Data!R$17) -> 1761 | S65: =SUMIFS(AutumnProvRep!$K:$K,AutumnProvRep!$A:$A,$A27,AutumnProvRep!$P:$P,"Coventry",AutumnProvRep!$U:$U,Data!S$17) -> 0 | T65: =SUMIFS(AutumnProvRep!$K:$K,AutumnProvRep!$A:$A,$A27,AutumnProvRep!$P:$P,"Coventry",AutumnProvRep!$U:$U,Data!T$17) -> 1611 | U65: =SUMIFS(AutumnProvRep!$K:$K,AutumnProvRep!$A:$A,$A27,AutumnProvRep!$P:$P,"Coventry",AutumnProvRep!$U:$U,Data!U$17) -> 0 | V65: =SUMIFS(AutumnProvRep!$K:$K,AutumnProvRep!$A:$A,$A27,AutumnProvRep!$P:$P,"Coventry",AutumnProvRep!$U:$U,Data!V$17) -> 0 | W65: 252.7733333 | X65: 1211091.732 | Y65: 0 | Z65: =SUMIFS(AutumnProvRep!$K:$K,AutumnProvRep!$A:$A,$A27,AutumnProvRep!$P:$P,"<>Coventry",AutumnProvRep!$U:$U,Data!Z$17) -> 0 | AA65: =SUMIFS(AutumnProvRep!$K:$K,AutumnProvRep!$A:$A,$A27,AutumnProvRep!$P:$P,"<>Coventry",AutumnProvRep!$U:$U,Data!AA$17) -> 0 | AB65: =SUMIFS(AutumnProvRep!$K:$K,AutumnProvRep!$A:$A,$A27,AutumnProvRep!$P:$P,"<>Coventry",AutumnProvRep!$U:$U,Data!AB$17) -> 0 | AC65: =SUMIFS(AutumnProvRep!$K:$K,AutumnProvRep!$A:$A,$A27,AutumnProvRep!$P:$P,"<>Coventry",AutumnProvRep!$U:$U,Data!AC$17) -> 0 | AD65: =SUMIFS(AutumnProvRep!$K:$K,AutumnProvRep!$A:$A,$A27,AutumnProvRep!$P:$P,"<>Coventry",AutumnProvRep!$U:$U,Data!AD$17) -> 0 | AE65: =SUMIFS(AutumnProvRep!$K:$K,AutumnProvRep!$A:$A,$A27,AutumnProvRep!$P:$P,"<>Coventry",AutumnProvRep!$U:$U,Data!AE$17) -> 0 | AF65: =SUMIFS(AutumnProvRep!$K:$K,AutumnProvRep!$A:$A,$A27,AutumnProvRep!$P:$P,"<>Coventry",AutumnProvRep!$U:$U,Data!AF$17) -> 150 | AG65: =SUMIFS(AutumnProvRep!$K:$K,AutumnProvRep!$A:$A,$A27,AutumnProvRep!$P:$P,"<>Coventry",AutumnProvRep!$U:$U,Data!AG$17) -> 0 | AH65: =SUMIFS(AutumnProvRep!$K:$K,AutumnProvRep!$A:$A,$A27,AutumnProvRep!$P:$P,"<>Coventry",AutumnProvRep!$U:$U,Data!AH$17) -> 0 | AI65: =SUMIFS(AutumnProvRep!$K:$K,AutumnProvRep!$A:$A,$A27,AutumnProvRep!$P:$P,"<>Coventry",AutumnProvRep!$U:$U,Data!AI$17) -> 75 | AJ65: =SUMIFS(AutumnProvRep!$K:$K,AutumnProvRep!$A:$A,$A27,AutumnProvRep!$P:$P,"<>Coventry",AutumnProvRep!$U:$U,Data!AJ$17) -> 0 | AK65: =SUMIFS(AutumnProvRep!$K:$K,AutumnProvRep!$A:$A,$A27,AutumnProvRep!$P:$P,"<>Coventry",AutumnProvRep!$U:$U,Data!AK$17) -> 0 | AL65: =SUMIFS(AutumnProvRep!$K:$K,AutumnProvRep!$A:$A,$A27,AutumnProvRep!$P:$P,"<>Coventry",AutumnProvRep!$U:$U,Data!AL$17) -> 0 | AM65: =SUMIFS(AutumnProvRep!$K:$K,AutumnProvRep!$A:$A,$A27,AutumnProvRep!$P:$P,"<>Coventry",AutumnProvRep!$U:$U,Data!AM$17) -> 0 | AN65: =SUMIFS(AutumnProvRep!$K:$K,AutumnProvRep!$A:$A,$A27,AutumnProvRep!$P:$P,"<>Coventry",AutumnProvRep!$U:$U,Data!AN$17) -> 0 | AO65: =SUMIFS(AutumnProvRep!$K:$K,AutumnProvRep!$A:$A,$A27,AutumnProvRep!$P:$P,"<>Coventry",AutumnProvRep!$U:$U,Data!AO$17) -> 150 | AP65: =SUMIFS(AutumnProvRep!$K:$K,AutumnProvRep!$A:$A,$A27,AutumnProvRep!$P:$P,"<>Coventry",AutumnProvRep!$U:$U,Data!AP$17) -> 0 | AQ65: =SUMIFS(AutumnProvRep!$K:$K,AutumnProvRep!$A:$A,$A27,AutumnProvRep!$P:$P,"<>Coventry",AutumnProvRep!$U:$U,Data!AQ$17) -> 0 | AR65: 5 | AS65: 25324.32826 | AT65: 1236416.06 | AU65: 257.7733333 | AV65: -0.2266666667 | AW65: 258 | AX65: =[5]Data!$AU41 -> 251.8552632 | AY65: 258 | BA65: 12790.73149 | BC65: 4791.216367
A66: 8 | B66: Woodfield | C66: =10000/$A$16 -> 51.54639175 | D66: 0 | E66: =SUMIFS(AutumnProvRep!$K:$K,AutumnProvRep!$A:$A,$A28,AutumnProvRep!$P:$P,"Coventry",AutumnProvRep!$U:$U,Data!E$17) -> 0 | F66: =SUMIFS(AutumnProvRep!$K:$K,AutumnProvRep!$A:$A,$A28,AutumnProvRep!$P:$P,"Coventry",AutumnProvRep!$U:$U,Data!F$17) -> 0 | G66: =SUMIFS(AutumnProvRep!$K:$K,AutumnProvRep!$A:$A,$A28,AutumnProvRep!$P:$P,"Coventry",AutumnProvRep!$U:$U,Data!G$17) -> 0 | H66: =SUMIFS(AutumnProvRep!$K:$K,AutumnProvRep!$A:$A,$A28,AutumnProvRep!$P:$P,"Coventry",AutumnProvRep!$U:$U,Data!H$17) -> 0 | I66: =SUMIFS(AutumnProvRep!$K:$K,AutumnProvRep!$A:$A,$A28,AutumnProvRep!$P:$P,"Coventry",AutumnProvRep!$U:$U,Data!I$17) -> 0 | J66: =SUMIFS(AutumnProvRep!$K:$K,AutumnProvRep!$A:$A,$A28,AutumnProvRep!$P:$P,"Coventry",AutumnProvRep!$U:$U,Data!J$17) -> 0 | K66: =SUMIFS(AutumnProvRep!$K:$K,AutumnProvRep!$A:$A,$A28,AutumnProvRep!$P:$P,"Coventry",AutumnProvRep!$U:$U,Data!K$17) -> 0 | L66: =SUMIFS(AutumnProvRep!$K:$K,AutumnProvRep!$A:$A,$A28,AutumnProvRep!$P:$P,"Coventry",AutumnProvRep!$U:$U,Data!L$17) -> 0 | M66: =SUMIFS(AutumnProvRep!$K:$K,AutumnProvRep!$A:$A,$A28,AutumnProvRep!$P:$P,"Coventry",AutumnProvRep!$U:$U,Data!M$17) -> 0 | N66: =SUMIFS(AutumnProvRep!$K:$K,AutumnProvRep!$A:$A,$A28,AutumnProvRep!$P:$P,"Coventry",AutumnProvRep!$U:$U,Data!N$17) -> 0 | O66: =SUMIFS(AutumnProvRep!$K:$K,AutumnProvRep!$A:$A,$A28,AutumnProvRep!$P:$P,"Coventry",AutumnProvRep!$U:$U,Data!O$17) -> 600 | P66: =SUMIFS(AutumnProvRep!$K:$K,AutumnProvRep!$A:$A,$A28,AutumnProvRep!$P:$P,"Coventry",AutumnProvRep!$U:$U,Data!P$17) -> 0 | Q66: =SUMIFS(AutumnProvRep!$K:$K,AutumnProvRep!$A:$A,$A28,AutumnProvRep!$P:$P,"Coventry",AutumnProvRep!$U:$U,Data!Q$17) -> 11133 | R66: =SUMIFS(AutumnProvRep!$K:$K,AutumnProvRep!$A:$A,$A28,AutumnProvRep!$P:$P,"Coventry",AutumnProvRep!$U:$U,Data!R$17) -> 0 | S66: =SUMIFS(AutumnProvRep!$K:$K,AutumnProvRep!$A:$A,$A28,AutumnProvRep!$P:$P,"Coventry",AutumnProvRep!$U:$U,Data!S$17) -> 150 | T66: =SUMIFS(AutumnProvRep!$K:$K,AutumnProvRep!$A:$A,$A28,AutumnProvRep!$P:$P,"Coventry",AutumnProvRep!$U:$U,Data!T$17) -> 0 | U66: =SUMIFS(AutumnProvRep!$K:$K,AutumnProvRep!$A:$A,$A28,AutumnProvRep!$P:$P,"Coventry",AutumnProvRep!$U:$U,Data!U$17) -> 150 | V66: =SUMIFS(AutumnProvRep!$K:$K,AutumnProvRep!$A:$A,$A28,AutumnProvRep!$P:$P,"Coventry",AutumnProvRep!$U:$U,Data!V$17) -> 0 | W66: =SUM(D66:V66)/$A$46 -> 160.44 | X66: 1114343.919 | Y66: 0 | Z66: =SUMIFS(AutumnProvRep!$K:$K,AutumnProvRep!$A:$A,$A28,AutumnProvRep!$P:$P,"<>Coventry",AutumnProvRep!$U:$U,Data!Z$17) -> 0 | AA66: =SUMIFS(AutumnProvRep!$K:$K,AutumnProvRep!$A:$A,$A28,AutumnProvRep!$P:$P,"<>Coventry",AutumnProvRep!$U:$U,Data!AA$17) -> 0 | AB66: =SUMIFS(AutumnProvRep!$K:$K,AutumnProvRep!$A:$A,$A28,AutumnProvRep!$P:$P,"<>Coventry",AutumnProvRep!$U:$U,Data!AB$17) -> 0 | AC66: =SUMIFS(AutumnProvRep!$K:$K,AutumnProvRep!$A:$A,$A28,AutumnProvRep!$P:$P,"<>Coventry",AutumnProvRep!$U:$U,Data!AC$17) -> 0 | AD66: =SUMIFS(AutumnProvRep!$K:$K,AutumnProvRep!$A:$A,$A28,AutumnProvRep!$P:$P,"<>Coventry",AutumnProvRep!$U:$U,Data!AD$17) -> 0 | AE66: =SUMIFS(AutumnProvRep!$K:$K,AutumnProvRep!$A:$A,$A28,AutumnProvRep!$P:$P,"<>Coventry",AutumnProvRep!$U:$U,Data!AE$17) -> 0 | AF66: =SUMIFS(AutumnProvRep!$K:$K,AutumnProvRep!$A:$A,$A28,AutumnProvRep!$P:$P,"<>Coventry",AutumnProvRep!$U:$U,Data!AF$17) -> 0 | AG66: =SUMIFS(AutumnProvRep!$K:$K,AutumnProvRep!$A:$A,$A28,AutumnProvRep!$P:$P,"<>Coventry",AutumnProvRep!$U:$U,Data!AG$17) -> 0 | AH66: =SUMIFS(AutumnProvRep!$K:$K,AutumnProvRep!$A:$A,$A28,AutumnProvRep!$P:$P,"<>Coventry",AutumnProvRep!$U:$U,Data!AH$17) -> 0 | AI66: =SUMIFS(AutumnProvRep!$K:$K,AutumnProvRep!$A:$A,$A28,AutumnProvRep!$P:$P,"<>Coventry",AutumnProvRep!$U:$U,Data!AI$17) -> 0 | AJ66: =SUMIFS(AutumnProvRep!$K:$K,AutumnProvRep!$A:$A,$A28,AutumnProvRep!$P:$P,"<>Coventry",AutumnProvRep!$U:$U,Data!AJ$17) -> 0 | AK66: =SUMIFS(AutumnProvRep!$K:$K,AutumnProvRep!$A:$A,$A28,AutumnProvRep!$P:$P,"<>Coventry",AutumnProvRep!$U:$U,Data!AK$17) -> 0 | AL66: =SUMIFS(AutumnProvRep!$K:$K,AutumnProvRep!$A:$A,$A28,AutumnProvRep!$P:$P,"<>Coventry",AutumnProvRep!$U:$U,Data!AL$17) -> 75 | AM66: =SUMIFS(AutumnProvRep!$K:$K,AutumnProvRep!$A:$A,$A28,AutumnProvRep!$P:$P,"<>Coventry",AutumnProvRep!$U:$U,Data!AM$17) -> 0 | AN66: =SUMIFS(AutumnProvRep!$K:$K,AutumnProvRep!$A:$A,$A28,AutumnProvRep!$P:$P,"<>Coventry",AutumnProvRep!$U:$U,Data!AN$17) -> 75 | AO66: =SUMIFS(AutumnProvRep!$K:$K,AutumnProvRep!$A:$A,$A28,AutumnProvRep!$P:$P,"<>Coventry",AutumnProvRep!$U:$U,Data!AO$17) -> 0 | AP66: =SUMIFS(AutumnProvRep!$K:$K,AutumnProvRep!$A:$A,$A28,AutumnProvRep!$P:$P,"<>Coventry",AutumnProvRep!$U:$U,Data!AP$17) -> 0 | AQ66: =SUMIFS(AutumnProvRep!$K:$K,AutumnProvRep!$A:$A,$A28,AutumnProvRep!$P:$P,"<>Coventry",AutumnProvRep!$U:$U,Data!AQ$17) -> 0 | AR66: 2 | AS66: 13168.65677 | AT66: 1127512.575 | AU66: 162.44 | AV66: 1.44 | AW66: 161 | AX66: =[5]Data!$AU42 -> 155.6315789 | AY66: 155 | BA66: 18509.60478 | BC66: 6945.549231
A67: 9 | B67: Coventry ELC | C67: =10000/$A$16 -> 51.54639175 | D67: 9000 | E67: =E55+BF55 -> 0 | F67: =F55+BG55 -> 0 | G67: =G55+BH55 -> 0 | H67: =H55+BI55 -> 0 | I67: =I55+BJ55 -> 0 | J67: =J55+BK55 -> 0 | K67: =K55+BL55 -> 0 | L67: =L55+BM55 -> 0 | M67: =M55+BN55 -> 0 | N67: =N55+BO55 -> 0 | O67: =O55+BP55 -> 0 | P67: =P55+BQ55 -> 0 | Q67: =Q55+BR55 -> 0 | R67: =R55+BS55 -> 0 | S67: =S55+BT55 -> 0 | T67: =T55+BU55 -> 0 | U67: =U55+BV55 -> 0 | V67: =V55+BW55 -> 0 | W67: =SUM(D67:V67)/$A$46 -> 120 | X67: =SUMPRODUCT(D67:V67,$Y$12:$AQ$12)/$A$16 -> 598330.6664 | Y67: 0 | Z67: =Z55+BZ55 -> 0 | AA67: =AA55+CA55 -> 0 | AB67: =AB55+CB55 -> 0 | AC67: =AC55+CC55 -> 0 | AD67: =AD55+CD55 -> 0 | AE67: =AE55+CE55 -> 0 | AF67: =AF55+CF55 -> 0 | AG67: =AG55+CG55 -> 0 | AH67: =AH55+CH55 -> 0 | AI67: =AI55+CI55 -> 0 | AJ67: =AJ55+CJ55 -> 0 | AK67: =AK55+CK55 -> 0 | AL67: =AL55+CL55 -> 0 | AM67: =AM55+CM55 -> 0 | AN67: =AN55+CN55 -> 0 | AO67: =AO55+CO55 -> 0 | AP67: =AP55+CP55 -> 0 | AQ67: =AQ55+CQ55 -> 0 | AR67: 0 | AS67: =SUMPRODUCT(Y67:AQ67,$Y$12:$AQ$12)/$A$16 -> 0 | AT67: 598330.6664 | AU67: 120 | AV67: =AU67-AW67 -> 0 | AW67: 120 | AX67: =[5]Data!$AU43 -> 120 | AY67: 120 | BA67: 13296.23703 | BC67: 4986.088887
AS68: =SUM(AS59:AS67) -> 97637.13326 | AT68: =SUM(AT59:AT67) -> 7605808.631 | AU68: =SUM(AU59:AU67) -> 1465.373333
D71: Coventry pupils | Y71: Other LA Pupils
B72: Spring Term 2026
A73: 55 | B73: School | BA73: 56
A74: 1 | B74: Castle Wood | C74: =10000/$A$16 -> 51.54639175 | D74: 0 | E74: =SUMIFS(SpringProvRep!$K:$K,SpringProvRep!$A:$A,Data!$A$21,SpringProvRep!$P:$P,"Coventry",SpringProvRep!$U:$U,Data!E$17)/$BA$73*$A$73 -> 0 | F74: =SUMIFS(SpringProvRep!$K:$K,SpringProvRep!$A:$A,Data!$A$21,SpringProvRep!$P:$P,"Coventry",SpringProvRep!$U:$U,Data!F$17)/$BA$73*$A$73 -> 0 | G74: =SUMIFS(SpringProvRep!$K:$K,SpringProvRep!$A:$A,Data!$A$21,SpringProvRep!$P:$P,"Coventry",SpringProvRep!$U:$U,Data!G$17)/$BA$73*$A$73 -> 54.01785714 | H74: =SUMIFS(SpringProvRep!$K:$K,SpringProvRep!$A:$A,Data!$A$21,SpringProvRep!$P:$P,"Coventry",SpringProvRep!$U:$U,Data!H$17)/$BA$73*$A$73 -> 0 | I74: =SUMIFS(SpringProvRep!$K:$K,SpringProvRep!$A:$A,Data!$A$21,SpringProvRep!$P:$P,"Coventry",SpringProvRep!$U:$U,Data!I$17)/$BA$73*$A$73 -> 0 | J74: =SUMIFS(SpringProvRep!$K:$K,SpringProvRep!$A:$A,Data!$A$21,SpringProvRep!$P:$P,"Coventry",SpringProvRep!$U:$U,Data!J$17)/$BA$73*$A$73 -> 54.01785714 | K74: =SUMIFS(SpringProvRep!$K:$K,SpringProvRep!$A:$A,Data!$A$21,SpringProvRep!$P:$P,"Coventry",SpringProvRep!$U:$U,Data!K$17)/$BA$73*$A$73 -> 6417.321429 | L74: =SUMIFS(SpringProvRep!$K:$K,SpringProvRep!$A:$A,Data!$A$21,SpringProvRep!$P:$P,"Coventry",SpringProvRep!$U:$U,Data!L$17)/$BA$73*$A$73 -> 432.1428571 | M74: =SUMIFS(SpringProvRep!$K:$K,SpringProvRep!$A:$A,Data!$A$21,SpringProvRep!$P:$P,"Coventry",SpringProvRep!$U:$U,Data!M$17)/$BA$73*$A$73 -> 0 | N74: =SUMIFS(SpringProvRep!$K:$K,SpringProvRep!$A:$A,Data!$A$21,SpringProvRep!$P:$P,"Coventry",SpringProvRep!$U:$U,Data!N$17)/$BA$73*$A$73 -> 397.7678571 | O74: =SUMIFS(SpringProvRep!$K:$K,SpringProvRep!$A:$A,Data!$A$21,SpringProvRep!$P:$P,"Coventry",SpringProvRep!$U:$U,Data!O$17)/$BA$73*$A$73 -> 545.0892857 | P74: =SUMIFS(SpringProvRep!$K:$K,SpringProvRep!$A:$A,Data!$A$21,SpringProvRep!$P:$P,"Coventry",SpringProvRep!$U:$U,Data!P$17)/$BA$73*$A$73 -> 0 | Q74: =SUMIFS(SpringProvRep!$K:$K,SpringProvRep!$A:$A,Data!$A$21,SpringProvRep!$P:$P,"Coventry",SpringProvRep!$U:$U,Data!Q$17)/$BA$73*$A$73 -> 1713.839286 | R74: =SUMIFS(SpringProvRep!$K:$K,SpringProvRep!$A:$A,Data!$A$21,SpringProvRep!$P:$P,"Coventry",SpringProvRep!$U:$U,Data!R$17)/$BA$73*$A$73 -> 324.1071429 | S74: =SUMIFS(SpringProvRep!$K:$K,SpringProvRep!$A:$A,Data!$A$21,SpringProvRep!$P:$P,"Coventry",SpringProvRep!$U:$U,Data!S$17)/$BA$73*$A$73 -> 0 | T74: =SUMIFS(SpringProvRep!$K:$K,SpringProvRep!$A:$A,Data!$A$21,SpringProvRep!$P:$P,"Coventry",SpringProvRep!$U:$U,Data!T$17)/$BA$73*$A$73 -> 184.6428571 | U74: =SUMIFS(SpringProvRep!$K:$K,SpringProvRep!$A:$A,Data!$A$21,SpringProvRep!$P:$P,"Coventry",SpringProvRep!$U:$U,Data!U$17)/$BA$73*$A$73 -> 108.0357143 | V74: =SUMIFS(SpringProvRep!$K:$K,SpringProvRep!$A:$A,Data!$A$21,SpringProvRep!$P:$P,"Coventry",SpringProvRep!$U:$U,Data!V$17)/$BA$73*$A$73 -> 0 | W74: =SUM(D74:V74)/$A$73 -> 186.0178571 | X74: =SUMPRODUCT(E74:V74,$Z$6:$AQ$6)/$A$16 -> 694606.6858 | Y74: 0 | Z74: =SUMIFS(SpringProvRep!$K:$K,SpringProvRep!$A:$A,Data!$A$21,SpringProvRep!$P:$P,"<>Coventry",SpringProvRep!$U:$U,Data!Z$17)/$BA$73*$A$73 -> 0 | AA74: =SUMIFS(SpringProvRep!$K:$K,SpringProvRep!$A:$A,Data!$A$21,SpringProvRep!$P:$P,"<>Coventry",SpringProvRep!$U:$U,Data!AA$17)/$BA$73*$A$73 -> 0 | AB74: =SUMIFS(SpringProvRep!$K:$K,SpringProvRep!$A:$A,Data!$A$21,SpringProvRep!$P:$P,"<>Coventry",SpringProvRep!$U:$U,Data!AB$17)/$BA$73*$A$73 -> 0 | AC74: =SUMIFS(SpringProvRep!$K:$K,SpringProvRep!$A:$A,Data!$A$21,SpringProvRep!$P:$P,"<>Coventry",SpringProvRep!$U:$U,Data!AC$17)/$BA$73*$A$73 -> 0 | AD74: =SUMIFS(SpringProvRep!$K:$K,SpringProvRep!$A:$A,Data!$A$21,SpringProvRep!$P:$P,"<>Coventry",SpringProvRep!$U:$U,Data!AD$17)/$BA$73*$A$73 -> 0 | AE74: =SUMIFS(SpringProvRep!$K:$K,SpringProvRep!$A:$A,Data!$A$21,SpringProvRep!$P:$P,"<>Coventry",SpringProvRep!$U:$U,Data!AE$17)/$BA$73*$A$73 -> 0 | AF74: =SUMIFS(SpringProvRep!$K:$K,SpringProvRep!$A:$A,Data!$A$21,SpringProvRep!$P:$P,"<>Coventry",SpringProvRep!$U:$U,Data!AF$17)/$BA$73*$A$73 -> 240.625 | AG74: =SUMIFS(SpringProvRep!$K:$K,SpringProvRep!$A:$A,Data!$A$21,SpringProvRep!$P:$P,"<>Coventry",SpringProvRep!$U:$U,Data!AG$17)/$BA$73*$A$73 -> 0 | AH74: =SUMIFS(SpringProvRep!$K:$K,SpringProvRep!$A:$A,Data!$A$21,SpringProvRep!$P:$P,"<>Coventry",SpringProvRep!$U:$U,Data!AH$17)/$BA$73*$A$73 -> 0 | AI74: =SUMIFS(SpringProvRep!$K:$K,SpringProvRep!$A:$A,Data!$A$21,SpringProvRep!$P:$P,"<>Coventry",SpringProvRep!$U:$U,Data!AI$17)/$BA$73*$A$73 -> 0 | AJ74: =SUMIFS(SpringProvRep!$K:$K,SpringProvRep!$A:$A,Data!$A$21,SpringProvRep!$P:$P,"<>Coventry",SpringProvRep!$U:$U,Data!AJ$17)/$BA$73*$A$73 -> 0 | AK74: =SUMIFS(SpringProvRep!$K:$K,SpringProvRep!$A:$A,Data!$A$21,SpringProvRep!$P:$P,"<>Coventry",SpringProvRep!$U:$U,Data!AK$17)/$BA$73*$A$73 -> 0 | AL74: =SUMIFS(SpringProvRep!$K:$K,SpringProvRep!$A:$A,Data!$A$21,SpringProvRep!$P:$P,"<>Coventry",SpringProvRep!$U:$U,Data!AL$17)/$BA$73*$A$73 -> 0 | AM74: =SUMIFS(SpringProvRep!$K:$K,SpringProvRep!$A:$A,Data!$A$21,SpringProvRep!$P:$P,"<>Coventry",SpringProvRep!$U:$U,Data!AM$17)/$BA$73*$A$73 -> 0 | AN74: =SUMIFS(SpringProvRep!$K:$K,SpringProvRep!$A:$A,Data!$A$21,SpringProvRep!$P:$P,"<>Coventry",SpringProvRep!$U:$U,Data!AN$17)/$BA$73*$A$73 -> 0 | AO74: =SUMIFS(SpringProvRep!$K:$K,SpringProvRep!$A:$A,Data!$A$21,SpringProvRep!$P:$P,"<>Coventry",SpringProvRep!$U:$U,Data!AO$17)/$BA$73*$A$73 -> 0 | AP74: =SUMIFS(SpringProvRep!$K:$K,SpringProvRep!$A:$A,Data!$A$21,SpringProvRep!$P:$P,"<>Coventry",SpringProvRep!$U:$U,Data!AP$17)/$BA$73*$A$73 -> 0 | AQ74: =SUMIFS(SpringProvRep!$K:$K,SpringProvRep!$A:$A,Data!$A$21,SpringProvRep!$P:$P,"<>Coventry",SpringProvRep!$U:$U,Data!AQ$17)/$BA$73*$A$73 -> 0 | AR74: =SUM(Z74:AQ74)/$A$73 -> 4.375 | AS74: =SUMPRODUCT(Z74:AQ74,$Z$4:$AQ$4)/$A$16 -> 12999.82462 | AT74: =X74+AS74 -> 707606.5104 | AU74: =AR74+W74 -> 190.3928571 | AV74: =AU74-AW74 -> 0.3928571429 | AW74: =AW47 -> 190 | AX74: =[5]Data!$AU62 -> 161.72 | AY74: =E4 -> 164 | BB74: =($O$4-$AU$74)*$A$73 -> -21.60714286 | BD74: =AU74*$A$73 -> 10471.60714 | BE74: =$BB$74/$BD$74*D74 -> 0 | BF74: 0 | BG74: 0 | BH74: -0.1114605944 | BI74: 0 | BJ74: 0 | BK74: -0.1114605944 | BL74: -13.24151861 | BM74: -0.8916847549 | BN74: 0 | BO74: -0.8207552858 | BP74: -1.124738725 | BQ74: 0 | BR74: -3.536340676 | BS74: -0.6687635662 | BT74: 0 | BU74: -0.3809925771 | BV74: -0.2229211887 | BW74: 0 | BY74: =$BB$74/$BD$74*Y74 -> 0 | BZ74: 0 | CA74: 0 | CB74: 0 | CC74: 0 | CD74: 0 | CE74: 0 | CF74: -0.496506284 | CG74: 0 | CH74: 0 | CI74: 0 | CJ74: 0 | CK74: 0 | CL74: 0 | CM74: 0 | CN74: 0 | CO74: 0 | CP74: 0 | CQ74: 0
A75: 2 | B75: Kingsbury | C75: =10000/$A$16 -> 51.54639175 | D75: 0 | E75: =SUMIFS(SpringProvRep!$K:$K,SpringProvRep!$A:$A,Data!$A$22,SpringProvRep!$P:$P,"Coventry",SpringProvRep!$U:$U,Data!E$17)/$BA$73*$A$73 -> 0 | F75: =SUMIFS(SpringProvRep!$K:$K,SpringProvRep!$A:$A,Data!$A$22,SpringProvRep!$P:$P,"Coventry",SpringProvRep!$U:$U,Data!F$17)/$BA$73*$A$73 -> 0 | G75: =SUMIFS(SpringProvRep!$K:$K,SpringProvRep!$A:$A,Data!$A$22,SpringProvRep!$P:$P,"Coventry",SpringProvRep!$U:$U,Data!G$17)/$BA$73*$A$73 -> 0 | H75: =SUMIFS(SpringProvRep!$K:$K,SpringProvRep!$A:$A,Data!$A$22,SpringProvRep!$P:$P,"Coventry",SpringProvRep!$U:$U,Data!H$17)/$BA$73*$A$73 -> 0 | I75: =SUMIFS(SpringProvRep!$K:$K,SpringProvRep!$A:$A,Data!$A$22,SpringProvRep!$P:$P,"Coventry",SpringProvRep!$U:$U,Data!I$17)/$BA$73*$A$73 -> 0 | J75: =SUMIFS(SpringProvRep!$K:$K,SpringProvRep!$A:$A,Data!$A$22,SpringProvRep!$P:$P,"Coventry",SpringProvRep!$U:$U,Data!J$17)/$BA$73*$A$73 -> 0 | K75: =SUMIFS(SpringProvRep!$K:$K,SpringProvRep!$A:$A,Data!$A$22,SpringProvRep!$P:$P,"Coventry",SpringProvRep!$U:$U,Data!K$17)/$BA$73*$A$73 -> 2975.892857 | L75: =SUMIFS(SpringProvRep!$K:$K,SpringProvRep!$A:$A,Data!$A$22,SpringProvRep!$P:$P,"Coventry",SpringProvRep!$U:$U,Data!L$17)/$BA$73*$A$73 -> 108.0357143 | M75: =SUMIFS(SpringProvRep!$K:$K,SpringProvRep!$A:$A,Data!$A$22,SpringProvRep!$P:$P,"Coventry",SpringProvRep!$U:$U,Data!M$17)/$BA$73*$A$73 -> 0 | N75: =SUMIFS(SpringProvRep!$K:$K,SpringProvRep!$A:$A,Data!$A$22,SpringProvRep!$P:$P,"Coventry",SpringProvRep!$U:$U,Data!N$17)/$BA$73*$A$73 -> 0 | O75: =SUMIFS(SpringProvRep!$K:$K,SpringProvRep!$A:$A,Data!$A$22,SpringProvRep!$P:$P,"Coventry",SpringProvRep!$U:$U,Data!O$17)/$BA$73*$A$73 -> 983.125 | P75: =SUMIFS(SpringProvRep!$K:$K,SpringProvRep!$A:$A,Data!$A$22,SpringProvRep!$P:$P,"Coventry",SpringProvRep!$U:$U,Data!P$17)/$BA$73*$A$73 -> 0 | Q75: =SUMIFS(SpringProvRep!$K:$K,SpringProvRep!$A:$A,Data!$A$22,SpringProvRep!$P:$P,"Coventry",SpringProvRep!$U:$U,Data!Q$17)/$BA$73*$A$73 -> 1369.107143 | R75: =SUMIFS(SpringProvRep!$K:$K,SpringProvRep!$A:$A,Data!$A$22,SpringProvRep!$P:$P,"Coventry",SpringProvRep!$U:$U,Data!R$17)/$BA$73*$A$73 -> 0 | S75: =SUMIFS(SpringProvRep!$K:$K,SpringProvRep!$A:$A,Data!$A$22,SpringProvRep!$P:$P,"Coventry",SpringProvRep!$U:$U,Data!S$17)/$BA$73*$A$73 -> 0 | T75: =SUMIFS(SpringProvRep!$K:$K,SpringProvRep!$A:$A,Data!$A$22,SpringProvRep!$P:$P,"Coventry",SpringProvRep!$U:$U,Data!T$17)/$BA$73*$A$73 -> 0 | U75: =SUMIFS(SpringProvRep!$K:$K,SpringProvRep!$A:$A,Data!$A$22,SpringProvRep!$P:$P,"Coventry",SpringProvRep!$U:$U,Data!U$17)/$BA$73*$A$73 -> 43.21428571 | V75: =SUMIFS(SpringProvRep!$K:$K,SpringProvRep!$A:$A,Data!$A$22,SpringProvRep!$P:$P,"Coventry",SpringProvRep!$U:$U,Data!V$17)/$BA$73*$A$73 -> 0 | W75: =SUM(D75:V75)/$A$73 -> 99.625 | X75: 433487.7299 | Y75: 0 | Z75: =SUMIFS(SpringProvRep!$K:$K,SpringProvRep!$A:$A,Data!$A$22,SpringProvRep!$P:$P,"<>Coventry",SpringProvRep!$U:$U,Data!Z$17)/$BA$73*$A$73 -> 0 | AA75: =SUMIFS(SpringProvRep!$K:$K,SpringProvRep!$A:$A,Data!$A$22,SpringProvRep!$P:$P,"<>Coventry",SpringProvRep!$U:$U,Data!AA$17)/$BA$73*$A$73 -> 0 | AB75: =SUMIFS(SpringProvRep!$K:$K,SpringProvRep!$A:$A,Data!$A$22,SpringProvRep!$P:$P,"<>Coventry",SpringProvRep!$U:$U,Data!AB$17)/$BA$73*$A$73 -> 0 | AC75: =SUMIFS(SpringProvRep!$K:$K,SpringProvRep!$A:$A,Data!$A$22,SpringProvRep!$P:$P,"<>Coventry",SpringProvRep!$U:$U,Data!AC$17)/$BA$73*$A$73 -> 0 | AD75: =SUMIFS(SpringProvRep!$K:$K,SpringProvRep!$A:$A,Data!$A$22,SpringProvRep!$P:$P,"<>Coventry",SpringProvRep!$U:$U,Data!AD$17)/$BA$73*$A$73 -> 0 | AE75: =SUMIFS(SpringProvRep!$K:$K,SpringProvRep!$A:$A,Data!$A$22,SpringProvRep!$P:$P,"<>Coventry",SpringProvRep!$U:$U,Data!AE$17)/$BA$73*$A$73 -> 0 | AF75: =SUMIFS(SpringProvRep!$K:$K,SpringProvRep!$A:$A,Data!$A$22,SpringProvRep!$P:$P,"<>Coventry",SpringProvRep!$U:$U,Data!AF$17)/$BA$73*$A$73 -> 54.01785714 | AG75: =SUMIFS(SpringProvRep!$K:$K,SpringProvRep!$A:$A,Data!$A$22,SpringProvRep!$P:$P,"<>Coventry",SpringProvRep!$U:$U,Data!AG$17)/$BA$73*$A$73 -> 54.01785714 | AH75: =SUMIFS(SpringProvRep!$K:$K,SpringProvRep!$A:$A,Data!$A$22,SpringProvRep!$P:$P,"<>Coventry",SpringProvRep!$U:$U,Data!AH$17)/$BA$73*$A$73 -> 0 | AI75: =SUMIFS(SpringProvRep!$K:$K,SpringProvRep!$A:$A,Data!$A$22,SpringProvRep!$P:$P,"<>Coventry",SpringProvRep!$U:$U,Data!AI$17)/$BA$73*$A$73 -> 0 | AJ75: =SUMIFS(SpringProvRep!$K:$K,SpringProvRep!$A:$A,Data!$A$22,SpringProvRep!$P:$P,"<>Coventry",SpringProvRep!$U:$U,Data!AJ$17)/$BA$73*$A$73 -> 0 | AK75: =SUMIFS(SpringProvRep!$K:$K,SpringProvRep!$A:$A,Data!$A$22,SpringProvRep!$P:$P,"<>Coventry",SpringProvRep!$U:$U,Data!AK$17)/$BA$73*$A$73 -> 0 | AL75: =SUMIFS(SpringProvRep!$K:$K,SpringProvRep!$A:$A,Data!$A$22,SpringProvRep!$P:$P,"<>Coventry",SpringProvRep!$U:$U,Data!AL$17)/$BA$73*$A$73 -> 54.01785714 | AM75: =SUMIFS(SpringProvRep!$K:$K,SpringProvRep!$A:$A,Data!$A$22,SpringProvRep!$P:$P,"<>Coventry",SpringProvRep!$U:$U,Data!AM$17)/$BA$73*$A$73 -> 0 | AN75: =SUMIFS(SpringProvRep!$K:$K,SpringProvRep!$A:$A,Data!$A$22,SpringProvRep!$P:$P,"<>Coventry",SpringProvRep!$U:$U,Data!AN$17)/$BA$73*$A$73 -> 0 | AO75: =SUMIFS(SpringProvRep!$K:$K,SpringProvRep!$A:$A,Data!$A$22,SpringProvRep!$P:$P,"<>Coventry",SpringProvRep!$U:$U,Data!AO$17)/$BA$73*$A$73 -> 0 | AP75: =SUMIFS(SpringProvRep!$K:$K,SpringProvRep!$A:$A,Data!$A$22,SpringProvRep!$P:$P,"<>Coventry",SpringProvRep!$U:$U,Data!AP$17)/$BA$73*$A$73 -> 0 | AQ75: =SUMIFS(SpringProvRep!$K:$K,SpringProvRep!$A:$A,Data!$A$22,SpringProvRep!$P:$P,"<>Coventry",SpringProvRep!$U:$U,Data!AQ$17)/$BA$73*$A$73 -> 0 | AR75: =SUM(Z75:AQ75)/$A$73 -> 2.946428571 | AS75: 10360.06697 | AT75: 443847.7969 | AU75: =AR75+W75 -> 102.5714286 | AV75: =AU75-AW75 -> -3.428571429 | AW75: 106 | AX75: =[5]Data!$AU63 -> 100.52 | AY75: 100 | BB75: =($O$5-$AU$75)*$A$73 -> 188.5714286 | BD75: 5641.428571 | BE75: =$BB$75/$BD$75*D75 -> 0 | BF75: 0 | BG75: 0 | BH75: 0 | BI75: 0 | BJ75: 0 | BK75: 0 | BL75: 99.47274174 | BM75: 3.611221647 | BN75: 0 | BO75: 0 | BP75: 32.86211699 | BQ75: 0 | BR75: 45.76402706 | BS75: 0 | BT75: 0 | BU75: 0 | BV75: 1.444488659 | BW75: 0 | BY75: =$BB$75/$BD$75*Y75 -> 0 | BZ75: 0 | CA75: 0 | CB75: 0 | CC75: 0 | CD75: 0 | CE75: 0 | CF75: 1.805610824 | CG75: 1.805610824 | CH75: 0 | CI75: 0 | CJ75: 0 | CK75: 0 | CL75: 1.805610824 | CM75: 0 | CN75: 0 | CO75: 0 | CP75: 0 | CQ75: 0
A76: 3 | B76: RiverBank | C76: 51.54639175 | D76: 0 | E76: =SUMIFS(SpringProvRep!$K:$K,SpringProvRep!$A:$A,Data!$A$23,SpringProvRep!$P:$P,"Coventry",SpringProvRep!$U:$U,Data!E$17)/$BA$73*$A$73 -> 0 | F76: =SUMIFS(SpringProvRep!$K:$K,SpringProvRep!$A:$A,Data!$A$23,SpringProvRep!$P:$P,"Coventry",SpringProvRep!$U:$U,Data!F$17)/$BA$73*$A$73 -> 0 | G76: =SUMIFS(SpringProvRep!$K:$K,SpringProvRep!$A:$A,Data!$A$23,SpringProvRep!$P:$P,"Coventry",SpringProvRep!$U:$U,Data!G$17)/$BA$73*$A$73 -> 137.5 | H76: =SUMIFS(SpringProvRep!$K:$K,SpringProvRep!$A:$A,Data!$A$23,SpringProvRep!$P:$P,"Coventry",SpringProvRep!$U:$U,Data!H$17)/$BA$73*$A$73 -> 162.0535714 | I76: =SUMIFS(SpringProvRep!$K:$K,SpringProvRep!$A:$A,Data!$A$23,SpringProvRep!$P:$P,"Coventry",SpringProvRep!$U:$U,Data!I$17)/$BA$73*$A$73 -> 0 | J76: =SUMIFS(SpringProvRep!$K:$K,SpringProvRep!$A:$A,Data!$A$23,SpringProvRep!$P:$P,"Coventry",SpringProvRep!$U:$U,Data!J$17)/$BA$73*$A$73 -> 0 | K76: =SUMIFS(SpringProvRep!$K:$K,SpringProvRep!$A:$A,Data!$A$23,SpringProvRep!$P:$P,"Coventry",SpringProvRep!$U:$U,Data!K$17)/$BA$73*$A$73 -> 4881.25 | L76: =SUMIFS(SpringProvRep!$K:$K,SpringProvRep!$A:$A,Data!$A$23,SpringProvRep!$P:$P,"Coventry",SpringProvRep!$U:$U,Data!L$17)/$BA$73*$A$73 -> 2592.857143 | M76: =SUMIFS(SpringProvRep!$K:$K,SpringProvRep!$A:$A,Data!$A$23,SpringProvRep!$P:$P,"Coventry",SpringProvRep!$U:$U,Data!M$17)/$BA$73*$A$73 -> 54.01785714 | N76: =SUMIFS(SpringProvRep!$K:$K,SpringProvRep!$A:$A,Data!$A$23,SpringProvRep!$P:$P,"Coventry",SpringProvRep!$U:$U,Data!N$17)/$BA$73*$A$73 -> 432.1428571 | O76: =SUMIFS(SpringProvRep!$K:$K,SpringProvRep!$A:$A,Data!$A$23,SpringProvRep!$P:$P,"Coventry",SpringProvRep!$U:$U,Data!O$17)/$BA$73*$A$73 -> 540.1785714 | P76: =SUMIFS(SpringProvRep!$K:$K,SpringProvRep!$A:$A,Data!$A$23,SpringProvRep!$P:$P,"Coventry",SpringProvRep!$U:$U,Data!P$17)/$BA$73*$A$73 -> 162.0535714 | Q76: =SUMIFS(SpringProvRep!$K:$K,SpringProvRep!$A:$A,Data!$A$23,SpringProvRep!$P:$P,"Coventry",SpringProvRep!$U:$U,Data!Q$17)/$BA$73*$A$73 -> 1890.625 | R76: =SUMIFS(SpringProvRep!$K:$K,SpringProvRep!$A:$A,Data!$A$23,SpringProvRep!$P:$P,"Coventry",SpringProvRep!$U:$U,Data!R$17)/$BA$73*$A$73 -> 432.1428571 | S76: =SUMIFS(SpringProvRep!$K:$K,SpringProvRep!$A:$A,Data!$A$23,SpringProvRep!$P:$P,"Coventry",SpringProvRep!$U:$U,Data!S$17)/$BA$73*$A$73 -> 0 | T76: =SUMIFS(SpringProvRep!$K:$K,SpringProvRep!$A:$A,Data!$A$23,SpringProvRep!$P:$P,"Coventry",SpringProvRep!$U:$U,Data!T$17)/$BA$73*$A$73 -> 162.0535714 | U76: =SUMIFS(SpringProvRep!$K:$K,SpringProvRep!$A:$A,Data!$A$23,SpringProvRep!$P:$P,"Coventry",SpringProvRep!$U:$U,Data!U$17)/$BA$73*$A$73 -> 0 | V76: =SUMIFS(SpringProvRep!$K:$K,SpringProvRep!$A:$A,Data!$A$23,SpringProvRep!$P:$P,"Coventry",SpringProvRep!$U:$U,Data!V$17)/$BA$73*$A$73 -> 0 | W76: 208.125 | X76: 750984.8907 | Y76: 0 | Z76: =SUMIFS(SpringProvRep!$K:$K,SpringProvRep!$A:$A,Data!$A$23,SpringProvRep!$P:$P,"<>Coventry",SpringProvRep!$U:$U,Data!Z$17)/$BA$73*$A$73 -> 0 | AA76: =SUMIFS(SpringProvRep!$K:$K,SpringProvRep!$A:$A,Data!$A$23,SpringProvRep!$P:$P,"<>Coventry",SpringProvRep!$U:$U,Data!AA$17)/$BA$73*$A$73 -> 0 | AB76: =SUMIFS(SpringProvRep!$K:$K,SpringProvRep!$A:$A,Data!$A$23,SpringProvRep!$P:$P,"<>Coventry",SpringProvRep!$U:$U,Data!AB$17)/$BA$73*$A$73 -> 0 | AC76: =SUMIFS(SpringProvRep!$K:$K,SpringProvRep!$A:$A,Data!$A$23,SpringProvRep!$P:$P,"<>Coventry",SpringProvRep!$U:$U,Data!AC$17)/$BA$73*$A$73 -> 0 | AD76: =SUMIFS(SpringProvRep!$K:$K,SpringProvRep!$A:$A,Data!$A$23,SpringProvRep!$P:$P,"<>Coventry",SpringProvRep!$U:$U,Data!AD$17)/$BA$73*$A$73 -> 0 | AE76: =SUMIFS(SpringProvRep!$K:$K,SpringProvRep!$A:$A,Data!$A$23,SpringProvRep!$P:$P,"<>Coventry",SpringProvRep!$U:$U,Data!AE$17)/$BA$73*$A$73 -> 0 | AF76: =SUMIFS(SpringProvRep!$K:$K,SpringProvRep!$A:$A,Data!$A$23,SpringProvRep!$P:$P,"<>Coventry",SpringProvRep!$U:$U,Data!AF$17)/$BA$73*$A$73 -> 0 | AG76: =SUMIFS(SpringProvRep!$K:$K,SpringProvRep!$A:$A,Data!$A$23,SpringProvRep!$P:$P,"<>Coventry",SpringProvRep!$U:$U,Data!AG$17)/$BA$73*$A$73 -> 54.01785714 | AH76: =SUMIFS(SpringProvRep!$K:$K,SpringProvRep!$A:$A,Data!$A$23,SpringProvRep!$P:$P,"<>Coventry",SpringProvRep!$U:$U,Data!AH$17)/$BA$73*$A$73 -> 0 | AI76: =SUMIFS(SpringProvRep!$K:$K,SpringProvRep!$A:$A,Data!$A$23,SpringProvRep!$P:$P,"<>Coventry",SpringProvRep!$U:$U,Data!AI$17)/$BA$73*$A$73 -> 0 | AJ76: =SUMIFS(SpringProvRep!$K:$K,SpringProvRep!$A:$A,Data!$A$23,SpringProvRep!$P:$P,"<>Coventry",SpringProvRep!$U:$U,Data!AJ$17)/$BA$73*$A$73 -> 0 | AK76: =SUMIFS(SpringProvRep!$K:$K,SpringProvRep!$A:$A,Data!$A$23,SpringProvRep!$P:$P,"<>Coventry",SpringProvRep!$U:$U,Data!AK$17)/$BA$73*$A$73 -> 0 | AL76: =SUMIFS(SpringProvRep!$K:$K,SpringProvRep!$A:$A,Data!$A$23,SpringProvRep!$P:$P,"<>Coventry",SpringProvRep!$U:$U,Data!AL$17)/$BA$73*$A$73 -> 54.01785714 | AM76: =SUMIFS(SpringProvRep!$K:$K,SpringProvRep!$A:$A,Data!$A$23,SpringProvRep!$P:$P,"<>Coventry",SpringProvRep!$U:$U,Data!AM$17)/$BA$73*$A$73 -> 0 | AN76: =SUMIFS(SpringProvRep!$K:$K,SpringProvRep!$A:$A,Data!$A$23,SpringProvRep!$P:$P,"<>Coventry",SpringProvRep!$U:$U,Data!AN$17)/$BA$73*$A$73 -> 0 | AO76: =SUMIFS(SpringProvRep!$K:$K,SpringProvRep!$A:$A,Data!$A$23,SpringProvRep!$P:$P,"<>Coventry",SpringProvRep!$U:$U,Data!AO$17)/$BA$73*$A$73 -> 0 | AP76: =SUMIFS(SpringProvRep!$K:$K,SpringProvRep!$A:$A,Data!$A$23,SpringProvRep!$P:$P,"<>Coventry",SpringProvRep!$U:$U,Data!AP$17)/$BA$73*$A$73 -> 0 | AQ76: =SUMIFS(SpringProvRep!$K:$K,SpringProvRep!$A:$A,Data!$A$23,SpringProvRep!$P:$P,"<>Coventry",SpringProvRep!$U:$U,Data!AQ$17)/$BA$73*$A$73 -> 0 | AR76: 1.964285714 | AS76: 7441.738995 | AT76: 758426.6297 | AU76: 210.0892857 | AV76: -9.910714286 | AW76: 220 | AX76: =[5]Data!$AU64 -> 197 | AY76: 209 | BB76: =($O$6-$AU$76)*$A$73 -> 545.0892857 | BD76: 11554.91071 | BE76: =$BB$76/$BD$76*D76 -> 0 | BF76: 0 | BG76: 0 | BH76: 6.48640034 | BI76: 7.644686115 | BJ76: 0 | BK76: 0 | BL76: 230.2672121 | BM76: 122.3149778 | BN76: 2.548228705 | BO76: 20.38582964 | BP76: 25.48228705 | BQ76: 7.644686115 | BR76: 89.18800467 | BS76: 20.38582964 | BT76: 0 | BU76: 7.644686115 | BV76: 0 | BW76: 0 | BY76: =$BB$76/$BD$76*Y76 -> 0 | BZ76: 0 | CA76: 0 | CB76: 0 | CC76: 0 | CD76: 0 | CE76: 0 | CF76: 0 | CG76: 2.548228705 | CH76: 0 | CI76: 0 | CJ76: 0 | CK76: 0 | CL76: 2.548228705 | CM76: 0 | CN76: 0 | CO76: 0 | CP76: 0 | CQ76: 0
A77: 4 | B77: Corley | C77: 51.54639175 | D77: 0 | E77: =SUMIFS(SpringProvRep!$K:$K,SpringProvRep!$A:$A,Data!$A$24,SpringProvRep!$P:$P,"Coventry",SpringProvRep!$U:$U,Data!E$17)/$BA$73*$A$73 -> 0 | F77: =SUMIFS(SpringProvRep!$K:$K,SpringProvRep!$A:$A,Data!$A$24,SpringProvRep!$P:$P,"Coventry",SpringProvRep!$U:$U,Data!F$17)/$BA$73*$A$73 -> 0 | G77: =SUMIFS(SpringProvRep!$K:$K,SpringProvRep!$A:$A,Data!$A$24,SpringProvRep!$P:$P,"Coventry",SpringProvRep!$U:$U,Data!G$17)/$BA$73*$A$73 -> 0 | H77: =SUMIFS(SpringProvRep!$K:$K,SpringProvRep!$A:$A,Data!$A$24,SpringProvRep!$P:$P,"Coventry",SpringProvRep!$U:$U,Data!H$17)/$BA$73*$A$73 -> 0 | I77: =SUMIFS(SpringProvRep!$K:$K,SpringProvRep!$A:$A,Data!$A$24,SpringProvRep!$P:$P,"Coventry",SpringProvRep!$U:$U,Data!I$17)/$BA$73*$A$73 -> 0 | J77: =SUMIFS(SpringProvRep!$K:$K,SpringProvRep!$A:$A,Data!$A$24,SpringProvRep!$P:$P,"Coventry",SpringProvRep!$U:$U,Data!J$17)/$BA$73*$A$73 -> 0 | K77: =SUMIFS(SpringProvRep!$K:$K,SpringProvRep!$A:$A,Data!$A$24,SpringProvRep!$P:$P,"Coventry",SpringProvRep!$U:$U,Data!K$17)/$BA$73*$A$73 -> 7178.482143 | L77: =SUMIFS(SpringProvRep!$K:$K,SpringProvRep!$A:$A,Data!$A$24,SpringProvRep!$P:$P,"Coventry",SpringProvRep!$U:$U,Data!L$17)/$BA$73*$A$73 -> 0 | M77: =SUMIFS(SpringProvRep!$K:$K,SpringProvRep!$A:$A,Data!$A$24,SpringProvRep!$P:$P,"Coventry",SpringProvRep!$U:$U,Data!M$17)/$BA$73*$A$73 -> 324.1071429 | N77: =SUMIFS(SpringProvRep!$K:$K,SpringProvRep!$A:$A,Data!$A$24,SpringProvRep!$P:$P,"Coventry",SpringProvRep!$U:$U,Data!N$17)/$BA$73*$A$73 -> 0 | O77: =SUMIFS(SpringProvRep!$K:$K,SpringProvRep!$A:$A,Data!$A$24,SpringProvRep!$P:$P,"Coventry",SpringProvRep!$U:$U,Data!O$17)/$BA$73*$A$73 -> 409.5535714 | P77: =SUMIFS(SpringProvRep!$K:$K,SpringProvRep!$A:$A,Data!$A$24,SpringProvRep!$P:$P,"Coventry",SpringProvRep!$U:$U,Data!P$17)/$BA$73*$A$73 -> 0 | Q77: =SUMIFS(SpringProvRep!$K:$K,SpringProvRep!$A:$A,Data!$A$24,SpringProvRep!$P:$P,"Coventry",SpringProvRep!$U:$U,Data!Q$17)/$BA$73*$A$73 -> 864.2857143 | R77: =SUMIFS(SpringProvRep!$K:$K,SpringProvRep!$A:$A,Data!$A$24,SpringProvRep!$P:$P,"Coventry",SpringProvRep!$U:$U,Data!R$17)/$BA$73*$A$73 -> 0 | S77: =SUMIFS(SpringProvRep!$K:$K,SpringProvRep!$A:$A,Data!$A$24,SpringProvRep!$P:$P,"Coventry",SpringProvRep!$U:$U,Data!S$17)/$BA$73*$A$73 -> 0 | T77: =SUMIFS(SpringProvRep!$K:$K,SpringProvRep!$A:$A,Data!$A$24,SpringProvRep!$P:$P,"Coventry",SpringProvRep!$U:$U,Data!T$17)/$BA$73*$A$73 -> 0 | U77: =SUMIFS(SpringProvRep!$K:$K,SpringProvRep!$A:$A,Data!$A$24,SpringProvRep!$P:$P,"Coventry",SpringProvRep!$U:$U,Data!U$17)/$BA$73*$A$73 -> 0 | V77: =SUMIFS(SpringProvRep!$K:$K,SpringProvRep!$A:$A,Data!$A$24,SpringProvRep!$P:$P,"Coventry",SpringProvRep!$U:$U,Data!V$17)/$BA$73*$A$73 -> 0 | W77: 159.5714286 | X77: 541918.5163 | Y77: 0 | Z77: =SUMIFS(SpringProvRep!$K:$K,SpringProvRep!$A:$A,Data!$A$24,SpringProvRep!$P:$P,"<>Coventry",SpringProvRep!$U:$U,Data!Z$17)/$BA$73*$A$73 -> 0 | AA77: =SUMIFS(SpringProvRep!$K:$K,SpringProvRep!$A:$A,Data!$A$24,SpringProvRep!$P:$P,"<>Coventry",SpringProvRep!$U:$U,Data!AA$17)/$BA$73*$A$73 -> 0 | AB77: =SUMIFS(SpringProvRep!$K:$K,SpringProvRep!$A:$A,Data!$A$24,SpringProvRep!$P:$P,"<>Coventry",SpringProvRep!$U:$U,Data!AB$17)/$BA$73*$A$73 -> 0 | AC77: =SUMIFS(SpringProvRep!$K:$K,SpringProvRep!$A:$A,Data!$A$24,SpringProvRep!$P:$P,"<>Coventry",SpringProvRep!$U:$U,Data!AC$17)/$BA$73*$A$73 -> 0 | AD77: =SUMIFS(SpringProvRep!$K:$K,SpringProvRep!$A:$A,Data!$A$24,SpringProvRep!$P:$P,"<>Coventry",SpringProvRep!$U:$U,Data!AD$17)/$BA$73*$A$73 -> 0 | AE77: =SUMIFS(SpringProvRep!$K:$K,SpringProvRep!$A:$A,Data!$A$24,SpringProvRep!$P:$P,"<>Coventry",SpringProvRep!$U:$U,Data!AE$17)/$BA$73*$A$73 -> 0 | AF77: =SUMIFS(SpringProvRep!$K:$K,SpringProvRep!$A:$A,Data!$A$24,SpringProvRep!$P:$P,"<>Coventry",SpringProvRep!$U:$U,Data!AF$17)/$BA$73*$A$73 -> 108.0357143 | AG77: =SUMIFS(SpringProvRep!$K:$K,SpringProvRep!$A:$A,Data!$A$24,SpringProvRep!$P:$P,"<>Coventry",SpringProvRep!$U:$U,Data!AG$17)/$BA$73*$A$73 -> 0 | AH77: =SUMIFS(SpringProvRep!$K:$K,SpringProvRep!$A:$A,Data!$A$24,SpringProvRep!$P:$P,"<>Coventry",SpringProvRep!$U:$U,Data!AH$17)/$BA$73*$A$73 -> 0 | AI77: =SUMIFS(SpringProvRep!$K:$K,SpringProvRep!$A:$A,Data!$A$24,SpringProvRep!$P:$P,"<>Coventry",SpringProvRep!$U:$U,Data!AI$17)/$BA$73*$A$73 -> 0 | AJ77: =SUMIFS(SpringProvRep!$K:$K,SpringProvRep!$A:$A,Data!$A$24,SpringProvRep!$P:$P,"<>Coventry",SpringProvRep!$U:$U,Data!AJ$17)/$BA$73*$A$73 -> 0 | AK77: =SUMIFS(SpringProvRep!$K:$K,SpringProvRep!$A:$A,Data!$A$24,SpringProvRep!$P:$P,"<>Coventry",SpringProvRep!$U:$U,Data!AK$17)/$BA$73*$A$73 -> 0 | AL77: =SUMIFS(SpringProvRep!$K:$K,SpringProvRep!$A:$A,Data!$A$24,SpringProvRep!$P:$P,"<>Coventry",SpringProvRep!$U:$U,Data!AL$17)/$BA$73*$A$73 -> 0 | AM77: =SUMIFS(SpringProvRep!$K:$K,SpringProvRep!$A:$A,Data!$A$24,SpringProvRep!$P:$P,"<>Coventry",SpringProvRep!$U:$U,Data!AM$17)/$BA$73*$A$73 -> 0 | AN77: =SUMIFS(SpringProvRep!$K:$K,SpringProvRep!$A:$A,Data!$A$24,SpringProvRep!$P:$P,"<>Coventry",SpringProvRep!$U:$U,Data!AN$17)/$BA$73*$A$73 -> 0 | AO77: =SUMIFS(SpringProvRep!$K:$K,SpringProvRep!$A:$A,Data!$A$24,SpringProvRep!$P:$P,"<>Coventry",SpringProvRep!$U:$U,Data!AO$17)/$BA$73*$A$73 -> 0 | AP77: =SUMIFS(SpringProvRep!$K:$K,SpringProvRep!$A:$A,Data!$A$24,SpringProvRep!$P:$P,"<>Coventry",SpringProvRep!$U:$U,Data!AP$17)/$BA$73*$A$73 -> 0 | AQ77: =SUMIFS(SpringProvRep!$K:$K,SpringProvRep!$A:$A,Data!$A$24,SpringProvRep!$P:$P,"<>Coventry",SpringProvRep!$U:$U,Data!AQ$17)/$BA$73*$A$73 -> 0 | AR77: 1.964285714 | AS77: 5836.655953 | AT77: 547755.1722 | AU77: 161.5357143 | AV77: -3.464285714 | AW77: 165 | AX77: =[5]Data!$AU65 -> 145.7 | AY77: 155 | BB77: =($O$7-$AU$77)*$A$73 -> 190.5357143 | BD77: 8884.464286 | BE77: =$BB$77/$BD$77*D77 -> 0 | BF77: 0 | BG77: 0 | BH77: 0 | BI77: 0 | BJ77: 0 | BK77: 0 | BL77: 153.9493186 | BM77: 0 | BN77: 6.950783298 | BO77: 0 | BP77: 8.783262531 | BQ77: 0 | BR77: 18.53542213 | BS77: 0 | BT77: 0 | BU77: 0 | BV77: 0 | BW77: 0 | BY77: =$BB$77/$BD$77*Y77 -> 0 | BZ77: 0 | CA77: 0 | CB77: 0 | CC77: 0 | CD77: 0 | CE77: 0 | CF77: 2.316927766 | CG77: 0 | CH77: 0 | CI77: 0 | CJ77: 0 | CK77: 0 | CL77: 0 | CM77: 0 | CN77: 0 | CO77: 0 | CP77: 0 | CQ77: 0
A78: 5 | B78: Tiverton | C78: 51.54639175 | D78: 0 | E78: =SUMIFS(SpringProvRep!$K:$K,SpringProvRep!$A:$A,Data!$A$25,SpringProvRep!$P:$P,"Coventry",SpringProvRep!$U:$U,Data!E$17)/$BA$73*$A$73 -> 0 | F78: =SUMIFS(SpringProvRep!$K:$K,SpringProvRep!$A:$A,Data!$A$25,SpringProvRep!$P:$P,"Coventry",SpringProvRep!$U:$U,Data!F$17)/$BA$73*$A$73 -> 0 | G78: =SUMIFS(SpringProvRep!$K:$K,SpringProvRep!$A:$A,Data!$A$25,SpringProvRep!$P:$P,"Coventry",SpringProvRep!$U:$U,Data!G$17)/$BA$73*$A$73 -> 0 | H78: =SUMIFS(SpringProvRep!$K:$K,SpringProvRep!$A:$A,Data!$A$25,SpringProvRep!$P:$P,"Coventry",SpringProvRep!$U:$U,Data!H$17)/$BA$73*$A$73 -> 0 | I78: =SUMIFS(SpringProvRep!$K:$K,SpringProvRep!$A:$A,Data!$A$25,SpringProvRep!$P:$P,"Coventry",SpringProvRep!$U:$U,Data!I$17)/$BA$73*$A$73 -> 0 | J78: =SUMIFS(SpringProvRep!$K:$K,SpringProvRep!$A:$A,Data!$A$25,SpringProvRep!$P:$P,"Coventry",SpringProvRep!$U:$U,Data!J$17)/$BA$73*$A$73 -> 0 | K78: =SUMIFS(SpringProvRep!$K:$K,SpringProvRep!$A:$A,Data!$A$25,SpringProvRep!$P:$P,"Coventry",SpringProvRep!$U:$U,Data!K$17)/$BA$73*$A$73 -> 4483.482143 | L78: =SUMIFS(SpringProvRep!$K:$K,SpringProvRep!$A:$A,Data!$A$25,SpringProvRep!$P:$P,"Coventry",SpringProvRep!$U:$U,Data!L$17)/$BA$73*$A$73 -> 432.1428571 | M78: =SUMIFS(SpringProvRep!$K:$K,SpringProvRep!$A:$A,Data!$A$25,SpringProvRep!$P:$P,"Coventry",SpringProvRep!$U:$U,Data!M$17)/$BA$73*$A$73 -> 0 | N78: =SUMIFS(SpringProvRep!$K:$K,SpringProvRep!$A:$A,Data!$A$25,SpringProvRep!$P:$P,"Coventry",SpringProvRep!$U:$U,Data!N$17)/$BA$73*$A$73 -> 216.0714286 | O78: =SUMIFS(SpringProvRep!$K:$K,SpringProvRep!$A:$A,Data!$A$25,SpringProvRep!$P:$P,"Coventry",SpringProvRep!$U:$U,Data!O$17)/$BA$73*$A$73 -> 378.125 | P78: =SUMIFS(SpringProvRep!$K:$K,SpringProvRep!$A:$A,Data!$A$25,SpringProvRep!$P:$P,"Coventry",SpringProvRep!$U:$U,Data!P$17)/$BA$73*$A$73 -> 0 | Q78: =SUMIFS(SpringProvRep!$K:$K,SpringProvRep!$A:$A,Data!$A$25,SpringProvRep!$P:$P,"Coventry",SpringProvRep!$U:$U,Data!Q$17)/$BA$73*$A$73 -> 918.3035714 | R78: =SUMIFS(SpringProvRep!$K:$K,SpringProvRep!$A:$A,Data!$A$25,SpringProvRep!$P:$P,"Coventry",SpringProvRep!$U:$U,Data!R$17)/$BA$73*$A$73 -> 324.1071429 | S78: =SUMIFS(SpringProvRep!$K:$K,SpringProvRep!$A:$A,Data!$A$25,SpringProvRep!$P:$P,"Coventry",SpringProvRep!$U:$U,Data!S$17)/$BA$73*$A$73 -> 0 | T78: =SUMIFS(SpringProvRep!$K:$K,SpringProvRep!$A:$A,Data!$A$25,SpringProvRep!$P:$P,"Coventry",SpringProvRep!$U:$U,Data!T$17)/$BA$73*$A$73 -> 324.1071429 | U78: =SUMIFS(SpringProvRep!$K:$K,SpringProvRep!$A:$A,Data!$A$25,SpringProvRep!$P:$P,"Coventry",SpringProvRep!$U:$U,Data!U$17)/$BA$73*$A$73 -> 54.01785714 | V78: =SUMIFS(SpringProvRep!$K:$K,SpringProvRep!$A:$A,Data!$A$25,SpringProvRep!$P:$P,"Coventry",SpringProvRep!$U:$U,Data!V$17)/$BA$73*$A$73 -> 0 | W78: 129.6428571 | X78: 478430.0001 | Y78: 0 | Z78: =SUMIFS(SpringProvRep!$K:$K,SpringProvRep!$A:$A,Data!$A$25,SpringProvRep!$P:$P,"<>Coventry",SpringProvRep!$U:$U,Data!Z$17)/$BA$73*$A$73 -> 0 | AA78: =SUMIFS(SpringProvRep!$K:$K,SpringProvRep!$A:$A,Data!$A$25,SpringProvRep!$P:$P,"<>Coventry",SpringProvRep!$U:$U,Data!AA$17)/$BA$73*$A$73 -> 0 | AB78: =SUMIFS(SpringProvRep!$K:$K,SpringProvRep!$A:$A,Data!$A$25,SpringProvRep!$P:$P,"<>Coventry",SpringProvRep!$U:$U,Data!AB$17)/$BA$73*$A$73 -> 0 | AC78: =SUMIFS(SpringProvRep!$K:$K,SpringProvRep!$A:$A,Data!$A$25,SpringProvRep!$P:$P,"<>Coventry",SpringProvRep!$U:$U,Data!AC$17)/$BA$73*$A$73 -> 0 | AD78: =SUMIFS(SpringProvRep!$K:$K,SpringProvRep!$A:$A,Data!$A$25,SpringProvRep!$P:$P,"<>Coventry",SpringProvRep!$U:$U,Data!AD$17)/$BA$73*$A$73 -> 0 | AE78: =SUMIFS(SpringProvRep!$K:$K,SpringProvRep!$A:$A,Data!$A$25,SpringProvRep!$P:$P,"<>Coventry",SpringProvRep!$U:$U,Data!AE$17)/$BA$73*$A$73 -> 0 | AF78: =SUMIFS(SpringProvRep!$K:$K,SpringProvRep!$A:$A,Data!$A$25,SpringProvRep!$P:$P,"<>Coventry",SpringProvRep!$U:$U,Data!AF$17)/$BA$73*$A$73 -> 0 | AG78: =SUMIFS(SpringProvRep!$K:$K,SpringProvRep!$A:$A,Data!$A$25,SpringProvRep!$P:$P,"<>Coventry",SpringProvRep!$U:$U,Data!AG$17)/$BA$73*$A$73 -> 0 | AH78: =SUMIFS(SpringProvRep!$K:$K,SpringProvRep!$A:$A,Data!$A$25,SpringProvRep!$P:$P,"<>Coventry",SpringProvRep!$U:$U,Data!AH$17)/$BA$73*$A$73 -> 0 | AI78: =SUMIFS(SpringProvRep!$K:$K,SpringProvRep!$A:$A,Data!$A$25,SpringProvRep!$P:$P,"<>Coventry",SpringProvRep!$U:$U,Data!AI$17)/$BA$73*$A$73 -> 0 | AJ78: =SUMIFS(SpringProvRep!$K:$K,SpringProvRep!$A:$A,Data!$A$25,SpringProvRep!$P:$P,"<>Coventry",SpringProvRep!$U:$U,Data!AJ$17)/$BA$73*$A$73 -> 0 | AK78: =SUMIFS(SpringProvRep!$K:$K,SpringProvRep!$A:$A,Data!$A$25,SpringProvRep!$P:$P,"<>Coventry",SpringProvRep!$U:$U,Data!AK$17)/$BA$73*$A$73 -> 0 | AL78: =SUMIFS(SpringProvRep!$K:$K,SpringProvRep!$A:$A,Data!$A$25,SpringProvRep!$P:$P,"<>Coventry",SpringProvRep!$U:$U,Data!AL$17)/$BA$73*$A$73 -> 54.01785714 | AM78: =SUMIFS(SpringProvRep!$K:$K,SpringProvRep!$A:$A,Data!$A$25,SpringProvRep!$P:$P,"<>Coventry",SpringProvRep!$U:$U,Data!AM$17)/$BA$73*$A$73 -> 0 | AN78: =SUMIFS(SpringProvRep!$K:$K,SpringProvRep!$A:$A,Data!$A$25,SpringProvRep!$P:$P,"<>Coventry",SpringProvRep!$U:$U,Data!AN$17)/$BA$73*$A$73 -> 0 | AO78: =SUMIFS(SpringProvRep!$K:$K,SpringProvRep!$A:$A,Data!$A$25,SpringProvRep!$P:$P,"<>Coventry",SpringProvRep!$U:$U,Data!AO$17)/$BA$73*$A$73 -> 0 | AP78: =SUMIFS(SpringProvRep!$K:$K,SpringProvRep!$A:$A,Data!$A$25,SpringProvRep!$P:$P,"<>Coventry",SpringProvRep!$U:$U,Data!AP$17)/$BA$73*$A$73 -> 0 | AQ78: =SUMIFS(SpringProvRep!$K:$K,SpringProvRep!$A:$A,Data!$A$25,SpringProvRep!$P:$P,"<>Coventry",SpringProvRep!$U:$U,Data!AQ$17)/$BA$73*$A$73 -> 0 | AR78: 0.9821428571 | AS78: 4742.284133 | AT78: 483172.2842 | AU78: 130.625 | AV78: -5.375 | AW78: 136 | AX78: =[5]Data!$AU66 -> 119.5 | AY78: 131 | BB78: =($O$8-$AU$78)*$A$73 -> 295.625 | BD78: 7184.375 | BE78: =$BB$78/$BD$78*D78 -> 0 | BF78: 0 | BG78: 0 | BH78: 0 | BI78: 0 | BJ78: 0 | BK78: 0 | BL78: 184.487782 | BM78: 17.78195489 | BN78: 0 | BO78: 8.890977444 | BP78: 15.55921053 | BQ78: 0 | BR78: 37.78665414 | BS78: 13.33646617 | BT78: 0 | BU78: 13.33646617 | BV78: 2.222744361 | BW78: 0 | BY78: =$BB$78/$BD$78*Y78 -> 0 | BZ78: 0 | CA78: 0 | CB78: 0 | CC78: 0 | CD78: 0 | CE78: 0 | CF78: 0 | CG78: 0 | CH78: 0 | CI78: 0 | CJ78: 0 | CK78: 0 | CL78: 2.222744361 | CM78: 0 | CN78: 0 | CO78: 0 | CP78: 0 | CQ78: 0
A79: 6 | B79: Baginton Fields | C79: 51.54639175 | D79: 0 | E79: =SUMIFS(SpringProvRep!$K:$K,SpringProvRep!$A:$A,Data!$A$26,SpringProvRep!$P:$P,"Coventry",SpringProvRep!$U:$U,Data!E$17)/$BA$73*$A$73 -> 0 | F79: =SUMIFS(SpringProvRep!$K:$K,SpringProvRep!$A:$A,Data!$A$26,SpringProvRep!$P:$P,"Coventry",SpringProvRep!$U:$U,Data!F$17)/$BA$73*$A$73 -> 0 | G79: =SUMIFS(SpringProvRep!$K:$K,SpringProvRep!$A:$A,Data!$A$26,SpringProvRep!$P:$P,"Coventry",SpringProvRep!$U:$U,Data!G$17)/$BA$73*$A$73 -> 0 | H79: =SUMIFS(SpringProvRep!$K:$K,SpringProvRep!$A:$A,Data!$A$26,SpringProvRep!$P:$P,"Coventry",SpringProvRep!$U:$U,Data!H$17)/$BA$73*$A$73 -> 0 | I79: =SUMIFS(SpringProvRep!$K:$K,SpringProvRep!$A:$A,Data!$A$26,SpringProvRep!$P:$P,"Coventry",SpringProvRep!$U:$U,Data!I$17)/$BA$73*$A$73 -> 0 | J79: =SUMIFS(SpringProvRep!$K:$K,SpringProvRep!$A:$A,Data!$A$26,SpringProvRep!$P:$P,"Coventry",SpringProvRep!$U:$U,Data!J$17)/$BA$73*$A$73 -> 0 | K79: =SUMIFS(SpringProvRep!$K:$K,SpringProvRep!$A:$A,Data!$A$26,SpringProvRep!$P:$P,"Coventry",SpringProvRep!$U:$U,Data!K$17)/$BA$73*$A$73 -> 1865.089286 | L79: =SUMIFS(SpringProvRep!$K:$K,SpringProvRep!$A:$A,Data!$A$26,SpringProvRep!$P:$P,"Coventry",SpringProvRep!$U:$U,Data!L$17)/$BA$73*$A$73 -> 1728.571429 | M79: =SUMIFS(SpringProvRep!$K:$K,SpringProvRep!$A:$A,Data!$A$26,SpringProvRep!$P:$P,"Coventry",SpringProvRep!$U:$U,Data!M$17)/$BA$73*$A$73 -> 0 | N79: =SUMIFS(SpringProvRep!$K:$K,SpringProvRep!$A:$A,Data!$A$26,SpringProvRep!$P:$P,"Coventry",SpringProvRep!$U:$U,Data!N$17)/$BA$73*$A$73 -> 216.0714286 | O79: =SUMIFS(SpringProvRep!$K:$K,SpringProvRep!$A:$A,Data!$A$26,SpringProvRep!$P:$P,"Coventry",SpringProvRep!$U:$U,Data!O$17)/$BA$73*$A$73 -> 663.9285714 | P79: =SUMIFS(SpringProvRep!$K:$K,SpringProvRep!$A:$A,Data!$A$26,SpringProvRep!$P:$P,"Coventry",SpringProvRep!$U:$U,Data!P$17)/$BA$73*$A$73 -> 0 | Q79: =SUMIFS(SpringProvRep!$K:$K,SpringProvRep!$A:$A,Data!$A$26,SpringProvRep!$P:$P,"Coventry",SpringProvRep!$U:$U,Data!Q$17)/$BA$73*$A$73 -> 1361.25 | R79: =SUMIFS(SpringProvRep!$K:$K,SpringProvRep!$A:$A,Data!$A$26,SpringProvRep!$P:$P,"Coventry",SpringProvRep!$U:$U,Data!R$17)/$BA$73*$A$73 -> 540.1785714 | S79: =SUMIFS(SpringProvRep!$K:$K,SpringProvRep!$A:$A,Data!$A$26,SpringProvRep!$P:$P,"Coventry",SpringProvRep!$U:$U,Data!S$17)/$BA$73*$A$73 -> 0 | T79: =SUMIFS(SpringProvRep!$K:$K,SpringProvRep!$A:$A,Data!$A$26,SpringProvRep!$P:$P,"Coventry",SpringProvRep!$U:$U,Data!T$17)/$BA$73*$A$73 -> 216.0714286 | U79: =SUMIFS(SpringProvRep!$K:$K,SpringProvRep!$A:$A,Data!$A$26,SpringProvRep!$P:$P,"Coventry",SpringProvRep!$U:$U,Data!U$17)/$BA$73*$A$73 -> 0 | V79: =SUMIFS(SpringProvRep!$K:$K,SpringProvRep!$A:$A,Data!$A$26,SpringProvRep!$P:$P,"Coventry",SpringProvRep!$U:$U,Data!V$17)/$BA$73*$A$73 -> 0 | W79: 119.8392857 | X79: 473851.7851 | Y79: 0 | Z79: =SUMIFS(SpringProvRep!$K:$K,SpringProvRep!$A:$A,Data!$A$26,SpringProvRep!$P:$P,"<>Coventry",SpringProvRep!$U:$U,Data!Z$17)/$BA$73*$A$73 -> 0 | AA79: =SUMIFS(SpringProvRep!$K:$K,SpringProvRep!$A:$A,Data!$A$26,SpringProvRep!$P:$P,"<>Coventry",SpringProvRep!$U:$U,Data!AA$17)/$BA$73*$A$73 -> 0 | AB79: =SUMIFS(SpringProvRep!$K:$K,SpringProvRep!$A:$A,Data!$A$26,SpringProvRep!$P:$P,"<>Coventry",SpringProvRep!$U:$U,Data!AB$17)/$BA$73*$A$73 -> 0 | AC79: =SUMIFS(SpringProvRep!$K:$K,SpringProvRep!$A:$A,Data!$A$26,SpringProvRep!$P:$P,"<>Coventry",SpringProvRep!$U:$U,Data!AC$17)/$BA$73*$A$73 -> 0 | AD79: =SUMIFS(SpringProvRep!$K:$K,SpringProvRep!$A:$A,Data!$A$26,SpringProvRep!$P:$P,"<>Coventry",SpringProvRep!$U:$U,Data!AD$17)/$BA$73*$A$73 -> 0 | AE79: =SUMIFS(SpringProvRep!$K:$K,SpringProvRep!$A:$A,Data!$A$26,SpringProvRep!$P:$P,"<>Coventry",SpringProvRep!$U:$U,Data!AE$17)/$BA$73*$A$73 -> 0 | AF79: =SUMIFS(SpringProvRep!$K:$K,SpringProvRep!$A:$A,Data!$A$26,SpringProvRep!$P:$P,"<>Coventry",SpringProvRep!$U:$U,Data!AF$17)/$BA$73*$A$73 -> 0 | AG79: =SUMIFS(SpringProvRep!$K:$K,SpringProvRep!$A:$A,Data!$A$26,SpringProvRep!$P:$P,"<>Coventry",SpringProvRep!$U:$U,Data!AG$17)/$BA$73*$A$73 -> 54.01785714 | AH79: =SUMIFS(SpringProvRep!$K:$K,SpringProvRep!$A:$A,Data!$A$26,SpringProvRep!$P:$P,"<>Coventry",SpringProvRep!$U:$U,Data!AH$17)/$BA$73*$A$73 -> 0 | AI79: =SUMIFS(SpringProvRep!$K:$K,SpringProvRep!$A:$A,Data!$A$26,SpringProvRep!$P:$P,"<>Coventry",SpringProvRep!$U:$U,Data!AI$17)/$BA$73*$A$73 -> 0 | AJ79: =SUMIFS(SpringProvRep!$K:$K,SpringProvRep!$A:$A,Data!$A$26,SpringProvRep!$P:$P,"<>Coventry",SpringProvRep!$U:$U,Data!AJ$17)/$BA$73*$A$73 -> 0 | AK79: =SUMIFS(SpringProvRep!$K:$K,SpringProvRep!$A:$A,Data!$A$26,SpringProvRep!$P:$P,"<>Coventry",SpringProvRep!$U:$U,Data!AK$17)/$BA$73*$A$73 -> 0 | AL79: =SUMIFS(SpringProvRep!$K:$K,SpringProvRep!$A:$A,Data!$A$26,SpringProvRep!$P:$P,"<>Coventry",SpringProvRep!$U:$U,Data!AL$17)/$BA$73*$A$73 -> 0 | AM79: =SUMIFS(SpringProvRep!$K:$K,SpringProvRep!$A:$A,Data!$A$26,SpringProvRep!$P:$P,"<>Coventry",SpringProvRep!$U:$U,Data!AM$17)/$BA$73*$A$73 -> 0 | AN79: =SUMIFS(SpringProvRep!$K:$K,SpringProvRep!$A:$A,Data!$A$26,SpringProvRep!$P:$P,"<>Coventry",SpringProvRep!$U:$U,Data!AN$17)/$BA$73*$A$73 -> 0 | AO79: =SUMIFS(SpringProvRep!$K:$K,SpringProvRep!$A:$A,Data!$A$26,SpringProvRep!$P:$P,"<>Coventry",SpringProvRep!$U:$U,Data!AO$17)/$BA$73*$A$73 -> 0 | AP79: =SUMIFS(SpringProvRep!$K:$K,SpringProvRep!$A:$A,Data!$A$26,SpringProvRep!$P:$P,"<>Coventry",SpringProvRep!$U:$U,Data!AP$17)/$BA$73*$A$73 -> 0 | AQ79: =SUMIFS(SpringProvRep!$K:$K,SpringProvRep!$A:$A,Data!$A$26,SpringProvRep!$P:$P,"<>Coventry",SpringProvRep!$U:$U,Data!AQ$17)/$BA$73*$A$73 -> 0 | AR79: 0.9821428571 | AS79: 2699.454862 | AT79: 476551.24 | AU79: 120.8214286 | AV79: -5.178571429 | AW79: 126 | AX79: =[5]Data!$AU67 -> 122.6 | AY79: 126 | BB79: =($O$9-$AU$79)*$A$73 -> 284.8214286 | BD79: 6645.178571 | BE79: =$BB$79/$BD$79*D79 -> 0 | BF79: 0 | BG79: 0 | BH79: 0 | BI79: 0 | BJ79: 0 | BK79: 0 | BL79: 79.94027385 | BM79: 74.08893206 | BN79: 0 | BO79: 9.261116507 | BP79: 28.45688527 | BQ79: 0 | BR79: 58.34503399 | BS79: 23.15279127 | BT79: 0 | BU79: 9.261116507 | BV79: 0 | BW79: 0 | BY79: =$BB$79/$BD$79*Y79 -> 0 | BZ79: 0 | CA79: 0 | CB79: 0 | CC79: 0 | CD79: 0 | CE79: 0 | CF79: 0 | CG79: 2.315279127 | CH79: 0 | CI79: 0 | CJ79: 0 | CK79: 0 | CL79: 0 | CM79: 0 | CN79: 0 | CO79: 0 | CP79: 0 | CQ79: 0
A80: 7 | B80: Sherbourne Fields | C80: 51.54639175 | D80: 0 | E80: =SUMIFS(SpringProvRep!$K:$K,SpringProvRep!$A:$A,Data!$A$27,SpringProvRep!$P:$P,"Coventry",SpringProvRep!$U:$U,Data!E$17)/$BA$73*$A$73 -> 0 | F80: =SUMIFS(SpringProvRep!$K:$K,SpringProvRep!$A:$A,Data!$A$27,SpringProvRep!$P:$P,"Coventry",SpringProvRep!$U:$U,Data!F$17)/$BA$73*$A$73 -> 0 | G80: =SUMIFS(SpringProvRep!$K:$K,SpringProvRep!$A:$A,Data!$A$27,SpringProvRep!$P:$P,"Coventry",SpringProvRep!$U:$U,Data!G$17)/$BA$73*$A$73 -> 0 | H80: =SUMIFS(SpringProvRep!$K:$K,SpringProvRep!$A:$A,Data!$A$27,SpringProvRep!$P:$P,"Coventry",SpringProvRep!$U:$U,Data!H$17)/$BA$73*$A$73 -> 54.01785714 | I80: =SUMIFS(SpringProvRep!$K:$K,SpringProvRep!$A:$A,Data!$A$27,SpringProvRep!$P:$P,"Coventry",SpringProvRep!$U:$U,Data!I$17)/$BA$73*$A$73 -> 0 | J80: =SUMIFS(SpringProvRep!$K:$K,SpringProvRep!$A:$A,Data!$A$27,SpringProvRep!$P:$P,"Coventry",SpringProvRep!$U:$U,Data!J$17)/$BA$73*$A$73 -> 0 | K80: =SUMIFS(SpringProvRep!$K:$K,SpringProvRep!$A:$A,Data!$A$27,SpringProvRep!$P:$P,"Coventry",SpringProvRep!$U:$U,Data!K$17)/$BA$73*$A$73 -> 5131.696429 | L80: =SUMIFS(SpringProvRep!$K:$K,SpringProvRep!$A:$A,Data!$A$27,SpringProvRep!$P:$P,"Coventry",SpringProvRep!$U:$U,Data!L$17)/$BA$73*$A$73 -> 3025 | M80: =SUMIFS(SpringProvRep!$K:$K,SpringProvRep!$A:$A,Data!$A$27,SpringProvRep!$P:$P,"Coventry",SpringProvRep!$U:$U,Data!M$17)/$BA$73*$A$73 -> 54.01785714 | N80: =SUMIFS(SpringProvRep!$K:$K,SpringProvRep!$A:$A,Data!$A$27,SpringProvRep!$P:$P,"Coventry",SpringProvRep!$U:$U,Data!N$17)/$BA$73*$A$73 -> 1404.464286 | O80: =SUMIFS(SpringProvRep!$K:$K,SpringProvRep!$A:$A,Data!$A$27,SpringProvRep!$P:$P,"Coventry",SpringProvRep!$U:$U,Data!O$17)/$BA$73*$A$73 -> 162.0535714 | P80: =SUMIFS(SpringProvRep!$K:$K,SpringProvRep!$A:$A,Data!$A$27,SpringProvRep!$P:$P,"Coventry",SpringProvRep!$U:$U,Data!P$17)/$BA$73*$A$73 -> 0 | Q80: =SUMIFS(SpringProvRep!$K:$K,SpringProvRep!$A:$A,Data!$A$27,SpringProvRep!$P:$P,"Coventry",SpringProvRep!$U:$U,Data!Q$17)/$BA$73*$A$73 -> 1458.482143 | R80: =SUMIFS(SpringProvRep!$K:$K,SpringProvRep!$A:$A,Data!$A$27,SpringProvRep!$P:$P,"Coventry",SpringProvRep!$U:$U,Data!R$17)/$BA$73*$A$73 -> 1295.446429 | S80: =SUMIFS(SpringProvRep!$K:$K,SpringProvRep!$A:$A,Data!$A$27,SpringProvRep!$P:$P,"Coventry",SpringProvRep!$U:$U,Data!S$17)/$BA$73*$A$73 -> 0 | T80: =SUMIFS(SpringProvRep!$K:$K,SpringProvRep!$A:$A,Data!$A$27,SpringProvRep!$P:$P,"Coventry",SpringProvRep!$U:$U,Data!T$17)/$BA$73*$A$73 -> 1134.375 | U80: =SUMIFS(SpringProvRep!$K:$K,SpringProvRep!$A:$A,Data!$A$27,SpringProvRep!$P:$P,"Coventry",SpringProvRep!$U:$U,Data!U$17)/$BA$73*$A$73 -> 0 | V80: =SUMIFS(SpringProvRep!$K:$K,SpringProvRep!$A:$A,Data!$A$27,SpringProvRep!$P:$P,"Coventry",SpringProvRep!$U:$U,Data!V$17)/$BA$73*$A$73 -> 0 | W80: 249.4464286 | X80: 875603.4187 | Y80: 0 | Z80: =SUMIFS(SpringProvRep!$K:$K,SpringProvRep!$A:$A,Data!$A$27,SpringProvRep!$P:$P,"<>Coventry",SpringProvRep!$U:$U,Data!Z$17)/$BA$73*$A$73 -> 0 | AA80: =SUMIFS(SpringProvRep!$K:$K,SpringProvRep!$A:$A,Data!$A$27,SpringProvRep!$P:$P,"<>Coventry",SpringProvRep!$U:$U,Data!AA$17)/$BA$73*$A$73 -> 0 | AB80: =SUMIFS(SpringProvRep!$K:$K,SpringProvRep!$A:$A,Data!$A$27,SpringProvRep!$P:$P,"<>Coventry",SpringProvRep!$U:$U,Data!AB$17)/$BA$73*$A$73 -> 0 | AC80: =SUMIFS(SpringProvRep!$K:$K,SpringProvRep!$A:$A,Data!$A$27,SpringProvRep!$P:$P,"<>Coventry",SpringProvRep!$U:$U,Data!AC$17)/$BA$73*$A$73 -> 0 | AD80: =SUMIFS(SpringProvRep!$K:$K,SpringProvRep!$A:$A,Data!$A$27,SpringProvRep!$P:$P,"<>Coventry",SpringProvRep!$U:$U,Data!AD$17)/$BA$73*$A$73 -> 0 | AE80: =SUMIFS(SpringProvRep!$K:$K,SpringProvRep!$A:$A,Data!$A$27,SpringProvRep!$P:$P,"<>Coventry",SpringProvRep!$U:$U,Data!AE$17)/$BA$73*$A$73 -> 0 | AF80: =SUMIFS(SpringProvRep!$K:$K,SpringProvRep!$A:$A,Data!$A$27,SpringProvRep!$P:$P,"<>Coventry",SpringProvRep!$U:$U,Data!AF$17)/$BA$73*$A$73 -> 108.0357143 | AG80: =SUMIFS(SpringProvRep!$K:$K,SpringProvRep!$A:$A,Data!$A$27,SpringProvRep!$P:$P,"<>Coventry",SpringProvRep!$U:$U,Data!AG$17)/$BA$73*$A$73 -> 0 | AH80: =SUMIFS(SpringProvRep!$K:$K,SpringProvRep!$A:$A,Data!$A$27,SpringProvRep!$P:$P,"<>Coventry",SpringProvRep!$U:$U,Data!AH$17)/$BA$73*$A$73 -> 0 | AI80: =SUMIFS(SpringProvRep!$K:$K,SpringProvRep!$A:$A,Data!$A$27,SpringProvRep!$P:$P,"<>Coventry",SpringProvRep!$U:$U,Data!AI$17)/$BA$73*$A$73 -> 54.01785714 | AJ80: =SUMIFS(SpringProvRep!$K:$K,SpringProvRep!$A:$A,Data!$A$27,SpringProvRep!$P:$P,"<>Coventry",SpringProvRep!$U:$U,Data!AJ$17)/$BA$73*$A$73 -> 0 | AK80: =SUMIFS(SpringProvRep!$K:$K,SpringProvRep!$A:$A,Data!$A$27,SpringProvRep!$P:$P,"<>Coventry",SpringProvRep!$U:$U,Data!AK$17)/$BA$73*$A$73 -> 0 | AL80: =SUMIFS(SpringProvRep!$K:$K,SpringProvRep!$A:$A,Data!$A$27,SpringProvRep!$P:$P,"<>Coventry",SpringProvRep!$U:$U,Data!AL$17)/$BA$73*$A$73 -> 0 | AM80: =SUMIFS(SpringProvRep!$K:$K,SpringProvRep!$A:$A,Data!$A$27,SpringProvRep!$P:$P,"<>Coventry",SpringProvRep!$U:$U,Data!AM$17)/$BA$73*$A$73 -> 0 | AN80: =SUMIFS(SpringProvRep!$K:$K,SpringProvRep!$A:$A,Data!$A$27,SpringProvRep!$P:$P,"<>Coventry",SpringProvRep!$U:$U,Data!AN$17)/$BA$73*$A$73 -> 0 | AO80: =SUMIFS(SpringProvRep!$K:$K,SpringProvRep!$A:$A,Data!$A$27,SpringProvRep!$P:$P,"<>Coventry",SpringProvRep!$U:$U,Data!AO$17)/$BA$73*$A$73 -> 108.0357143 | AP80: =SUMIFS(SpringProvRep!$K:$K,SpringProvRep!$A:$A,Data!$A$27,SpringProvRep!$P:$P,"<>Coventry",SpringProvRep!$U:$U,Data!AP$17)/$BA$73*$A$73 -> 0 | AQ80: =SUMIFS(SpringProvRep!$K:$K,SpringProvRep!$A:$A,Data!$A$27,SpringProvRep!$P:$P,"<>Coventry",SpringProvRep!$U:$U,Data!AQ$17)/$BA$73*$A$73 -> 0 | AR80: 4.910714286 | AS80: 18239.54595 | AT80: 893842.9647 | AU80: 254.3571429 | AV80: -3.642857143 | AW80: 258 | AX80: =[5]Data!$AU68 -> 251.8 | AY80: 258 | BB80: =($O$10-$AU$80)*$A$73 -> 200.3571429 | BD80: 13989.64286 | BE80: =$BB$80/$BD$80*D80 -> 0 | BF80: 0 | BG80: 0 | BH80: 0 | BI80: 0.7736340113 | BJ80: 0 | BK80: 0 | BL80: 73.49523107 | BM80: 43.32350463 | BN80: 0.7736340113 | BO80: 20.11448429 | BP80: 2.320902034 | BQ80: 0 | BR80: 20.88811831 | BS80: 18.5531502 | BT80: 0 | BU80: 16.24631424 | BV80: 0 | BW80: 0 | BY80: =$BB$80/$BD$80*Y80 -> 0 | BZ80: 0 | CA80: 0 | CB80: 0 | CC80: 0 | CD80: 0 | CE80: 0 | CF80: 1.547268023 | CG80: 0 | CH80: 0 | CI80: 0.7736340113 | CJ80: 0 | CK80: 0 | CL80: 0 | CM80: 0 | CN80: 0 | CO80: 1.547268023 | CP80: 0 | CQ80: 0
A81: 8 | B81: Woodfield | C81: =10000/$A$16 -> 51.54639175 | D81: 0 | E81: =SUMIFS(SpringProvRep!$K:$K,SpringProvRep!$A:$A,Data!$A$28,SpringProvRep!$P:$P,"Coventry",SpringProvRep!$U:$U,Data!E$17)/$BA$73*$A$73 -> 0 | F81: =SUMIFS(SpringProvRep!$K:$K,SpringProvRep!$A:$A,Data!$A$28,SpringProvRep!$P:$P,"Coventry",SpringProvRep!$U:$U,Data!F$17)/$BA$73*$A$73 -> 0 | G81: =SUMIFS(SpringProvRep!$K:$K,SpringProvRep!$A:$A,Data!$A$28,SpringProvRep!$P:$P,"Coventry",SpringProvRep!$U:$U,Data!G$17)/$BA$73*$A$73 -> 0 | H81: =SUMIFS(SpringProvRep!$K:$K,SpringProvRep!$A:$A,Data!$A$28,SpringProvRep!$P:$P,"Coventry",SpringProvRep!$U:$U,Data!H$17)/$BA$73*$A$73 -> 0 | I81: =SUMIFS(SpringProvRep!$K:$K,SpringProvRep!$A:$A,Data!$A$28,SpringProvRep!$P:$P,"Coventry",SpringProvRep!$U:$U,Data!I$17)/$BA$73*$A$73 -> 0 | J81: =SUMIFS(SpringProvRep!$K:$K,SpringProvRep!$A:$A,Data!$A$28,SpringProvRep!$P:$P,"Coventry",SpringProvRep!$U:$U,Data!J$17)/$BA$73*$A$73 -> 0 | K81: =SUMIFS(SpringProvRep!$K:$K,SpringProvRep!$A:$A,Data!$A$28,SpringProvRep!$P:$P,"Coventry",SpringProvRep!$U:$U,Data!K$17)/$BA$73*$A$73 -> 0 | L81: =SUMIFS(SpringProvRep!$K:$K,SpringProvRep!$A:$A,Data!$A$28,SpringProvRep!$P:$P,"Coventry",SpringProvRep!$U:$U,Data!L$17)/$BA$73*$A$73 -> 0 | M81: =SUMIFS(SpringProvRep!$K:$K,SpringProvRep!$A:$A,Data!$A$28,SpringProvRep!$P:$P,"Coventry",SpringProvRep!$U:$U,Data!M$17)/$BA$73*$A$73 -> 0 | N81: =SUMIFS(SpringProvRep!$K:$K,SpringProvRep!$A:$A,Data!$A$28,SpringProvRep!$P:$P,"Coventry",SpringProvRep!$U:$U,Data!N$17)/$BA$73*$A$73 -> 0 | O81: =SUMIFS(SpringProvRep!$K:$K,SpringProvRep!$A:$A,Data!$A$28,SpringProvRep!$P:$P,"Coventry",SpringProvRep!$U:$U,Data!O$17)/$BA$73*$A$73 -> 432.1428571 | P81: =SUMIFS(SpringProvRep!$K:$K,SpringProvRep!$A:$A,Data!$A$28,SpringProvRep!$P:$P,"Coventry",SpringProvRep!$U:$U,Data!P$17)/$BA$73*$A$73 -> 0 | Q81: =SUMIFS(SpringProvRep!$K:$K,SpringProvRep!$A:$A,Data!$A$28,SpringProvRep!$P:$P,"Coventry",SpringProvRep!$U:$U,Data!Q$17)/$BA$73*$A$73 -> 8022.142857 | R81: =SUMIFS(SpringProvRep!$K:$K,SpringProvRep!$A:$A,Data!$A$28,SpringProvRep!$P:$P,"Coventry",SpringProvRep!$U:$U,Data!R$17)/$BA$73*$A$73 -> 0 | S81: =SUMIFS(SpringProvRep!$K:$K,SpringProvRep!$A:$A,Data!$A$28,SpringProvRep!$P:$P,"Coventry",SpringProvRep!$U:$U,Data!S$17)/$BA$73*$A$73 -> 108.0357143 | T81: =SUMIFS(SpringProvRep!$K:$K,SpringProvRep!$A:$A,Data!$A$28,SpringProvRep!$P:$P,"Coventry",SpringProvRep!$U:$U,Data!T$17)/$BA$73*$A$73 -> 0 | U81: =SUMIFS(SpringProvRep!$K:$K,SpringProvRep!$A:$A,Data!$A$28,SpringProvRep!$P:$P,"Coventry",SpringProvRep!$U:$U,Data!U$17)/$BA$73*$A$73 -> 108.0357143 | V81: =SUMIFS(SpringProvRep!$K:$K,SpringProvRep!$A:$A,Data!$A$28,SpringProvRep!$P:$P,"Coventry",SpringProvRep!$U:$U,Data!V$17)/$BA$73*$A$73 -> 0 | W81: =SUM(D81:V81)/$A$73 -> 157.6428571 | X81: 802920.5901 | Y81: 0 | Z81: =SUMIFS(SpringProvRep!$K:$K,SpringProvRep!$A:$A,Data!$A$28,SpringProvRep!$P:$P,"<>Coventry",SpringProvRep!$U:$U,Data!Z$17)/$BA$73*$A$73 -> 0 | AA81: =SUMIFS(SpringProvRep!$K:$K,SpringProvRep!$A:$A,Data!$A$28,SpringProvRep!$P:$P,"<>Coventry",SpringProvRep!$U:$U,Data!AA$17)/$BA$73*$A$73 -> 0 | AB81: =SUMIFS(SpringProvRep!$K:$K,SpringProvRep!$A:$A,Data!$A$28,SpringProvRep!$P:$P,"<>Coventry",SpringProvRep!$U:$U,Data!AB$17)/$BA$73*$A$73 -> 0 | AC81: =SUMIFS(SpringProvRep!$K:$K,SpringProvRep!$A:$A,Data!$A$28,SpringProvRep!$P:$P,"<>Coventry",SpringProvRep!$U:$U,Data!AC$17)/$BA$73*$A$73 -> 0 | AD81: =SUMIFS(SpringProvRep!$K:$K,SpringProvRep!$A:$A,Data!$A$28,SpringProvRep!$P:$P,"<>Coventry",SpringProvRep!$U:$U,Data!AD$17)/$BA$73*$A$73 -> 0 | AE81: =SUMIFS(SpringProvRep!$K:$K,SpringProvRep!$A:$A,Data!$A$28,SpringProvRep!$P:$P,"<>Coventry",SpringProvRep!$U:$U,Data!AE$17)/$BA$73*$A$73 -> 0 | AF81: =SUMIFS(SpringProvRep!$K:$K,SpringProvRep!$A:$A,Data!$A$28,SpringProvRep!$P:$P,"<>Coventry",SpringProvRep!$U:$U,Data!AF$17)/$BA$73*$A$73 -> 0 | AG81: =SUMIFS(SpringProvRep!$K:$K,SpringProvRep!$A:$A,Data!$A$28,SpringProvRep!$P:$P,"<>Coventry",SpringProvRep!$U:$U,Data!AG$17)/$BA$73*$A$73 -> 0 | AH81: =SUMIFS(SpringProvRep!$K:$K,SpringProvRep!$A:$A,Data!$A$28,SpringProvRep!$P:$P,"<>Coventry",SpringProvRep!$U:$U,Data!AH$17)/$BA$73*$A$73 -> 0 | AI81: =SUMIFS(SpringProvRep!$K:$K,SpringProvRep!$A:$A,Data!$A$28,SpringProvRep!$P:$P,"<>Coventry",SpringProvRep!$U:$U,Data!AI$17)/$BA$73*$A$73 -> 0 | AJ81: =SUMIFS(SpringProvRep!$K:$K,SpringProvRep!$A:$A,Data!$A$28,SpringProvRep!$P:$P,"<>Coventry",SpringProvRep!$U:$U,Data!AJ$17)/$BA$73*$A$73 -> 0 | AK81: =SUMIFS(SpringProvRep!$K:$K,SpringProvRep!$A:$A,Data!$A$28,SpringProvRep!$P:$P,"<>Coventry",SpringProvRep!$U:$U,Data!AK$17)/$BA$73*$A$73 -> 0 | AL81: =SUMIFS(SpringProvRep!$K:$K,SpringProvRep!$A:$A,Data!$A$28,SpringProvRep!$P:$P,"<>Coventry",SpringProvRep!$U:$U,Data!AL$17)/$BA$73*$A$73 -> 54.01785714 | AM81: =SUMIFS(SpringProvRep!$K:$K,SpringProvRep!$A:$A,Data!$A$28,SpringProvRep!$P:$P,"<>Coventry",SpringProvRep!$U:$U,Data!AM$17)/$BA$73*$A$73 -> 0 | AN81: =SUMIFS(SpringProvRep!$K:$K,SpringProvRep!$A:$A,Data!$A$28,SpringProvRep!$P:$P,"<>Coventry",SpringProvRep!$U:$U,Data!AN$17)/$BA$73*$A$73 -> 54.01785714 | AO81: =SUMIFS(SpringProvRep!$K:$K,SpringProvRep!$A:$A,Data!$A$28,SpringProvRep!$P:$P,"<>Coventry",SpringProvRep!$U:$U,Data!AO$17)/$BA$73*$A$73 -> 0 | AP81: =SUMIFS(SpringProvRep!$K:$K,SpringProvRep!$A:$A,Data!$A$28,SpringProvRep!$P:$P,"<>Coventry",SpringProvRep!$U:$U,Data!AP$17)/$BA$73*$A$73 -> 0 | AQ81: =SUMIFS(SpringProvRep!$K:$K,SpringProvRep!$A:$A,Data!$A$28,SpringProvRep!$P:$P,"<>Coventry",SpringProvRep!$U:$U,Data!AQ$17)/$BA$73*$A$73 -> 0 | AR81: 1.964285714 | AS81: 9484.568267 | AT81: 812405.1584 | AU81: =AR81+W81 -> 159.6071429 | AV81: -1.392857143 | AW81: 161 | AX81: =[5]Data!$AU69 -> 154.28 | AY81: 155 | BB81: =($O$11-$AU$81)*$A$73 -> 76.60714286 | BD81: 8778.392857 | BE81: =$BB$81/$BD$81*D81 -> 0 | BF81: 0 | BG81: 0 | BH81: 0 | BI81: 0 | BJ81: 0 | BK81: 0 | BL81: 0 | BM81: 0 | BN81: 0 | BO81: 0 | BP81: 3.771217594 | BQ81: 0 | BR81: 70.00751207 | BS81: 0 | BT81: 0.9428043986 | BU81: 0 | BV81: 0.9428043986 | BW81: 0 | BY81: =$BB$81/$BD$81*Y81 -> 0 | BZ81: 0 | CA81: 0 | CB81: 0 | CC81: 0 | CD81: 0 | CE81: 0 | CF81: 0 | CG81: 0 | CH81: 0 | CI81: 0 | CJ81: 0 | CK81: 0 | CL81: 0.4714021993 | CM81: 0 | CN81: 0.4714021993 | CO81: 0 | CP81: 0 | CQ81: 0
A82: 9 | B82: Coventry ELC | C82: =10000/$A$16 -> 51.54639175 | D82: =120*A73 -> 6600 | E82: 0 | F82: 0 | G82: 0 | H82: 0 | I82: 0 | J82: 0 | K82: 0 | L82: 0 | M82: 0 | N82: 0 | O82: 0 | P82: 0 | Q82: 0 | R82: 0 | S82: 0 | T82: 0 | U82: 0 | V82: 0 | W82: =SUM(D82:V82)/$A$73 -> 120 | X82: =SUMPRODUCT(D82:V82,$Y$12:$AQ$12)/$A$16 -> 438775.822 | Y82: =A73*0 -> 0 | Z82: 0 | AA82: 0 | AB82: 0 | AC82: 0 | AD82: 0 | AE82: 0 | AF82: 0 | AG82: 0 | AH82: 0 | AI82: 0 | AJ82: 0 | AK82: 0 | AL82: 0 | AM82: 0 | AN82: 0 | AO82: 0 | AP82: 0 | AQ82: 0 | AR82: 0 | AS82: 0 | AT82: 438775.822 | AU82: 120 | AV82: 0 | AW82: 120 | AX82: =[5]Data!$AU70 -> 120 | AY82: 120 | BB82: =($O$12-$AU$82)*$A$74 -> 0 | BD82: 6600 | BE82: =$BB$82/$BD$82*D82 -> 0 | BF82: 0 | BG82: 0 | BH82: 0 | BI82: 0 | BJ82: 0 | BK82: 0 | BL82: 0 | BM82: 0 | BN82: 0 | BO82: 0 | BP82: 0 | BQ82: 0 | BR82: 0 | BS82: 0 | BT82: 0 | BU82: 0 | BV82: 0 | BW82: 0 | BY82: =$BB$82/$BD$82*Y82 -> 0 | BZ82: 0 | CA82: 0 | CB82: 0 | CC82: 0 | CD82: 0 | CE82: 0 | CF82: 0 | CG82: 0 | CH82: 0 | CI82: 0 | CJ82: 0 | CK82: 0 | CL82: 0 | CM82: 0 | CN82: 0 | CO82: 0 | CP82: 0 | CQ82: 0
AS83: =SUM(AS74:AS82) -> 71804.13976 | AT83: =SUM(AT74:AT82) -> 5562383.578 | AU83: =SUM(AU74:AU82) -> 1450
B84: Spring Term 2026
A85: 55 | B85: School
A86: 1 | B86: Castle Wood | C86: =10000/$A$16 -> 51.54639175 | D86: =D74+BE74 -> 0 | E86: =SUMIFS(SpringProvRep!$K:$K,SpringProvRep!$A:$A,Data!$A$21,SpringProvRep!$P:$P,"Coventry",SpringProvRep!$U:$U,Data!E$17) -> 0 | F86: =SUMIFS(SpringProvRep!$K:$K,SpringProvRep!$A:$A,Data!$A$21,SpringProvRep!$P:$P,"Coventry",SpringProvRep!$U:$U,Data!F$17) -> 0 | G86: =SUMIFS(SpringProvRep!$K:$K,SpringProvRep!$A:$A,Data!$A$21,SpringProvRep!$P:$P,"Coventry",SpringProvRep!$U:$U,Data!G$17) -> 55 | H86: =SUMIFS(SpringProvRep!$K:$K,SpringProvRep!$A:$A,Data!$A$21,SpringProvRep!$P:$P,"Coventry",SpringProvRep!$U:$U,Data!H$17) -> 0 | I86: =SUMIFS(SpringProvRep!$K:$K,SpringProvRep!$A:$A,Data!$A$21,SpringProvRep!$P:$P,"Coventry",SpringProvRep!$U:$U,Data!I$17) -> 0 | J86: =SUMIFS(SpringProvRep!$K:$K,SpringProvRep!$A:$A,Data!$A$21,SpringProvRep!$P:$P,"Coventry",SpringProvRep!$U:$U,Data!J$17) -> 55 | K86: =SUMIFS(SpringProvRep!$K:$K,SpringProvRep!$A:$A,Data!$A$21,SpringProvRep!$P:$P,"Coventry",SpringProvRep!$U:$U,Data!K$17) -> 6534 | L86: =SUMIFS(SpringProvRep!$K:$K,SpringProvRep!$A:$A,Data!$A$21,SpringProvRep!$P:$P,"Coventry",SpringProvRep!$U:$U,Data!L$17) -> 440 | M86: =SUMIFS(SpringProvRep!$K:$K,SpringProvRep!$A:$A,Data!$A$21,SpringProvRep!$P:$P,"Coventry",SpringProvRep!$U:$U,Data!M$17) -> 0 | N86: =SUMIFS(SpringProvRep!$K:$K,SpringProvRep!$A:$A,Data!$A$21,SpringProvRep!$P:$P,"Coventry",SpringProvRep!$U:$U,Data!N$17) -> 405 | O86: =SUMIFS(SpringProvRep!$K:$K,SpringProvRep!$A:$A,Data!$A$21,SpringProvRep!$P:$P,"Coventry",SpringProvRep!$U:$U,Data!O$17) -> 555 | P86: =SUMIFS(SpringProvRep!$K:$K,SpringProvRep!$A:$A,Data!$A$21,SpringProvRep!$P:$P,"Coventry",SpringProvRep!$U:$U,Data!P$17) -> 0 | Q86: =SUMIFS(SpringProvRep!$K:$K,SpringProvRep!$A:$A,Data!$A$21,SpringProvRep!$P:$P,"Coventry",SpringProvRep!$U:$U,Data!Q$17) -> 1745 | R86: =SUMIFS(SpringProvRep!$K:$K,SpringProvRep!$A:$A,Data!$A$21,SpringProvRep!$P:$P,"Coventry",SpringProvRep!$U:$U,Data!R$17) -> 330 | S86: =SUMIFS(SpringProvRep!$K:$K,SpringProvRep!$A:$A,Data!$A$21,SpringProvRep!$P:$P,"Coventry",SpringProvRep!$U:$U,Data!S$17) -> 0 | T86: =SUMIFS(SpringProvRep!$K:$K,SpringProvRep!$A:$A,Data!$A$21,SpringProvRep!$P:$P,"Coventry",SpringProvRep!$U:$U,Data!T$17) -> 188 | U86: =SUMIFS(SpringProvRep!$K:$K,SpringProvRep!$A:$A,Data!$A$21,SpringProvRep!$P:$P,"Coventry",SpringProvRep!$U:$U,Data!U$17) -> 110 | V86: =SUMIFS(SpringProvRep!$K:$K,SpringProvRep!$A:$A,Data!$A$21,SpringProvRep!$P:$P,"Coventry",SpringProvRep!$U:$U,Data!V$17) -> 0 | W86: =SUM(D86:V86)/$A$73 -> 189.4 | X86: =SUMPRODUCT(D86:V86,$Y$6:$AQ$6)/$A$16 -> 707235.8982 | Y86: =Y74+BY74 -> 0 | Z86: =SUMIFS(SpringProvRep!$K:$K,SpringProvRep!$A:$A,Data!$A$21,SpringProvRep!$P:$P,"<>Coventry",SpringProvRep!$U:$U,Data!Z$17) -> 0 | AA86: =SUMIFS(SpringProvRep!$K:$K,SpringProvRep!$A:$A,Data!$A$21,SpringProvRep!$P:$P,"<>Coventry",SpringProvRep!$U:$U,Data!AA$17) -> 0 | AB86: =SUMIFS(SpringProvRep!$K:$K,SpringProvRep!$A:$A,Data!$A$21,SpringProvRep!$P:$P,"<>Coventry",SpringProvRep!$U:$U,Data!AB$17) -> 0 | AC86: =SUMIFS(SpringProvRep!$K:$K,SpringProvRep!$A:$A,Data!$A$21,SpringProvRep!$P:$P,"<>Coventry",SpringProvRep!$U:$U,Data!AC$17) -> 0 | AD86: =SUMIFS(SpringProvRep!$K:$K,SpringProvRep!$A:$A,Data!$A$21,SpringProvRep!$P:$P,"<>Coventry",SpringProvRep!$U:$U,Data!AD$17) -> 0 | AE86: =SUMIFS(SpringProvRep!$K:$K,SpringProvRep!$A:$A,Data!$A$21,SpringProvRep!$P:$P,"<>Coventry",SpringProvRep!$U:$U,Data!AE$17) -> 0 | AF86: =SUMIFS(SpringProvRep!$K:$K,SpringProvRep!$A:$A,Data!$A$21,SpringProvRep!$P:$P,"<>Coventry",SpringProvRep!$U:$U,Data!AF$17) -> 245 | AG86: =SUMIFS(SpringProvRep!$K:$K,SpringProvRep!$A:$A,Data!$A$21,SpringProvRep!$P:$P,"<>Coventry",SpringProvRep!$U:$U,Data!AG$17) -> 0 | AH86: =SUMIFS(SpringProvRep!$K:$K,SpringProvRep!$A:$A,Data!$A$21,SpringProvRep!$P:$P,"<>Coventry",SpringProvRep!$U:$U,Data!AH$17) -> 0 | AI86: =SUMIFS(SpringProvRep!$K:$K,SpringProvRep!$A:$A,Data!$A$21,SpringProvRep!$P:$P,"<>Coventry",SpringProvRep!$U:$U,Data!AI$17) -> 0 | AJ86: =SUMIFS(SpringProvRep!$K:$K,SpringProvRep!$A:$A,Data!$A$21,SpringProvRep!$P:$P,"<>Coventry",SpringProvRep!$U:$U,Data!AJ$17) -> 0 | AK86: =SUMIFS(SpringProvRep!$K:$K,SpringProvRep!$A:$A,Data!$A$21,SpringProvRep!$P:$P,"<>Coventry",SpringProvRep!$U:$U,Data!AK$17) -> 0 | AL86: =SUMIFS(SpringProvRep!$K:$K,SpringProvRep!$A:$A,Data!$A$21,SpringProvRep!$P:$P,"<>Coventry",SpringProvRep!$U:$U,Data!AL$17) -> 0 | AM86: =SUMIFS(SpringProvRep!$K:$K,SpringProvRep!$A:$A,Data!$A$21,SpringProvRep!$P:$P,"<>Coventry",SpringProvRep!$U:$U,Data!AM$17) -> 0 | AN86: =SUMIFS(SpringProvRep!$K:$K,SpringProvRep!$A:$A,Data!$A$21,SpringProvRep!$P:$P,"<>Coventry",SpringProvRep!$U:$U,Data!AN$17) -> 0 | AO86: =SUMIFS(SpringProvRep!$K:$K,SpringProvRep!$A:$A,Data!$A$21,SpringProvRep!$P:$P,"<>Coventry",SpringProvRep!$U:$U,Data!AO$17) -> 0 | AP86: =SUMIFS(SpringProvRep!$K:$K,SpringProvRep!$A:$A,Data!$A$21,SpringProvRep!$P:$P,"<>Coventry",SpringProvRep!$U:$U,Data!AP$17) -> 0 | AQ86: =SUMIFS(SpringProvRep!$K:$K,SpringProvRep!$A:$A,Data!$A$21,SpringProvRep!$P:$P,"<>Coventry",SpringProvRep!$U:$U,Data!AQ$17) -> 0 | AR86: =SUM(Y86:AQ86)/$A$73 -> 4.454545455 | AS86: =SUMPRODUCT(Y86:AQ86,$Y$6:$AQ$6)/$A$16 -> 13236.18507 | AT86: =X86+AS86 -> 720472.0833 | AU86: =AR86+W86 -> 193.8545455 | AV86: =AU86-AW86 -> 3.854545455 | AW86: =O4 -> 190 | AX86: =[5]Data!$AU62 -> 161.72 | AY86: =E4 -> 164 | BA86: =(AT86/56*200)/AU86 -> 13273.4292 | BC86: =X86/W86 -> 3734.086052
A87: 2 | B87: Kingsbury | C87: =10000/$A$16 -> 51.54639175 | D87: =D75+BE75 -> 0 | E87: =SUMIFS(SpringProvRep!$K:$K,SpringProvRep!$A:$A,Data!$A$22,SpringProvRep!$P:$P,"Coventry",SpringProvRep!$U:$U,Data!E$17) -> 0 | F87: =SUMIFS(SpringProvRep!$K:$K,SpringProvRep!$A:$A,Data!$A$22,SpringProvRep!$P:$P,"Coventry",SpringProvRep!$U:$U,Data!F$17) -> 0 | G87: =SUMIFS(SpringProvRep!$K:$K,SpringProvRep!$A:$A,Data!$A$22,SpringProvRep!$P:$P,"Coventry",SpringProvRep!$U:$U,Data!G$17) -> 0 | H87: =SUMIFS(SpringProvRep!$K:$K,SpringProvRep!$A:$A,Data!$A$22,SpringProvRep!$P:$P,"Coventry",SpringProvRep!$U:$U,Data!H$17) -> 0 | I87: =SUMIFS(SpringProvRep!$K:$K,SpringProvRep!$A:$A,Data!$A$22,SpringProvRep!$P:$P,"Coventry",SpringProvRep!$U:$U,Data!I$17) -> 0 | J87: =SUMIFS(SpringProvRep!$K:$K,SpringProvRep!$A:$A,Data!$A$22,SpringProvRep!$P:$P,"Coventry",SpringProvRep!$U:$U,Data!J$17) -> 0 | K87: =SUMIFS(SpringProvRep!$K:$K,SpringProvRep!$A:$A,Data!$A$22,SpringProvRep!$P:$P,"Coventry",SpringProvRep!$U:$U,Data!K$17) -> 3030 | L87: =SUMIFS(SpringProvRep!$K:$K,SpringProvRep!$A:$A,Data!$A$22,SpringProvRep!$P:$P,"Coventry",SpringProvRep!$U:$U,Data!L$17) -> 110 | M87: =SUMIFS(SpringProvRep!$K:$K,SpringProvRep!$A:$A,Data!$A$22,SpringProvRep!$P:$P,"Coventry",SpringProvRep!$U:$U,Data!M$17) -> 0 | N87: =SUMIFS(SpringProvRep!$K:$K,SpringProvRep!$A:$A,Data!$A$22,SpringProvRep!$P:$P,"Coventry",SpringProvRep!$U:$U,Data!N$17) -> 0 | O87: =SUMIFS(SpringProvRep!$K:$K,SpringProvRep!$A:$A,Data!$A$22,SpringProvRep!$P:$P,"Coventry",SpringProvRep!$U:$U,Data!O$17) -> 1001 | P87: =SUMIFS(SpringProvRep!$K:$K,SpringProvRep!$A:$A,Data!$A$22,SpringProvRep!$P:$P,"Coventry",SpringProvRep!$U:$U,Data!P$17) -> 0 | Q87: =SUMIFS(SpringProvRep!$K:$K,SpringProvRep!$A:$A,Data!$A$22,SpringProvRep!$P:$P,"Coventry",SpringProvRep!$U:$U,Data!Q$17) -> 1394 | R87: =SUMIFS(SpringProvRep!$K:$K,SpringProvRep!$A:$A,Data!$A$22,SpringProvRep!$P:$P,"Coventry",SpringProvRep!$U:$U,Data!R$17) -> 0 | S87: =SUMIFS(SpringProvRep!$K:$K,SpringProvRep!$A:$A,Data!$A$22,SpringProvRep!$P:$P,"Coventry",SpringProvRep!$U:$U,Data!S$17) -> 0 | T87: =SUMIFS(SpringProvRep!$K:$K,SpringProvRep!$A:$A,Data!$A$22,SpringProvRep!$P:$P,"Coventry",SpringProvRep!$U:$U,Data!T$17) -> 0 | U87: =SUMIFS(SpringProvRep!$K:$K,SpringProvRep!$A:$A,Data!$A$22,SpringProvRep!$P:$P,"Coventry",SpringProvRep!$U:$U,Data!U$17) -> 44 | V87: =SUMIFS(SpringProvRep!$K:$K,SpringProvRep!$A:$A,Data!$A$22,SpringProvRep!$P:$P,"Coventry",SpringProvRep!$U:$U,Data!V$17) -> 0 | W87: =SUM(D87:V87)/$A$73 -> 101.4363636 | X87: 441369.325 | Y87: =Y75+BY75 -> 0 | Z87: =SUMIFS(SpringProvRep!$K:$K,SpringProvRep!$A:$A,Data!$A$22,SpringProvRep!$P:$P,"<>Coventry",SpringProvRep!$U:$U,Data!Z$17) -> 0 | AA87: =SUMIFS(SpringProvRep!$K:$K,SpringProvRep!$A:$A,Data!$A$22,SpringProvRep!$P:$P,"<>Coventry",SpringProvRep!$U:$U,Data!AA$17) -> 0 | AB87: =SUMIFS(SpringProvRep!$K:$K,SpringProvRep!$A:$A,Data!$A$22,SpringProvRep!$P:$P,"<>Coventry",SpringProvRep!$U:$U,Data!AB$17) -> 0 | AC87: =SUMIFS(SpringProvRep!$K:$K,SpringProvRep!$A:$A,Data!$A$22,SpringProvRep!$P:$P,"<>Coventry",SpringProvRep!$U:$U,Data!AC$17) -> 0 | AD87: =SUMIFS(SpringProvRep!$K:$K,SpringProvRep!$A:$A,Data!$A$22,SpringProvRep!$P:$P,"<>Coventry",SpringProvRep!$U:$U,Data!AD$17) -> 0 | AE87: =SUMIFS(SpringProvRep!$K:$K,SpringProvRep!$A:$A,Data!$A$22,SpringProvRep!$P:$P,"<>Coventry",SpringProvRep!$U:$U,Data!AE$17) -> 0 | AF87: =SUMIFS(SpringProvRep!$K:$K,SpringProvRep!$A:$A,Data!$A$22,SpringProvRep!$P:$P,"<>Coventry",SpringProvRep!$U:$U,Data!AF$17) -> 55 | AG87: =SUMIFS(SpringProvRep!$K:$K,SpringProvRep!$A:$A,Data!$A$22,SpringProvRep!$P:$P,"<>Coventry",SpringProvRep!$U:$U,Data!AG$17) -> 55 | AH87: =SUMIFS(SpringProvRep!$K:$K,SpringProvRep!$A:$A,Data!$A$22,SpringProvRep!$P:$P,"<>Coventry",SpringProvRep!$U:$U,Data!AH$17) -> 0 | AI87: =SUMIFS(SpringProvRep!$K:$K,SpringProvRep!$A:$A,Data!$A$22,SpringProvRep!$P:$P,"<>Coventry",SpringProvRep!$U:$U,Data!AI$17) -> 0 | AJ87: =SUMIFS(SpringProvRep!$K:$K,SpringProvRep!$A:$A,Data!$A$22,SpringProvRep!$P:$P,"<>Coventry",SpringProvRep!$U:$U,Data!AJ$17) -> 0 | AK87: =SUMIFS(SpringProvRep!$K:$K,SpringProvRep!$A:$A,Data!$A$22,SpringProvRep!$P:$P,"<>Coventry",SpringProvRep!$U:$U,Data!AK$17) -> 0 | AL87: =SUMIFS(SpringProvRep!$K:$K,SpringProvRep!$A:$A,Data!$A$22,SpringProvRep!$P:$P,"<>Coventry",SpringProvRep!$U:$U,Data!AL$17) -> 55 | AM87: =SUMIFS(SpringProvRep!$K:$K,SpringProvRep!$A:$A,Data!$A$22,SpringProvRep!$P:$P,"<>Coventry",SpringProvRep!$U:$U,Data!AM$17) -> 0 | AN87: =SUMIFS(SpringProvRep!$K:$K,SpringProvRep!$A:$A,Data!$A$22,SpringProvRep!$P:$P,"<>Coventry",SpringProvRep!$U:$U,Data!AN$17) -> 0 | AO87: =SUMIFS(SpringProvRep!$K:$K,SpringProvRep!$A:$A,Data!$A$22,SpringProvRep!$P:$P,"<>Coventry",SpringProvRep!$U:$U,Data!AO$17) -> 0 | AP87: =SUMIFS(SpringProvRep!$K:$K,SpringProvRep!$A:$A,Data!$A$22,SpringProvRep!$P:$P,"<>Coventry",SpringProvRep!$U:$U,Data!AP$17) -> 0 | AQ87: =SUMIFS(SpringProvRep!$K:$K,SpringProvRep!$A:$A,Data!$A$22,SpringProvRep!$P:$P,"<>Coventry",SpringProvRep!$U:$U,Data!AQ$17) -> 0 | AR87: =SUM(Y87:AQ87)/$A$73 -> 3 | AS87: 10548.43183 | AT87: 451917.7568 | AU87: 104.4363636 | AV87: -1.563636364 | AW87: 106 | AX87: =[5]Data!$AU63 -> 100.52 | AY87: 100 | BA87: =(AT87/56*200)/AU87 -> 15454.31048 | BC87: 4351.194277
